Workbook

Sheet EU 28 milk deliveries
A2: EU 28 monthly milk deliveries | AL2: hide these columns
A3: Source: Eurostat
A4: Units: Million litres
A5: Last updated: 04/03/2020 | AL5: Source: | AM5: Eurostat
B7: Monthly deliveries | R7: 2019 compared to 2018
B8: Month | C8: 2006 | D8: 2007 | E8: 2008 | F8: 2009 | G8: 2010 | H8: 2011 | I8: 2012 | J8: 2013 | K8: 2014 | L8: 2015 | M8: 2016 | N8: 2017 | O8: 2018 | P8: 2019 | R8: Change | S8: % change
B9: Jan | C9: =OFFSET('Milk deliveries by EU country'!D7,1,0) -> 10569.81409 | D9: =OFFSET('Milk deliveries by EU country'!D19,1,0) -> 10797.02669 | E9: =OFFSET('Milk deliveries by EU country'!$D31,1,0) -> 10960.17185 | F9: =OFFSET('Milk deliveries by EU country'!$D43,1,0) -> 10914.05147 | G9: =OFFSET('Milk deliveries by EU country'!$D55,1,0) -> 10657.41272 | H9: =OFFSET('Milk deliveries by EU country'!$D67,1,0) -> 11030.88201 | I9: =OFFSET('Milk deliveries by EU country'!$D79,1,0) -> 11354.73474 | J9: =OFFSET('Milk deliveries by EU country'!$D91,1,0) -> 11179.33353 | K9: =OFFSET('Milk deliveries by EU country'!$D103,1,0) -> 11803.99335 | L9: =OFFSET('Milk deliveries by EU country'!$D115,1,0) -> 11719.28878 | M9: =OFFSET('Milk deliveries by EU country'!$D127,1,0) -> 12295.18666 | N9: =OFFSET('Milk deliveries by EU country'!$D139,1,0) -> 12197.19662 | O9: =OFFSET('Milk deliveries by EU country'!$D151,1,0) -> 12705.82224 | P9: =OFFSET('Milk deliveries by EU country'!$D163,1,0) -> 12554.836 | R9: =P9-O9 -> -150.9862452 | S9: =R9/O9 -> -0.01188323292
B10: Feb | C10: =OFFSET('Milk deliveries by EU country'!D8,1,0) -> 9769.286904 | D10: =OFFSET('Milk deliveries by EU country'!D20,1,0) -> 9960.362634 | E10: =OFFSET('Milk deliveries by EU country'!$D32,1,0) -> 10609.70934 | F10: =OFFSET('Milk deliveries by EU country'!$D44,1,0) -> 10193.40219 | G10: =OFFSET('Milk deliveries by EU country'!$D56,1,0) -> 10020.26378 | H10: =OFFSET('Milk deliveries by EU country'!$D68,1,0) -> 10285.93431 | I10: =OFFSET('Milk deliveries by EU country'!$D80,1,0) -> 10754.44132 | J10: =OFFSET('Milk deliveries by EU country'!$D92,1,0) -> 10418.36169 | K10: =OFFSET('Milk deliveries by EU country'!$D104,1,0) -> 10998.10536 | L10: =OFFSET('Milk deliveries by EU country'!$D116,1,0) -> 10858.10294 | M10: =OFFSET('Milk deliveries by EU country'!$D128,1,0) -> 11881.29769 | N10: =OFFSET('Milk deliveries by EU country'!$D140,1,0) -> 11442.54703 | O10: =OFFSET('Milk deliveries by EU country'!$D152,1,0) -> 11770.64372 | P10: =OFFSET('Milk deliveries by EU country'!$D164,1,0) -> 11754.23112 | R10: =P10-O10 -> -16.412604 | S10: =R10/O10 -> -0.00139436758
B11: Mar | C11: =OFFSET('Milk deliveries by EU country'!D9,1,0) -> 10991.00618 | D11: =OFFSET('Milk deliveries by EU country'!D21,1,0) -> 11329.46516 | E11: =OFFSET('Milk deliveries by EU country'!$D33,1,0) -> 11521.81311 | F11: =OFFSET('Milk deliveries by EU country'!$D45,1,0) -> 11496.81545 | G11: =OFFSET('Milk deliveries by EU country'!$D57,1,0) -> 11434.71948 | H11: =OFFSET('Milk deliveries by EU country'!$D69,1,0) -> 11753.8815 | I11: =OFFSET('Milk deliveries by EU country'!$D81,1,0) -> 12032.09942 | J11: =OFFSET('Milk deliveries by EU country'!$D93,1,0) -> 11756.12488 | K11: =OFFSET('Milk deliveries by EU country'!$D105,1,0) -> 12546.40633 | L11: =OFFSET('Milk deliveries by EU country'!$D117,1,0) -> 12397.79943 | M11: =OFFSET('Milk deliveries by EU country'!$D129,1,0) -> 13058.88746 | N11: =OFFSET('Milk deliveries by EU country'!$D141,1,0) -> 13249.92434 | O11: =OFFSET('Milk deliveries by EU country'!$D153,1,0) -> 13346.4188 | P11: =OFFSET('Milk deliveries by EU country'!$D165,1,0) -> 13540.58282 | R11: 194.1640188 | S11: 0.01454802383
B12: Apr | C12: =OFFSET('Milk deliveries by EU country'!D10,1,0) -> 11303.87509 | D12: =OFFSET('Milk deliveries by EU country'!D22,1,0) -> 11526.25131 | E12: =OFFSET('Milk deliveries by EU country'!$D34,1,0) -> 11457.05616 | F12: =OFFSET('Milk deliveries by EU country'!$D46,1,0) -> 11637.75019 | G12: =OFFSET('Milk deliveries by EU country'!$D58,1,0) -> 11565.6804 | H12: =OFFSET('Milk deliveries by EU country'!$D70,1,0) -> 11889.5137 | I12: =OFFSET('Milk deliveries by EU country'!$D82,1,0) -> 12035.81896 | J12: =OFFSET('Milk deliveries by EU country'!$D94,1,0) -> 11761.5051 | K12: =OFFSET('Milk deliveries by EU country'!$D106,1,0) -> 12728.92614 | L12: =OFFSET('Milk deliveries by EU country'!$D118,1,0) -> 12928.78116 | M12: =OFFSET('Milk deliveries by EU country'!$D130,1,0) -> 13118.00197 | N12: =OFFSET('Milk deliveries by EU country'!$D142,1,0) -> 13303.51295 | O12: =OFFSET('Milk deliveries by EU country'!$D154,1,0) -> 13425.51007 | P12: =OFFSET('Milk deliveries by EU country'!$D166,1,0) -> 13645.35156 | R12: 219.8414892 | S12: 0.01637490777
B13: May | C13: =OFFSET('Milk deliveries by EU country'!D11,1,0) -> 12057.29131 | D13: =OFFSET('Milk deliveries by EU country'!D23,1,0) -> 11987.60086 | E13: =OFFSET('Milk deliveries by EU country'!$D35,1,0) -> 12028.96257 | F13: =OFFSET('Milk deliveries by EU country'!$D47,1,0) -> 12136.09123 | G13: =OFFSET('Milk deliveries by EU country'!$D59,1,0) -> 12286.12574 | H13: =OFFSET('Milk deliveries by EU country'!$D71,1,0) -> 12384.05751 | I13: =OFFSET('Milk deliveries by EU country'!$D83,1,0) -> 12625.60443 | J13: =OFFSET('Milk deliveries by EU country'!$D95,1,0) -> 12606.25892 | K13: =OFFSET('Milk deliveries by EU country'!$D107,1,0) -> 13224.6839 | L13: =OFFSET('Milk deliveries by EU country'!$D119,1,0) -> 13619.9363 | M13: =OFFSET('Milk deliveries by EU country'!$D131,1,0) -> 13761.54114 | N13: =OFFSET('Milk deliveries by EU country'!$D143,1,0) -> 13916.69367 | O13: =OFFSET('Milk deliveries by EU country'!$D155,1,0) -> 14153.81209 | P13: =OFFSET('Milk deliveries by EU country'!$D167,1,0) -> 14153.9869 | R13: 0.1748088 | S13: 1.235065146e-05
B14: Jun | C14: =OFFSET('Milk deliveries by EU country'!D12,1,0) -> 11402.0885 | D14: =OFFSET('Milk deliveries by EU country'!D24,1,0) -> 11164.69815 | E14: =OFFSET('Milk deliveries by EU country'!$D36,1,0) -> 11148.22728 | F14: =OFFSET('Milk deliveries by EU country'!$D48,1,0) -> 11486.10355 | G14: =OFFSET('Milk deliveries by EU country'!$D60,1,0) -> 11639.80905 | H14: =OFFSET('Milk deliveries by EU country'!$D72,1,0) -> 11697.65133 | I14: =OFFSET('Milk deliveries by EU country'!$D84,1,0) -> 11945.60791 | J14: =OFFSET('Milk deliveries by EU country'!$D96,1,0) -> 11898.37068 | K14: =OFFSET('Milk deliveries by EU country'!$D108,1,0) -> 12536.02463 | L14: =OFFSET('Milk deliveries by EU country'!$D120,1,0) -> 13018.64259 | M14: =OFFSET('Milk deliveries by EU country'!$D132,1,0) -> 12772.86142 | N14: =OFFSET('Milk deliveries by EU country'!$D144,1,0) -> 13112.06818 | O14: =OFFSET('Milk deliveries by EU country'!$D156,1,0) -> 13248.81722 | P14: =OFFSET('Milk deliveries by EU country'!$D168,1,0) -> 13267.00705 | R14: 18.1898268 | S14: 0.001372939674
B15: Jul | C15: =OFFSET('Milk deliveries by EU country'!D13,1,0) -> 11133.80555 | D15: =OFFSET('Milk deliveries by EU country'!D25,1,0) -> 11055.07361 | E15: =OFFSET('Milk deliveries by EU country'!$D37,1,0) -> 11250.6361 | F15: =OFFSET('Milk deliveries by EU country'!$D49,1,0) -> 11269.78737 | G15: =OFFSET('Milk deliveries by EU country'!$D61,1,0) -> 11409.00316 | H15: =OFFSET('Milk deliveries by EU country'!$D73,1,0) -> 11750.79321 | I15: =OFFSET('Milk deliveries by EU country'!$D85,1,0) -> 11677.77169 | J15: =OFFSET('Milk deliveries by EU country'!$D97,1,0) -> 11931.83686 | K15: =OFFSET('Milk deliveries by EU country'!$D109,1,0) -> 12527.50755 | L15: =OFFSET('Milk deliveries by EU country'!$D121,1,0) -> 12871.61868 | M15: =OFFSET('Milk deliveries by EU country'!$D133,1,0) -> 12656.83693 | N15: =OFFSET('Milk deliveries by EU country'!$D145,1,0) -> 13046.73825 | O15: =OFFSET('Milk deliveries by EU country'!$D157,1,0) -> 13162.93754 | P15: =OFFSET('Milk deliveries by EU country'!$D169,1,0) -> 13219.32309 | R15: 56.3855496 | S15: 0.004283660043
B16: Aug | C16: =OFFSET('Milk deliveries by EU country'!D14,1,0) -> 10816.26537 | D16: =OFFSET('Milk deliveries by EU country'!D26,1,0) -> 10753.32449 | E16: =OFFSET('Milk deliveries by EU country'!$D38,1,0) -> 10824.85042 | F16: =OFFSET('Milk deliveries by EU country'!$D50,1,0) -> 10880.70183 | G16: =OFFSET('Milk deliveries by EU country'!$D62,1,0) -> 11145.61486 | H16: =OFFSET('Milk deliveries by EU country'!$D74,1,0) -> 11363.69855 | I16: =OFFSET('Milk deliveries by EU country'!$D86,1,0) -> 11250.28648 | J16: =OFFSET('Milk deliveries by EU country'!$D98,1,0) -> 11609.00385 | K16: =OFFSET('Milk deliveries by EU country'!$D110,1,0) -> 12139.2475 | L16: =OFFSET('Milk deliveries by EU country'!$D122,1,0) -> 12482.60112 | M16: =OFFSET('Milk deliveries by EU country'!$D134,1,0) -> 12278.67694 | N16: =OFFSET('Milk deliveries by EU country'!$D146,1,0) -> 12689.28339 | O16: =OFFSET('Milk deliveries by EU country'!$D158,1,0) -> 12694.44025 | P16: =OFFSET('Milk deliveries by EU country'!$D170,1,0) -> 12827.09099 | R16: =P16-O16 -> 132.6507444 | S16: =R16/O16 -> 0.01044951505
B17: Sep | C17: =OFFSET('Milk deliveries by EU country'!D15,1,0) -> 10351.24482 | D17: =OFFSET('Milk deliveries by EU country'!D27,1,0) -> 10253.26449 | E17: =OFFSET('Milk deliveries by EU country'!$D39,1,0) -> 10309.64033 | F17: =OFFSET('Milk deliveries by EU country'!$D51,1,0) -> 10181.31125 | G17: =OFFSET('Milk deliveries by EU country'!$D63,1,0) -> 10649.90566 | H17: =OFFSET('Milk deliveries by EU country'!$D75,1,0) -> 10800.35776 | I17: =OFFSET('Milk deliveries by EU country'!$D87,1,0) -> 10594.46213 | J17: =OFFSET('Milk deliveries by EU country'!$D99,1,0) -> 11019.16982 | K17: =OFFSET('Milk deliveries by EU country'!$D111,1,0) -> 11614.5686 | L17: =OFFSET('Milk deliveries by EU country'!$D123,1,0) -> 11850.5799 | M17: =OFFSET('Milk deliveries by EU country'!$D135,1,0) -> 11520.72541 | N17: =OFFSET('Milk deliveries by EU country'!$D147,1,0) -> 12093.26307 | O17: =OFFSET('Milk deliveries by EU country'!$D159,1,0) -> 12077.48172 | P17: =OFFSET('Milk deliveries by EU country'!$D171,1,0) -> 12161.90466 | R17: =P17-O17 -> 84.4229388 | S17: =R17/O17 -> 0.006990111079
B18: Oct | C18: =OFFSET('Milk deliveries by EU country'!D16,1,0) -> 10534.14339 | D18: =OFFSET('Milk deliveries by EU country'!D28,1,0) -> 10476.88379 | E18: =OFFSET('Milk deliveries by EU country'!$D40,1,0) -> 10502.21164 | F18: =OFFSET('Milk deliveries by EU country'!$D52,1,0) -> 10399.99705 | G18: =OFFSET('Milk deliveries by EU country'!$D64,1,0) -> 10768.63968 | H18: =OFFSET('Milk deliveries by EU country'!$D76,1,0) -> 10860.43372 | I18: =OFFSET('Milk deliveries by EU country'!$D88,1,0) -> 10696.66701 | J18: =OFFSET('Milk deliveries by EU country'!$D100,1,0) -> 11211.68287 | K18: =OFFSET('Milk deliveries by EU country'!$D112,1,0) -> 11502.66183 | L18: =OFFSET('Milk deliveries by EU country'!$D124,1,0) -> 12095.66184 | M18: =OFFSET('Milk deliveries by EU country'!$D136,1,0) -> 11639.54683 | N18: =OFFSET('Milk deliveries by EU country'!$D148,1,0) -> 12292.51597 | O18: =OFFSET('Milk deliveries by EU country'!$D160,1,0) -> 12272.23815 | P18: =OFFSET('Milk deliveries by EU country'!$D172,1,0) -> 12338.18962 | R18: =P18-O18 -> 65.9514756 | S18: =R18/O18 -> 0.005374038118
B19: Nov | C19: =OFFSET('Milk deliveries by EU country'!D17,1,0) -> 9984.117208 | D19: =OFFSET('Milk deliveries by EU country'!D29,1,0) -> 10017.57367 | E19: =OFFSET('Milk deliveries by EU country'!$D41,1,0) -> 10026.11017 | F19: =OFFSET('Milk deliveries by EU country'!$D53,1,0) -> 9940.191641 | G19: =OFFSET('Milk deliveries by EU country'!$D65,1,0) -> 10264.92812 | H19: =OFFSET('Milk deliveries by EU country'!$D77,1,0) -> 10420.73132 | I19: =OFFSET('Milk deliveries by EU country'!$D89,1,0) -> 10263.33542 | J19: =OFFSET('Milk deliveries by EU country'!$D101,1,0) -> 10758.49106 | K19: =OFFSET('Milk deliveries by EU country'!$D113,1,0) -> 10997.50324 | L19: =OFFSET('Milk deliveries by EU country'!$D125,1,0) -> 11534.30222 | M19: =OFFSET('Milk deliveries by EU country'!$D137,1,0) -> 11100.99977 | N19: =OFFSET('Milk deliveries by EU country'!$D149,1,0) -> 11829.53486 | O19: =OFFSET('Milk deliveries by EU country'!$D161,1,0) -> 11737.27466 | P19: =OFFSET('Milk deliveries by EU country'!$D173,1,0) -> 11813.7438
B20: Dec | C20: =OFFSET('Milk deliveries by EU country'!D18,1,0) -> 10439.12509 | D20: =OFFSET('Milk deliveries by EU country'!$D30,1,0) -> 10559.80143 | E20: =OFFSET('Milk deliveries by EU country'!$D42,1,0) -> 10595.01569 | F20: =OFFSET('Milk deliveries by EU country'!$D54,1,0) -> 10485.15807 | G20: =OFFSET('Milk deliveries by EU country'!$D66,1,0) -> 10621.33413 | H20: =OFFSET('Milk deliveries by EU country'!$D78,1,0) -> 10988.29665 | I20: =OFFSET('Milk deliveries by EU country'!$D90,1,0) -> 10759.64674 | J20: =OFFSET('Milk deliveries by EU country'!$D102,1,0) -> 11350.55875 | K20: =OFFSET('Milk deliveries by EU country'!$D114,1,0) -> 11507.54676 | L20: =OFFSET('Milk deliveries by EU country'!$D126,1,0) -> 12114.25955 | M20: =OFFSET('Milk deliveries by EU country'!$D138,1,0) -> 11759.825 | N20: =OFFSET('Milk deliveries by EU country'!$D150,1,0) -> 12342.09369 | O20: =OFFSET('Milk deliveries by EU country'!$D162,1,0) -> 12248.20194 | P20: =OFFSET('Milk deliveries by EU country'!$D174,1,0) -> 12407.68583
B21: Total | C21: =SUM(C9:C20) -> 129352.0635 | D21: =SUM(D9:D20) -> 129881.3263 | E21: 131234.4047 | F21: 131021.3613 | G21: 132463.4368 | H21: 135226.2316 | I21: 135990.4762 | J21: 137500.698 | K21: 144127.1752 | L21: 147491.5745 | M21: 147844.3872 | N21: =SUM(N9:N20) -> 151515.372 | O21: =SUM(O9:O20) -> 152843.5984 | P21: =SUM(P9:P20) -> 153683.9334
B23: Cumulative deliveries | R23: 2019 compared to 2018
B24: Month | C24: 2006 | D24: 2007 | E24: 2008 | F24: 2009 | G24: 2010 | H24: 2011 | I24: 2012 | J24: 2013 | K24: 2014 | L24: 2015 | M24: 2016 | N24: 2017 | O24: 2018 | P24: 2019 | R24: Change | S24: % change
B25: Jan | C25: =C9 -> 10569.81409 | D25: 10797.02669 | E25: 10960.17185 | F25: 10914.05147 | G25: 10657.41272 | H25: 11030.88201 | I25: 11354.73474 | J25: 11179.33353 | K25: 11803.99335 | L25: 11719.28878 | M25: 12295.18666 | N25: 12197.19662 | O25: 12705.82224 | P25: 12554.836 | R25: =P25-O25 -> -150.9862452 | S25: =R25/O25 -> -0.01188323292
B26: Feb | C26: =C25+C10 -> 20339.101 | D26: 20757.38932 | E26: 21569.8812 | F26: 21107.45365 | G26: 20677.67651 | H26: 21316.81633 | I26: 22109.17606 | J26: 21597.69522 | K26: 22802.09872 | L26: 22577.39172 | M26: 24176.48435 | N26: 23639.74364 | O26: 24476.46596 | P26: 24309.06711 | R26: =P26-O26 -> -167.3988492 | S26: =R26/O26 -> -0.006839175617
B27: Mar | C27: 31330.10718 | D27: 32086.85448 | E27: 33091.6943 | F27: 32604.2691 | G27: 32112.39598 | H27: 33070.69782 | I27: 34141.27547 | J27: 33353.8201 | K27: 35348.50505 | L27: 34975.19114 | M27: 37235.37181 | N27: 36889.66799 | O27: 37822.88476 | P27: 37849.64993 | R27: 26.7651696 | S27: 0.0007076448496
B28: Apr | C28: 42633.98227 | D28: 43613.10578 | E28: 44548.75046 | F28: 44242.01929 | G28: 43678.07639 | H28: 44960.21153 | I28: 46177.09443 | J28: 45115.3252 | K28: 48077.43119 | L28: 47903.9723 | M28: 50353.37378 | N28: 50193.18094 | O28: 51248.39484 | P28: 51495.0015 | R28: 246.6066588 | S28: 0.004811987958
B29: May | C29: 54691.27358 | D29: 55600.70665 | E29: 56577.71303 | F29: 56378.11051 | G29: 55964.20212 | H29: 57344.26904 | I29: 58802.69886 | J29: 57721.58412 | K29: 61302.11508 | L29: 61523.9086 | M29: 64114.91492 | N29: 64109.8746 | O29: 65402.20693 | P29: 65648.98839 | R29: 246.7814676 | S29: 0.003773289606
B30: Jun | C30: 66093.36208 | D30: 66765.4048 | E30: 67725.94031 | F30: 67864.21407 | G30: 67604.01117 | H30: 69041.92038 | I30: 70748.30676 | J30: 69619.95481 | K30: 73838.13971 | L30: 74542.55119 | M30: 76887.77634 | N30: 77221.94279 | O30: 78651.02415 | P30: 78915.99544 | R30: 264.9712944 | S30: 0.003368949067
B31: Jul | C31: 77227.16763 | D31: 77820.47841 | E31: 78976.5764 | F31: 79134.00144 | G31: 79013.01433 | H31: 80792.71359 | I31: 82426.07845 | J31: 81551.79166 | K31: 86365.64726 | L31: 87414.16987 | M31: 89544.61327 | N31: 90268.68103 | O31: 91813.96169 | P31: 92135.31854 | R31: 321.356844 | S31: 0.003500086894
B32: Aug | C32: =C31+C16 -> 88043.43299 | D32: 88573.80289 | E32: 89801.42682 | F32: 90014.70327 | G32: 90158.62918 | H32: 92156.41213 | I32: 93676.36494 | J32: 93160.79551 | K32: 98504.89476 | L32: 99896.77099 | M32: 101823.2902 | N32: 102957.9644 | O32: 104508.4019 | P32: 104962.4095 | R32: =P32-O32 -> 454.0075884 | S32: =R32/O32 -> 0.004344220943
B33: Sep | C33: 98394.67781 | D33: 98827.06738 | E33: 100111.0672 | F33: 100196.0145 | G33: 100808.5348 | H33: 102956.7699 | I33: 104270.8271 | J33: 104179.9653 | K33: 110119.4634 | L33: 111747.3509 | M33: 113344.0156 | N33: 115051.2275 | O33: 116585.8837 | P33: 117124.3142 | R33: =P33-O33 -> 538.4305272 | S33: =R33/O33 -> 0.004618316646
B34: Oct | C34: 108928.8212 | D34: 109303.9512 | E34: 110613.2788 | F34: 110596.0116 | G34: 111577.1745 | H34: 113817.2036 | I34: 114967.4941 | J34: 115391.6482 | K34: 121622.1252 | L34: 123843.0127 | M34: 124983.5625 | N34: 127343.7435 | O34: 128858.1218 | P34: 129462.5038 | R34: =P34-O34 -> 604.3820028 | S34: =R34/O34 -> 0.004690290331
B35: Nov | C35: 118912.9384 | D35: 119321.5248 | E35: 120639.389 | F35: 120536.2032 | G35: 121842.1026 | H35: 124237.9349 | I35: 125230.8295 | J35: 126150.1393 | K35: 132619.6284 | L35: 135377.3149 | M35: 136084.5622 | N35: 139173.2783 | O35: 140595.3965 | P35: 141276.2476
B36: Dec | C36: 129352.0635 | D36: 129881.3263 | E36: 131234.4047 | F36: 131021.3613 | G36: 132463.4368 | H36: 135226.2316 | I36: 135990.4762 | J36: 137500.698 | K36: 144127.1752 | L36: 147491.5745 | M36: 147844.3872 | N36: 151515.372 | O36: 152843.5984 | P36: 153683.9334

Sheet EU (ex UK) milk deliveries
A2: EU (ex UK) monthly milk deliveries | AL2: hide these columns
A3: Source: Eurostat
A4: Units: Million litres
A5: Last updated: 5/03/2021 | AL5: Source: | AM5: Eurostat
B7: Monthly deliveries | R7: 2019 compared to 2018
B8: Month | C8: 2006 | D8: 2007 | E8: 2008 | F8: 2009 | G8: 2010 | H8: 2011 | I8: 2012 | J8: 2013 | K8: 2014 | L8: 2015 | M8: 2016 | N8: 2017 | O8: 2018 | P8: 2019 | Q8: 2020 | R8: 2020 | S8: 2020
B9: Jan | C9: =OFFSET('Milk deliveries by EU country'!C7,1,0) -> 9435.30498 | D9: =OFFSET('Milk deliveries by EU country'!C19,1,0) -> 9667.47049 | E9: =OFFSET('Milk deliveries by EU country'!$C31,1,0) -> 9859.45911 | F9: =OFFSET('Milk deliveries by EU country'!$C43,1,0) -> 9842.959102 | G9: =OFFSET('Milk deliveries by EU country'!$C55,1,0) -> 9606.22914 | H9: =OFFSET('Milk deliveries by EU country'!$C67,1,0) -> 9934.733722 | I9: =OFFSET('Milk deliveries by EU country'!$C9,1,0) -> 9812.60064 | J9: =OFFSET('Milk deliveries by EU country'!$C91,1,0) -> 10120.38067 | K9: =OFFSET('Milk deliveries by EU country'!$C103,1,0) -> 10624.61665 | L9: =OFFSET('Milk deliveries by EU country'!$C115,1,0) -> 10525.73314 | M9: =OFFSET('Milk deliveries by EU country'!$C127,1,0) -> 11069.9712 | N9: =OFFSET('Milk deliveries by EU country'!$C139,1,0) -> 10980.7216 | O9: =OFFSET('Milk deliveries by EU country'!$C151,1,0) -> 11471.73038 | P9: =OFFSET('Milk deliveries by EU country'!$C163,1,0) -> 11289.22029 | Q9: =IFERROR(INDEX('Milk deliveries by EU country'!C:C,MATCH(DATE(Q$8,MATCH($B9,$B$9:$B$20,0),1),'Milk deliveries by EU country'!$B:$B,0),1),"") -> 11479.38312 | R9: =P9-O9 -> -182.5100988 | S9: =R9/O9 -> -0.01590955267
B10: Feb | C10: =OFFSET('Milk deliveries by EU country'!C8,1,0) -> 8723.93028 | D10: =OFFSET('Milk deliveries by EU country'!C20,1,0) -> 8940.25617 | E10: =OFFSET('Milk deliveries by EU country'!$C32,1,0) -> 9565.615229 | F10: =OFFSET('Milk deliveries by EU country'!$C44,1,0) -> 9212.142124 | G10: =OFFSET('Milk deliveries by EU country'!$C56,1,0) -> 9042.402779 | H10: =OFFSET('Milk deliveries by EU country'!$C68,1,0) -> 9262.914368 | I10: =OFFSET('Milk deliveries by EU country'!$C10,1,0) -> 10113.13581 | J10: =OFFSET('Milk deliveries by EU country'!$C92,1,0) -> 9440.306454 | K10: =OFFSET('Milk deliveries by EU country'!$C104,1,0) -> 9898.946476 | L10: =OFFSET('Milk deliveries by EU country'!$C116,1,0) -> 9757.00173 | M10: =OFFSET('Milk deliveries by EU country'!$C128,1,0) -> 10733.5808 | N10: =OFFSET('Milk deliveries by EU country'!$C140,1,0) -> 10324.25629 | O10: =OFFSET('Milk deliveries by EU country'!$C152,1,0) -> 10643.50571 | P10: =OFFSET('Milk deliveries by EU country'!$C164,1,0) -> 10598.06514 | Q10: =IFERROR(INDEX('Milk deliveries by EU country'!C:C,MATCH(DATE(Q$8,MATCH($B10,$B$9:$B$20,0),1),'Milk deliveries by EU country'!$B:$B,0),1),"") -> 11115.19812 | R10: =P10-O10 -> -45.4405764 | S10: =R10/O10 -> -0.004269324189
B11: Mar | C11: =OFFSET('Milk deliveries by EU country'!C9,1,0) -> 9812.60064 | D11: =OFFSET('Milk deliveries by EU country'!C21,1,0) -> 10159.31447 | E11: =OFFSET('Milk deliveries by EU country'!$C33,1,0) -> 10384.87609 | F11: =OFFSET('Milk deliveries by EU country'!$C45,1,0) -> 10374.54295 | G11: =OFFSET('Milk deliveries by EU country'!$C57,1,0) -> 10318.85664 | H11: =OFFSET('Milk deliveries by EU country'!$C69,1,0) -> 10586.93564 | I11: =OFFSET('Milk deliveries by EU country'!$C11,1,0) -> 10782.25534 | J11: =OFFSET('Milk deliveries by EU country'!$C93,1,0) -> 10644.53514 | K11: =OFFSET('Milk deliveries by EU country'!$C105,1,0) -> 11289.53106 | L11: =OFFSET('Milk deliveries by EU country'!$C117,1,0) -> 11135.48566 | M11: =OFFSET('Milk deliveries by EU country'!$C129,1,0) -> 11798.80736 | N11: =OFFSET('Milk deliveries by EU country'!$C141,1,0) -> 11966.43929 | O11: =OFFSET('Milk deliveries by EU country'!$C153,1,0) -> 12078.43346 | P11: =OFFSET('Milk deliveries by EU country'!$C165,1,0) -> 12212.32729 | Q11: =IFERROR(INDEX('Milk deliveries by EU country'!C:C,MATCH(DATE(Q$8,MATCH($B11,$B$9:$B$20,0),1),'Milk deliveries by EU country'!$B:$B,0),1),"") -> 12371.18964 | R11: 133.8938292 | S11: 0.01108536381
B12: Apr | C12: =OFFSET('Milk deliveries by EU country'!C10,1,0) -> 10113.13581 | D12: =OFFSET('Milk deliveries by EU country'!C22,1,0) -> 10322.49849 | E12: =OFFSET('Milk deliveries by EU country'!$C34,1,0) -> 10317.69124 | F12: =OFFSET('Milk deliveries by EU country'!$C46,1,0) -> 10494.01505 | G12: =OFFSET('Milk deliveries by EU country'!$C58,1,0) -> 10432.62803 | H12: =OFFSET('Milk deliveries by EU country'!$C70,1,0) -> 10698.09462 | I12: =OFFSET('Milk deliveries by EU country'!$C12,1,0) -> 10223.87719 | J12: =OFFSET('Milk deliveries by EU country'!$C94,1,0) -> 10649.62402 | K12: =OFFSET('Milk deliveries by EU country'!$C106,1,0) -> 11449.8113 | L12: =OFFSET('Milk deliveries by EU country'!$C118,1,0) -> 11635.97296 | M12: =OFFSET('Milk deliveries by EU country'!$C130,1,0) -> 11866.66231 | N12: =OFFSET('Milk deliveries by EU country'!$C142,1,0) -> 12006.33454 | O12: =OFFSET('Milk deliveries by EU country'!$C154,1,0) -> 12140.37404 | P12: =OFFSET('Milk deliveries by EU country'!$C166,1,0) -> 12306.31615 | Q12: =IFERROR(INDEX('Milk deliveries by EU country'!C:C,MATCH(DATE(Q$8,MATCH($B12,$B$9:$B$20,0),1),'Milk deliveries by EU country'!$B:$B,0),1),"") -> 12352.89299 | R12: 165.9421092 | S12: 0.01366861586
B13: May | C13: =OFFSET('Milk deliveries by EU country'!C11,1,0) -> 10782.25534 | D13: =OFFSET('Milk deliveries by EU country'!C23,1,0) -> 10729.26885 | E13: =OFFSET('Milk deliveries by EU country'!$C35,1,0) -> 10803.26153 | F13: =OFFSET('Milk deliveries by EU country'!$C47,1,0) -> 10933.21245 | G13: =OFFSET('Milk deliveries by EU country'!$C59,1,0) -> 11043.23517 | H13: =OFFSET('Milk deliveries by EU country'!$C71,1,0) -> 11131.06688 | I13: =OFFSET('Milk deliveries by EU country'!$C13,1,0) -> 9978.513614 | J13: =OFFSET('Milk deliveries by EU country'!$C95,1,0) -> 11372.20591 | K13: =OFFSET('Milk deliveries by EU country'!$C107,1,0) -> 11891.28122 | L13: =OFFSET('Milk deliveries by EU country'!$C119,1,0) -> 12240.40352 | M13: =OFFSET('Milk deliveries by EU country'!$C131,1,0) -> 12440.76354 | N13: =OFFSET('Milk deliveries by EU country'!$C143,1,0) -> 12553.28214 | O13: =OFFSET('Milk deliveries by EU country'!$C155,1,0) -> 12781.65042 | P13: =OFFSET('Milk deliveries by EU country'!$C167,1,0) -> 12758.91556 | Q13: =IFERROR(INDEX('Milk deliveries by EU country'!C:C,MATCH(DATE(Q$8,MATCH($B13,$B$9:$B$20,0),1),'Milk deliveries by EU country'!$B:$B,0),1),"") -> 12745.72721 | R13: -22.7348556 | S13: -0.001778710484
B14: Jun | C14: =OFFSET('Milk deliveries by EU country'!C12,1,0) -> 10223.87719 | D14: =OFFSET('Milk deliveries by EU country'!C24,1,0) -> 10017.36973 | E14: =OFFSET('Milk deliveries by EU country'!$C36,1,0) -> 10020.80763 | F14: =OFFSET('Milk deliveries by EU country'!$C48,1,0) -> 10357.32428 | G14: =OFFSET('Milk deliveries by EU country'!$C60,1,0) -> 10460.82081 | H14: =OFFSET('Milk deliveries by EU country'!$C72,1,0) -> 10525.46121 | I14: =OFFSET('Milk deliveries by EU country'!$C14,1,0) -> 9713.027605 | J14: =OFFSET('Milk deliveries by EU country'!$C96,1,0) -> 10720.9363 | K14: =OFFSET('Milk deliveries by EU country'!$C108,1,0) -> 11295.36773 | L14: =OFFSET('Milk deliveries by EU country'!$C120,1,0) -> 11716.41415 | M14: =OFFSET('Milk deliveries by EU country'!$C132,1,0) -> 11565.22396 | N14: =OFFSET('Milk deliveries by EU country'!$C144,1,0) -> 11846.54959 | O14: =OFFSET('Milk deliveries by EU country'!$C156,1,0) -> 11980.12293 | P14: =OFFSET('Milk deliveries by EU country'!$C168,1,0) -> 11978.76331 | Q14: =IFERROR(INDEX('Milk deliveries by EU country'!C:C,MATCH(DATE(Q$8,MATCH($B14,$B$9:$B$20,0),1),'Milk deliveries by EU country'!$B:$B,0),1),"") -> 12114.59946 | R14: -1.359624 | S14: -0.0001134899873
B15: Jul | C15: =OFFSET('Milk deliveries by EU country'!C13,1,0) -> 9978.513614 | D15: =OFFSET('Milk deliveries by EU country'!C25,1,0) -> 9956.691649 | E15: =OFFSET('Milk deliveries by EU country'!$C37,1,0) -> 10135.6473 | F15: =OFFSET('Milk deliveries by EU country'!$C49,1,0) -> 10168.58905 | G15: =OFFSET('Milk deliveries by EU country'!$C61,1,0) -> 10268.08439 | H15: =OFFSET('Milk deliveries by EU country'!$C73,1,0) -> 10589.77143 | I15: =OFFSET('Milk deliveries by EU country'!$C15,1,0) -> 9292.291958 | J15: =OFFSET('Milk deliveries by EU country'!$C97,1,0) -> 10788.19884 | K15: =OFFSET('Milk deliveries by EU country'!$C109,1,0) -> 11302.2921 | L15: =OFFSET('Milk deliveries by EU country'!$C121,1,0) -> 11604.15776 | M15: =OFFSET('Milk deliveries by EU country'!$C133,1,0) -> 11491.93051 | N15: =OFFSET('Milk deliveries by EU country'!$C145,1,0) -> 11825.01897 | O15: =OFFSET('Milk deliveries by EU country'!$C157,1,0) -> 11932.58465 | P15: =OFFSET('Milk deliveries by EU country'!$C169,1,0) -> 11953.12468 | Q15: =IFERROR(INDEX('Milk deliveries by EU country'!C:C,MATCH(DATE(Q$8,MATCH($B15,$B$9:$B$20,0),1),'Milk deliveries by EU country'!$B:$B,0),1),"") -> 12169.79048 | R15: 20.540034 | S15: 0.001721339894
B16: Aug | C16: =OFFSET('Milk deliveries by EU country'!C14,1,0) -> 9713.027605 | D16: =OFFSET('Milk deliveries by EU country'!C26,1,0) -> 9679.12441 | E16: =OFFSET('Milk deliveries by EU country'!$C38,1,0) -> 9767.548528 | F16: =OFFSET('Milk deliveries by EU country'!$C50,1,0) -> 9827.381695 | G16: =OFFSET('Milk deliveries by EU country'!$C62,1,0) -> 10036.74437 | H16: =OFFSET('Milk deliveries by EU country'!$C74,1,0) -> 10258.42135 | I16: =OFFSET('Milk deliveries by EU country'!$C16,1,0) -> 9462.565441 | J16: =OFFSET('Milk deliveries by EU country'!$C98,1,0) -> 10493.33524 | K16: =OFFSET('Milk deliveries by EU country'!$C110,1,0) -> 10961.42465 | L16: =OFFSET('Milk deliveries by EU country'!$C122,1,0) -> 11271.5646 | M16: =OFFSET('Milk deliveries by EU country'!$C134,1,0) -> 11152.81115 | N16: =OFFSET('Milk deliveries by EU country'!$C146,1,0) -> 11484.55941 | O16: =OFFSET('Milk deliveries by EU country'!$C158,1,0) -> 11498.50527 | P16: =OFFSET('Milk deliveries by EU country'!$C170,1,0) -> 11620.91027 | Q16: =IFERROR(INDEX('Milk deliveries by EU country'!C:C,MATCH(DATE(Q$8,MATCH($B16,$B$9:$B$20,0),1),'Milk deliveries by EU country'!$B:$B,0),1),"") -> 11679.44208 | R16: 122.4050064 | S16: 0.01064529724
B17: Sep | C17: =OFFSET('Milk deliveries by EU country'!C15,1,0) -> 9292.291958 | D17: =OFFSET('Milk deliveries by EU country'!C27,1,0) -> 9226.74837 | E17: =OFFSET('Milk deliveries by EU country'!$C39,1,0) -> 9336.635124 | F17: =OFFSET('Milk deliveries by EU country'!$C51,1,0) -> 9187.814566 | G17: =OFFSET('Milk deliveries by EU country'!$C63,1,0) -> 9584.640253 | H17: =OFFSET('Milk deliveries by EU country'!$C75,1,0) -> 9758.108852 | I17: =OFFSET('Milk deliveries by EU country'!$C17,1,0) -> 8951.677012 | J17: =OFFSET('Milk deliveries by EU country'!$C99,1,0) -> 9956.623668 | K17: =OFFSET('Milk deliveries by EU country'!$C111,1,0) -> 10467.24017 | L17: =OFFSET('Milk deliveries by EU country'!$C123,1,0) -> 10684.70232 | M17: =OFFSET('Milk deliveries by EU country'!$C135,1,0) -> 10442.54357 | N17: =OFFSET('Milk deliveries by EU country'!$C147,1,0) -> 10936.90286 | O17: =OFFSET('Milk deliveries by EU country'!$C159,1,0) -> 10923.7922 | P17: =OFFSET('Milk deliveries by EU country'!$C171,1,0) -> 11004.96175 | Q17: =IFERROR(INDEX('Milk deliveries by EU country'!C:C,MATCH(DATE(Q$8,MATCH($B17,$B$9:$B$20,0),1),'Milk deliveries by EU country'!$B:$B,0),1),"") -> 11162.63929 | R17: =P17-O17 -> 81.1695528 | S17: =R17/O17 -> 0.007430528823
B18: Oct | C18: =OFFSET('Milk deliveries by EU country'!C16,1,0) -> 9462.565441 | D18: =OFFSET('Milk deliveries by EU country'!C28,1,0) -> 9435.411808 | E18: =OFFSET('Milk deliveries by EU country'!$C40,1,0) -> 9487.252328 | F18: =OFFSET('Milk deliveries by EU country'!$C52,1,0) -> 9375.714602 | G18: =OFFSET('Milk deliveries by EU country'!$C64,1,0) -> 9692.788631 | H18: =OFFSET('Milk deliveries by EU country'!$C76,1,0) -> 9798.178914 | I18: =OFFSET('Milk deliveries by EU country'!$C18,1,0) -> 9344.239307 | J18: =OFFSET('Milk deliveries by EU country'!$C100,1,0) -> 10123.49809 | K18: =OFFSET('Milk deliveries by EU country'!$C112,1,0) -> 10346.01027 | L18: =OFFSET('Milk deliveries by EU country'!$C124,1,0) -> 10892.10325 | M18: =OFFSET('Milk deliveries by EU country'!$C136,1,0) -> 10530.48211 | N18: =OFFSET('Milk deliveries by EU country'!$C148,1,0) -> 11101.194 | O18: =OFFSET('Milk deliveries by EU country'!$C160,1,0) -> 11072.45737 | P18: =OFFSET('Milk deliveries by EU country'!$C172,1,0) -> 11145.70226 | Q18: =IFERROR(INDEX('Milk deliveries by EU country'!C:C,MATCH(DATE(Q$8,MATCH($B18,$B$9:$B$20,0),1),'Milk deliveries by EU country'!$B:$B,0),1),"") -> 11254.97718 | R18: 73.2448872 | S18: 0.006615052534
B19: Nov | C19: =OFFSET('Milk deliveries by EU country'!C17,1,0) -> 8951.677012 | D19: =OFFSET('Milk deliveries by EU country'!C29,1,0) -> 9003.585514 | E19: =OFFSET('Milk deliveries by EU country'!$C41,1,0) -> 9043.490478 | F19: =OFFSET('Milk deliveries by EU country'!$C53,1,0) -> 8957.669069 | G19: =OFFSET('Milk deliveries by EU country'!$C65,1,0) -> 9237.24661 | H19: =OFFSET('Milk deliveries by EU country'!$C77,1,0) -> 9385.668992 | I19: =OFFSET('Milk deliveries by EU country'!$C19,1,0) -> 9667.47049 | J19: =OFFSET('Milk deliveries by EU country'!$C101,1,0) -> 9691.574681 | K19: =OFFSET('Milk deliveries by EU country'!$C113,1,0) -> 9877.173068 | L19: =OFFSET('Milk deliveries by EU country'!$C125,1,0) -> 10370.36696 | M19: =OFFSET('Milk deliveries by EU country'!$C137,1,0) -> 10023.2064 | N19: =OFFSET('Milk deliveries by EU country'!$C149,1,0) -> 10658.99571 | O19: =OFFSET('Milk deliveries by EU country'!$C161,1,0) -> 10563.2879 | P19: =OFFSET('Milk deliveries by EU country'!$C173,1,0) -> 10647.18641 | Q19: =IFERROR(INDEX('Milk deliveries by EU country'!C:C,MATCH(DATE(Q$8,MATCH($B19,$B$9:$B$20,0),1),'Milk deliveries by EU country'!$B:$B,0),1),"") -> 10777.09848 | R19: 83.8985124 | S19: 0.00794246197
B20: Dec | C20: =OFFSET('Milk deliveries by EU country'!C18,1,0) -> 9344.239307 | D20: =OFFSET('Milk deliveries by EU country'!C30,1,0) -> 9490.36004 | E20: =OFFSET('Milk deliveries by EU country'!$C42,1,0) -> 9546.74559 | F20: =OFFSET('Milk deliveries by EU country'!$C54,1,0) -> 9438.636059 | G20: =OFFSET('Milk deliveries by EU country'!$C66,1,0) -> 9547.71675 | H20: =OFFSET('Milk deliveries by EU country'!$C78,1,0) -> 9890.788732 | I20: =OFFSET('Milk deliveries by EU country'!$C20,1,0) -> 8940.25617 | J20: =OFFSET('Milk deliveries by EU country'!$C102,1,0) -> 10206.82362 | K20: =OFFSET('Milk deliveries by EU country'!$C114,1,0) -> 10322.3431 | L20: =OFFSET('Milk deliveries by EU country'!$C126,1,0) -> 10904.48554 | M20: =OFFSET('Milk deliveries by EU country'!$C138,1,0) -> 10605.79557 | N20: =OFFSET('Milk deliveries by EU country'!$C150,1,0) -> 11123.19077 | O20: =OFFSET('Milk deliveries by EU country'!$C162,1,0) -> 11007.05946 | P20: =OFFSET('Milk deliveries by EU country'!$C174,1,0) -> 11185.18963 | Q20: =IFERROR(INDEX('Milk deliveries by EU country'!C:C,MATCH(DATE(Q$8,MATCH($B20,$B$9:$B$20,0),1),'Milk deliveries by EU country'!$B:$B,0),1),"") -> 11209.32295
B21: Total | C21: =SUM(C9:C20) -> 115833.4192 | D21: =SUM(D9:D20) -> 116628.1 | E21: 118269.0302 | F21: 118170.001 | G21: 119271.3936 | H21: 121820.1447 | I21: 116281.9106 | J21: 124208.0426 | K21: 129726.0378 | L21: 132738.3916 | M21: 133721.7785 | N21: =SUM(N9:N20) -> 136807.4452 | O21: =SUM(O9:O20) -> 138093.5038 | P21: =SUM(P9:P20) -> 138700.6827 | Q21: =SUM(Q9:Q20) -> 140432.261
B23: Cumulative deliveries | R23: 2019 compared to 2018
B24: Month | C24: 2006 | D24: 2007 | E24: 2008 | F24: 2009 | G24: 2010 | H24: 2011 | I24: 2012 | J24: 2013 | K24: 2014 | L24: 2015 | M24: 2016 | N24: 2017 | O24: 2018 | P24: 2019 | Q24: 2020 | R24: Change | S24: % change
B25: Jan | C25: =C9 -> 9435.30498 | D25: 9667.47049 | E25: 9859.45911 | F25: 9842.959102 | G25: 9606.22914 | H25: 9934.733722 | I25: 9812.60064 | J25: 10120.38067 | K25: 10624.61665 | L25: 10525.73314 | M25: 11069.9712 | N25: 10980.7216 | O25: 11471.73038 | P25: 11289.22029 | Q25: =Q9 -> 11479.38312 | R25: =P25-O25 -> -182.5100988 | S25: =R25/O25 -> -0.01590955267
B26: Feb | C26: =C25+C10 -> 18159.23526 | D26: 18607.72666 | E26: 19425.07434 | F26: 19055.10123 | G26: 18648.63192 | H26: 19197.64809 | I26: 19925.73645 | J26: 19560.68712 | K26: 20523.56313 | L26: 20282.73487 | M26: 21803.55201 | N26: 21304.97789 | O26: 22115.2361 | P26: 21887.28542 | Q26: =Q25+Q10 -> 22594.58125 | R26: =P26-O26 -> -227.9506752 | S26: =R26/O26 -> -0.0103074041
B27: Mar | C27: 27971.8359 | D27: 28767.04113 | E27: 29809.95043 | F27: 29429.64418 | G27: 28967.48856 | H27: 29784.58373 | I27: 30707.9918 | J27: 30205.22226 | K27: 31813.09418 | L27: 31418.22053 | M27: 33602.35937 | N27: 33271.41717 | O27: 34193.66956 | P27: 34099.61271 | Q27: =Q26+Q11 -> 34965.77089 | R27: -94.056846 | S27: -0.002750709334
B28: Apr | C28: 38084.97171 | D28: 39089.53962 | E28: 40127.64168 | F28: 39923.65923 | G28: 39400.11659 | H28: 40482.67835 | I28: 40931.86898 | J28: 40854.84628 | K28: 43262.90549 | L28: 43054.19349 | M28: 45469.02168 | N28: 45277.75171 | O28: 46334.0436 | P28: 46405.92886 | Q28: 47318.66388 | R28: 71.8852632 | S28: 0.001551456718
B29: May | C29: 48867.22706 | D29: 49818.80847 | E29: 50930.90321 | F29: 50856.87168 | G29: 50443.35175 | H29: 51613.74523 | I29: 50910.3826 | J29: 52227.05219 | K29: 55154.1867 | L29: 55294.59701 | M29: 57909.78522 | N29: 57831.03386 | O29: 59115.69402 | P29: 59164.84442 | Q29: 60064.39108 | R29: 49.1504076 | S29: 0.0008314273971
B30: Jun | C30: 59091.10424 | D30: 59836.1782 | E30: 60951.71084 | F30: 61214.19597 | G30: 60904.17256 | H30: 62139.20644 | I30: 60623.4102 | J30: 62947.98849 | K30: 66449.55443 | L30: 67011.01116 | M30: 69475.00918 | N30: 69677.58344 | O30: 71095.81695 | P30: 71143.60773 | Q30: 72178.99054 | R30: 47.7907836 | S30: 0.0006722024678
B31: Jul | C31: 69069.61786 | D31: 69792.86985 | E31: 71087.35814 | F31: 71382.78502 | G31: 71172.25695 | H31: 72728.97787 | I31: 69915.70216 | J31: 73736.18733 | K31: 77751.84653 | L31: 78615.16892 | M31: 80966.93969 | N31: 81502.60241 | O31: 83028.4016 | P31: 83096.73242 | Q31: 84348.78102 | R31: 68.3308176 | S31: 0.0008229812484
B32: Aug | C32: 78782.64546 | D32: 79471.99425 | E32: 80854.90667 | F32: 81210.16671 | G32: 81209.00132 | H32: 82987.39922 | I32: 79378.2676 | J32: 84229.52257 | K32: 88713.27118 | L32: 89886.73352 | M32: 92119.75084 | N32: 92987.16182 | O32: 94526.90686 | P32: 94717.64269 | Q32: 96028.22311 | R32: 190.735824 | S32: 0.002017793984
B33: Sep | C33: 88074.93742 | D33: 88698.74262 | E33: 90191.5418 | F33: 90397.98128 | G33: 90793.64157 | H33: 92745.50808 | I33: 88329.94461 | J33: 94186.14624 | K33: 99180.51135 | L33: 100571.4358 | M33: 102562.2944 | N33: 103924.0647 | O33: 105450.6991 | P33: 105722.6044 | Q33: 107190.8624 | R33: =P33-O33 -> 271.9053768 | S33: =R33/O33 -> 0.002578507105
B34: Oct | C34: 97537.50286 | D34: 98134.15443 | E34: 99678.79412 | F34: 99773.69588 | G34: 100486.4302 | H34: 102543.687 | I34: 97674.18392 | J34: 104309.6443 | K34: 109526.5216 | L34: 111463.5391 | M34: 113092.7765 | N34: 115025.2587 | O34: 116523.1564 | P34: 116868.3067 | Q34: 118445.8396 | R34: 345.150264 | S34: 0.002962074446
B35: Nov | C35: 106489.1799 | D35: 107137.7399 | E35: 108722.2846 | F35: 108731.3649 | G35: 109723.6768 | H35: 111929.356 | I35: 107341.6544 | J35: 114001.219 | K35: 119403.6947 | L35: 121833.9061 | M35: 123115.9829 | N35: 125684.2544 | O35: 127086.4443 | P35: =P34+P19 -> 127515.4931 | Q35: =IFERROR(Q34+Q19,"") -> 129222.9381 | R35: 429.0487764 | S35: 0.003376038874
B36: Dec | C36: 115833.4192 | D36: 116628.1 | E36: 118269.0302 | F36: 118170.001 | G36: 119271.3936 | H36: 121820.1447 | I36: 116281.9106 | J36: 124208.0426 | K36: 129726.0378 | L36: 132738.3916 | M36: 133721.7785 | N36: 136807.4452 | O36: 138093.5038 | P36: =P35+P20 -> 138700.6827 | Q36: =IFERROR(Q35+Q20,"") -> 140432.261

Sheet Milk deliveries by EU country
A2: Milk deliveries by EU country | AM2: hide these columns
A3: Source: Eurostat
A4: Units: Million litres
A5: Last updated: 9/03/2021 | AM5: Source: | AN5: Eurostat
B7: Month | C7: EU (ex UK) | D7: EU-28 | E7: EU-14 | F7: EU-N13 | G7: Austria | H7: Belgium | I7: Bulgaria | J7: Croatia | K7: Cyprus | L7: Czechia | M7: Denmark | N7: Estonia | O7: Finland | P7: France | Q7: Germany | R7: Greece | S7: Hungary | T7: Ireland | U7: Italy | V7: Latvia | W7: Lithuania | X7: Luxembourg | Y7: Malta | Z7: Netherlands | AA7: Poland | AB7: Portugal | AC7: Romania | AD7: Slovakia | AE7: Slovenia | AF7: Spain | AG7: Sweden | AH7: United Kingdom | AM7: Austria | AN7: Belgium | AO7: Bulgaria | AP7: Croatia | AQ7: Cyprus | AR7: Czech Republic | AS7: Denmark | AT7: Estonia | AU7: Finland | AV7: France | AW7: Germany | AX7: Greece | AY7: Hungary | AZ7: Ireland | BA7: Italy | BB7: Latvia | BC7: Lithuania | BD7: Luxembourg | BE7: Malta | BF7: Netherlands | BG7: Poland | BH7: Portugal | BI7: Romania | BJ7: Slovakia | BK7: Slovenia | BL7: Spain | BM7: Sweden | BN7: United Kingdom | BO7: EU-28 | BP7: EU-15 | BQ7: EU-N13 | BU7: EU-28 | BV7: EU-15 | BW7: EU-N13
B8: 2006-01-01 | C8: =SUM(G8:AG8) -> 9435.30498 | D8: =SUM(G8:AH8) -> 10569.81409 | E8: =SUM(G8:H8,M8,O8:R8,T8:U8,X8,Z8,AB8,AF8:AG8) -> 8016.100314 | F8: =SUM(I8:L8,N8,S8,V8:W8,Y8,AA8,AC8:AE8) -> 1419.204666 | G8: 215.59752 | H8: 229.9027068 | I8: 49.869066 | J8: 51.0538812 | K8: 11.4305532 | L8: 195.1643136 | M8: 364.282116 | N8: 46.421448 | O8: 198.505104 | P8: 1982.234676 | Q8: 2182.963736 | R8: 56.81286 | S8: 121.1813448 | T8: 119.93826 | U8: 876.95748 | V8: 37.5159108 | W8: 77.7802044 | X8: 21.5888868 | Y8: 3.4670412 | Z8: 888.5337072 | AA8: 634.9832544 | AB8: 152.1127908 | AC8: 72.837 | AD8: 77.2460664 | AE8: 40.254582 | AF8: 466.2442044 | AG8: 260.4262656 | AH8: 1134.509112 | BS8: =B8 -> 2006-01-01 | BT8: =SUM(C$8:C8) -> 9435.30498 | BU8: =SUM(D$8:D8) -> 10569.81409 | BV8: =SUM(E$8:E8) -> 8016.100314 | BW8: =SUM(F$8:F8) -> 1419.204666 | BX8: 1 | BY8: 2006
B9: 2006-02-01 | C9: 8723.93028 | D9: =SUM(G9:AH9) -> 9769.286904 | E9: =SUM(G9:H9,M9,O9:R9,T9:U9,X9,Z9,AB9,AF9:AG9) -> 7421.517316 | F9: 1302.412964 | G9: 199.0878 | H9: 220.3756272 | I9: 47.6062632 | J9: 47.926746 | K9: 10.1874684 | L9: 183.1316412 | M9: 336.798288 | N9: 42.342576 | O9: 181.898268 | P9: 1795.208683 | Q9: 1990.013668 | R9: 53.510916 | S9: 113.722836 | T9: 187.725228 | U9: 809.1510888 | V9: 33.7866564 | W9: 68.6318772 | X9: 19.6854132 | Y9: 3.1368468 | Z9: 811.695528 | AA9: 576.189228 | AB9: 142.7799432 | AC9: 66.6118644 | AD9: 71.13747 | AE9: 38.0014908 | AF9: 433.1179368 | AG9: 240.4689276 | AH9: 1045.356624 | BS9: =B9 -> 2006-02-01 | BT9: =SUM(C$8:C9) -> 18159.23526 | BU9: =SUM(D$8:D9) -> 20339.101 | BV9: =SUM(E$8:E9) -> 15437.61763 | BW9: =SUM(F$8:F9) -> 2721.61763 | BX9: 2 | BY9: 2006
B10: 2006-03-01 | C10: 9812.60064 | D10: 10991.00618 | E10: =SUM(G10:H10,M10,O10:R10,T10:U10,X10,Z10,AB10,AF10:AG10) -> 8328.512774 | F10: 1484.087866 | G10: 222.39564 | H10: 246.91743 | I10: 58.8620076 | J10: 54.6180384 | K10: 11.459688 | L10: 202.9918632 | M10: 374.285064 | N10: 47.781072 | O10: 200.835888 | P10: 1916.458009 | Q10: 2204.10589 | R10: 63.416748 | S10: 128.5136028 | T10: 391.086132 | U10: 882.4639572 | V10: 38.8561116 | W10: 77.8676088 | X10: 21.2295576 | Y10: 3.4767528 | Z10: 886.8341772 | AA10: 657.7278216 | AB10: 162.5430492 | AC10: 80.1595464 | AD10: 80.6645496 | AE10: 41.1092028 | AF10: 487.2406836 | AG10: 268.7005488 | AH10: 1178.405544 | BS10: 2006-03-01 | BT10: =SUM(C$8:C10) -> 27971.8359 | BU10: =SUM(D$8:D10) -> 31330.10718 | BV10: =SUM(E$8:E10) -> 23766.1304 | BW10: =SUM(F$8:F10) -> 4205.705496 | BX10: 3 | BY10: 2006
B11: 2006-04-01 | C11: 10113.13581 | D11: 11303.87509 | E11: 8583.889008 | F11: 1529.246806 | G11: 226.28028 | H11: 237.2349648 | I11: 71.3899716 | J11: 54.6957312 | K11: 11.216898 | L11: 197.1066336 | M11: 367.389828 | N11: 48.460884 | O11: 195.591624 | P11: 2045.476615 | Q11: 2218.867522 | R11: 61.18308 | S11: 124.0365552 | T11: 552.201576 | U11: 868.6443504 | V11: 41.2937232 | W11: 83.3935092 | X11: 21.6471564 | Y11: 3.3893484 | Z11: 865.30356 | AA11: 697.3220148 | AB11: 163.4850744 | AC11: 73.953834 | AD11: 80.1983928 | AE11: 42.7893096 | AF11: 495.6120828 | AG11: 264.9712944 | AH11: 1190.739276 | BS11: 2006-04-01 | BT11: =SUM(C$8:C11) -> 38084.97171 | BU11: =SUM(D$8:D11) -> 42633.98227 | BV11: =SUM(E$8:E11) -> 32350.01941 | BW11: =SUM(F$8:F11) -> 5734.952302 | BX11: 4 | BY11: 2006
B12: 2006-05-01 | C12: 10782.25534 | D12: 12057.29131 | E12: 9039.654396 | F12: 1742.600946 | G12: 243.76116 | H12: 257.3671116 | I12: 81.4026312 | J12: 58.463832 | K12: 11.4888228 | L12: 207.3815064 | M12: 386.424564 | N12: 52.345524 | O12: 203.555136 | P12: 2090.489881 | Q12: 2355.412618 | R12: 61.18308 | S12: 129.698418 | T12: 683.599524 | U12: 866.9351088 | V12: 49.7816616 | W12: 103.9238316 | X12: 22.7931252 | Y12: 3.496176 | Z12: 908.6270076 | AA12: 800.6922852 | AB12: 172.5071508 | AC12: 113.7519708 | AD12: 85.6466004 | AE12: 44.527686 | AF12: 513.6271008 | AG12: 273.3718284 | AH12: 1275.035964 | BS12: 2006-05-01 | BT12: =SUM(C$8:C12) -> 48867.22706 | BU12: =SUM(D$8:D12) -> 54691.27358 | BV12: =SUM(E$8:E12) -> 41389.67381 | BW12: =SUM(F$8:F12) -> 7477.553248 | BX12: 5 | BY12: 2006
B13: 2006-06-01 | C13: 10223.87719 | D13: 11402.0885 | E13: 8453.501066 | F13: 1770.376122 | G13: 226.28028 | H13: 235.700532 | I13: 77.0809692 | J13: 53.8411104 | K13: 10.9352616 | L13: 199.1946276 | M13: 373.022556 | N13: 54.287844 | O13: 193.843536 | P13: 1846.651028 | Q13: 2245.62298 | R13: 59.337876 | S13: 118.5203664 | T13: 641.548296 | U13: 837.1107852 | V13: 58.5997944 | W13: 129.7566876 | X13: 21.3266736 | Y13: 3.3796368 | Z13: 865.8279864 | AA13: 819.319134 | AB13: 160.9600584 | AC13: 120.7443228 | AD13: 82.4417724 | AE13: 42.2745948 | AF13: 487.2601068 | AG13: 259.008372 | AH13: 1178.211312 | BS13: 2006-06-01 | BT13: =SUM(C$8:C13) -> 59091.10424 | BU13: =SUM(D$8:D13) -> 66093.36208 | BV13: =SUM(E$8:E13) -> 49843.17487 | BW13: =SUM(F$8:F13) -> 9247.92937 | BX13: 6 | BY13: 2006
B14: 2006-07-01 | C14: 9978.513614 | D14: 11133.80555 | E14: 8238.020086 | F14: 1740.493529 | G14: 221.42448 | H14: 224.5224804 | I14: 73.6430628 | J14: 52.9864896 | K14: 11.1974748 | L14: 199.5053988 | M14: 376.227384 | N14: 54.773424 | O14: 191.8041 | P14: 1701.491743 | Q14: 2240.475832 | R14: 63.028284 | S14: 115.4612124 | T14: 620.279892 | U14: 826.262928 | V14: 58.3570044 | W14: 130.86381 | X14: 21.0353256 | Y14: 3.3699252 | Z14: 856.6311012 | AA14: 809.170512 | AB14: 156.0557004 | AC14: 106.7887536 | AD14: 81.7425372 | AE14: 42.633924 | AF14: 483.540564 | AG14: 255.2402712 | AH14: 1155.291936 | BS14: 2006-07-01 | BT14: =SUM(C$8:C14) -> 69069.61786 | BU14: =SUM(D$8:D14) -> 77227.16763 | BV14: =SUM(E$8:E14) -> 58081.19496 | BW14: =SUM(F$8:F14) -> 10988.4229 | BX14: 7 | BY14: 2006
B15: 2006-08-01 | C15: 9713.027605 | D15: 10816.26537 | E15: 8002.979942 | F15: 1710.047663 | G15: 214.62636 | H15: 219.7637964 | I15: 71.088912 | J15: 52.588314 | K15: 11.1586284 | L15: 197.0289408 | M15: 369.623496 | N15: 52.831104 | O15: 189.473316 | P15: 1635.472286 | Q15: 2194.811888 | R15: 61.7269296 | S15: 116.8499712 | T15: 564.72954 | U15: 805.4898156 | V15: 58.5803712 | W15: 135.9429768 | X15: 19.9961844 | Y15: 3.350502 | Z15: 850.3768308 | AA15: 788.5430736 | AB15: 146.7325644 | AC15: 99.5244768 | AD15: 80.4314712 | AE15: 42.1289208 | AF15: 479.6170776 | AG15: 250.5398568 | AH15: 1103.23776 | BS15: 2006-08-01 | BT15: =SUM(C$8:C15) -> 78782.64546 | BU15: =SUM(D$8:D15) -> 88043.43299 | BV15: =SUM(E$8:E15) -> 66084.1749 | BW15: =SUM(F$8:F15) -> 12698.47056 | BX15: 8 | BY15: 2006
B16: 2006-09-01 | C16: 9292.291958 | D16: 10351.24482 | E16: 7644.825846 | F16: 1647.466112 | G16: 203.9436 | H16: 215.4227112 | I16: 67.7578332 | J16: 51.6074424 | K16: 11.0906472 | L16: 185.6178108 | M16: 350.297412 | N16: 49.52916 | O16: 178.790556 | P16: 1646.41726 | Q16: 2076.378926 | R16: 60.406152 | S16: 109.4108856 | T16: 487.813668 | U16: 764.7010956 | V16: 57.5800764 | W16: 138.2154912 | X16: 19.374642 | Y16: 3.2145396 | Z16: 815.2596852 | AA16: 761.3505936 | AB16: 134.7872964 | AC16: 96.0865704 | AD16: 75.0609564 | AE16: 40.9441056 | AF16: 451.443726 | AG16: 239.7891156 | AH16: 1058.952864 | BS16: 2006-09-01 | BT16: =SUM(C$8:C16) -> 88074.93742 | BU16: =SUM(D$8:D16) -> 98394.67781 | BV16: =SUM(E$8:E16) -> 73729.00075 | BW16: =SUM(F$8:F16) -> 14345.93667 | BX16: 9 | BY16: 2006
B17: 2006-10-01 | C17: 9462.565441 | D17: 10534.14339 | E17: 7873.417487 | F17: 1589.147954 | G17: 211.71288 | H17: 214.8982848 | I17: 61.3676004 | J17: 52.6174488 | K17: 11.5179576 | L17: 187.5504192 | M17: 355.347444 | N17: 47.878188 | O17: 179.17902 | P17: 1815.700159 | Q17: 2129.734457 | R17: 57.978252 | S17: 108.4882836 | T17: 411.480492 | U17: 788.4168228 | V17: 53.4914928 | W17: 127.7269632 | X17: 19.4814696 | Y17: 3.2145396 | Z17: 852.144342 | AA17: 728.224326 | AB17: 135.4185504 | AC17: 91.4250024 | AD17: 74.3520096 | AE17: 41.2937232 | AF17: 460.1938776 | AG17: 241.7314356 | AH17: 1071.577944 | BS17: 2006-10-01 | BT17: =SUM(C$8:C17) -> 97537.50286 | BU17: =SUM(D$8:D17) -> 108928.8212 | BV17: =SUM(E$8:E17) -> 81602.41824 | BW17: =SUM(F$8:F17) -> 15935.08463 | BX17: 10 | BY17: 2006
B18: 2006-11-01 | C18: 8951.677012 | D18: 9984.117208 | E18: 7551.720737 | F18: 1399.956275 | G18: 198.11664 | H18: 215.451846 | I18: 52.4717748 | J18: 49.577718 | K18: 10.9838196 | L18: 179.7908508 | M18: 343.596408 | N18: 44.479128 | O18: 176.556888 | P18: 1824.790217 | Q18: 2046.972202 | R18: 53.9285148 | S18: 106.7499072 | T18: 265.418028 | U18: 769.1684316 | V18: 42.7407516 | W18: 92.3961624 | X18: 18.7045416 | Y18: 3.1659816 | Z18: 824.2040688 | AA18: 630.4673604 | AB18: 131.6116032 | AC18: 77.9647248 | AD18: 70.1468868 | AE18: 39.0212088 | AF18: 448.0058196 | AG18: 235.1955288 | AH18: 1032.440196 | BS18: 2006-11-01 | BT18: =SUM(C$8:C18) -> 106489.1799 | BU18: =SUM(D$8:D18) -> 118912.9384 | BV18: =SUM(E$8:E18) -> 89154.13897 | BW18: =SUM(F$8:F18) -> 17335.0409 | BX18: 11 | BY18: 2006
B19: 2006-12-01 | C19: 9344.239307 | D19: 10439.12509 | E19: 7889.995188 | F19: 1454.244119 | G19: 211.71288 | H19: 237.5554476 | I19: 53.7925524 | J19: 51.7822512 | K19: 11.7607476 | L19: 189.1139868 | M19: 365.253276 | N19: 47.295492 | O19: 189.86178 | P19: 1947.457436 | Q19: 2162.336298 | R19: 57.78402 | S19: 113.3537952 | T19: 148.004784 | U19: 803.3338404 | V19: 44.6539368 | W19: 92.940012 | X19: 20.4234948 | Y19: 3.39906 | Z19: 893.7002784 | AA19: 654.8143416 | AB19: 138.4971276 | AC19: 75.2454768 | AD19: 74.7890316 | AE19: 41.3034348 | AF19: 463.5249564 | AG19: 250.5495684 | AH19: 1094.885784 | BS19: 2006-12-01 | BT19: =SUM(C$8:C19) -> 115833.4192 | BU19: =SUM(D$8:D19) -> 129352.0635 | BV19: =SUM(E$8:E19) -> 97044.13416 | BW19: =SUM(F$8:F19) -> 18789.28502 | BX19: 12 | BY19: 2006
B20: 2007-01-01 | C20: 9667.47049 | D20: 10797.02669 | E20: 8185.761966 | F20: 1481.708524 | G20: 219.48216 | H20: 267.748812 | I20: 50.8693608 | J20: 54.3461136 | K20: 12.2269044 | L20: 198.2817372 | M20: 378.363936 | N20: 47.295492 | O20: 196.6599 | P20: 2000.04575 | Q20: 2263.463189 | R20: 56.81286 | S20: 121.7154828 | T20: 122.657508 | U20: 874.2965016 | V20: 43.7022 | W20: 91.1045196 | X20: 21.7636956 | Y20: c | Z20: 914.444256 | AA20: 664.6327692 | AB20: 146.1790032 | AC20: 77.3431824 | AD20: 77.5179912 | AE20: 42.6727704 | AF20: 465.816894 | AG20: 258.0275004 | AH20: 1129.556196 | AM20: =G20-G8 -> 3.88464 | AN20: =H20-H8 -> 37.8461052 | AO20: 1.0002948 | AP20: 3.2922324 | AQ20: 0.7963512 | AR20: 3.1174236 | AS20: 14.08182 | AT20: 0.874044 | AU20: -1.845204 | AV20: 17.8110744 | AW20: 80.4994524 | AX20: 0 | AY20: 0.534138 | AZ20: 2.719248 | BA20: -2.6609784 | BB20: 6.1862892 | BC20: 13.3243152 | BD20: 0.1748088 | BF20: 25.9105488 | BG20: 29.6495148 | BH20: -5.9337876 | BI20: 4.5061824 | BJ20: 0.2719248 | BK20: 2.4181884 | BL20: -0.4273104 | BM20: -2.3987652 | BN20: -4.952916 | BO20: =D20-D8 -> 227.2125936 | BP20: =E20-E8 -> 169.661652 | BQ20: =F20-F8 -> 62.5038576 | BS20: 2007-01-01 | BT20: =SUM(C$20:C20) -> 9667.47049 | BU20: =SUM(D$20:D20) -> 10797.02669 | BV20: =SUM(E$20:E20) -> 8185.761966 | BW20: =SUM(F$20:F20) -> 1481.708524 | BX20: 1 | BY20: 2007
B21: 2007-02-01 | C21: 8940.25617 | D21: 9960.362634 | E21: 7577.563304 | F21: 1362.692866 | G21: 202.00128 | H21: 252.1811172 | I21: 54.9967908 | J21: 50.9179188 | K21: 10.9449732 | L21: 182.8305816 | M21: 336.604056 | N21: 42.536808 | O21: 178.9168068 | P21: 1825.858493 | Q21: 2074.776512 | R21: 53.316684 | S21: 112.1301336 | T21: 184.714632 | U21: 814.4827572 | V21: 38.3802432 | W21: 78.2560728 | X21: 20.63715 | Y21: c | Z21: 825.874464 | AA21: 604.692774 | AB21: 137.7201996 | AC21: 75.4785552 | AD21: 71.6133384 | AE21: 39.914676 | AF21: 434.1959244 | AG21: 236.283228 | AH21: 1020.106464 | AM21: =G21-G9 -> 2.91348 | AN21: 31.80549 | AO21: 7.3905276 | AP21: 2.9911728 | AQ21: 0.7575048 | AR21: -0.3010596 | AS21: -0.194232 | AT21: 0.194232 | AU21: -2.9814612 | AV21: 30.6498096 | AW21: 84.7628448 | AX21: -0.194232 | AY21: -1.5927024 | AZ21: -3.010596 | BA21: 5.3316684 | BB21: 4.5935868 | BC21: 9.6241956 | BD21: 0.9517368 | BF21: 14.178936 | BG21: 28.503546 | BH21: -5.0597436 | BI21: 8.8666908 | BJ21: 0.4758684 | BK21: 1.9131852 | BL21: 1.0779876 | BM21: -4.1856996 | BN21: -25.25016 | BO21: 191.07573 | BP21: 156.0459888 | BQ21: 60.2799012 | BS21: 2007-02-01 | BT21: =SUM(C$20:C21) -> 18607.72666 | BU21: =SUM(D$20:D21) -> 20757.38932 | BV21: =SUM(E$20:E21) -> 15763.32527 | BW21: =SUM(F$20:F21) -> 2844.401389 | BX21: 2 | BY21: 2007
B22: 2007-03-01 | C22: 10159.31447 | D22: 11329.46516 | E22: 8602.360471 | F22: 1556.954 | G22: 225.30912 | H22: 285.52104 | I22: 65.4270492 | J22: 57.444114 | K22: 12.188058 | L22: 205.934478 | M22: 379.140864 | N22: 47.781072 | O22: 199.0878 | P22: 2012.699965 | Q22: 2323.5003 | R22: 61.2899076 | S22: 126.5033016 | T22: 385.162056 | U22: 883.27002 | V22: 43.9061436 | W22: 86.6663184 | X22: 23.5214952 | Y22: c | Z22: 906.966324 | AA22: 696.6227796 | AB22: 160.4647668 | AC22: 88.5115224 | AD22: 81.2181108 | AE22: 44.7510528 | AF22: 492.4558128 | AG22: 263.9709996 | AH22: 1170.150684 | AM22: 2.91348 | AN22: 38.60361 | AO22: 6.5650416 | AP22: 2.8260756 | AQ22: 0.72837 | AR22: 2.9426148 | AS22: 4.8558 | AT22: 0 | AU22: -1.748088 | AV22: 96.241956 | AW22: 119.3944104 | AX22: -2.1268404 | AY22: -2.0103012 | AZ22: -5.924076 | BA22: 0.8060628 | BB22: 5.050032 | BC22: 8.7987096 | BD22: 2.2919376 | BF22: 20.1321468 | BG22: 38.894958 | BH22: -2.0782824 | BI22: 8.351976 | BJ22: 0.5535612 | BK22: 3.64185 | BL22: 5.2151292 | BM22: -4.7295492 | BN22: -8.25486 | BO22: 338.4589716 | BP22: 273.8476968 | BQ22: 72.8661348 | BS22: 2007-03-01 | BT22: =SUM(C$20:C22) -> 28767.04113 | BU22: =SUM(D$20:D22) -> 32086.85448 | BV22: =SUM(E$20:E22) -> 24365.68574 | BW22: =SUM(F$20:F22) -> 4401.35539 | BX22: 3 | BY22: 2007
B23: 2007-04-01 | C23: 10322.49849 | D23: 11526.25131 | E23: 8748.384089 | F23: 1574.114398 | G23: 230.16492 | H23: 277.3438728 | I23: 72.4194012 | J23: 56.9876688 | K23: 12.0035376 | L23: 201.8264712 | M23: 375.450456 | N23: 48.849348 | O23: 194.5621944 | P23: 2056.169087 | Q23: 2287.110935 | R23: 59.823456 | S23: 122.6672196 | T23: 579.102708 | U23: 878.2879692 | V23: 45.88731 | W23: 90.07509 | X23: 22.4240844 | Y23: c | Z23: 889.971024 | AA23: 707.5774644 | AB23: 161.2805412 | AC23: 90.7257672 | AD23: 80.5285872 | AE23: 44.5665324 | AF23: 479.7627516 | AG23: 256.9300896 | AH23: 1203.75282 | AM23: 3.88464 | AN23: 40.108908 | AO23: 1.0294296 | AP23: 2.2919376 | AQ23: 0.7866396 | AR23: 4.7198376 | AS23: 8.060628 | AT23: 0.388464 | AU23: -1.0294296 | AV23: 10.6924716 | AW23: 68.2434132 | AX23: -1.359624 | AY23: -1.3693356 | AZ23: 26.901132 | BA23: 9.6436188 | BB23: 4.5935868 | BC23: 6.6815808 | BD23: 0.776928 | BF23: 24.667464 | BG23: 10.2554496 | BH23: -2.2045332 | BI23: 16.7719332 | BJ23: 0.3301944 | BK23: 1.7772228 | BL23: -15.8493312 | BM23: -8.0412048 | BN23: 13.013544 | BO23: 222.3762168 | BP23: 164.4950808 | BQ23: 44.867592 | BS23: 2007-04-01 | BT23: =SUM(C$20:C23) -> 39089.53962 | BU23: =SUM(D$20:D23) -> 43613.10578 | BV23: =SUM(E$20:E23) -> 33114.06983 | BW23: =SUM(F$20:F23) -> 5975.469787 | BX23: 4 | BY23: 2007
B24: 2007-05-01 | C24: 10729.26885 | D24: 11987.60086 | E24: 8993.708816 | F24: 1735.560036 | G24: 241.81884 | H24: 285.3656544 | I24: 76.9838532 | J24: 60.1536504 | K24: 12.042384 | L24: 209.1004596 | M24: 392.154408 | N24: 52.054176 | O24: 202.049838 | P24: 2012.292078 | Q24: 2375.340821 | R24: 61.862892 | S24: 124.1239596 | T24: 686.12454 | U24: 882.2697252 | V24: 54.9967908 | W24: 115.6263096 | X24: 23.2204356 | Y24: c | Z24: 910.074036 | AA24: 792.5928108 | AB24: 167.233752 | AC24: 107.8376064 | AD24: 83.8305312 | AE24: 46.2175044 | AF24: 491.2030164 | AG24: 262.69878 | AH24: 1258.332012 | AM24: -1.94232 | AN24: 27.9985428 | AO24: -4.418778 | AP24: 1.6898184 | AQ24: 0.5535612 | AR24: 1.7189532 | AS24: 5.729844 | AT24: -0.291348 | AU24: -1.505298 | AV24: -78.1978032 | AW24: 19.9282032 | AX24: 0.679812 | AY24: -5.5744584 | AZ24: 2.525016 | BA24: 15.3346164 | BB24: 5.2151292 | BC24: 11.702478 | BD24: 0.4273104 | BF24: 1.4470284 | BG24: -8.0994744 | BH24: -5.2733988 | BI24: -5.9143644 | BJ24: -1.8160692 | BK24: 1.6898184 | BL24: -22.4240844 | BM24: -10.6730484 | BN24: -16.703952 | BO24: -69.6904416 | BP24: -45.9455796 | BQ24: -7.04091 | BS24: 2007-05-01 | BT24: =SUM(C$20:C24) -> 49818.80847 | BU24: =SUM(D$20:D24) -> 55600.70665 | BV24: =SUM(E$20:E24) -> 42107.77865 | BW24: =SUM(F$20:F24) -> 7711.029823 | BX24: 5 | BY24: 2007
B25: 2007-06-01 | C25: 10017.36973 | D25: 11164.69815 | E25: 8332.25174 | F25: 1685.117986 | G25: 220.45332 | H25: 262.2132 | I25: 69.2048616 | J25: 55.6280448 | K25: 11.119782 | L25: 200.9135808 | M25: 372.634092 | N25: 51.95706 | O25: 190.8426516 | P25: 1767.365526 | Q25: 2240.941988 | R25: 55.8805464 | S25: 117.558918 | T25: 643.199268 | U25: 840.4030176 | V25: 60.9500016 | W25: 128.8437972 | X25: 21.3460968 | Y25: c | Z25: 851.513088 | AA25: 756.5045052 | AB25: 156.988014 | AC25: 108.1678008 | AD25: 80.0915652 | AE25: 44.1780684 | AF25: 466.2247812 | AG25: 242.2461504 | AH25: 1147.328424 | AM25: -5.82696 | AN25: 26.512668 | AO25: -7.8761076 | AP25: 1.7869344 | AQ25: 0.1845204 | AR25: 1.7189532 | AS25: -0.388464 | AT25: -2.330784 | AU25: -3.0008844 | AV25: -79.2855024 | AW25: -4.6809912 | AX25: -3.4573296 | AY25: -0.9614484 | AZ25: 1.650972 | BA25: 3.2922324 | BB25: 2.3502072 | BC25: -0.9128904 | BD25: 0.0194232 | BF25: -14.3148984 | BG25: -62.8146288 | BH25: -3.9720444 | BI25: -12.576522 | BJ25: -2.3502072 | BK25: 1.9034736 | BL25: -21.0353256 | BM25: -16.7622216 | BN25: -30.882888 | BO25: -237.3903504 | BP25: -121.249326 | BQ25: -85.2581364 | BS25: 2007-06-01 | BT25: =SUM(C$20:C25) -> 59836.1782 | BU25: =SUM(D$20:D25) -> 66765.4048 | BV25: =SUM(E$20:E25) -> 50440.03039 | BW25: =SUM(F$20:F25) -> 9396.147809 | BX25: 6 | BY25: 2007
B26: 2007-07-01 | C26: 9956.691649 | D26: 11055.07361 | E26: 8228.619257 | F26: 1728.072392 | G26: 218.511 | H26: 253.0551612 | I26: 63.2030928 | J26: 56.32728 | K26: 11.3917068 | L26: 205.1672616 | M26: 375.936036 | N26: 52.151292 | O26: 188.6089836 | P26: 1704.939361 | Q26: 2253.897263 | R26: 58.2696 | S26: 118.2193068 | T26: 613.384656 | U26: 827.4380316 | V26: 63.6206916 | W26: 139.798482 | X26: 21.2781156 | Y26: c | Z26: 849.085188 | AA26: 782.6287092 | AB26: 156.9103212 | AC26: 108.7407852 | AD26: 81.4706124 | AE26: 45.353172 | AF26: 466.2344928 | AG26: 241.0710468 | AH26: 1098.38196 | AM26: -2.91348 | AN26: 28.5326808 | AO26: -10.43997 | AP26: 3.3407904 | AQ26: 0.194232 | AR26: 5.6618628 | AS26: -0.291348 | AT26: -2.622132 | AU26: -3.1951164 | AV26: 3.447618 | AW26: 13.4214312 | AX26: -4.758684 | AY26: 2.7580944 | AZ26: -6.895236 | BA26: 1.1751036 | BB26: 5.2636872 | BC26: 8.934672 | BD26: 0.24279 | BF26: -7.5459132 | BG26: -26.5418028 | BH26: 0.8546208 | BI26: 1.9520316 | BJ26: -0.2719248 | BK26: 2.719248 | BL26: -17.3060712 | BM26: -14.1692244 | BN26: -56.909976 | BO26: -78.7319412 | BP26: -9.4008288 | BQ26: -12.4211364 | BS26: 2007-07-01 | BT26: =SUM(C$20:C26) -> 69792.86985 | BU26: =SUM(D$20:D26) -> 77820.47841 | BV26: =SUM(E$20:E26) -> 58668.64964 | BW26: =SUM(F$20:F26) -> 11124.2202 | BX26: 7 | BY26: 2007
B27: 2007-08-01 | C27: 9679.12441 | D27: 10753.32449 | E27: 7978.526134 | F27: 1700.598276 | G27: 213.6552 | H27: 239.5560372 | I27: 60.7849044 | J27: 55.4435244 | K27: 10.9158384 | L27: 203.409462 | M27: 365.64174 | N27: 50.403204 | O27: 182.9082744 | P27: 1642.318964 | Q27: 2200.658272 | R27: 58.560948 | S27: 119.8605672 | T27: 559.096812 | U27: 807.5001168 | V27: 63.9217512 | W27: 146.0430408 | X27: 20.0253192 | Y27: c | Z27: 848.211144 | AA27: 765.2837916 | AB27: 145.8585204 | AC27: 100.078038 | AD27: 80.217816 | AE27: 44.236338 | AF27: 461.0290752 | AG27: 233.5057104 | AH27: 1074.200076 | AM27: -0.97116 | AN27: 19.7922408 | AO27: -10.3040076 | AP27: 2.8552104 | AQ27: -0.24279 | AR27: 6.3805212 | AS27: -3.981756 | AT27: -2.4279 | AU27: -6.5650416 | AV27: 6.846678 | AW27: 5.8463832 | AX27: -3.1659816 | AY27: 3.010596 | AZ27: -5.632728 | BA27: 2.0103012 | BB27: 5.34138 | BC27: 10.100064 | BD27: 0.0291348 | BF27: -2.1656868 | BG27: -23.259282 | BH27: -0.874044 | BI27: 0.5535612 | BJ27: -0.2136552 | BK27: 2.1074172 | BL27: -18.5880024 | BM27: -17.0341464 | BN27: -29.037684 | BO27: -62.9408796 | BP27: -24.4538088 | BQ27: -9.4493868 | BS27: 2007-08-01 | BT27: =SUM(C$20:C27) -> 79471.99425 | BU27: =SUM(D$20:D27) -> 88573.80289 | BV27: =SUM(E$20:E27) -> 66647.17578 | BW27: =SUM(F$20:F27) -> 12824.81848 | BX27: 8 | BY27: 2007
B28: 2007-09-01 | C28: 9226.74837 | D28: 10253.26449 | E28: 7616.74961 | F28: 1609.99876 | G28: 202.00128 | H28: 229.5045312 | I28: 61.571544 | J28: 52.3163892 | K28: 11.1974748 | L28: 192.5907396 | M28: 347.772396 | N28: 47.198376 | O28: 172.2546492 | P28: 1629.820135 | Q28: 2088.770928 | R28: 56.81286 | S28: 110.7510864 | T28: 478.2963 | U28: 779.5889784 | V28: 58.900854 | W28: 136.0012464 | X28: 18.6559836 | Y28: c | Z28: 818.493648 | AA28: 722.3196732 | AB28: 134.7290268 | AC28: 99.2913984 | AD28: 76.2166368 | AE28: 41.6433408 | AF28: 437.9543136 | AG28: 222.0945804 | AH28: 1026.51612 | AM28: -1.94232 | AN28: 14.08182 | AO28: -6.1862892 | AP28: 0.7089468 | AQ28: 0.1068276 | AR28: 6.9729288 | AS28: -2.525016 | AT28: -2.330784 | AU28: -6.5359068 | AV28: -16.5971244 | AW28: 12.3920016 | AX28: -3.593292 | AY28: 1.3402008 | AZ28: -9.517368 | BA28: 14.8878828 | BB28: 1.3207776 | BC28: =W28-W16 -> -2.2142448 | BD28: =X28-X16 -> -0.7186584 | BF28: =Z28-Z16 -> 3.2339628 | BG28: =AA28-AA16 -> -39.0309204 | BH28: =AB28-AB16 -> -0.0582696 | BI28: =AC28-AC16 -> 3.204828 | BJ28: =AD28-AD16 -> 1.1556804 | BK28: =AE28-AE16 -> 0.6992352 | BL28: =AF28-AF16 -> -13.4894124 | BM28: =AG28-AG16 -> -17.6945352 | BN28: =AH28-AH16 -> -32.436744 | BO28: -97.9803324 | BP28: -28.0762356 | BQ28: -37.4673528 | BS28: 2007-09-01 | BT28: =SUM(C$20:C28) -> 88698.74262 | BU28: =SUM(D$20:D28) -> 98827.06738 | BV28: =SUM(E$20:E28) -> 74263.92539 | BW28: =SUM(F$20:F28) -> 14434.81724 | BX28: 9 | BY28: 2007
B29: 2007-10-01 | C29: 9435.411808 | D29: 10476.88379 | E29: 7871.708245 | F29: 1563.703562 | G29: 205.88592 | H29: 243.8874108 | I29: 58.5415248 | J29: 53.268126 | K29: 11.9258448 | L29: 193.6201692 | M29: 353.01666 | N29: 45.256056 | O29: 172.332342 | P29: 1804.949418 | Q29: 2137.52316 | R29: 55.259004 | S29: 114.4803408 | T29: 407.8872 | U29: 793.5445476 | V29: 51.6754236 | W29: 118.5106548 | X29: 19.2386796 | Y29: c | Z29: 862.681428 | AA29: 703.11984 | AB29: 136.3314408 | AC29: 95.9894544 | AD29: 75.75048 | AE29: 41.565648 | AF29: 453.3957576 | AG29: 225.7752768 | AH29: 1041.471984 | AM29: -5.82696 | AN29: =H29-H17 -> 28.989126 | AO29: =I29-I17 -> -2.8260756 | AP29: =J29-J17 -> 0.6506772 | AQ29: =K29-K17 -> 0.4078872 | AR29: =L29-L17 -> 6.06975 | AS29: =M29-M17 -> -2.330784 | AT29: =N29-N17 -> -2.622132 | AU29: =O29-O17 -> -6.846678 | AV29: =P29-P17 -> -10.7507412 | AW29: =Q29-Q17 -> 7.7887032 | AX29: =R29-R17 -> -2.719248 | AY29: =S29-S17 -> 5.9920572 | AZ29: =T29-T17 -> -3.593292 | BA29: =U29-U17 -> 5.1277248 | BB29: =V29-V17 -> -1.8160692 | BC29: -9.2163084 | BD29: -0.24279 | BF29: 10.537086 | BG29: -25.104486 | BH29: 0.9128904 | BI29: 4.564452 | BJ29: 1.3984704 | BK29: 0.2719248 | BL29: -6.79812 | BM29: -15.9561588 | BN29: -30.10596 | BO29: -57.2595936 | BP29: -1.7092416 | BQ29: -25.444392 | BS29: 2007-10-01 | BT29: =SUM(C$20:C29) -> 98134.15443 | BU29: =SUM(D$20:D29) -> 109303.9512 | BV29: =SUM(E$20:E29) -> 82135.63363 | BW29: =SUM(F$20:F29) -> 15998.5208 | BX29: 10 | BY29: 2007
B30: 2007-11-01 | C30: 9003.585514 | D30: 10017.57367 | E30: 7608.55302 | F30: 1395.032494 | G30: 194.232 | H30: 236.9727516 | I30: 50.1701256 | J30: 49.4514672 | K30: 11.3237256 | L30: 185.5692528 | M30: 342.431016 | N30: 43.7022 | O30: 168.8458776 | P30: 1843.329661 | Q30: 2066.288574 | R30: 51.0538812 | S30: 105.5845152 | T30: 266.680536 | U30: 776.5978056 | V30: 42.779598 | W30: 89.1816228 | X30: 18.8016576 | Y30: c | Z30: 847.045752 | AA30: 625.2910776 | AB30: 134.8844124 | AC30: 80.9656092 | AD30: 71.6813196 | AE30: 39.33198 | AF30: 440.275386 | AG30: 221.1137088 | AH30: 1013.988156 | AM30: -3.88464 | AN30: 21.5209056 | AO30: -2.3016492 | AP30: -0.1262508 | AQ30: 0.339906 | AR30: 5.778402 | AS30: -1.165392 | AT30: -0.776928 | AU30: -7.7110104 | AV30: 18.5394444 | AW30: 19.3163724 | AX30: -2.8746336 | AY30: -1.165392 | AZ30: 1.262508 | BA30: 7.429374 | BB30: 0.0388464 | BC30: -3.2145396 | BD30: 0.097116 | BF30: 22.8416832 | BG30: -5.1762828 | BH30: 3.2728092 | BI30: 3.0008844 | BJ30: 1.5344328 | BK30: 0.3107712 | BL30: -7.7304336 | BM30: -14.08182 | BN30: -18.45204 | BO30: 33.456462 | BP30: 56.8322832 | BQ30: -4.9237812 | BS30: 2007-11-01 | BT30: =SUM(C$20:C30) -> 107137.7399 | BU30: =SUM(D$20:D30) -> 119321.5248 | BV30: =SUM(E$20:E30) -> 89744.18665 | BW30: =SUM(F$20:F30) -> 17393.55329 | BX30: 11 | BY30: 2007
B31: 2007-12-01 | C31: 9490.36004 | D31: 10559.80143 | E31: 8029.317802 | F31: 1461.042239 | G31: 210.74172 | H31: 252.7735248 | I31: 51.8502324 | J31: 51.762828 | K31: 12.2269044 | L31: 195.737298 | M31: 365.253276 | N31: 47.10126 | O31: 179.8296972 | P31: 2019.119333 | Q31: 2220.537917 | R31: 53.8216872 | S31: 112.3826352 | T31: 147.713436 | U31: 811.4915844 | V31: 43.7896044 | W31: 90.5024004 | X31: 20.7634008 | Y31: c | Z31: 903.1788 | AA31: 660.9326496 | AB31: 144.557166 | AC31: 77.9453016 | AD31: 76.1680788 | AE31: 40.643046 | AF31: 463.5055332 | AG31: 236.0307264 | AH31: 1069.441392 | AM31: -0.97116 | AN31: 15.2180772 | AO31: -1.94232 | AP31: -0.0194232 | AQ31: 0.4661568 | AR31: 6.6233112 | AS31: 0 | AT31: -0.194232 | AU31: -10.0320828 | AV31: 71.6618964 | AW31: 58.2016188 | AX31: -3.9623328 | AY31: -0.97116 | AZ31: -0.291348 | BA31: 8.157744 | BB31: -0.8643324 | BC31: -2.4376116 | BD31: 0.339906 | BF31: 9.4785216 | BG31: 6.118308 | BH31: 6.0600384 | BI31: 2.6998248 | BJ31: 1.3790472 | BK31: -0.6603888 | BL31: -0.0194232 | BM31: -14.518842 | BN31: -25.444392 | BO31: 120.6763416 | BP31: 139.3226136 | BQ31: 6.79812 | BS31: 2007-12-01 | BT31: =SUM(C$20:C31) -> 116628.1 | BU31: =SUM(D$20:D31) -> 129881.3263 | BV31: =SUM(E$20:E31) -> 97773.50445 | BW31: =SUM(F$20:F31) -> 18854.59553 | BX31: 12 | BY31: 2007
B32: 2008-01-01 | C32: 9859.45911 | D32: 10960.17185 | E32: 8380.945703 | F32: 1478.513407 | G32: 221.42448 | H32: 267.506022 | I32: 45.5182692 | J32: 53.7828408 | K32: 12.8096004 | L32: 200.2629036 | M32: 372.828324 | N32: 47.58684 | O32: 186.074256 | P32: 2138.00874 | Q32: 2312.497057 | R32: 52.8990852 | S32: 118.5203664 | T32: 126.9597468 | U32: 877.0934424 | V32: 42.8087328 | W32: 88.3949832 | X32: 22.3561032 | Y32: c | Z32: 924.204414 | AA32: 676.218708 | AB32: 151.0056684 | AC32: 72.4096896 | AD32: 78.0035712 | AE32: 42.196902 | AF32: 486.5900064 | AG32: 241.4983572 | AH32: 1100.712744 | AM32: 1.94232 | AN32: -0.24279 | AO32: -5.3510916 | AP32: -0.5632728 | AQ32: 0.582696 | AR32: 1.9811664 | AS32: -5.535612 | AT32: 0.291348 | AU32: -10.585644 | AV32: 137.9629896 | AW32: 49.0338684 | AX32: -3.9137748 | AY32: -3.1951164 | AZ32: 4.3022388 | BA32: 2.7969408 | BB32: -0.8934672 | BC32: -2.7095364 | BD32: 0.5924076 | BF32: 9.760158 | BG32: 11.5859388 | BH32: 4.8266652 | BI32: -4.9334928 | BJ32: 0.48558 | BK32: -0.4758684 | BL32: 20.7731124 | BM32: -16.5291432 | BN32: -28.843452 | BO32: 163.1451684 | BP32: 195.1837368 | BQ32: -3.1951164 | BS32: 2008-01-01 | BT32: =SUM(C$32:C32) -> 9859.45911 | BU32: =SUM(D$32:D32) -> 10960.17185 | BV32: =SUM(E$32:E32) -> 8380.945703 | BW32: =SUM(F$32:F32) -> 1478.513407 | BX32: 1 | BY32: 2008
B33: 2008-02-01 | C33: 9565.615229 | D33: 10609.70934 | E33: 8135.543282 | F33: 1430.071946 | G33: 215.59752 | H33: 259.2900084 | I33: 54.821982 | J33: 52.005618 | K33: 12.1977696 | L33: 192.4450656 | M33: 353.696472 | N33: 45.256056 | O33: 177.576606 | P33: 2070.066386 | Q33: 2207.670047 | R33: 54.8899632 | S33: 111.1201272 | T33: 203.9727348 | U33: 859.767948 | V33: 40.5167952 | W33: 82.9467756 | X33: 21.5888868 | Y33: c | Z33: 871.8394668 | AA33: 649.7351748 | AB33: 147.4026648 | AC33: 72.788442 | AD33: 75.0026868 | AE33: 41.2354536 | AF33: 462.4566804 | AG33: 229.727898 | AH33: 1044.094116 | AM33: 13.59624 | AN33: 7.1088912 | AO33: -0.1748088 | AP33: 1.0876992 | AQ33: 1.2527964 | AR33: 9.614484 | AS33: 17.092416 | AT33: 2.719248 | AU33: -1.3402008 | AV33: 244.2078936 | AW33: 132.8935344 | AX33: 1.5732792 | AY33: -1.0100064 | AZ33: 19.2581028 | BA33: 45.2851908 | BB33: 2.136552 | BC33: 4.6907028 | BD33: 0.9517368 | BF33: 45.9650028 | BG33: 45.0424008 | BH33: 9.6824652 | BI33: -2.6901132 | BJ33: 3.3893484 | BK33: 1.3207776 | BL33: 28.260756 | BM33: -6.55533 | BN33: 23.987652 | BO33: 649.3467108 | BP33: 557.979978 | BQ33: 67.3790808 | BS33: 2008-02-01 | BT33: =SUM(C$32:C33) -> 19425.07434 | BU33: =SUM(D$32:D33) -> 21569.8812 | BV33: =SUM(E$32:E33) -> 16516.48899 | BW33: =SUM(F$32:F33) -> 2908.585354 | BX33: 2 | BY33: 2008
B34: 2008-03-01 | C34: 10384.87609 | D34: 11521.81311 | E34: 8833.42857 | F34: 1551.447523 | G34: 235.02072 | H34: 270.2446932 | I34: 61.2899076 | J34: 55.7737188 | K34: 13.3146036 | L34: 205.9150548 | M34: 376.907196 | N34: 49.140696 | O34: 190.1239932 | P34: 2200.687406 | Q34: 2353.985012 | R34: 60.843174 | S34: 116.1604476 | T34: 378.412494 | U34: 912.744726 | V34: 43.4691216 | W34: 90.5315352 | X34: 23.4340908 | Y34: c | Z34: 913.37598 | AA34: 708.9370884 | AB34: 166.602498 | AC34: 81.4900356 | AD34: 81.2763804 | AE34: 44.1489336 | AF34: 502.4102028 | AG34: 248.6363832 | AH34: 1136.937012 | AM34: 9.7116 | AN34: -15.2763468 | AO34: -4.1371416 | AP34: -1.6703952 | AQ34: 1.1265456 | AR34: -0.0194232 | AS34: -2.233668 | AT34: 1.359624 | AU34: -8.9638068 | AV34: 187.9874412 | AW34: 30.4847124 | AX34: -0.4467336 | AY34: -10.342854 | AZ34: -6.749562 | BA34: 29.474706 | BB34: -0.437022 | BC34: 3.8652168 | BD34: -0.0874044 | BF34: 6.409656 | BG34: 12.3143088 | BH34: 6.1377312 | BI34: -7.0214868 | BJ34: 0.0582696 | BK34: -0.6021192 | BL34: 9.95439 | BM34: -15.3346164 | BN34: -33.213672 | BO34: 192.3479496 | BP34: 231.0680988 | BQ34: -5.5064772 | BS34: 2008-03-01 | BT34: =SUM(C$32:C34) -> 29809.95043 | BU34: =SUM(D$32:D34) -> 33091.6943 | BV34: =SUM(E$32:E34) -> 25349.91756 | BW34: =SUM(F$32:F34) -> 4460.032877 | BX34: 3 | BY34: 2008
B35: 2008-04-01 | C35: 10317.69124 | D35: 11457.05616 | E35: 8759.115407 | F35: 1558.575838 | G35: 232.10724 | H35: 266.6125548 | I35: 64.1742528 | J35: 54.8899632 | K35: 12.8581584 | L35: 199.7773236 | M35: 368.263872 | N35: 48.752232 | O35: 185.5983876 | P35: 2105.873056 | Q35: 2273.718638 | R35: 58.4541204 | S35: 120.6957648 | T35: 573.0523812 | U35: 883.2020388 | V35: 45.2172096 | W35: 93.9305952 | X35: 22.1230248 | Y35: c | Z35: 886.0766724 | AA35: 711.9865308 | AB35: 166.4276892 | AC35: 83.8013964 | AD35: 78.7319412 | AE35: 43.7604696 | AF35: 494.3398632 | AG35: 243.2658684 | AH35: 1139.364912 | AM35: 1.94232 | AN35: -10.731318 | AO35: -8.2451484 | AP35: -2.0977056 | AQ35: 0.8546208 | AR35: -2.0491476 | AS35: -7.186584 | AT35: -0.097116 | AU35: -8.9638068 | AV35: 49.7039688 | AW35: -13.3922964 | AX35: -1.3693356 | AY35: -1.9714548 | AZ35: -6.0503268 | BA35: 4.9140696 | BB35: -0.6701004 | BC35: 3.8555052 | BD35: -0.3010596 | BF35: -3.8943516 | BG35: 4.4090664 | BH35: 5.147148 | BI35: -6.9243708 | BJ35: -1.796646 | BK35: -0.8060628 | BL35: 14.5771116 | BM35: -13.6642212 | BN35: -64.387908 | BO35: -69.19515 | BP35: 10.731318 | BQ35: -15.53856 | BS35: 2008-04-01 | BT35: =SUM(C$32:C35) -> 40127.64168 | BU35: =SUM(D$32:D35) -> 44548.75046 | BV35: =SUM(E$32:E35) -> 34109.03296 | BW35: =SUM(F$32:F35) -> 6018.608714 | BX35: 4 | BY35: 2008
B36: 2008-05-01 | C36: 10803.26153 | D36: 12028.96257 | E36: 9044.617024 | F36: 1758.644509 | G36: 242.79 | H36: 277.5769512 | I36: 68.6027424 | J36: 58.123926 | K36: 12.6445032 | L36: 208.5468984 | M36: 390.697668 | N36: 53.219568 | O36: 194.4845016 | P36: 2136.85306 | Q36: 2269.406688 | R36: 59.5612428 | S36: 124.939734 | T36: 680.977392 | U36: 906.626418 | V36: 56.667186 | W36: 124.5124236 | X36: 23.5603416 | Y36: c | Z36: 924.2723952 | AA36: 813.9583308 | AB36: 173.983314 | AC36: 109.401174 | AD36: 82.1310012 | AE36: 45.8970216 | AF36: 510.1309248 | AG36: 253.6961268 | AH36: 1225.701036 | AM36: 0.97116 | AN36: -7.7887032 | AO36: -8.3811108 | AP36: -2.0297244 | AQ36: 0.6021192 | AR36: -0.5535612 | AS36: -1.45674 | AT36: 1.165392 | AU36: -7.5653364 | AV36: 124.5609816 | AW36: -105.9341328 | AX36: -2.3016492 | AY36: 0.8157744 | AZ36: -5.147148 | BA36: 24.3566928 | BB36: 1.6703952 | BC36: 8.886114 | BD36: 0.339906 | BF36: 14.1983592 | BG36: 21.36552 | BH36: 6.749562 | BI36: 1.5635676 | BJ36: -1.69953 | BK36: -0.3204828 | BL36: 18.9279084 | BM36: -9.0026532 | BN36: -32.630976 | BO36: 41.3617044 | BP36: 50.9082072 | BQ36: 23.0844732 | BS36: 2008-05-01 | BT36: =SUM(C$32:C36) -> 50930.90321 | BU36: =SUM(D$32:D36) -> 56577.71303 | BV36: =SUM(E$32:E36) -> 43153.64999 | BW36: =SUM(F$32:F36) -> 7777.253224 | BX36: 5 | BY36: 2008
B37: 2008-06-01 | C37: 10020.80763 | D37: 11148.22728 | E37: 8306.904464 | F37: 1713.903168 | G37: 213.6552 | H37: 250.9380324 | I37: 62.7660708 | J37: 52.8990852 | K37: 11.605362 | L37: 199.2528972 | M37: 376.518732 | N37: 52.054176 | O37: 186.7929144 | P37: 1859.431494 | Q37: 2085.362156 | R37: 55.0065024 | S37: 112.4409048 | T37: 637.3625964 | U37: 864.866538 | V37: 60.843174 | W37: 134.1366192 | X37: 21.3558084 | Y37: c | Z37: 874.7043888 | AA37: 800.3912256 | AB37: 162.0574692 | AC37: 105.9244212 | AD37: 78.3434772 | AE37: 43.2457548 | AF37: 478.7721684 | AG37: 240.0804636 | AH37: 1127.419644 | AM37: -6.79812 | AN37: -11.2751676 | AO37: -6.4387908 | AP37: -2.7289596 | AQ37: 0.48558 | AR37: -1.6606836 | AS37: 3.88464 | AT37: 0.097116 | AU37: -4.0497372 | AV37: 92.065968 | AW37: -155.579832 | AX37: -0.874044 | AY37: -5.1180132 | AZ37: -5.8366716 | BA37: 24.4635204 | BB37: -0.1068276 | BC37: 5.292822 | BD37: 0.0097116 | BF37: 23.1913008 | BG37: 43.8867204 | BH37: 5.0694552 | BI37: -2.2433796 | BJ37: -1.748088 | BK37: -0.9323136 | BL37: 12.5473872 | BM37: -2.1656868 | BN37: -19.90878 | BO37: -16.4708736 | BP37: -25.347276 | BQ37: 28.7851824 | BS37: 2008-06-01 | BT37: =SUM(C$32:C37) -> 60951.71084 | BU37: =SUM(D$32:D37) -> 67725.94031 | BV37: =SUM(E$32:E37) -> 51460.55445 | BW37: =SUM(F$32:F37) -> 9491.156392 | BX37: 6 | BY37: 2008
B38: 2008-07-01 | C38: 10135.6473 | D38: 11250.6361 | E38: 8387.559302 | F38: 1748.088 | G38: 220.45332 | H38: 251.4624588 | I38: 58.658064 | J38: 53.2292796 | K38: 11.6150736 | L38: 204.9341832 | M38: 387.104376 | N38: 53.219568 | O38: 185.1322308 | P38: 1765.277532 | Q38: 2290.66538 | R38: 56.424396 | S38: 117.5297832 | T38: 605.9358588 | U38: 843.4718832 | V38: 63.1836696 | W38: 141.7310904 | X38: 21.2489808 | Y38: c | Z38: 868.7220432 | AA38: 822.8055984 | AB38: 158.590428 | AC38: 98.8835112 | AD38: 78.9844428 | AE38: 43.313736 | AF38: 491.2904208 | AG38: 241.7799936 | AH38: 1114.988796 | AM38: 1.94232 | AN38: -1.5927024 | AO38: -4.5450288 | AP38: -3.0980004 | AQ38: 0.2233668 | AR38: -0.2330784 | AS38: 11.16834 | AT38: 1.068276 | AU38: -3.4767528 | AV38: 60.3381708 | AW38: 36.7681176 | AX38: -1.845204 | AY38: -0.6895236 | AZ38: -7.4487972 | BA38: 16.0338516 | BB38: -0.437022 | BC38: 1.9326084 | BD38: -0.0291348 | BF38: 19.6368552 | BG38: 40.1768892 | BH38: 1.6801068 | BI38: -9.857274 | BJ38: -2.4861696 | BK38: -2.039436 | BL38: 25.055928 | BM38: 0.7089468 | BN38: 16.606836 | BO38: 195.5624892 | BP38: 158.9400456 | BQ38: 20.0156076 | BS38: 2008-07-01 | BT38: =SUM(C$32:C38) -> 71087.35814 | BU38: =SUM(D$32:D38) -> 78976.5764 | BV38: =SUM(E$32:E38) -> 59848.11375 | BW38: =SUM(F$32:F38) -> 11239.24439 | BX38: 7 | BY38: 2008
B39: 2008-08-01 | C39: 9767.548528 | D39: 10824.85042 | E39: 8063.628884 | F39: 1703.919643 | G39: 213.6552 | H39: 245.9268468 | I39: 54.8608284 | J39: 52.4329284 | K39: 11.3722836 | L39: 200.6125212 | M39: 379.23798 | N39: 51.95706 | O39: 182.966544 | P39: 1670.560297 | Q39: 2221.781002 | R39: 56.5409352 | S39: 112.0038828 | T39: 542.1403584 | U39: 821.0575104 | V39: 62.4552996 | W39: 143.5277364 | X39: 20.297244 | Y39: c | Z39: 851.027508 | AA39: 802.760856 | AB39: 149.218734 | AC39: 91.4638488 | AD39: 76.8478908 | AE39: 43.6245072 | AF39: 471.6632772 | AG39: 237.5554476 | AH39: 1057.301892 | AM39: 0 | AN39: 6.3708096 | AO39: -5.924076 | AP39: -3.010596 | AQ39: 0.4564452 | AR39: -2.7969408 | AS39: 13.59624 | AT39: 1.553856 | AU39: 0.0582696 | AV39: 28.2413328 | AW39: 21.12273 | AX39: -2.0200128 | AY39: -7.8566844 | AZ39: -16.9564536 | BA39: 13.5573936 | BB39: -1.4664516 | BC39: -2.5153044 | BD39: 0.2719248 | BF39: 2.816364 | BG39: 37.4770644 | BH39: 3.3602136 | BI39: -8.6141892 | BJ39: -3.3699252 | BK39: -0.6118308 | BL39: 10.634202 | BM39: 4.0497372 | BN39: -16.898184 | BO39: 71.525934 | BP39: 85.1027508 | BQ39: 3.3213672 | BS39: 2008-08-01 | BT39: =SUM(C$32:C39) -> 80854.90667 | BU39: =SUM(D$32:D39) -> 89801.42682 | BV39: =SUM(E$32:E39) -> 67911.74264 | BW39: =SUM(F$32:F39) -> 12943.16403 | BX39: 8 | BY39: 2008
B40: 2008-09-01 | C40: 9336.635124 | D40: 10309.64033 | E40: 7722.431242 | F40: =SUM(I40:L40,N40,S40,V40:W40,Y40,AA40,AC40:AE40) -> 1614.203882 | G40: 204.91476 | H40: 243.3435612 | I40: 49.7428152 | J40: 50.3255112 | K40: 11.2363212 | L40: 188.9683128 | M40: 357.38688 | N40: 47.10126 | O40: 172.3711884 | P40: 1660.838986 | Q40: 2122.606142 | R40: 56.5409352 | S40: 116.3255448 | T40: 439.3916304 | U40: 792.5345412 | V40: 58.0947912 | W40: 134.5153716 | X40: 19.277526 | Y40: c | Z40: 844.4916012 | AA40: 759.0489444 | AB40: 137.5745256 | AC40: 85.4912148 | AD40: 72.4582476 | AE40: 40.8955476 | AF40: 443.5481952 | AG40: 227.6107692 | AH40: 973.005204 | AM40: 2.91348 | AN40: 13.83903 | AO40: -11.8287288 | AP40: -1.990878 | AQ40: 0.0388464 | AR40: -3.6224268 | AS40: 9.614484 | AT40: -0.097116 | AU40: 0.1165392 | AV40: 31.0188504 | AW40: 33.8352144 | AX40: -0.2719248 | AY40: 5.5744584 | AZ40: -38.9046696 | BA40: 12.9455628 | BB40: -0.8060628 | BC40: -1.4858748 | BD40: 0.6215424 | BF40: 25.9979532 | BG40: 36.7292712 | BH40: 2.8454988 | BI40: -13.8001836 | BJ40: -3.7583892 | BK40: -0.7477932 | BL40: 5.5938816 | BM40: 5.5161888 | BN40: -53.510916 | BO40: 56.375838 | BP40: 105.6816312 | BQ40: 4.2051228 | BS40: 2008-09-01 | BT40: =SUM(C$32:C40) -> 90191.5418 | BU40: =SUM(D$32:D40) -> 100111.0672 | BV40: =SUM(E$32:E40) -> 75634.17388 | BW40: =SUM(F$32:F40) -> 14557.36792 | BX40: 9 | BY40: 2008
B41: 2008-10-01 | C41: 9487.252328 | D41: 10502.21164 | E41: 7927.297444 | F41: 1559.954885 | G41: 211.71288 | H41: 251.676114 | I41: 47.4314544 | J41: 51.4617684 | K41: 11.9258448 | L41: 188.9197548 | M41: 365.253276 | N41: 47.683956 | O41: 174.1969692 | P41: 1793.810213 | Q41: 2171.445779 | R41: 53.7731292 | S41: 110.46945 | T41: 372.342744 | U41: 810.870042 | V41: 52.2678312 | W41: 118.9379652 | X41: 20.1321468 | Y41: c | Z41: 876.8020944 | AA41: 736.916208 | AB41: 139.2254976 | AC41: 80.5674336 | AD41: 72.35142 | AE41: 41.0217984 | AF41: 453.8327796 | AG41: 232.2237792 | AH41: 1014.959316 | AM41: 5.82696 | AN41: 7.7887032 | AO41: -11.1100704 | AP41: -1.8063576 | AQ41: 0 | AR41: -4.7004144 | AS41: 12.236616 | AT41: 2.4279 | AU41: 1.8646272 | AV41: -11.1392052 | AW41: 33.9226188 | AX41: -1.4858748 | AY41: -4.0108908 | AZ41: -35.544456 | BA41: 17.3254944 | BB41: 0.5924076 | BC41: 0.4273104 | BD41: 0.8934672 | BF41: 14.1206664 | BG41: 33.796368 | BH41: 2.8940568 | BI41: -15.4220208 | BJ41: -3.39906 | BK41: -0.5438496 | BL41: 0.437022 | BM41: 6.4485024 | BN41: -26.512668 | BO41: 25.3278528 | BP41: 55.5891984 | BQ41: -3.7486776 | BS41: 2008-10-01 | BT41: =SUM(C$32:C41) -> 99678.79412 | BU41: =SUM(D$32:D41) -> 110613.2788 | BV41: =SUM(E$32:E41) -> 83561.47132 | BW41: =SUM(F$32:F41) -> 16117.3228 | BX41: 10 | BY41: 2008
B42: 2008-11-01 | C42: 9043.490478 | D42: 10026.11017 | E42: 7614.545077 | F42: 1428.945401 | G42: 201.03012 | H42: 242.5763448 | I42: 47.1789528 | J42: 50.2672416 | K42: 11.8093056 | L42: 181.60692 | M42: 353.308008 | N42: 44.964708 | O42: 171.361182 | P42: 1783.360531 | Q42: 2111.962229 | R42: 50.4808968 | S42: 105.8467284 | T42: 231.6993528 | U42: 788.4653808 | V42: 45.3628836 | W42: 94.0859808 | X42: 19.9379148 | Y42: c | Z42: 860.2923744 | AA42: 667.963848 | AB42: 138.7496292 | AC42: 70.1274636 | AD42: 70.6421784 | AE42: 39.08919 | AF42: 433.088802 | AG42: 228.2323116 | AH42: 982.619688 | AM42: 6.79812 | AN42: 5.6035932 | AO42: -2.9911728 | AP42: 0.8157744 | AQ42: 0.48558 | AR42: -3.9623328 | AS42: 10.876992 | AT42: 1.262508 | AU42: 2.5153044 | AV42: -59.96913 | AW42: 45.6736548 | AX42: -0.5729844 | AY42: 0.2622132 | AZ42: -34.9811832 | BA42: 11.8675752 | BB42: 2.5832856 | BC42: 4.904358 | BD42: 1.1362572 | BF42: 13.2466224 | BG42: 42.6727704 | BH42: 3.8652168 | BI42: -10.8381456 | BJ42: -1.0391412 | BK42: -0.24279 | BL42: -7.186584 | BM42: 7.1186028 | BN42: -31.368468 | BO42: 8.5364964 | BP42: 5.9920572 | BQ42: 33.9129072 | BS42: 2008-11-01 | BT42: =SUM(C$32:C42) -> 108722.2846 | BU42: =SUM(D$32:D42) -> 120639.389 | BV42: =SUM(E$32:E42) -> 91176.0164 | BW42: =SUM(F$32:F42) -> 17546.2682 | BX42: 11 | BY42: 2008
B43: 2008-12-01 | C43: 9546.74559 | D43: 10595.01569 | E43: 8053.684206 | F43: 1493.061384 | G43: 214.62636 | H43: 267.0884232 | I43: 46.0426956 | J43: 53.5788972 | K43: 12.722196 | L43: 191.1534228 | M43: 372.148512 | N43: 47.489724 | O43: 182.2478856 | P43: 1943.786452 | Q43: 2252.401676 | R43: 54.8996748 | S43: 118.1027676 | T43: 150.8988408 | U43: 826.1561004 | V43: 45.6153852 | W43: 94.9988712 | X43: 21.753984 | Y43: c | Z43: 924.78711 | AA43: 698.4776952 | AB43: 144.9553416 | AC43: 70.2051564 | AD43: 73.905276 | AE43: 40.7692968 | AF43: 452.657676 | AG43: 245.2761696 | AH43: 1048.270104 | AM43: 3.88464 | AN43: 14.3148984 | AO43: -5.8075368 | AP43: 1.8160692 | AQ43: 0.4952916 | AR43: -4.5838752 | AS43: 6.895236 | AT43: 0.388464 | AU43: 2.4181884 | AV43: -75.3328812 | AW43: 31.8637596 | AX43: 1.0779876 | AY43: 5.7201324 | AZ43: 3.1854048 | BA43: 14.664516 | BB43: 1.8257808 | BC43: 4.4964708 | BD43: 0.9905832 | BF43: 21.60831 | BG43: 37.5450456 | BH43: 0.3981756 | BI43: -7.7401452 | BJ43: -2.2628028 | BK43: 0.1262508 | BL43: -10.8478572 | BM43: 9.2454432 | BN43: -21.171288 | BO43: 35.2142616 | BP43: 24.3664044 | BQ43: 32.0191452 | BS43: 2008-12-01 | BT43: =SUM(C$32:C43) -> 118269.0302 | BU43: =SUM(D$32:D43) -> 131234.4047 | BV43: =SUM(E$32:E43) -> 99229.70061 | BW43: =SUM(F$32:F43) -> 19039.32959 | BX43: 12 | BY43: 2008
B44: 2009-01-01 | C44: 9842.959102 | D44: 10914.05147 | E44: 8338.603127 | F44: 1504.355975 | G44: 223.2405492 | H44: 273.1290384 | I44: 48.3831912 | J44: 55.2007344 | K44: 12.8096004 | L44: 191.8623696 | M44: 384.385128 | N44: 48.752232 | O44: 187.3561872 | P44: 2007.494548 | Q44: 2333.901424 | R44: 55.0841952 | S44: 120.1227804 | T44: 131.4173712 | U44: 883.0175184 | V44: 43.6439304 | W44: 89.152488 | X44: 22.9096644 | Y44: c | Z44: 975.238872 | AA44: 708.315546 | AB44: 150.4132608 | AC44: 70.457658 | AD44: 74.3325864 | AE44: 41.322858 | AF44: 459.3489684 | AG44: 251.6664024 | AH44: 1071.092364 | AM44: 1.8160692 | AN44: 5.6230164 | AO44: 2.864922 | AP44: 1.4178936 | AQ44: 0 | AR44: -8.400534 | AS44: 11.556804 | AT44: 1.165392 | AU44: 1.2819312 | AV44: -130.5141924 | AW44: 21.4043664 | AX44: 2.18511 | AY44: 1.602414 | AZ44: 4.4576244 | BA44: 5.924076 | BB44: 0.8351976 | BC44: 0.7575048 | BD44: 0.5535612 | BF44: 51.034458 | BG44: 32.096838 | BH44: -0.5924076 | BI44: -1.9520316 | BJ44: -3.6709848 | BK44: -0.874044 | BL44: -27.241038 | BM44: 10.1680452 | BN44: -29.62038 | BO44: -46.1203884 | BP44: -42.342576 | BQ44: 25.8425676 | BS44: 2009-01-01 | BT44: =SUM(C$44:C44) -> 9842.959102 | BU44: =SUM(D$44:D44) -> 10914.05147 | BV44: =SUM(E$44:E44) -> 8338.603127 | BW44: =SUM(F$44:F44) -> 1504.355975 | BX44: 1 | BY44: 2009
B45: 2009-02-01 | C45: 9212.142124 | D45: 10193.40219 | E45: 7819.362721 | F45: 1392.779402 | G45: 209.2267104 | H45: 256.5027792 | I45: 49.869066 | J45: 52.539756 | K45: 11.4014184 | L45: 177.4697784 | M45: 356.221488 | N45: 44.964708 | O45: 172.4488812 | P45: 1831.568914 | Q45: 2161.229176 | R45: 51.665712 | S45: 110.9258952 | T45: 197.0872104 | U45: 865.5851964 | V45: 38.1471648 | W45: 77.6345304 | X45: 21.4723476 | Y45: c | Z45: 891.52488 | AA45: 655.0765548 | AB45: 139.9538676 | AC45: 67.3305228 | AD45: 68.1365856 | AE45: 39.283422 | AF45: 434.3804448 | AG45: 230.4951144 | AH45: 981.260064 | AM45: -6.3708096 | AN45: -2.7872292 | AO45: -4.952916 | AP45: 0.534138 | AQ45: -0.7963512 | AR45: -14.9752872 | AS45: 2.525016 | AT45: -0.291348 | AU45: -5.1277248 | AV45: -238.4974728 | AW45: -46.4408712 | AX45: -3.2242512 | AY45: -0.194232 | AZ45: -6.8855244 | BA45: 5.8172484 | BB45: -2.3696304 | BC45: -5.3122452 | BD45: -0.1165392 | BF45: 19.6854132 | BG45: 5.34138 | BH45: -7.4487972 | BI45: -5.4579192 | BJ45: -6.8661012 | BK45: -1.9520316 | BL45: -28.0762356 | BM45: 0.7672164 | BN45: -62.834052 | BO45: -416.3071572 | BP45: -316.1805612 | BQ45: -37.292544 | BS45: 2009-02-01 | BT45: =SUM(C$44:C45) -> 19055.10123 | BU45: =SUM(D$44:D45) -> 21107.45365 | BV45: =SUM(E$44:E45) -> 16157.96585 | BW45: =SUM(F$44:F45) -> 2897.135377 | BX45: 2 | BY45: 2009
B46: 2009-03-01 | C46: 10374.54295 | D46: 11496.81545 | E46: 8818.958286 | F46: 1555.584665 | G46: 236.5842876 | H46: 286.2202752 | I46: 53.073894 | J46: 59.4932616 | K46: 12.236616 | L46: 198.019524 | M46: 397.787136 | N46: 47.58684 | O46: 192.0177552 | P46: 2021.04223 | Q46: 2421.441786 | R46: 57.978252 | S46: 121.0259592 | T46: 416.433408 | U46: 918.911592 | V46: 41.9735352 | W46: 85.70487 | X46: 24.181884 | Y46: c | Z46: 936.295356 | AA46: 738.9847788 | AB46: 165.3302784 | AC46: 79.440888 | AD46: 74.9541288 | AE46: 43.0903692 | AF46: 488.7556932 | AG46: 255.9783528 | AH46: 1122.272496 | AM46: 1.5635676 | AN46: 15.975582 | AO46: -8.2160136 | AP46: 3.7195428 | AQ46: -1.0779876 | AR46: -7.8955308 | AS46: 20.87994 | AT46: -1.553856 | AU46: 1.893762 | AV46: -179.6451768 | AW46: 67.4567736 | AX46: -2.864922 | AY46: 4.8655116 | AZ46: 38.020914 | BA46: 6.166866 | BB46: -1.4955864 | BC46: -4.8266652 | BD46: 0.7477932 | BF46: 22.919376 | BG46: 30.0476904 | BH46: -1.2722196 | BI46: -2.0491476 | BJ46: -6.3222516 | BK46: -1.0585644 | BL46: -13.6545096 | BM46: 7.3419696 | BN46: -14.664516 | BO46: -24.9976584 | BP46: -14.470284 | BQ46: 4.1371416 | BS46: 2009-03-01 | BT46: =SUM(C$44:C46) -> 29429.64418 | BU46: =SUM(D$44:D46) -> 32604.2691 | BV46: =SUM(E$44:E46) -> 24976.92413 | BW46: =SUM(F$44:F46) -> 4452.720042 | BX46: 3 | BY46: 2009
B47: 2009-04-01 | C47: 10494.01505 | D47: 11637.75019 | E47: 8937.40096 | F47: 1556.614094 | G47: 235.797648 | H47: 281.247936 | I47: 51.5297496 | J47: 58.1627724 | K47: 11.8772868 | L47: 195.2420064 | M47: 388.755348 | N47: 47.295492 | O47: 187.5989772 | P47: 2080.399529 | Q47: 2373.447059 | R47: 57.686904 | S47: 118.044498 | T47: 560.7380724 | U47: 889.1746728 | V47: 42.1677672 | W47: 87.9482496 | X47: 23.5214952 | Y47: c | Z47: 958.340688 | AA47: 748.52157 | AB47: 165.9518208 | AC47: 80.3537784 | AD47: 71.914398 | AE47: 43.556526 | AF47: 485.2789404 | AG47: 249.4618692 | AH47: 1143.735132 | AM47: 3.690408 | AN47: 14.6353812 | AO47: -12.6445032 | AP47: 3.2728092 | AQ47: -0.9808716 | AR47: -4.5353172 | AS47: 20.491476 | AT47: -1.45674 | AU47: 2.0005896 | AV47: -25.4735268 | AW47: 99.7284204 | AX47: -0.7672164 | AY47: -2.6512668 | AZ47: -12.3143088 | BA47: 5.972634 | BB47: -3.0494424 | BC47: -5.9823456 | BD47: 1.3984704 | BF47: 72.2640156 | BG47: 36.5350392 | BH47: -0.4758684 | BI47: -3.447618 | BJ47: -6.8175432 | BK47: -0.2039436 | BL47: -9.0609228 | BM47: 6.1960008 | BN47: 4.37022 | BO47: 180.6940296 | BP47: 178.2855528 | BQ47: -1.9617432 | BS47: 2009-04-01 | BT47: =SUM(C$44:C47) -> 39923.65923 | BU47: =SUM(D$44:D47) -> 44242.01929 | BV47: =SUM(E$44:E47) -> 33914.32509 | BW47: =SUM(F$44:F47) -> 6009.334136 | BX47: 4 | BY47: 2009
B48: 2009-05-01 | C48: 10933.21245 | D48: 12136.09123 | E48: 9209.218932 | F48: 1723.99352 | G48: 247.2864708 | H48: 291.1149216 | I48: 52.1804268 | J48: 60.1827852 | K48: 12.236616 | L48: 204.8759136 | M48: 408.567012 | N48: 50.9859 | O48: 197.0580756 | P48: 2052.595218 | Q48: 2465.066293 | R48: 59.823456 | S48: 125.4932952 | T48: 645.5980332 | U48: 912.7641492 | V48: 50.7528216 | W48: 108.6339576 | X48: 24.3372696 | Y48: c | Z48: 978.540816 | AA48: 839.2376256 | AB48: 172.2643608 | AC48: 99.4176492 | AD48: 75.3037464 | AE48: 44.6927832 | AF48: 497.573826 | AG48: 256.62903 | AH48: 1202.878776 | AM48: 4.4964708 | AN48: 13.5379704 | AO48: -16.4223156 | AP48: 2.0588592 | AQ48: -0.4078872 | AR48: -3.6709848 | AS48: 17.869344 | AT48: -2.233668 | AU48: 2.573574 | AV48: -84.2578416 | AW48: 195.6596052 | AX48: 0.2622132 | AY48: 0.5535612 | AZ48: -35.3793588 | BA48: 6.1377312 | BB48: -5.9143644 | BC48: -15.878466 | BD48: 0.776928 | BF48: 54.2684208 | BG48: 25.2792948 | BH48: -1.7189532 | BI48: -9.9835248 | BJ48: -6.8272548 | BK48: -1.2042384 | BL48: -12.5570988 | BM48: 2.9329032 | BN48: -22.82226 | BO48: 107.1286596 | BP48: 164.6019084 | BQ48: -34.6509888 | BS48: 2009-05-01 | BT48: =SUM(C$44:C48) -> 50856.87168 | BU48: =SUM(D$44:D48) -> 56378.11051 | BV48: =SUM(E$44:E48) -> 43123.54403 | BW48: =SUM(F$44:F48) -> 7733.327657 | BX48: 5 | BY48: 2009
B49: 2009-06-01 | C49: 10357.32428 | D49: 11486.10355 | E49: 8663.524128 | F49: 1693.800156 | G49: 225.357678 | H49: 279.1890768 | I49: 51.2675364 | J49: 57.0168036 | K49: 11.4888228 | L49: 198.310872 | M49: 393.222684 | N49: 50.694552 | O49: 189.7743756 | P49: 1847.544496 | Q49: 2339.019437 | R49: 57.29844 | S49: 116.4809304 | T49: 615.5406312 | U49: 870.7129212 | V49: 56.6477628 | W49: 122.2107744 | X49: 22.8902412 | Y49: c | Z49: 941.248272 | AA49: 820.727316 | AB49: 161.4747732 | AC49: 94.3676172 | AD49: 71.5065108 | AE49: 43.0806576 | AF49: 479.7627516 | AG49: 240.4883508 | AH49: 1128.779268 | AM49: 11.702478 | AN49: 28.2510444 | AO49: -11.4985344 | AP49: 4.1177184 | AQ49: -0.1165392 | AR49: -0.9420252 | AS49: 16.703952 | AT49: -1.359624 | AU49: 2.9814612 | AV49: -11.8869984 | AW49: 253.6572804 | AX49: 2.2919376 | AY49: 4.0400256 | AZ49: -21.8219652 | BA49: 5.8463832 | BB49: -4.1954112 | BC49: -11.9258448 | BD49: 1.5344328 | BF49: 66.5438832 | BG49: 20.3360904 | BH49: -0.582696 | BI49: -11.556804 | BJ49: -6.8369664 | BK49: -0.1650972 | BL49: 0.9905832 | BM49: 0.4078872 | BN49: 1.359624 | BO49: 337.8762756 | BP49: 356.6196636 | BQ49: -20.103012 | BS49: 2009-06-01 | BT49: =SUM(C$44:C49) -> 61214.19597 | BU49: =SUM(D$44:D49) -> 67864.21407 | BV49: =SUM(E$44:E49) -> 51787.06815 | BW49: =SUM(F$44:F49) -> 9427.127813 | BX49: 6 | BY49: 2009
B50: 2009-07-01 | C50: 10168.58905 | D50: 11269.78737 | E50: 8482.189133 | F50: 1686.399917 | G50: 218.7926364 | H50: 272.4880728 | I50: 46.4797176 | J50: 56.0456436 | K50: 11.4693996 | L50: 198.8061636 | M50: 399.340992 | N50: 51.859944 | O50: 189.9297612 | P50: 1747.718959 | Q50: 2338.55328 | R50: 56.81286 | S50: 115.0727484 | T50: 576.8593284 | U50: 849.1725924 | V50: 58.7163336 | W50: 129.1448568 | X50: 22.5017772 | Y50: c | Z50: 929.594352 | AA50: 812.8803432 | AB50: 160.1054376 | AC50: 91.5415416 | AD50: 70.4285232 | AE50: 43.9547016 | AF50: 482.6956548 | AG50: 237.6234288 | AH50: 1101.198324 | AM50: -1.6606836 | AN50: 21.025614 | AO50: -12.1783464 | AP50: 2.816364 | AQ50: -0.145674 | AR50: -6.1280196 | AS50: 12.236616 | AT50: -1.359624 | AU50: 4.7975304 | AV50: -17.5585728 | AW50: 47.8878996 | AX50: 0.388464 | AY50: -2.4570348 | AZ50: -29.0765304 | BA50: 5.7007092 | BB50: -4.467336 | BC50: -12.5862336 | BD50: 1.2527964 | BF50: 60.8723088 | BG50: -9.9252552 | BH50: 1.5150096 | BI50: -7.3419696 | BJ50: -8.5559196 | BK50: 0.6409656 | BL50: -8.594766 | BM50: -4.1565648 | BN50: -13.790472 | BO50: 19.1512752 | BP50: 94.6298304 | BQ50: -61.6880832 | BS50: 2009-07-01 | BT50: =SUM(C$44:C50) -> 71382.78502 | BU50: =SUM(D$44:D50) -> 79134.00144 | BV50: =SUM(E$44:E50) -> 60269.25729 | BW50: =SUM(F$44:F50) -> 11113.52773 | BX50: 7 | BY50: 2009
B51: 2009-08-01 | C51: 9827.381695 | D51: 10880.70183 | E51: 8164.940296 | F51: 1662.4414 | G51: 211.9653816 | H51: 256.3959516 | I51: 45.4599996 | J51: 54.5889036 | K51: 11.5665156 | L51: 195.7761444 | M51: 390.503436 | N51: 50.597436 | O51: 186.9871464 | P51: 1655.497606 | Q51: 2287.188628 | R51: 56.6477628 | S51: 113.188698 | T51: 504.2359836 | U51: 826.6125456 | V51: 59.9885532 | W51: 136.885002 | X51: 20.9187864 | Y51: c | Z51: 913.181748 | AA51: 798.3032316 | AB51: 150.2190288 | AC51: 85.3552524 | AD51: 68.4473568 | AE51: 42.2843064 | AF51: 471.6632772 | AG51: 232.9230144 | AH51: 1053.320136 | AM51: -1.6898184 | AN51: 10.4691048 | AO51: -9.4008288 | AP51: 2.1559752 | AQ51: 0.194232 | AR51: -4.8363768 | AS51: 11.265456 | AT51: -1.359624 | AU51: 4.0206024 | AV51: -15.0626916 | AW51: 65.407626 | AX51: 0.1068276 | AY51: 1.1848152 | AZ51: -37.9043748 | BA51: 5.5550352 | BB51: -2.4667464 | BC51: -6.6427344 | BD51: 0.6215424 | BF51: 62.15424 | BG51: -4.4576244 | BH51: 1.0002948 | BI51: -6.1085964 | BJ51: -8.400534 | BK51: -1.3402008 | BL51: 0 | BM51: -4.6324332 | BN51: -3.981756 | BO51: 55.8514116 | BP51: 101.3114112 | BQ51: -41.4782436 | BS51: 2009-08-01 | BT51: =SUM(C$44:C51) -> 81210.16671 | BU51: =SUM(D$44:D51) -> 90014.70327 | BV51: =SUM(E$44:E51) -> 68434.19758 | BW51: =SUM(F$44:F51) -> 12775.96913 | BX51: 8 | BY51: 2009
B52: 2009-09-01 | C52: 9187.814566 | D52: 10181.31125 | E52: 7645.097771 | F52: 1542.716795 | G52: 201.418584 | H52: 236.5357296 | I52: 43.410852 | J52: 51.325806 | K52: 11.7607476 | L52: 183.160776 | M52: 367.292712 | N52: 46.907028 | O52: 175.8090948 | P52: 1555.953706 | Q52: 2144.768014 | R52: 53.2584144 | S52: 106.779042 | T52: 415.6370568 | U52: 797.8953444 | V52: 54.6860196 | W52: 124.8620412 | X52: 19.2386796 | Y52: c | Z52: 881.3277 | AA52: 738.4991988 | AB52: 137.9727012 | AC52: 76.4885616 | AD52: 64.09656 | AE52: 40.740162 | AF52: 438.9740316 | AG52: 219.0160032 | AH52: 993.49668 | AM52: -3.496176 | AN52: -6.8078316 | AO52: -6.3319632 | AP52: 1.0002948 | AQ52: 0.5244264 | AR52: -5.8075368 | AS52: 9.905832 | AT52: -0.194232 | AU52: 3.4379064 | AV52: -104.88528 | AW52: 22.1618712 | AX52: -3.2825208 | AY52: -9.5465028 | AZ52: -23.7545736 | BA52: 5.3608032 | BB52: -3.4087716 | BC52: -9.6533304 | BD52: -0.0388464 | BF52: 36.8360988 | BG52: -20.5497456 | BH52: 0.3981756 | BI52: -9.0026532 | BJ52: -8.3616876 | BK52: -0.1553856 | BL52: -4.5741636 | BM52: -8.594766 | BN52: 20.491476 | BO52: =D52-D40 -> -128.3290824 | BP52: =E52-E40 -> -77.3334708 | BQ52: =F52-F40 -> -71.4870876 | BS52: 2009-09-01 | BT52: =SUM(C$44:C52) -> 90397.98128 | BU52: =SUM(D$44:D52) -> 100196.0145 | BV52: =SUM(E$44:E52) -> 76079.29535 | BW52: =SUM(F$44:F52) -> 14318.68592 | BX52: 9 | BY52: 2009
B53: 2009-10-01 | C53: 9375.714602 | D53: 10399.99705 | E53: 7902.32892 | F53: 1473.385682 | G53: 208.1390112 | H53: 249.9183144 | I53: 42.1192092 | J53: 51.22869 | K53: 12.4017132 | L53: 182.5489452 | M53: 370.109076 | N53: 45.353172 | O53: 176.896794 | P53: 1741.600651 | Q53: 2189.956088 | R53: 53.5400508 | S53: 107.2840452 | T53: 365.7194328 | U53: 816.357096 | V53: 47.2372224 | W53: 106.0215372 | X53: 19.8699336 | Y53: c | Z53: 904.14996 | AA53: 701.8670436 | AB53: 138.1086636 | AC53: 72.6719028 | AD53: 63.6789612 | AE53: 40.9732404 | AF53: 446.6947536 | AG53: 221.2690944 | AH53: 1024.282452 | AM53: -3.5738688 | AN53: -1.7577996 | AO53: -5.3122452 | AP53: -0.2330784 | AQ53: 0.4758684 | AR53: -6.3708096 | AS53: 4.8558 | AT53: -2.330784 | AU53: 2.6998248 | AV53: -52.2095616 | AW53: 18.5103096 | AX53: -0.2330784 | AY53: -3.1854048 | AZ53: -6.6233112 | BA53: 5.487054 | BB53: -5.0306088 | BC53: -12.916428 | BD53: -0.2622132 | BF53: 27.3478656 | BG53: -35.0491644 | BH53: -1.116834 | BI53: -7.8955308 | BJ53: -8.6724588 | BK53: -0.048558 | BL53: -7.138026 | BM53: -10.9546848 | BN53: 9.323136 | BO53: -102.21459 | BP53: -24.9685236 | BQ53: -86.5692024 | BS53: 2009-10-01 | BT53: =SUM(C$44:C53) -> 99773.69588 | BU53: =SUM(D$44:D53) -> 110596.0116 | BV53: =SUM(E$44:E53) -> 83981.62427 | BW53: =SUM(F$44:F53) -> 15792.07161 | BX53: 10 | BY53: 2009
B54: 2009-11-01 | C54: 8957.669069 | D54: 9940.191641 | E54: 7605.260788 | F54: 1352.408281 | G54: 198.7284708 | H54: 245.5189596 | I54: 39.3028452 | J54: 48.4705956 | K54: 12.2463276 | L54: 175.148706 | M54: 361.368636 | N54: 43.605084 | O54: 174.2455272 | P54: 1747.019724 | Q54: 2119.576123 | R54: 50.1895488 | S54: 102.7681512 | T54: 220.0454328 | U54: 793.7970492 | V54: 41.2743 | W54: 84.5783244 | X54: 19.6465668 | Y54: c | Z54: 885.989268 | AA54: 639.1009728 | AB54: 133.3596912 | AC54: 66.233112 | AD54: 60.9500016 | AE54: 38.7298608 | AF54: 437.5949844 | AG54: 218.1808056 | AH54: 982.522572 | AM54: -2.3016492 | AN54: 2.9426148 | AO54: -7.8761076 | AP54: -1.796646 | AQ54: 0.437022 | AR54: -6.458214 | AS54: 8.060628 | AT54: -1.359624 | AU54: 2.8843452 | AV54: -36.3408072 | AW54: 7.6138944 | AX54: -0.291348 | AY54: -3.0785772 | AZ54: -11.65392 | BA54: 5.3316684 | BB54: -4.0885836 | BC54: -9.5076564 | BD54: -0.291348 | BF54: 25.6968936 | BG54: -28.8628752 | BH54: -5.389938 | BI54: -3.8943516 | BJ54: -9.6921768 | BK54: -0.3593292 | BL54: 4.5061824 | BM54: -10.051506 | BN54: -0.097116 | BO54: -85.9185252 | BP54: -9.2842896 | BQ54: -76.5371196 | BS54: 2009-11-01 | BT54: =SUM(C$44:C54) -> 108731.3649 | BU54: =SUM(D$44:D54) -> 120536.2032 | BV54: =SUM(E$44:E54) -> 91586.88506 | BW54: =SUM(F$44:F54) -> 17144.47989 | BX54: 11 | BY54: 2009
B55: 2009-12-01 | C55: 9438.636059 | D55: 10485.15807 | E55: 8025.462296 | F55: 1413.173762 | G55: 214.1699148 | H55: 263.1163788 | I55: 39.040632 | J55: 51.5297496 | K55: 12.7416192 | L55: 184.4524188 | M55: 386.327448 | N55: 46.324332 | O55: 185.3361744 | P55: 1897.297022 | Q55: 2259.287201 | R55: 54.0644772 | S55: 109.3720392 | T55: 136.108074 | U55: 831.7402704 | V55: 42.925272 | W55: 85.8214092 | X55: 21.7345608 | Y55: c | Z55: 942.413664 | AA55: 671.0521368 | AB55: 140.0704068 | AC55: 65.6892624 | AD55: 64.0382904 | AE55: 40.1866008 | AF55: 461.2233072 | AG55: 232.5733968 | AH55: 1046.522016 | AM55: -0.4564452 | AN55: -3.9720444 | AO55: -7.0020636 | AP55: -2.0491476 | AQ55: 0.0194232 | AR55: -6.701004 | AS55: 14.178936 | AT55: -1.165392 | AU55: 3.0882888 | AV55: -46.4894292 | AW55: 6.8855244 | AX55: -0.8351976 | AY55: -8.7307284 | AZ55: -14.7907668 | BA55: 5.58417 | BB55: -2.6901132 | BC55: -9.177462 | BD55: -0.0194232 | BF55: 17.626554 | BG55: -27.4255584 | BH55: -4.8849348 | BI55: -4.515894 | BJ55: -9.8669856 | BK55: -0.582696 | BL55: 8.5656312 | BM55: -12.7027728 | BN55: -1.748088 | BO55: -109.8576192 | BP55: -28.2219096 | BQ55: -79.8876216 | BS55: 2009-12-01 | BT55: =SUM(C$44:C55) -> 118170.001 | BU55: =SUM(D$44:D55) -> 131021.3613 | BV55: =SUM(E$44:E55) -> 99612.34736 | BW55: =SUM(F$44:F55) -> 18557.65365 | BX55: 12 | BY55: 2009
B56: 2010-01-01 | C56: 9606.22914 | D56: 10657.41272 | E56: 8227.172228 | F56: 1379.056912 | G56: 224.9595024 | H56: 268.8267996 | I56: 40.3225632 | J56: 52.9476432 | K56: 12.4211364 | L56: 186.317046 | M56: 390.017856 | N56: c | O56: 190.5707268 | P56: 1951.584866 | Q56: 2312.57475 | R56: 55.6183332 | S56: 112.65456 | T56: 118.1124792 | U56: 888.5337072 | V56: 41.6044944 | W56: 80.7810888 | X56: 22.9582224 | Y56: c | Z56: 953.776236 | AA56: 677.6851596 | AB56: 144.3823572 | AC56: 66.7866732 | AD56: 66.3108048 | AE56: 41.225742 | AF56: 466.9045932 | AG56: 238.3517988 | AH56: 1051.183584 | AM56: 1.7189532 | AN56: -4.3022388 | AO56: -8.060628 | AP56: -2.2530912 | AQ56: -0.388464 | AR56: -5.5453236 | AS56: 5.632728 | AU56: 3.2145396 | AV56: -55.9096812 | AW56: -21.3266736 | AX56: 0.534138 | AY56: -7.4682204 | AZ56: -13.304892 | BA56: 5.5161888 | BB56: -2.039436 | BC56: -8.3713992 | BD56: 0.048558 | BF56: -21.462636 | BG56: -30.6303864 | BH56: -6.0309036 | BI56: -3.6709848 | BJ56: -8.0217816 | BK56: -0.097116 | BL56: 7.5556248 | BM56: -13.3146036 | BN56: -19.90878 | BO56: -256.6387416 | BP56: -111.4308984 | BQ56: -125.2990632 | BS56: 2010-01-01 | BT56: =SUM(C$56:C56) -> 9606.22914 | BU56: =SUM(D$56:D56) -> 10657.41272 | BV56: =SUM(E$56:E56) -> 8227.172228 | BW56: =SUM(F$56:F56) -> 1379.056912 | BX56: 1 | BY56: 2010
B57: 2010-02-01 | C57: 9042.402779 | D57: 10020.26378 | E57: 7731.870917 | F57: 1310.531862 | G57: 209.6151744 | H57: 254.7741144 | I57: 39.5650584 | J57: 48.5482884 | K57: 11.1780516 | L57: 171.0892572 | M57: 355.833024 | N57: 41.75988 | O57: 175.1778408 | P57: 1807.51328 | Q57: 2123.295666 | R57: 52.0735992 | S57: 102.9332484 | T57: 192.7072788 | U57: 855.7182108 | V57: 37.5256224 | W57: 70.4285232 | X57: 21.60831 | Y57: c | Z57: 889.873908 | AA57: 625.281366 | AB57: 137.1375036 | AC57: 63.028284 | AD57: 60.4449984 | AE57: 38.749284 | AF57: 437.5755612 | AG57: 218.9674452 | AH57: 977.861004 | AM57: 0.388464 | AN57: -1.7286648 | AO57: -10.3040076 | AP57: -3.9914676 | AQ57: -0.2233668 | AR57: -6.3805212 | AS57: -0.388464 | AT57: -3.204828 | AU57: 2.7289596 | AV57: -24.0556332 | AW57: -37.9335096 | AX57: 0.4078872 | AY57: -7.9926468 | AZ57: -4.3799316 | BA57: -9.8669856 | BB57: -0.6215424 | BC57: -7.2060072 | BD57: 0.1359624 | BF57: -1.650972 | BG57: -29.7951888 | BH57: -2.816364 | BI57: -4.3022388 | BJ57: -7.6915872 | BK57: -0.534138 | BL57: 3.1951164 | BM57: -11.5276692 | BN57: -3.39906 | BO57: -173.1384048 | BP57: -87.4918044 | BQ57: -82.2475404 | BS57: 2010-02-01 | BT57: =SUM(C$56:C57) -> 18648.63192 | BU57: =SUM(D$56:D57) -> 20677.67651 | BV57: =SUM(E$56:E57) -> 15959.04315 | BW57: =SUM(F$56:F57) -> 2689.588774 | BX57: 2 | BY57: 2010
B58: 2010-03-01 | C58: 10318.85664 | D58: 11434.71948 | E58: 8821.123973 | F58: 1497.732664 | G58: 239.585172 | H58: 290.1049152 | I58: 46.0718304 | J58: 54.967656 | K58: 12.4988292 | L58: 193.843536 | M58: 400.215036 | N58: 47.489724 | O58: 194.4456552 | P58: 2015.94364 | Q58: 2400.843482 | R58: 58.4249856 | S58: 115.8399648 | T58: 380.743278 | U58: 934.6832304 | V58: 43.4496984 | W58: 79.87791 | X58: 25.1433324 | Y58: c | Z58: 986.310096 | AA58: 718.4544564 | AB58: 157.2987852 | AC58: 73.1671944 | AD58: 69.0397644 | AE58: 43.0320996 | AF58: 490.9796496 | AG58: 246.4027152 | AH58: 1115.86284 | AM58: 3.0008844 | AN58: 3.88464 | AO58: -7.0020636 | AP58: -4.5256056 | AQ58: 0.2622132 | AR58: -4.175988 | AS58: 2.4279 | AT58: -0.097116 | AU58: 2.4279 | AV58: -5.09859 | AW58: -20.5983036 | AX58: 0.4467336 | AY58: -5.1859944 | AZ58: -35.69013 | BA58: 15.7716384 | BB58: 1.4761632 | BC58: -5.82696 | BD58: 0.9614484 | BF58: 50.01474 | BG58: -20.5303224 | BH58: -8.0314932 | BI58: -6.2736936 | BJ58: -5.9143644 | BK58: -0.0582696 | BL58: 2.2239564 | BM58: -9.5756376 | BN58: -6.409656 | BO58: -62.0959704 | BP58: 2.1656868 | BQ58: -57.8520012 | BS58: 2010-03-01 | BT58: =SUM(C$56:C58) -> 28967.48856 | BU58: =SUM(D$56:D58) -> 32112.39598 | BV58: =SUM(E$56:E58) -> 24780.16712 | BW58: =SUM(F$56:F58) -> 4187.321437 | BX58: 3 | BY58: 2010
B59: 2010-04-01 | C59: 10432.62803 | D59: 11565.6804 | E59: 8902.089582 | F59: 1530.538448 | G59: 239.7696924 | H59: 286.2882564 | I59: 58.8620076 | J59: 54.9093864 | K59: 12.4114248 | L59: 192.629586 | M59: 387.00726 | N59: 48.752232 | O59: 190.687266 | P59: 2037.687912 | Q59: 2380.458834 | R59: 58.5415248 | S59: 117.0442032 | T59: 530.7486516 | U59: 907.4713272 | V59: 45.40173 | W59: 84.5491896 | X59: 23.4146676 | Y59: c | Z59: 968.829216 | AA59: 726.9909528 | AB59: 159.3382212 | AC59: 77.3334708 | AD59: 68.3405292 | AE59: 43.313736 | AF59: 488.7556932 | AG59: 243.0910596 | AH59: 1133.052372 | AM59: 3.9720444 | AN59: 5.0403204 | AO59: 7.332258 | AP59: -3.253386 | AQ59: 0.534138 | AR59: -2.6124204 | AS59: -1.748088 | AT59: 1.45674 | AU59: 3.0882888 | AV59: -42.7116168 | AW59: 7.0117752 | AX59: 0.8546208 | AY59: -1.0002948 | AZ59: -29.9894208 | BA59: 18.2966544 | BB59: 3.2339628 | BC59: -3.39906 | BD59: -0.1068276 | BF59: 10.488528 | BG59: -21.5306172 | BH59: -6.6135996 | BI59: -3.0203076 | BJ59: -3.5738688 | BK59: -0.24279 | BL59: 3.4767528 | BM59: -6.3708096 | BN59: -10.68276 | BO59: -72.0697836 | BP59: -35.3113776 | BQ59: -26.075646 | BS59: 2010-04-01 | BT59: =SUM(C$56:C59) -> 39400.11659 | BU59: =SUM(D$56:D59) -> 43678.07639 | BV59: =SUM(E$56:E59) -> 33682.2567 | BW59: =SUM(F$56:F59) -> 5717.859886 | BX59: 4 | BY59: 2010
B60: 2010-05-01 | C60: 11043.23517 | D60: 12286.12574 | E60: 9372.441793 | F60: 1670.793376 | G60: 254.152572 | H60: 299.84565 | I60: 54.2781324 | J60: 57.5120952 | K60: 12.7416192 | L60: 200.2434804 | M60: 418.667076 | N60: 52.539756 | O60: 198.2331792 | P60: 2094.830966 | Q60: 2501.494505 | R60: 61.3384656 | S60: 118.9282536 | T60: 693.8646852 | U60: 909.5593212 | V60: 53.7342828 | W60: 106.244904 | X60: 24.9976584 | Y60: c | Z60: 993.593796 | AA60: 805.09164 | AB60: 168.3602976 | AC60: 92.1436608 | AD60: 71.7104544 | AE60: 45.6250968 | AF60: 505.4305104 | AG60: 248.0731104 | AH60: 1242.890568 | AM60: 6.8661012 | AN60: 8.7307284 | AO60: 2.0977056 | AP60: -2.67069 | AQ60: 0.5050032 | AR60: -4.6324332 | AS60: 10.100064 | AT60: 1.553856 | AU60: 1.1751036 | AV60: 42.2357484 | AW60: 36.4282116 | AX60: 1.5150096 | AY60: -6.5650416 | AZ60: 48.266652 | BA60: -3.204828 | BB60: 2.9814612 | BC60: -2.3890536 | BD60: 0.6603888 | BF60: 15.05298 | BG60: -34.1459856 | BH60: -3.9040632 | BI60: -7.2739884 | BJ60: -3.593292 | BK60: 0.9323136 | BL60: 7.8566844 | BM60: -8.5559196 | BN60: 40.011792 | BO60: 150.0345084 | BP60: 163.2228612 | BQ60: -53.2001448 | BS60: 2010-05-01 | BT60: =SUM(C$56:C60) -> 50443.35175 | BU60: =SUM(D$56:D60) -> 55964.20212 | BV60: =SUM(E$56:E60) -> 43054.69849 | BW60: =SUM(F$56:F60) -> 7388.653261 | BX60: 5 | BY60: 2010
B61: 2010-06-01 | C61: 10460.82081 | D61: 11639.80905 | E61: 8819.764349 | F61: 1641.056456 | G61: 230.116362 | H61: 287.2885512 | I61: 46.5088524 | J61: 51.9861948 | K61: 12.2074812 | L61: 191.07573 | M61: 407.304504 | N61: 52.636872 | O61: 190.3085136 | P61: 1889.789956 | Q61: 2393.433532 | R61: 56.1233364 | S61: 112.3437888 | T61: 664.9435404 | U61: 845.686128 | V61: 60.0565344 | W61: 124.0754016 | X61: 23.55063 | Y61: c | Z61: 950.668524 | AA61: 791.0486664 | AB61: 160.2705348 | AC61: 88.6571964 | AD61: 67.3402344 | AE61: 43.119504 | AF61: 485.9101944 | AG61: 234.3700428 | AH61: 1178.98824 | AM61: 4.758684 | AN61: 8.0994744 | AO61: -4.758684 | AP61: -5.0306088 | AQ61: 0.7186584 | AR61: -7.235142 | AS61: 14.08182 | AT61: 1.94232 | AU61: 0.534138 | AV61: 42.24546 | AW61: 54.4140948 | AX61: -1.1751036 | AY61: -4.1371416 | AZ61: 49.4029092 | BA61: -25.0267932 | BB61: 3.4087716 | BC61: 1.8646272 | BD61: 0.6603888 | BF61: 9.420252 | BG61: -29.6786496 | BH61: -1.2042384 | BI61: -5.7104208 | BJ61: -4.1662764 | BK61: 0.0388464 | BL61: 6.1474428 | BM61: -6.118308 | BN61: 50.208972 | BO61: 153.7054932 | BP61: 156.2402208 | BQ61: -52.7436996 | BS61: 2010-06-01 | BT61: =SUM(C$56:C61) -> 60904.17256 | BU61: =SUM(D$56:D61) -> 67604.01117 | BV61: =SUM(E$56:E61) -> 51874.46284 | BW61: =SUM(F$56:F61) -> 9029.709718 | BX61: 6 | BY61: 2010
B62: 2010-07-01 | C62: 10268.08439 | D62: 11409.00316 | E62: 8630.02882 | F62: 1638.055572 | G62: 226.814418 | H62: 282.6269832 | I62: 40.4391024 | J62: 49.966182 | K62: 12.4599828 | L62: 194.8438308 | M62: 414.296856 | N62: 53.510916 | O62: 185.9188704 | P62: 1771.716323 | Q62: 2394.297864 | R62: 56.81286 | S62: 105.5068224 | T62: 623.3001996 | U62: 821.9509776 | V62: 59.8331676 | W62: 130.6792896 | X62: 22.8028368 | Y62: c | Z62: 953.387772 | AA62: 800.1193008 | AB62: 156.2305092 | AC62: 81.383208 | AD62: 66.2234004 | AE62: 43.0903692 | AF62: 487.4349156 | AG62: 232.4374344 | AH62: 1140.918768 | AM62: 8.0217816 | AN62: 10.1389104 | AO62: -6.0406152 | AP62: -6.0794616 | AQ62: 0.9905832 | AR62: -3.9623328 | AS62: 14.955864 | AT62: 1.650972 | AU62: -4.0108908 | AV62: 23.9973636 | AW62: 55.744584 | AX62: 0 | AY62: -9.565926 | AZ62: 46.4408712 | BA62: -27.2216148 | BB62: 1.116834 | BC62: 1.5344328 | BD62: 0.3010596 | BF62: 23.79342 | BG62: -12.7610424 | BH62: -3.8749284 | BI62: -10.1583336 | BJ62: -4.2051228 | BK62: -0.8643324 | BL62: 4.7392608 | BM62: -5.1859944 | BN62: 39.720444 | BO62: 139.215786 | BP62: 147.8396868 | BQ62: -48.3443448 | BS62: 2010-07-01 | BT62: =SUM(C$56:C62) -> 71172.25695 | BU62: =SUM(D$56:D62) -> 79013.01433 | BV62: =SUM(E$56:E62) -> 60504.49166 | BW62: =SUM(F$56:F62) -> 10667.76529 | BX62: 7 | BY62: 2010
B63: 2010-08-01 | C63: 10036.74437 | D63: 11145.61486 | E63: 8410.507813 | F63: 1626.236555 | G63: 219.6181224 | H63: 274.8285684 | I63: 40.2448704 | J63: 49.869066 | K63: 11.2945908 | L63: 191.8332348 | M63: 406.624692 | N63: 53.025336 | O63: 183.209334 | P63: 1722.196874 | Q63: 2366.814036 | R63: 56.6477628 | S63: 104.205468 | T63: 562.010292 | U63: 804.508944 | V63: 62.6009736 | W63: 139.070112 | X63: 22.2201408 | Y63: c | Z63: 943.384824 | AA63: 789.601638 | AB63: 145.6642884 | AC63: 75.701922 | AD63: 65.4464724 | AE63: 43.3428708 | AF63: 472.2362616 | AG63: 230.5436724 | AH63: 1108.870488 | AM63: 7.6527408 | AN63: 18.4326168 | AO63: -5.2151292 | AP63: -4.7198376 | AQ63: -0.2719248 | AR63: -3.9429096 | AS63: 16.121256 | AT63: 2.4279 | AU63: -3.7778124 | AV63: 66.6992688 | AW63: 79.6254084 | AX63: 0 | AY63: -8.98323 | AZ63: 57.7743084 | BA63: -22.1036016 | BB63: 2.6124204 | BC63: 2.18511 | BD63: 1.3013544 | BF63: 30.203076 | BG63: -8.7015936 | BH63: -4.5547404 | BI63: -9.6533304 | BJ63: -3.0008844 | BK63: 1.0585644 | BL63: 0.5729844 | BM63: -2.379342 | BN63: 55.550352 | BO63: 264.9130248 | BP63: 245.5675176 | BQ63: -36.2048448 | BS63: 2010-08-01 | BT63: =SUM(C$56:C63) -> 81209.00132 | BU63: =SUM(D$56:D63) -> 90158.62918 | BV63: =SUM(E$56:E63) -> 68914.99947 | BW63: =SUM(F$56:F63) -> 12294.00184 | BX63: 8 | BY63: 2010
B64: 2010-09-01 | C64: 9584.640253 | D64: 10649.90566 | E64: 8042.409038 | F64: 1542.231215 | G64: 210.3241212 | H64: 264.2235012 | I64: 39.0794784 | J64: 47.3052036 | K64: 11.9161332 | L64: 182.529522 | M64: 381.568764 | N64: 52.636872 | O64: 176.556888 | P64: 1725.663916 | Q64: 2235.765706 | R64: 57.5023836 | S64: 98.7378372 | T64: 490.7368596 | U64: 778.7440692 | V64: 59.4544152 | W64: 131.0968884 | X64: 21.4723476 | Y64: c | Z64: 896.089332 | AA64: 745.073952 | AB64: 134.5736412 | AC64: 71.4482412 | AD64: 61.2122148 | AE64: 41.7404568 | AF64: 449.3751552 | AG64: 219.8123544 | AH64: 1065.265404 | AM64: 8.9055372 | AN64: 27.6877716 | AO64: -4.3313736 | AP64: -4.0206024 | AQ64: 0.1553856 | AR64: -0.631254 | AS64: 14.276052 | AT64: 5.729844 | AU64: 0.7477932 | AV64: 169.71021 | AW64: 90.997692 | AX64: 4.2439692 | AY64: -8.0412048 | AZ64: 75.0998028 | BA64: -19.1512752 | BB64: 4.7683956 | BC64: 6.2348472 | BD64: 2.233668 | BF64: 14.761632 | BG64: 6.5747532 | BH64: -3.39906 | BI64: -5.0403204 | BJ64: -2.8843452 | BK64: 1.0002948 | BL64: 10.4011236 | BM64: 0.7963512 | BN64: 71.768724 | BO64: 468.5944116 | BP64: 397.3112676 | BQ64: -0.48558 | BS64: 2010-09-01 | BT64: =SUM(C$56:C64) -> 90793.64157 | BU64: =SUM(D$56:D64) -> 100808.5348 | BV64: =SUM(E$56:E64) -> 76957.40851 | BW64: =SUM(F$56:F64) -> 13836.23306 | BX64: 9 | BY64: 2010
B65: 2010-10-01 | C65: 9692.788631 | D65: 10768.63968 | E65: 8206.836138 | F65: 1485.952493 | G65: 216.665796 | H65: 268.4092008 | I65: 39.4193844 | J65: 46.712796 | K65: 12.4696944 | L65: 182.966544 | M65: 380.403372 | N65: 51.47148 | O65: 178.20786 | P65: 1870.667815 | Q65: 2261.006154 | R65: 52.8408156 | S65: 98.2911036 | T65: 437.0317116 | U65: 789.0772116 | V65: 52.2872544 | W65: 113.8393752 | X65: 21.802542 | Y65: c | Z65: 917.357736 | AA65: 718.4058984 | AB65: 135.7390332 | AC65: 68.3502408 | AD65: 60.4741332 | AE65: 41.2645884 | AF65: 455.5614444 | AG65: 222.0654456 | AH65: 1075.851048 | AM65: 8.5267848 | AN65: 18.4908864 | AO65: -2.6998248 | AP65: -4.515894 | AQ65: 0.0679812 | AR65: 0.4175988 | AS65: 10.294296 | AT65: 6.118308 | AU65: 1.311066 | AV65: 129.067164 | AW65: 71.0500656 | AX65: -0.6992352 | AY65: -8.9929416 | AZ65: 71.3122788 | BA65: -27.2798844 | BB65: 5.050032 | BC65: 7.817838 | BD65: 1.9326084 | BF65: 13.207776 | BG65: 16.5388548 | BH65: -2.3696304 | BI65: -4.321662 | BJ65: -3.204828 | BK65: 0.291348 | BL65: 8.8666908 | BM65: 0.7963512 | BN65: 51.568596 | BO65: 368.6426244 | BP65: 304.507218 | BQ65: 12.5668104 | BS65: 2010-10-01 | BT65: =SUM(C$56:C65) -> 100486.4302 | BU65: =SUM(D$56:D65) -> 111577.1745 | BV65: =SUM(E$56:E65) -> 85164.24465 | BW65: =SUM(F$56:F65) -> 15322.18555 | BX65: 10 | BY65: 2010
B66: 2010-11-01 | C66: 9237.24661 | D66: 10264.92812 | E66: 7872.436615 | F66: 1364.809994 | G66: 207.4786224 | H66: 260.5525164 | I66: 39.2639988 | J66: 44.624802 | K66: 12.1783464 | L66: 176.2072704 | M66: 361.368636 | N66: 50.50032 | O66: 174.7019724 | P66: 1852.050678 | Q66: 2176.758024 | R66: 49.820508 | S66: 95.4844512 | T66: 303.0601896 | U66: 766.9930332 | V66: 45.2657676 | W66: 90.8617296 | X66: 21.171288 | Y66: c | Z66: 896.477796 | AA66: 652.5612504 | AB66: 133.0683432 | AC66: 59.9399952 | AD66: 58.5997944 | AE66: 39.3222684 | AF66: 452.8324848 | AG66: 216.1025232 | AH66: 1027.681512 | AM66: 8.7501516 | AN66: 15.0335568 | AO66: -0.0388464 | AP66: -3.8457936 | AQ66: -0.0679812 | AR66: 1.0585644 | AS66: 0 | AT66: 6.895236 | AU66: 0.4564452 | AV66: 105.030954 | AW66: 57.1819008 | AX66: -0.3690408 | AY66: -7.2837 | AZ66: 83.0147568 | BA66: -26.804016 | BB66: 3.9914676 | BC66: 6.2834052 | BD66: 1.5247212 | BF66: 10.488528 | BG66: 13.4602776 | BH66: -0.291348 | BI66: -6.2931168 | BJ66: -2.3502072 | BK66: 0.5924076 | BL66: 15.2375004 | BM66: -2.0782824 | BN66: 45.15894 | BO66: 324.7364808 | BP66: 267.1758276 | BQ66: 12.4017132 | BS66: 2010-11-01 | BT66: =SUM(C$56:C66) -> 109723.6768 | BU66: =SUM(D$56:D66) -> 121842.1026 | BV66: =SUM(E$56:E66) -> 93036.68127 | BW66: =SUM(F$56:F66) -> 16686.99555 | BX66: 11 | BY66: 2010
B67: 2010-12-01 | C67: 9547.71675 | D67: 10621.33413 | E67: 8132.367589 | F67: 1415.349161 | G67: 221.6964048 | H67: 270.0990192 | I67: 39.8078484 | J67: 46.5379872 | K67: 12.8387352 | L67: 186.4918548 | M67: 375.256224 | N67: 52.44264 | O67: 184.5398232 | P67: 1961.50041 | Q67: 2285.799869 | R67: 52.151292 | S67: 101.777568 | T67: 176.1295776 | U67: 804.4506744 | V67: 45.9941376 | W67: 89.880858 | X67: 22.5114888 | Y67: c | Z67: 941.05404 | AA67: 680.1421944 | AB67: 139.8081936 | AC67: 56.9876688 | AD67: 61.7463528 | AE67: 40.7013156 | AF67: 470.4007692 | AG67: 226.9698036 | AH67: 1073.61738 | AM67: 7.52649 | AN67: 6.9826404 | AO67: 0.7672164 | AP67: -4.9917624 | AQ67: 0.097116 | AR67: 2.039436 | AS67: -11.071224 | AT67: 6.118308 | AU67: -0.7963512 | AV67: 64.2033876 | AW67: 26.512668 | AX67: -1.9131852 | AY67: -7.5944712 | AZ67: 40.0215036 | BA67: -27.289596 | BB67: 3.0688656 | BC67: 4.0594488 | BD67: 0.776928 | BF67: -1.359624 | BG67: 9.0900576 | BH67: -0.2622132 | BI67: -8.7015936 | BJ67: -2.2919376 | BK67: 0.5147148 | BL67: 9.177462 | BM67: -5.6035932 | BN67: 27.095364 | BO67: 136.1760552 | BP67: 106.9052928 | BQ67: 2.1753984 | BS67: 2010-12-01 | BT67: =SUM(C$56:C67) -> 119271.3936 | BU67: =SUM(D$56:D67) -> 132463.4368 | BV67: =SUM(E$56:E67) -> 101169.0489 | BW67: =SUM(F$56:F67) -> 18102.34471 | BX67: 12 | BY67: 2010
B68: 2011-01-01 | C68: 9934.733722 | D68: 11030.88201 | E68: 8488.948406 | F68: 1445.785315 | G68: 234.1272528 | H68: 282.0928452 | I68: 39.0212088 | J68: 49.1601192 | K68: 12.6056568 | L68: 186.122814 | M68: 388.075536 | N68: 50.01474 | O68: 190.493034 | P68: 2090.285938 | Q68: 2377.982376 | R68: 52.8699504 | S68: 104.739606 | T68: 146.6840064 | U68: 868.9162752 | V68: 45.450288 | W68: 86.7925692 | X68: 23.5409184 | Y68: c | Z68: 968.149404 | AA68: 704.2560972 | AB68: 145.3243824 | AC68: 60.9694248 | AD68: 64.5238704 | AE68: 42.1289208 | AF68: 483.540564 | AG68: 236.865924 | AH68: 1096.148292 | AM68: 9.1677504 | AN68: 13.2660456 | AO68: -1.3013544 | AP68: -3.787524 | AQ68: 0.1845204 | AR68: -0.194232 | AS68: -1.94232 | AU68: -0.0776928 | AV68: 138.7010712 | AW68: 65.407626 | AX68: -2.7483828 | AY68: -7.914954 | AZ68: 28.5715272 | BA68: -19.617432 | BB68: 3.8457936 | BC68: 6.0114804 | BD68: 0.582696 | BF68: 14.373168 | BG68: 26.5709376 | BH68: 0.9420252 | BI68: -5.8172484 | BJ68: -1.7869344 | BK68: 0.9031788 | BL68: 16.6359708 | BM68: -1.4858748 | BN68: 44.964708 | BO68: 373.4692896 | BP68: 261.776178 | BQ68: 66.7284036 | BS68: 2011-01-01 | BT68: =SUM(C$68:C68) -> 9934.733722 | BU68: =SUM(D$68:D68) -> 11030.88201 | BV68: =SUM(E$68:E68) -> 8488.948406 | BW68: =SUM(F$68:F68) -> 1445.785315 | BX68: 1 | BY68: 2011
B69: 2011-02-01 | C69: 9262.914368 | D69: 10285.93431 | E69: 7940.650894 | F69: 1322.263475 | G69: 218.1419592 | H69: 262.9512816 | I69: 39.7398672 | J69: 45.6542316 | K69: 10.974108 | L69: 171.4291632 | M69: 355.250328 | N69: 45.061824 | O69: 175.197264 | P69: 1922.83853 | Q69: 2187.945787 | R69: 49.577718 | S69: 97.7763888 | T69: 217.8117648 | U69: 839.6066664 | V69: 40.7692968 | W69: 75.7699032 | X69: 21.5694636 | Y69: c | Z69: 887.543124 | AA69: 639.7807848 | AB69: 136.8558672 | AC69: 56.6380512 | AD69: 59.7069168 | AE69: 38.9629392 | AF69: 445.859556 | AG69: 219.5015832 | AH69: 1023.019944 | AM69: 8.5267848 | AN69: 8.1771672 | AO69: 0.1748088 | AP69: -2.8940568 | AQ69: -0.2039436 | AR69: 0.339906 | AS69: -0.582696 | AT69: 3.301944 | AU69: 0.0194232 | AV69: 115.32525 | AW69: 64.6501212 | AX69: -2.4958812 | AY69: -5.1568596 | AZ69: 25.104486 | BA69: -16.1115444 | BB69: 3.2436744 | BC69: 5.34138 | BD69: -0.0388464 | BF69: -2.330784 | BG69: 14.4994188 | BH69: -0.2816364 | BI69: -6.3902328 | BJ69: -0.7380816 | BK69: 0.2136552 | BL69: 8.2839948 | BM69: 0.534138 | BN69: 45.15894 | BO69: 265.6705296 | BP69: 208.7799768 | BQ69: 11.7316128 | BS69: 2011-02-01 | BT69: =SUM(C$68:C69) -> 19197.64809 | BU69: =SUM(D$68:D69) -> 21316.81633 | BV69: =SUM(E$68:E69) -> 16429.5993 | BW69: =SUM(F$68:F69) -> 2768.04879 | BX69: 2 | BY69: 2011
B70: 2011-03-01 | C70: 10586.93564 | D70: 11753.8815 | E70: 9086.629405 | F70: 1500.306238 | G70: 247.6263768 | H70: 293.1737808 | I70: 39.2542872 | J70: 51.5297496 | K70: 12.5862336 | L70: 195.6304704 | M70: 383.705316 | N70: 50.403204 | O70: 194.9215236 | P70: 2169.581152 | Q70: 2462.657816 | R70: 55.453236 | S70: 109.2360768 | T70: 448.5011112 | U70: 920.5431408 | V70: 46.3826016 | W70: 85.4523684 | X70: 24.133326 | Y70: c | Z70: 977.569656 | AA70: 732.7207968 | AB70: 158.833218 | AC70: 65.7766668 | AD70: 67.6801404 | AE70: 43.653642 | AF70: 504.2651184 | AG70: 245.6646336 | AH70: 1166.945856 | AM70: 8.0412048 | AN70: 3.0688656 | AO70: -6.8175432 | AP70: -3.4379064 | AQ70: 0.0874044 | AR70: 1.7869344 | AS70: -16.50972 | AT70: 2.91348 | AU70: 0.4758684 | AV70: 153.637512 | AW70: 61.814334 | AX70: -2.9717496 | AY70: -6.603888 | AZ70: 67.7578332 | BA70: -14.1400896 | BB70: 2.9329032 | BC70: 5.5744584 | BD70: -1.0100064 | BF70: -8.74044 | BG70: 14.2663404 | BH70: 1.5344328 | BI70: -7.3905276 | BJ70: -1.359624 | BK70: 0.6215424 | BL70: 13.2854688 | BM70: -0.7380816 | BN70: 51.083016 | BO70: 319.1620224 | BP70: 265.5054324 | BQ70: 2.573574 | BS70: 2011-03-01 | BT70: =SUM(C$68:C70) -> 29784.58373 | BU70: =SUM(D$68:D70) -> 33070.69782 | BV70: =SUM(E$68:E70) -> 25516.22871 | BW70: =SUM(F$68:F70) -> 4268.355028 | BX70: 3 | BY70: 2011
B71: 2011-04-01 | C71: 10698.09462 | D71: 11889.5137 | E71: 9200.779552 | F71: 1497.315065 | G71: 248.5392672 | H71: 295.4365836 | I71: 41.4782436 | J71: 51.0150348 | K71: 12.38229 | L71: 190.444476 | M71: 393.028452 | N71: 48.655116 | O71: 189.8035104 | P71: 2152.566428 | Q71: 2437.261982 | R71: 55.161888 | S71: 107.0121204 | T71: 634.4976744 | U71: 890.4857388 | V71: 47.781072 | W71: 88.1619048 | X71: 24.0264984 | Y71: c | Z71: 980.094672 | AA71: 732.3323328 | AB71: 159.5712996 | AC71: 67.447062 | AD71: 66.5633064 | AE71: 44.042106 | AF71: 500.4290364 | AG71: 239.87652 | AH71: 1191.419088 | AM71: 8.7695748 | AN71: 9.1483272 | AO71: -17.383764 | AP71: -3.8943516 | AQ71: -0.0291348 | AR71: -2.18511 | AS71: 6.021192 | AT71: -0.097116 | AU71: -0.8837556 | AV71: 114.8785164 | AW71: 56.8031484 | AX71: -3.3796368 | AY71: -10.0320828 | AZ71: 103.7490228 | BA71: -16.9855884 | BB71: 2.379342 | BC71: 3.6127152 | BD71: 0.6118308 | BF71: 11.265456 | BG71: 5.34138 | BH71: 0.2330784 | BI71: -9.8864088 | BJ71: -1.7772228 | BK71: 0.72837 | BL71: 11.6733432 | BM71: -3.2145396 | BN71: 58.366716 | BO71: 323.833302 | BP71: 298.6899696 | BQ71: -33.2233836 | BS71: 2011-04-01 | BT71: =SUM(C$68:C71) -> 40482.67835 | BU71: =SUM(D$68:D71) -> 44960.21153 | BV71: =SUM(E$68:E71) -> 34717.00826 | BW71: =SUM(F$68:F71) -> 5765.670092 | BX71: 4 | BY71: 2011
B72: 2011-05-01 | C72: =SUM(G72:AG72) -> 11131.06688 | D72: 12384.05751 | E72: 9480.425074 | F72: =SUM(I72:L72,N72,S72,V72:W72,Y72,AA72,AC72:AE72) -> 1650.641806 | G72: 261.193482 | H72: 304.3712556 | I72: 45.9067332 | J72: 53.9188032 | K72: 12.6153684 | L72: 199.6510728 | M72: 413.71416 | N72: 51.47148 | O72: 193.6201692 | P72: 2125.597315 | Q72: 2540.535137 | R72: 56.424396 | S72: 109.449732 | T72: 737.9456376 | U72: 899.1776208 | V72: 55.6086216 | W72: 107.604528 | X72: 24.958812 | Y72: c | Z72: 999.420756 | AA72: 810.3941736 | AB72: 167.4862536 | AC72: 88.4920992 | AD72: 69.972078 | AE72: 45.5571156 | AF72: 509.9366928 | AG72: 246.043386 | AH72: 1252.990632 | AM72: 7.04091 | AN72: 4.5256056 | AO72: -8.3713992 | AP72: -3.593292 | AQ72: -0.1262508 | AR72: -0.5924076 | AS72: -4.952916 | AT72: -1.068276 | AU72: -4.61301 | AV72: 30.7663488 | AW72: 39.040632 | AX72: -4.9140696 | AY72: -9.4785216 | AZ72: 44.0809524 | BA72: -10.3817004 | BB72: 1.8743388 | BC72: 1.359624 | BD72: -0.0388464 | BF72: 5.82696 | BG72: 5.3025336 | BH72: -0.874044 | BI72: -3.6515616 | BJ72: -1.7383764 | BK72: -0.0679812 | BL72: 4.5061824 | BM72: -2.0297244 | BN72: 10.100064 | BO72: 97.9317744 | BP72: 107.9832804 | BQ72: -20.15157 | BS72: 2011-05-01 | BT72: =SUM(C$68:C72) -> 51613.74523 | BU72: =SUM(D$68:D72) -> 57344.26904 | BV72: =SUM(E$68:E72) -> 44197.43333 | BW72: =SUM(F$68:F72) -> 7416.311898 | BX72: 5 | BY72: 2011
B73: 2011-06-01 | C73: 10525.46121 | D73: =SUM(G73:AH73) -> 11697.65133 | E73: 8895.087518 | F73: 1630.373696 | G73: 240.0124824 | H73: 284.9577672 | I73: 43.3040244 | J73: 50.9956116 | K73: 11.5762272 | L73: 191.1825576 | M73: 398.952528 | N73: 49.820508 | O73: 181.5680736 | P73: 1909.30056 | Q73: 2437.31054 | R73: 54.287844 | S73: 104.691048 | T73: 700.9638648 | U73: 830.147568 | V73: 60.7849044 | W73: 121.7057712 | X73: 23.6574576 | Y73: c | Z73: 953.096424 | AA73: 799.1772756 | AB73: 158.6584092 | AC73: 86.4720864 | AD73: 67.0391748 | AE73: 43.6245072 | AF73: 490.4358 | AG73: 231.7381992 | AH73: 1172.19012 | AM73: 9.8961204 | AN73: -2.330784 | AO73: -3.204828 | AP73: -0.9905832 | AQ73: -0.631254 | AR73: 0.1068276 | AS73: -8.351976 | AT73: -2.816364 | AU73: -8.74044 | AV73: 19.5106044 | AW73: 43.8770088 | AX73: -1.8354924 | AY73: -7.6527408 | AZ73: 36.0203244 | BA73: -15.53856 | BB73: 0.72837 | BC73: -2.3696304 | BD73: 0.1068276 | BF73: 2.4279 | BG73: 8.1286092 | BH73: -1.6121256 | BI73: -2.18511 | BJ73: -0.3010596 | BK73: 0.5050032 | BL73: 4.5256056 | BM73: -2.6318436 | BN73: -6.79812 | BO73: 57.8422896 | BP73: 75.3231696 | BQ73: -10.68276 | BS73: =B73 -> 2011-06-01 | BT73: =SUM(C$68:C73) -> 62139.20644 | BU73: =SUM(D$68:D73) -> 69041.92038 | BV73: =SUM(E$68:E73) -> 53092.52085 | BW73: =SUM(F$68:F73) -> 9046.685594 | BX73: 6 | BY73: 2011
B74: 2011-07-01 | C74: 10589.77143 | D74: 11750.79321 | E74: =SUM(G74:H74,M74,O74:R74,T74:U74,X74,Z74,AB74,AF74:AG74) -> 8912.1508 | F74: 1677.62063 | G74: 239.1093036 | H74: 287.5993224 | I74: 40.7110272 | J74: 51.8793672 | K74: 11.5665156 | L74: 205.7790924 | M74: 406.721808 | N74: 52.92822 | O74: 179.8394088 | P74: 1919.954185 | Q74: 2488.043939 | R74: 51.277248 | S74: 107.4782772 | T74: 669.8187636 | U74: 810.967158 | V74: 61.7075064 | W74: 131.2619856 | X74: 23.744862 | Y74: c | Z74: 959.50608 | AA74: 817.3573908 | AB74: 156.0751236 | AC74: 83.9276472 | AD74: 68.46678 | AE74: 44.5568208 | AF74: 486.7162572 | AG74: 232.7773404 | AH74: 1161.02178 | AM74: 12.2948856 | AN74: 4.9723392 | AO74: 0.2719248 | AP74: 1.9131852 | AQ74: -0.8934672 | AR74: 10.9352616 | AS74: -7.575048 | AT74: -0.582696 | AU74: -6.0794616 | AV74: 148.2378624 | AW74: 93.7460748 | AX74: -5.535612 | AY74: 1.9714548 | AZ74: 46.518564 | BA74: -10.9838196 | BB74: 1.8743388 | BC74: 0.582696 | BD74: 0.9420252 | BF74: 6.118308 | BG74: 17.23809 | BH74: -0.1553856 | BI74: 2.5444392 | BJ74: 2.2433796 | BK74: 1.4664516 | BL74: -0.7186584 | BM74: 0.339906 | BN74: 20.103012 | BO74: 341.7900504 | BP74: 282.12198 | BQ74: 39.5650584 | BS74: 2011-07-01 | BT74: =SUM(C$68:C74) -> 72728.97787 | BU74: =SUM(D$68:D74) -> 80792.71359 | BV74: =SUM(E$68:E74) -> 62004.67165 | BW74: =SUM(F$68:F74) -> 10724.30622 | BX74: 7 | BY74: 2011
B75: 2011-08-01 | C75: 10258.42135 | D75: 11363.69855 | E75: 8590.327799 | F75: 1668.093551 | G75: 228.46539 | H75: 270.7885428 | I75: 39.866118 | J75: 52.19985 | K75: 11.9841144 | L75: 199.524822 | M75: 398.66118 | N75: 54.676308 | O75: 182.2187508 | P75: 1872.716963 | Q75: 2405.679859 | R75: 51.859944 | S75: 105.8855748 | T75: 580.0350216 | U75: 793.6999332 | V75: 65.2716636 | W75: 140.9444508 | X75: 22.3949496 | Y75: c | Z75: 928.234728 | AA75: 806.0336652 | AB75: 145.4409216 | AC75: 81.5483052 | AD75: 66.718692 | AE75: 43.4399868 | AF75: 480.869874 | AG75: 229.2617412 | AH75: 1105.277196 | AM75: 8.8472676 | AN75: -4.0400256 | AO75: -0.3787524 | AP75: 2.330784 | AQ75: 0.6895236 | AR75: 7.6915872 | AS75: -7.963512 | AT75: 1.650972 | AU75: -0.9905832 | AV75: 150.5200884 | AW75: 38.8658232 | AX75: -4.7878188 | AY75: 1.6801068 | AZ75: 18.0247296 | BA75: -10.8090108 | BB75: 2.67069 | BC75: 1.8743388 | BD75: 0.1748088 | BF75: -15.150096 | BG75: 16.4320272 | BH75: -0.2233668 | BI75: 5.8463832 | BJ75: 1.2722196 | BK75: 0.097116 | BL75: 8.6336124 | BM75: -1.2819312 | BN75: -3.593292 | BO75: 218.0836896 | BP75: 179.8199856 | BQ75: 41.856996 | BS75: 2011-08-01 | BT75: =SUM(C$68:C75) -> 82987.39922 | BU75: =SUM(D$68:D75) -> 92156.41213 | BV75: =SUM(E$68:E75) -> 70594.99945 | BW75: =SUM(F$68:F75) -> 12392.39978 | BX75: 8 | BY75: 2011
B76: 2011-09-01 | C76: 9758.108852 | D76: 10800.35776 | E76: 8172.787268 | F76: 1585.321584 | G76: 220.9097652 | H76: 264.1943664 | I76: 38.8755348 | J76: 50.2769532 | K76: 12.3240204 | L76: 189.8229336 | M76: 374.576412 | N76: 52.151292 | O76: 172.9247496 | P76: 1839.707234 | Q76: 2277.758664 | R76: 47.004144 | S76: 102.7681512 | T76: 483.492006 | U76: 774.0727896 | V76: 62.6203968 | W76: 131.689296 | X76: 21.0450372 | Y76: c | Z76: 883.852716 | AA76: 765.3129264 | AB76: 136.1469204 | AC76: 74.3520096 | AD76: 63.659538 | AE76: 41.468532 | AF76: 459.6791628 | AG76: 217.4233008 | AH76: 1042.248912 | AM76: 10.585644 | AN76: -0.0291348 | AO76: -0.2039436 | AP76: 2.9717496 | AQ76: 0.4078872 | AR76: 7.2934116 | AS76: -6.992352 | AT76: -0.48558 | AU76: -3.6321384 | AV76: 114.0433188 | AW76: 41.9929584 | AX76: -10.4982396 | AY76: 4.030314 | AZ76: -7.2448536 | BA76: -4.6712796 | BB76: 3.1659816 | BC76: 0.5924076 | BD76: -0.4273104 | BF76: -12.236616 | BG76: 20.2389744 | BH76: 1.5732792 | BI76: 2.9037684 | BJ76: 2.4473232 | BK76: -0.2719248 | BL76: 10.3040076 | BM76: -2.3890536 | BN76: -23.016492 | BO76: 150.4521072 | BP76: 130.37823 | BQ76: 43.0903692 | BS76: 2011-09-01 | BT76: =SUM(C$68:C76) -> 92745.50808 | BU76: =SUM(D$68:D76) -> 102956.7699 | BV76: =SUM(E$68:E76) -> 78767.78672 | BW76: =SUM(F$68:F76) -> 13977.72136 | BX76: 9 | BY76: 2011
B77: 2011-10-01 | C77: 9798.178914 | D77: 10860.43372 | E77: 8235.86411 | F77: 1562.314804 | G77: 228.46539 | H77: 264.6799464 | I77: 38.8561116 | J77: 51.2189784 | K77: 13.2174876 | L77: 191.0563068 | M77: 377.489892 | N77: 50.403204 | O77: 175.0321668 | P77: 1919.954185 | Q77: 2297.172152 | R77: 48.849348 | S77: 106.050672 | T77: 377.6647008 | U77: 786.0180576 | V77: 56.8517064 | W77: 119.20989 | X77: 20.8605168 | Y77: c | Z77: 914.152908 | AA77: 758.6993268 | AB77: 138.7593408 | AC77: 70.9141032 | AD77: 64.2130992 | AE77: 41.6239176 | AF77: 466.4869944 | AG77: 220.2785112 | AH77: 1062.254808 | AM77: 11.799594 | AN77: -3.7292544 | AO77: -0.5632728 | AP77: 4.5061824 | AQ77: 0.7477932 | AR77: 8.0897628 | AS77: -2.91348 | AT77: -1.068276 | AU77: -3.1756932 | AV77: 49.28637 | AW77: 36.1659984 | AX77: -3.9914676 | AY77: 7.7595684 | AZ77: -59.3670108 | BA77: -3.059154 | BB77: 4.564452 | BC77: 5.3705148 | BD77: -0.9420252 | BF77: -3.204828 | BG77: 40.2934284 | BH77: 3.0203076 | BI77: 2.5638624 | BJ77: 3.738966 | BK77: 0.3593292 | BL77: 10.92555 | BM77: -1.7869344 | BN77: -13.59624 | BO77: 91.7940432 | BP77: 29.0279724 | BQ77: 76.3623108 | BS77: 2011-10-01 | BT77: =SUM(C$68:C77) -> 102543.687 | BU77: =SUM(D$68:D77) -> 113817.2036 | BV77: =SUM(E$68:E77) -> 87003.65083 | BW77: =SUM(F$68:F77) -> 15540.03616 | BX77: 10 | BY77: 2011
B78: 2011-11-01 | C78: 9385.668992 | D78: 10420.73132 | E78: 7926.870133 | F78: 1458.798859 | G78: 218.171094 | H78: 258.6976008 | I78: 38.8464 | J78: 48.655116 | K78: 12.9844092 | L78: 182.8888512 | M78: 367.389828 | N78: 48.752232 | O78: 171.9535896 | P78: 1927.383559 | Q78: 2215.487885 | R78: 44.964708 | S78: 103.379982 | T78: 234.389466 | U78: 763.0015656 | V78: 49.1601192 | W78: 95.5718556 | X78: 20.5788804 | Y78: c | Z78: 891.719112 | AA78: 710.9959476 | AB78: 135.6030708 | AC78: 65.1842592 | AD78: 62.7466476 | AE78: 39.6330396 | AF78: 460.6503228 | AG78: 216.8794512 | AH78: 1035.062328 | AM78: 10.6924716 | AN78: -1.8549156 | AO78: -0.4175988 | AP78: 4.030314 | AQ78: 0.8060628 | AR78: 6.6815808 | AS78: 6.021192 | AT78: -1.748088 | AU78: -2.7483828 | AV78: 75.3328812 | AW78: 38.7298608 | AX78: -4.8558 | AY78: 7.8955308 | AZ78: -68.6707236 | BA78: -3.9914676 | BB78: 3.8943516 | BC78: 4.710126 | BD78: -0.5924076 | BF78: -4.758684 | BG78: 58.4346972 | BH78: 2.5347276 | BI78: 5.244264 | BJ78: 4.1468532 | BK78: 0.3107712 | BL78: 7.817838 | BM78: 0.776928 | BN78: 7.380816 | BO78: 155.8031988 | BP78: 54.433518 | BQ78: 93.9888648 | BS78: 2011-11-01 | BT78: =SUM(C$68:C78) -> 111929.356 | BU78: =SUM(D$68:D78) -> 124237.9349 | BV78: =SUM(E$68:E78) -> 94930.52096 | BW78: =SUM(F$68:F78) -> 16998.83502 | BX78: 11 | BY78: 2011
B79: 2011-12-01 | C79: 9890.788732 | D79: 10988.29665 | E79: 8360.211437 | F79: 1530.577295 | G79: 235.894764 | H79: 278.0333964 | I79: 38.8561116 | J79: 51.8793672 | K79: 13.402008 | L79: 194.4165204 | M79: 391.086132 | N79: 51.180132 | O79: 182.6946192 | P79: 2070.746198 | Q79: 2365.367008 | R79: 51.95706 | S79: 111.7416696 | T79: 145.1981316 | U79: 787.0571988 | V79: 50.451762 | W79: 95.2610844 | X79: 22.4143728 | Y79: c | Z79: 962.613792 | AA79: 750.7163916 | AB79: 145.3923636 | AC79: 64.09656 | AD79: 66.8060964 | AE79: 41.7695916 | AF79: 489.853104 | AG79: 231.9032964 | AH79: 1097.507916 | AM79: 14.1983592 | AN79: 7.9343772 | AO79: -0.9517368 | AP79: 5.34138 | AQ79: 0.5632728 | AR79: 7.9246656 | AS79: 15.829908 | AT79: -1.262508 | AU79: -1.845204 | AV79: 109.2457884 | AW79: 79.5671388 | AX79: -0.194232 | AY79: 9.9641016 | AZ79: -30.931446 | BA79: -17.3934756 | BB79: 4.4576244 | BC79: 5.3802264 | BD79: -0.097116 | BF79: 21.559752 | BG79: 70.5741972 | BH79: 5.58417 | BI79: 7.1088912 | BJ79: 5.0597436 | BK79: 1.068276 | BL79: 19.4523348 | BM79: 4.9334928 | BN79: 23.890536 | BO79: 366.9625176 | BP79: 227.8438476 | BQ79: 115.228134 | BS79: 2011-12-01 | BT79: =SUM(C$68:C79) -> 121820.1447 | BU79: =SUM(D$68:D79) -> 135226.2316 | BV79: =SUM(E$68:E79) -> 103290.7324 | BW79: =SUM(F$68:F79) -> 18529.41232 | BX79: 12 | BY79: 2011
B80: 2012-01-01 | C80: 10236.63823 | D80: 11354.73474 | E80: 8669.78811 | F80: 1566.850121 | G80: 247.7332044 | H80: 285.4530588 | I80: 38.8561116 | J80: 53.9188032 | K80: 12.819312 | L80: 201.0398316 | M80: 403.614096 | N80: 52.539756 | O80: 189.0460056 | P80: 2148.215632 | Q80: 2442.749036 | R80: 53.3458188 | S80: 111.7416696 | T80: 133.2819984 | U80: 868.7220432 | V80: 50.3157996 | W80: 93.5032848 | X80: 23.8225548 | Y80: c | Z80: 993.49668 | AA80: 772.2372972 | AB80: 149.1507528 | AC80: 66.1651308 | AD80: 70.4479464 | AE80: 43.265178 | AF80: 491.16417 | AG80: 239.9930592 | AH80: 1118.096508 | AM80: 13.6059516 | AN80: 3.3602136 | AO80: -0.1650972 | AP80: 4.758684 | AQ80: 0.2136552 | AR80: 14.9170176 | AS80: 15.53856 | AT80: 2.525016 | AU80: -1.4470284 | AV80: 57.929694 | AW80: 64.7666604 | AX80: 0.4758684 | AY80: 7.0020636 | AZ80: -13.402008 | BA80: -0.194232 | BB80: 4.8655116 | BC80: 6.7107156 | BD80: 0.2816364 | BF80: 25.347276 | BG80: 67.9812 | BH80: 3.8263704 | BI80: 5.195706 | BJ80: 5.924076 | BK80: 1.1362572 | BL80: 7.623606 | BM80: 3.1271352 | BN80: 21.948216 | BO80: 323.8527252 | BP80: 180.8397036 | BQ80: 121.0648056 | BS80: 2012-01-01 | BT80: =SUM(C$80:C80) -> 10236.63823 | BU80: =SUM(D$80:D80) -> 11354.73474 | BV80: =SUM(E$80:E80) -> 8669.78811 | BW80: =SUM(F$80:F80) -> 1566.850121 | BX80: 1 | BY80: 2012
B81: 2012-02-01 | C81: 9697.139428 | D81: 10754.44132 | E81: 8241.399722 | F81: 1455.739705 | G81: 233.6708076 | H81: 267.069 | I81: 38.8852464 | J81: 48.2763636 | K81: 11.9646912 | L81: 186.8706072 | M81: 377.392776 | N81: 49.432044 | O81: 179.5966188 | P81: 1999.220264 | Q81: 2280.944069 | R81: 50.5197432 | S81: 107.4297192 | T81: 236.5551528 | U81: 831.1478628 | V81: 46.2077928 | W81: 83.1992772 | X81: 22.433796 | Y81: c | Z81: 917.649084 | AA81: 713.4918288 | AB81: 148.0144956 | AC81: 62.9214564 | AD81: 65.990322 | AE81: 41.0703564 | AF81: 470.235672 | AG81: 226.9503804 | AH81: 1057.301892 | AM81: 15.5288484 | AN81: 4.1177184 | AO81: -0.8546208 | AP81: 2.622132 | AQ81: 0.9905832 | AR81: 15.441444 | AS81: 22.142448 | AT81: 4.37022 | AU81: 4.3993548 | AV81: 76.381734 | AW81: 92.9982816 | AX81: 0.9420252 | AY81: 9.6533304 | AZ81: 18.743388 | BA81: -8.4588036 | BB81: 5.438496 | BC81: 7.429374 | BD81: 0.8643324 | BF81: 30.10596 | BG81: 73.711044 | BH81: 11.1586284 | BI81: 6.2834052 | BJ81: 6.2834052 | BK81: 2.1074172 | BL81: 24.376116 | BM81: 7.4487972 | BN81: 34.281948 | BO81: 468.5070072 | BP81: 300.7488288 | BQ81: 133.4762304 | BS81: 2012-02-01 | BT81: =SUM(C$80:C81) -> 19933.77766 | BU81: =SUM(D$80:D81) -> 22109.17606 | BV81: =SUM(E$80:E81) -> 16911.18783 | BW81: =SUM(F$80:F81) -> 3022.589826 | BX81: 2 | BY81: 2012
B82: 2012-03-01 | C82: 10833.97932 | D82: 12032.09942 | E82: 9212.831647 | F82: 1621.147676 | G82: 258.9015444 | H82: 298.194678 | I82: 38.9726508 | J82: 53.996496 | K82: 13.0038324 | L82: 206.6434248 | M82: 399.340992 | N82: 53.996496 | O82: 194.3679624 | P82: 2202.464629 | Q82: 2510.39033 | R82: 54.967656 | S82: 119.9479716 | T82: 473.003478 | U82: 862.3609452 | V82: 51.0247464 | W82: 91.0753848 | X82: 25.1239092 | Y82: c | Z82: 1007.772732 | AA82: 804.023364 | AB82: 164.61162 | AC82: 70.8655452 | AD82: 72.4291128 | AE82: 45.1686516 | AF82: 514.2097968 | AG82: 247.1213736 | AH82: 1198.120092 | AM82: 11.2751676 | AN82: 5.0208972 | AO82: -0.2816364 | AP82: 2.4667464 | AQ82: 0.4175988 | AR82: 11.0129544 | AS82: 15.635676 | AT82: 3.593292 | AU82: -0.5535612 | AV82: 32.8834776 | AW82: 47.732514 | AX82: -0.48558 | AY82: 10.7118948 | AZ82: 24.5023668 | BA82: -58.1821956 | BB82: 4.6421448 | BC82: 5.6230164 | BD82: 0.9905832 | BF82: 30.203076 | BG82: 71.3025672 | BH82: 5.778402 | BI82: 5.0888784 | BJ82: 4.7489724 | BK82: 1.5150096 | BL82: 9.9446784 | BM82: 1.45674 | BN82: 31.174236 | BO82: 278.2179168 | BP82: 126.202242 | BQ82: 120.8414388 | BS82: 2012-03-01 | BT82: =SUM(C$80:C82) -> 30767.75698 | BU82: =SUM(D$80:D82) -> 34141.27547 | BV82: =SUM(E$80:E82) -> 26124.01948 | BW82: =SUM(F$80:F82) -> 4643.737502 | BX82: 3 | BY82: 2012
B83: 2012-04-01 | C83: 10832.06614 | D83: 12035.81896 | E83: 9217.619466 | F83: 1614.446672 | G83: 258.2508672 | H83: 290.6973228 | I83: 41.9249772 | J83: 52.4717748 | K83: 12.7610424 | L83: 203.6716752 | M83: 402.642936 | N83: 51.568596 | O83: 187.2299364 | P83: 2178.476977 | Q83: 2467.348519 | R83: 56.4146844 | S83: 120.1130688 | T83: 637.2849036 | U83: 825.5151348 | V83: 52.0444644 | W83: 93.6392472 | X83: 23.7739968 | Y83: c | Z83: 969.509028 | AA83: 798.681984 | AB83: 165.3788364 | AC83: 71.5162224 | AD83: 70.8655452 | AE83: 45.1880748 | AF83: 515.103264 | AG83: 239.9930592 | AH83: 1203.75282 | AM83: 9.7116 | AN83: -4.7392608 | AO83: 0.4467336 | AP83: 1.45674 | AQ83: 0.3787524 | AR83: 13.2271992 | AS83: 9.614484 | AT83: 2.91348 | AU83: -2.573574 | AV83: 25.9105488 | AW83: 30.0865368 | AX83: 1.2527964 | AY83: 13.1009484 | AZ83: 2.7872292 | BA83: -64.970604 | BB83: 4.2633924 | BC83: 5.4773424 | BD83: -0.2525016 | BF83: -10.585644 | BG83: 66.3496512 | BH83: 5.8075368 | BI83: 4.0691604 | BJ83: 4.3022388 | BK83: 1.1459688 | BL83: 14.6742276 | BM83: 0.1165392 | BN83: 12.333732 | BO83: 146.305254 | BP83: 16.8399144 | BQ83: 117.1316076 | BS83: 2012-04-01 | BT83: =SUM(C$80:C83) -> 41599.82312 | BU83: =SUM(D$80:D83) -> 46177.09443 | BV83: =SUM(E$80:E83) -> 35341.63895 | BW83: =SUM(F$80:F83) -> 6258.184175 | BX83: 4 | BY83: 2012
B84: 2012-05-01 | C84: 11373.29361 | D84: 12625.60443 | E84: 9591.778279 | F84: 1781.515327 | G84: 272.3423988 | H84: 300.4089228 | I84: 46.3534668 | J84: 55.3852548 | K84: 12.5862336 | L84: 214.2767424 | M84: 424.591152 | N84: 53.802264 | O84: 192.3673728 | P84: 2193.461976 | Q84: 2595.541639 | R84: 58.852296 | S84: 123.3567432 | T84: 734.9544648 | U84: 858.8744808 | V84: 62.2125096 | W84: 118.4135388 | X84: 24.8325612 | Y84: c | Z84: 994.856304 | AA84: 883.0175184 | AB84: 171.1960848 | AC84: 89.7254724 | AD84: 74.9832636 | AE84: 47.4023196 | AF84: 522.9405252 | AG84: 246.5581008 | AH84: 1252.31082 | AM84: 11.1489168 | AN84: -3.9623328 | AO84: 0.4467336 | AP84: 1.4664516 | AQ84: -0.0291348 | AR84: 14.6256696 | AS84: 10.876992 | AT84: 2.330784 | AU84: -1.2527964 | AV84: 67.8646608 | AW84: 55.0065024 | AX84: 2.4279 | AY84: 13.9070112 | AZ84: -2.9911728 | BA84: -40.30314 | BB84: 6.603888 | BC84: 10.8090108 | BD84: -0.1262508 | BF84: -4.564452 | BG84: 72.6233448 | BH84: 3.7098312 | BI84: 1.2333732 | BJ84: 5.0111856 | BK84: 1.845204 | BL84: 13.0038324 | BM84: 0.5147148 | BN84: -0.679812 | BO84: =D84-D72 -> 241.5469152 | BP84: =E84-E72 -> 111.3532056 | BQ84: =F84-F72 -> 130.8735216 | BS84: 2012-05-01 | BT84: =SUM(C$80:C84) -> 52973.11673 | BU84: =SUM(D$80:D84) -> 58802.69886 | BV84: =SUM(E$80:E84) -> 44933.41722 | BW84: =SUM(F$80:F84) -> 8039.699502 | BX84: 5 | BY84: 2012
B85: 2012-06-01 | C85: 10759.5302 | D85: 11945.60791 | E85: 9016.754443 | F85: 1742.775755 | G85: 247.1699316 | H85: 286.6087392 | I85: 41.8472844 | J85: 50.3740692 | K85: 11.8772868 | L85: 205.4877444 | M85: 412.548768 | N85: 53.219568 | O85: 184.6272276 | P85: 1987.05163 | Q85: 2482.013035 | R85: 54.093612 | S85: 115.228134 | T85: 684.3376056 | U85: 810.7049448 | V85: 67.1751372 | W85: 128.096004 | X85: 23.2884168 | Y85: c | Z85: 955.815672 | AA85: 865.8474096 | AB85: 159.9306288 | AC85: 88.0939236 | AD85: 70.9043916 | AE85: 44.624802 | AF85: 494.5049604 | AG85: 234.0592716 | AH85: 1186.077708 | AM85: =G85-G73 -> 7.1574492 | AN85: 1.650972 | AO85: -1.45674 | AP85: -0.6215424 | AQ85: 0.3010596 | AR85: 14.3051868 | AS85: 13.59624 | AT85: 3.39906 | AU85: 3.059154 | AV85: 77.7510696 | AW85: 44.7024948 | AX85: -0.194232 | AY85: 10.537086 | AZ85: -16.6262592 | BA85: -19.4426232 | BB85: 6.3902328 | BC85: 6.3902328 | BD85: -0.3690408 | BF85: 2.719248 | BG85: 66.670134 | BH85: 1.2722196 | BI85: 1.6218372 | BJ85: 3.8652168 | BK85: 1.0002948 | BL85: 4.0691604 | BM85: 2.3210724 | BN85: 13.887588 | BO85: 247.9565712 | BP85: 121.6669248 | BQ85: 112.4020584 | BS85: 2012-06-01 | BT85: =SUM(C$80:C85) -> 63732.64692 | BU85: =SUM(D$80:D85) -> 70748.30676 | BV85: =SUM(E$80:E85) -> 53950.17167 | BW85: =SUM(F$80:F85) -> 9782.475257 | BX85: 6 | BY85: 2012
B86: 2012-07-01 | C86: 10561.81173 | D86: 11677.77169 | E86: 8823.221678 | F86: 1738.590055 | G86: 240.9350844 | H86: 279.3250392 | I86: 41.3617044 | J86: 48.9755988 | K86: 12.090942 | L86: 206.8182336 | M86: 419.735352 | N86: 55.259004 | O86: 184.1222244 | P86: 1890.129862 | Q86: 2480.876778 | R86: 56.618628 | S86: 114.062742 | T86: 609.7816524 | U86: 802.032486 | V86: 69.4670748 | W86: 135.5933592 | X86: 22.8028368 | Y86: c | Z86: 948.33774 | AA86: 859.5057348 | AB86: 155.5409856 | AC86: 80.4023364 | AD86: 70.3993884 | AE86: 44.6539368 | AF86: 498.9528732 | AG86: 234.0301368 | AH86: 1115.959956 | AM86: 1.8257808 | AN86: -8.2742832 | AO86: 0.6506772 | AP86: -2.9037684 | AQ86: 0.5244264 | AR86: 1.0391412 | AS86: 13.013544 | AT86: 2.330784 | AU86: 4.2828156 | AV86: -29.8243236 | AW86: -7.1671608 | AX86: 5.34138 | AY86: 6.5844648 | AZ86: -60.0371112 | BA86: -8.934672 | BB86: 7.7595684 | BC86: 4.3313736 | BD86: -0.9420252 | BF86: -11.16834 | BG86: 42.148344 | BH86: -0.534138 | BI86: -3.5253108 | BJ86: 1.9326084 | BK86: 0.097116 | BL86: 12.236616 | BM86: 1.2527964 | BN86: -45.061824 | BO86: -73.0215204 | BP86: -88.9291212 | BQ86: 60.9694248 | BS86: 2012-07-01 | BT86: =SUM(C$80:C86) -> 74294.45866 | BU86: =SUM(D$80:D86) -> 82426.07845 | BV86: =SUM(E$80:E86) -> 62773.39335 | BW86: =SUM(F$80:F86) -> 11521.06531 | BX86: 7 | BY86: 2012
B87: 2012-08-01 | C87: 10187.54609 | D87: 11250.28648 | E87: 8477.139101 | F87: 1710.406992 | G87: 228.0380796 | H87: 267.0787116 | I87: 39.0503436 | J87: 47.7228024 | K87: 12.1103652 | L87: 200.9912736 | M87: 408.761244 | N87: 55.161888 | O87: 181.8594216 | P87: 1805.823462 | Q87: 2390.26755 | R87: 55.161888 | S87: 112.4894628 | T87: 546.8019264 | U87: 789.9026976 | V87: 70.9043916 | W87: 141.6048396 | X87: 21.4043664 | Y87: c | Z87: 921.436608 | AA87: 844.3167924 | AB87: 146.1692916 | AC87: 73.4294076 | AD87: 69.2339964 | AE87: 43.3914288 | AF87: 485.1721128 | AG87: 229.2617412 | AH87: 1062.740388 | AM87: -0.4273104 | AN87: -3.7098312 | AO87: -0.8157744 | AP87: -4.4770476 | AQ87: 0.1262508 | AR87: 1.4664516 | AS87: 10.100064 | AT87: 0.48558 | AU87: -0.3593292 | AV87: -66.8935008 | AW87: -15.4123092 | AX87: 3.301944 | AY87: 6.603888 | AZ87: -33.2330952 | BA87: -3.7972356 | BB87: 5.632728 | BC87: 0.6603888 | BD87: -0.9905832 | BF87: -6.79812 | BG87: 38.2831272 | BH87: 0.72837 | BI87: -8.1188976 | BJ87: 2.5153044 | BK87: -0.048558 | BL87: 4.3022388 | BM87: 0 | BN87: -42.536808 | BO87: -113.4120648 | BP87: -113.188698 | BQ87: 42.3134412 | BS87: 2012-08-01 | BT87: =SUM(C$80:C87) -> 84482.00475 | BU87: =SUM(D$80:D87) -> 93676.36494 | BV87: =SUM(E$80:E87) -> 71250.53245 | BW87: =SUM(F$80:F87) -> 13231.4723 | BX87: 8 | BY87: 2012
B88: 2012-09-01 | C88: 9597.372161 | D88: 10594.46213 | E88: 7995.958456 | F88: 1601.413705 | G88: 219.3461976 | H88: 249.0442704 | I88: 39.0309204 | J88: 44.1780684 | K88: 12.2269044 | L88: 186.608394 | M88: 380.306256 | N88: 51.47148 | O88: 171.4388748 | P88: 1718.574448 | Q88: 2273.621522 | R88: 51.277248 | S88: 107.9152992 | T88: 446.6073492 | U88: 778.6663764 | V88: 66.1165728 | W88: 131.83497 | X88: 19.8796452 | Y88: 3.3310788 | Z88: 881.619048 | AA88: 784.842954 | AB88: 134.0006568 | AC88: 66.6312876 | AD88: 65.5241652 | AE88: 41.7016104 | AF88: 455.9887548 | AG88: 215.5878084 | AH88: 997.089972 | AM88: -1.5635676 | AN88: -15.150096 | AO88: 0.1553856 | AP88: -6.0988848 | AQ88: -0.097116 | AR88: -3.2145396 | AS88: 5.729844 | AT88: -0.679812 | AU88: -1.4858748 | AV88: -121.1327868 | AW88: -4.1371416 | AX88: 4.273104 | AY88: 5.147148 | AZ88: -36.8846568 | BA88: 4.5935868 | BB88: 3.496176 | BC88: 0.145674 | BD88: -1.165392 | BF88: -2.233668 | BG88: 19.5300276 | BH88: -2.1462636 | BI88: -7.720722 | BJ88: 1.8646272 | BK88: 0.2330784 | BL88: -3.690408 | BM88: -1.8354924 | BN88: -45.15894 | BO88: -205.8956316 | BP88: -176.8288128 | BQ88: 16.0921212 | BS88: 2012-09-01 | BT88: =SUM(C$80:C88) -> 94079.37691 | BU88: =SUM(D$80:D88) -> 104270.8271 | BV88: =SUM(E$80:E88) -> 79246.4909 | BW88: =SUM(F$80:F88) -> 14832.88601 | BX88: 9 | BY88: 2012
B89: 2012-10-01 | C89: 9702.296287 | D89: 10696.66701 | E89: 8133.03769 | F89: 1569.258598 | G89: 226.4939352 | H89: 264.1749432 | I89: 39.0114972 | J89: 43.8090276 | K89: 12.6445032 | L89: 190.250244 | M89: 383.219736 | N89: 51.665712 | O89: 173.7502356 | P89: 1843.922069 | Q89: 2309.389345 | R89: 51.47148 | S89: 109.1195376 | T89: 364.1655768 | U89: 773.334708 | V89: 59.7457632 | W89: 116.6751624 | X89: 20.200128 | Y89: c | Z89: 904.926888 | AA89: 770.9942124 | AB89: 135.4379736 | AC89: 67.5053316 | AD89: 65.6892624 | AE89: 42.148344 | AF89: 462.4372572 | AG89: 220.113414 | AH89: 994.370724 | AM89: -1.9714548 | AN89: -0.5050032 | AO89: 0.1553856 | AP89: -7.4099508 | AQ89: -0.5729844 | AR89: -0.8060628 | AS89: 5.729844 | AT89: 1.262508 | AU89: -1.2819312 | AV89: -76.0321164 | AW89: 12.2171928 | AX89: 2.622132 | AY89: 3.0688656 | AZ89: -13.499124 | BA89: -12.6833496 | BB89: 2.8940568 | BC89: -2.5347276 | BD89: -0.6603888 | BF89: -9.22602 | BG89: 12.2948856 | BH89: -3.3213672 | BI89: -3.4087716 | BJ89: 1.4761632 | BK89: 0.5244264 | BL89: -4.0497372 | BM89: -0.1650972 | BN89: -67.884084 | BO89: -163.7667108 | BP89: -102.8264208 | BQ89: 6.943794 | BS89: 2012-10-01 | BT89: =SUM(C$80:C89) -> 103781.6732 | BU89: =SUM(D$80:D89) -> 114967.4941 | BV89: =SUM(E$80:E89) -> 87379.52859 | BW89: =SUM(F$80:F89) -> 16402.14461 | BX89: 10 | BY89: 2012
B90: 2012-11-01 | C90: 9289.747519 | D90: 10263.33542 | E90: 7837.873031 | F90: 1451.874488 | G90: 214.9856892 | H90: 255.4927728 | I90: 38.9726508 | J90: 42.3717108 | K90: 12.188058 | L90: 182.8597164 | M90: 371.565816 | N90: 49.820508 | O90: 170.3317524 | P90: 1860.286115 | Q90: 2236.766 | R90: 49.2281004 | S90: 105.1960512 | T90: 227.6593272 | U90: 748.1622408 | V90: 50.7722448 | W90: 93.2410716 | X90: 19.860222 | Y90: c | Z90: 888.417168 | AA90: 712.5498036 | AB90: 131.6504496 | AC90: 60.746058 | AD90: 63.5915568 | AE90: 39.5650584 | AF90: 446.9861016 | AG90: 216.4812756 | AH90: 973.5879 | AM90: -3.1854048 | AN90: -3.204828 | AO90: 0.1262508 | AP90: -6.2834052 | AQ90: -0.7963512 | AR90: -0.0291348 | AS90: 4.175988 | AT90: 1.068276 | AU90: -1.6218372 | AV90: -67.0974444 | AW90: 21.2781156 | AX90: 4.2633924 | AY90: 1.8160692 | AZ90: -6.7301388 | BA90: -14.8393248 | BB90: 1.6121256 | BC90: -2.330784 | BD90: -0.7186584 | BF90: -3.301944 | BG90: 1.553856 | BH90: -3.9526212 | BI90: -4.4382012 | BJ90: 0.8449092 | BK90: -0.0679812 | BL90: -13.6642212 | BM90: -0.3981756 | BN90: -61.474428 | BO90: -157.3959012 | BP90: -88.9971024 | BQ90: -6.9243708 | BS90: 2012-11-01 | BT90: =SUM(C$80:C90) -> 113071.4207 | BU90: =SUM(D$80:D90) -> 125230.8295 | BV90: =SUM(E$80:E90) -> 95217.40162 | BW90: =SUM(F$80:F90) -> 17854.0191 | BX90: 11 | BY90: 2012
B91: 2012-12-01 | C91: 9720.408421 | D91: 10759.64674 | E91: 8207.729605 | F91: 1512.678816 | G91: 230.7767508 | H91: 270.0698844 | I91: 38.8658232 | J91: 43.3331592 | K91: 12.7513308 | L91: 190.0754352 | M91: 390.212088 | N91: 52.44264 | O91: 180.295854 | P91: 2000.706139 | Q91: 2375.27284 | R91: 52.636872 | S91: 111.3143592 | T91: 130.1160168 | U91: 765.8664876 | V91: 51.6754236 | W91: 93.8043444 | X91: 21.9093696 | Y91: c | Z91: 955.038744 | AA91: 750.0948492 | AB91: 140.1286764 | AC91: 60.2216316 | AD91: 66.6409992 | AE91: 41.4588204 | AF91: 466.1956464 | AG91: 228.5042364 | AH91: 1039.238316 | AM91: -5.1180132 | AN91: -7.963512 | AO91: 0.0097116 | AP91: -8.546208 | AQ91: -0.6506772 | AR91: -4.3410852 | AS91: -0.874044 | AT91: 1.262508 | AU91: -2.3987652 | AV91: -70.0400592 | AW91: 9.905832 | AX91: 0.679812 | AY91: -0.4273104 | AZ91: -15.0821148 | BA91: -21.1907112 | BB91: 1.2236616 | BC91: -1.45674 | BD91: -0.5050032 | BF91: -7.575048 | BG91: -0.6215424 | BH91: -5.2636872 | BI91: -3.8749284 | BJ91: -0.1650972 | BK91: -0.3107712 | BL91: -23.6574576 | BM91: -3.39906 | BN91: -58.2696 | BO91: -228.6499104 | BP91: -152.4818316 | BQ91: -17.8984788 | BS91: 2012-12-01 | BT91: =SUM(C$80:C91) -> 122791.8291 | BU91: =SUM(D$80:D91) -> 135990.4762 | BV91: =SUM(E$80:E91) -> 103425.1312 | BW91: =SUM(F$80:F91) -> 19366.69791 | BX91: 12 | BY91: 2012
B92: 2013-01-01 | C92: 10120.38067 | D92: 11179.33353 | E92: 8578.732148 | F92: 1541.648519 | G92: 242.7608652 | H92: 274.498374 | I92: 38.8561116 | J92: 44.9938428 | K92: 12.8484468 | L92: 196.5530724 | M92: 403.128516 | N92: 53.996496 | O92: 187.7932092 | P92: 2048.11817 | Q92: 2461.327327 | R92: 53.219568 | S92: 112.8585036 | T92: 125.52243 | U92: 871.4315796 | V92: 51.4617684 | W92: 92.0368332 | X92: 23.3661096 | Y92: c | Z92: 992.428404 | AA92: 762.9141612 | AB92: 145.3535172 | AC92: 63.1156884 | AD92: 69.1368804 | AE92: 42.876714 | AF92: 512.723922 | AG92: 237.060156 | AH92: 1058.952864 | AM92: -4.9723392 | AN92: -10.9546848 | AO92: 0 | AP92: -8.9249604 | AQ92: 0.0291348 | AR92: -4.4867592 | AS92: -0.48558 | AT92: 1.45674 | AU92: -1.2527964 | AV92: -100.0974612 | AW92: 18.5782908 | AX92: -0.1262508 | AY92: 1.116834 | AZ92: -7.7595684 | BA92: 2.7095364 | BB92: 1.1459688 | BC92: =W92-W80 -> -1.4664516 | BD92: =X92-X80 -> -0.4564452 | BF92: =Z92-Z80 -> -1.068276 | BG92: =AA92-AA80 -> -9.323136 | BH92: =AB92-AB80 -> -3.7972356 | BI92: =AC92-AC80 -> -3.0494424 | BJ92: =AD92-AD80 -> -1.311066 | BK92: =AE92-AE80 -> -0.388464 | BL92: =AF92-AF80 -> 21.559752 | BM92: =AG92-AG80 -> -2.9329032 | BN92: =AH92-AH80 -> -59.143644 | BO92: -175.4012076 | BP92: -91.0559616 | BQ92: -25.201602 | BS92: 2013-01-01 | BT92: =SUM(C$92:C92) -> 10120.38067 | BU92: =SUM(D$92:D92) -> 11179.33353 | BV92: =SUM(E$92:E92) -> 8578.732148 | BW92: =SUM(F$92:F92) -> 1541.648519 | BX92: 1 | BY92: 2013
B93: 2013-02-01 | C93: 9440.306454 | D93: 10418.36169 | E93: 8010.807492 | F93: 1429.498962 | G93: 225.4839288 | H93: 255.317964 | I93: 39.720444 | J93: 40.2351588 | K93: 11.7704592 | L93: 180.6940296 | M93: 368.360988 | N93: 50.01474 | O93: 173.8667748 | P93: 1872.202248 | Q93: 2259.122104 | R93: 51.374364 | S93: 107.55597 | T93: 222.8520852 | U93: 815.2693968 | V93: 46.9944324 | W93: 81.528882 | X93: 22.0064856 | Y93: c | Z93: 913.084632 | AA93: 709.5877656 | AB93: 136.1857668 | AC93: 58.0073868 | AD93: 63.9120396 | AE93: 39.477654 | AF93: 476.5870584 | AG93: 219.093696 | AH93: 978.055236 | AM93: -8.1868788 | AN93: =H93-H81 -> -11.751036 | AO93: =I93-I81 -> 0.8351976 | AP93: =J93-J81 -> -8.0412048 | AQ93: =K93-K81 -> -0.194232 | AR93: =L93-L81 -> -6.1765776 | AS93: =M93-M81 -> -9.031788 | AT93: =N93-N81 -> 0.582696 | AU93: =O93-O81 -> -5.729844 | AV93: =P93-P81 -> -127.0180164 | AW93: =Q93-Q81 -> -21.8219652 | AX93: =R93-R81 -> 0.8546208 | AY93: =S93-S81 -> 0.1262508 | AZ93: =T93-T81 -> -13.7030676 | BA93: =U93-U81 -> -15.878466 | BB93: =V93-V81 -> 0.7866396 | BC93: -1.6703952 | BD93: -0.4273104 | BF93: -4.564452 | BG93: -3.9040632 | BH93: -11.8287288 | BI93: -4.9140696 | BJ93: -2.0782824 | BK93: -1.5927024 | BL93: 6.3513864 | BM93: -7.8566844 | BN93: -79.246656 | BO93: -336.0796296 | BP93: -230.5922304 | BQ93: -26.2407432 | BS93: 2013-02-01 | BT93: =SUM(C$92:C93) -> 19560.68712 | BU93: =SUM(D$92:D93) -> 21597.69522 | BV93: =SUM(E$92:E93) -> 16589.53964 | BW93: =SUM(F$92:F93) -> 2971.147481 | BX93: 2 | BY93: 2013
B94: 2013-03-01 | C94: 10644.53514 | D94: 11756.12488 | E94: 9056.36806 | F94: 1588.167083 | G94: 255.1431552 | H94: 285.0548832 | I94: 39.81756 | J94: 42.9932532 | K94: 13.159218 | L94: 202.4091672 | M94: 407.110272 | N94: 55.550352 | O94: 193.2511284 | P94: 2063.579038 | Q94: 2517.742012 | R94: 58.949412 | S94: 118.6563288 | T94: 468.09912 | U94: 849.1920156 | V94: 52.345524 | W94: 90.4538424 | X94: 25.2210252 | Y94: c | Z94: 1009.909284 | AA94: 791.3788608 | AB94: 151.8505776 | AC94: 65.5435884 | AD94: 71.3608368 | AE94: 44.4985512 | AF94: 527.3204568 | AG94: 243.9456804 | AH94: 1111.589736 | AM94: -3.7583892 | AN94: -13.1397948 | AO94: 0.8449092 | AP94: -11.0032428 | AQ94: 0.1553856 | AR94: -4.2342576 | AS94: 7.76928 | AT94: 1.553856 | AU94: -1.116834 | AV94: -138.8855916 | AW94: 7.3516812 | AX94: 3.981756 | AY94: -1.2916428 | AZ94: -4.904358 | BA94: -13.1689296 | BB94: 1.3207776 | BC94: -0.6215424 | BD94: 0.097116 | BF94: 2.136552 | BG94: -12.6445032 | BH94: -12.7610424 | BI94: -5.3219568 | BJ94: -1.068276 | BK94: -0.6701004 | BL94: 13.11066 | BM94: -3.1756932 | BN94: -86.530356 | BO94: -275.9745372 | BP94: -156.4635876 | BQ94: -32.9805936 | BS94: 2013-03-01 | BT94: =SUM(C$92:C94) -> 30205.22226 | BU94: =SUM(D$92:D94) -> 33353.8201 | BV94: =SUM(E$92:E94) -> 25645.9077 | BW94: =SUM(F$92:F94) -> 4559.314564 | BX94: 3 | BY94: 2013
B95: 2013-04-01 | C95: 10649.62402 | D95: 11761.5051 | E95: 9067.915152 | F95: 1581.708869 | G95: 251.336208 | H95: 285.8415228 | I95: 40.157466 | J95: 41.8181496 | K95: 12.4405596 | L95: 195.5624892 | M95: 404.391024 | N95: 55.259004 | O95: 188.3661936 | P95: 2032.929228 | Q95: 2477.458295 | R95: 57.978252 | S95: 112.848792 | T95: 568.7404308 | U95: 877.1808468 | V95: 53.0544708 | W95: 92.3670276 | X95: 23.696304 | Y95: c | Z95: 984.464892 | AA95: 795.5936952 | AB95: 151.7340384 | AC95: 70.0303476 | AD95: 68.9717832 | AE95: 43.605084 | AF95: 525.2130396 | AG95: 238.5848772 | AH95: 1111.881084 | AM95: -6.9146592 | AN95: -4.8558 | AO95: -1.7675112 | AP95: -10.6536252 | AQ95: -0.3204828 | AR95: -8.109186 | AS95: 1.748088 | AT95: 3.690408 | AU95: 1.1362572 | AV95: -145.5477492 | AW95: 10.1097756 | AX95: 1.5635676 | AY95: -7.2642768 | AZ95: -68.5444728 | BA95: 51.665712 | BB95: 1.0100064 | BC95: -1.2722196 | BD95: -0.0776928 | BF95: 14.955864 | BG95: -3.0882888 | BH95: -13.644798 | BI95: -1.4858748 | BJ95: -1.893762 | BK95: -1.5829908 | BL95: 10.1097756 | BM95: -1.408182 | BN95: -91.871736 | BO95: -274.3138536 | BP95: -149.704314 | BQ95: -32.7378036 | BS95: 2013-04-01 | BT95: =SUM(C$92:C95) -> 40854.84628 | BU95: =SUM(D$92:D95) -> 45115.3252 | BV95: =SUM(E$92:E95) -> 34713.82285 | BW95: =SUM(F$92:F95) -> 6141.023432 | BX95: 4 | BY95: 2013
B96: 2013-05-01 | C96: 11372.20591 | D96: 12606.25892 | E96: 9652.563184 | F96: 1719.642724 | G96: 265.272354 | H96: 308.974554 | I96: 44.1974916 | J96: 43.8575856 | K96: 12.6056568 | L96: 205.4586096 | M96: 431.486388 | N96: 58.075368 | O96: 195.4071036 | P96: 2108.621438 | Q96: 2632.503989 | R96: 58.949412 | S96: 116.1118896 | T96: 733.1869536 | U96: 903.1496652 | V96: 60.7751928 | W96: 109.7993496 | X96: 25.2890064 | Y96: c | Z96: 1050.698004 | AA96: 867.3332844 | AB96: 161.0377512 | AC96: 84.1315908 | AD96: 71.768724 | AE96: 45.5279808 | AF96: 531.2050968 | AG96: 246.7814676 | AH96: 1234.053012 | AM96: -7.0700448 | AN96: 8.5656312 | AO96: -2.1559752 | AP96: -11.5276692 | AQ96: 0.0194232 | AR96: -8.8181328 | AS96: 6.895236 | AT96: 4.273104 | AU96: 3.0397308 | AV96: -84.8405376 | AW96: 36.9623496 | AX96: 0.097116 | AY96: -7.2448536 | AZ96: -1.7675112 | BA96: 44.2751844 | BB96: -1.4373168 | BC96: -8.6141892 | BD96: 0.4564452 | BF96: 55.8417 | BG96: -15.684234 | BH96: -10.1583336 | BI96: -5.5938816 | BJ96: -3.2145396 | BK96: -1.8743388 | BL96: 8.2645716 | BM96: 0.2233668 | BN96: -18.257808 | BO96: -19.3455072 | BP96: 60.7849044 | BQ96: -61.8726036 | BS96: 2013-05-01 | BT96: =SUM(C$92:C96) -> 52227.05219 | BU96: =SUM(D$92:D96) -> 57721.58412 | BV96: =SUM(E$92:E96) -> 44366.38604 | BW96: =SUM(F$92:F96) -> 7860.666156 | BX96: 5 | BY96: 2013
B97: 2013-06-01 | C97: 10720.9363 | D97: 11898.37068 | E97: 9047.841275 | F97: 1673.095025 | G97: 238.516896 | H97: 286.103736 | I97: 41.3519928 | J97: 39.429096 | K97: 12.0326724 | L97: 194.1251724 | M97: 418.375728 | N97: 56.909976 | O97: 185.4818484 | P97: 1916.312335 | Q97: 2492.307331 | R97: 53.705148 | S97: 105.85644 | T97: 700.9153068 | U97: 853.8827184 | V97: 66.6992688 | W97: 122.7449124 | X97: 23.5700532 | Y97: c | Z97: 988.349532 | AA97: 841.218792 | AB97: 153.7443396 | AC97: 83.325528 | AD97: 67.349946 | AE97: 42.051228 | AF97: 503.3716512 | AG97: 233.2046508 | AH97: 1177.434384 | AM97: -8.6530356 | AN97: -0.5050032 | AO97: -0.4952916 | AP97: -10.9449732 | AQ97: 0.1553856 | AR97: -11.362572 | AS97: 5.82696 | AT97: 3.690408 | AU97: 0.8546208 | AV97: -70.7392944 | AW97: 10.294296 | AX97: -0.388464 | AY97: -9.371694 | AZ97: 16.5777012 | BA97: 43.1777736 | BB97: -0.4758684 | BC97: -5.3510916 | BD97: 0.2816364 | BF97: 32.53386 | BG97: -24.6286176 | BH97: -6.1862892 | BI97: -4.7683956 | BJ97: -3.5544456 | BK97: -2.573574 | BL97: 8.8666908 | BM97: -0.8546208 | BN97: -8.643324 | BO97: -47.2372224 | BP97: 31.0868316 | BQ97: -69.68073 | BS97: 2013-06-01 | BT97: =SUM(C$92:C97) -> 62947.98849 | BU97: =SUM(D$92:D97) -> 69619.95481 | BV97: =SUM(E$92:E97) -> 53414.22731 | BW97: =SUM(F$92:F97) -> 9533.761181 | BX97: 6 | BY97: 2013
B98: 2013-07-01 | C98: 10788.19884 | D98: 11931.83686 | E98: 9053.532272 | F98: 1734.666569 | G98: 236.8950588 | H98: 292.2803136 | I98: 42.0220932 | J98: 40.4293908 | K98: 12.5182524 | L98: 201.321468 | M98: 427.698864 | N98: 58.75518 | O98: 188.4827328 | P98: 1857.372635 | Q98: 2546.284404 | R98: 52.539756 | S98: 109.4400204 | T98: 652.668078 | U98: 846.511614 | V98: 69.3214008 | W98: 132.4856472 | X98: 23.8128432 | Y98: c | Z98: 1019.523768 | AA98: 871.7811972 | AB98: 147.8008404 | AC98: 83.8985124 | AD98: 69.7681344 | AE98: 42.925272 | AF98: 527.0582436 | AG98: 234.6031212 | AH98: 1143.638016 | AM98: -4.0400256 | AN98: 12.9552744 | AO98: 0.6603888 | AP98: -8.546208 | AQ98: 0.4273104 | AR98: -5.4967656 | AS98: 7.963512 | AT98: 3.496176 | AU98: 4.3605084 | AV98: -32.7572268 | AW98: 65.407626 | AX98: -4.078872 | AY98: -4.6227216 | AZ98: 42.8864256 | BA98: 44.479128 | BB98: -0.145674 | BC98: -3.107712 | BD98: 1.0100064 | BF98: 71.186028 | BG98: 12.2754624 | BH98: -7.7401452 | BI98: 3.496176 | BJ98: -0.631254 | BK98: -1.7286648 | BL98: 28.1053704 | BM98: 0.5729844 | BN98: 27.67806 | BO98: 254.0651676 | BP98: 230.310594 | BQ98: -3.9234864 | BS98: 2013-07-01 | BT98: =SUM(C$92:C98) -> 73736.18733 | BU98: =SUM(D$92:D98) -> 81551.79166 | BV98: =SUM(E$92:E98) -> 62467.75958 | BW98: =SUM(F$92:F98) -> 11268.42775 | BX98: 7 | BY98: 2013
B99: 2013-08-01 | C99: 10493.33524 | D99: 11609.00385 | E99: 8801.273462 | F99: 1692.06178 | G99: 226.0569132 | H99: 284.54988 | I99: 38.8464 | J99: 39.2251524 | K99: 12.7998888 | L99: 194.9409468 | M99: 421.289208 | N99: 58.172484 | O99: 186.4821432 | P99: 1799.666308 | Q99: 2488.752886 | R99: 49.52916 | S99: 106.8373116 | T99: 592.7377944 | U99: 837.3050172 | V99: 71.962956 | W99: 137.5842372 | X99: 22.676586 | Y99: c | Z99: 1013.114112 | AA99: 850.2602916 | AB99: 139.4294412 | AC99: 73.6527744 | AD99: 66.718692 | AE99: 41.0606448 | AF99: 508.7130312 | AG99: 230.9709828 | AH99: 1115.668608 | AM99: -1.9811664 | AN99: 17.4711684 | AO99: -0.2039436 | AP99: -8.49765 | AQ99: 0.6895236 | AR99: -6.0503268 | AS99: 12.527964 | AT99: 3.010596 | AU99: 4.6227216 | AV99: -6.1571544 | AW99: 98.4853356 | AX99: -5.632728 | AY99: -5.6521512 | AZ99: 45.935868 | BA99: 47.4023196 | BB99: 1.0585644 | BC99: -4.0206024 | BD99: 1.2722196 | BF99: 91.677504 | BG99: 5.9434992 | BH99: -6.7398504 | BI99: 0.2233668 | BJ99: -2.5153044 | BK99: -2.330784 | BL99: 23.5409184 | BM99: 1.7092416 | BN99: 52.92822 | BO99: 358.7173692 | BP99: 324.1343616 | BQ99: -18.3452124 | BS99: 2013-08-01 | BT99: =SUM(C$92:C99) -> 84229.52257 | BU99: =SUM(D$92:D99) -> 93160.79551 | BV99: =SUM(E$92:E99) -> 71269.03305 | BW99: =SUM(F$92:F99) -> 12960.48953 | BX99: 8 | BY99: 2013
B100: 2013-09-01 | C100: 9956.623668 | D100: 11019.16982 | E100: 8342.002187 | F100: 1614.621481 | G100: 219.7929312 | H100: 265.0975452 | I100: 38.8464 | J100: 38.1471648 | K100: 12.6833496 | L100: 186.2296416 | M100: 395.7477 | N100: 55.744584 | O100: 178.1495904 | P100: 1733.70512 | Q100: 2361.43381 | R100: 47.781072 | S100: 105.9438444 | T100: 498.44787 | U100: 825.2334984 | V100: 68.029758 | W100: 129.4167816 | X100: 21.3072504 | Y100: c | Z100: 957.660876 | AA100: 805.771452 | AB100: 130.5433272 | AC100: 70.0983288 | AD100: 63.805212 | AE100: 39.9049644 | AF100: 487.4154924 | AG100: 219.6861036 | AH100: 1062.546156 | AM100: 0.4467336 | AN100: 16.0532748 | AO100: -0.1845204 | AP100: -6.0309036 | AQ100: 0.4564452 | AR100: -0.3787524 | AS100: 15.441444 | AT100: 4.273104 | AU100: 6.7107156 | AV100: 15.1306728 | AW100: 87.8122872 | AX100: -3.496176 | AY100: -1.9714548 | AZ100: 51.8405208 | BA100: 46.567122 | BB100: 1.9131852 | BC100: -2.4181884 | BD100: 1.4276052 | BF100: 76.041828 | BG100: 20.928498 | BH100: -3.4573296 | BI100: 3.4670412 | BJ100: -1.7189532 | BK100: -1.796646 | BL100: 31.4267376 | BM100: 4.0982952 | BN100: 65.456184 | BO100: 424.7076912 | BP100: 346.0437312 | BQ100: 13.207776 | BS100: 2013-09-01 | BT100: =SUM(C$92:C100) -> 94186.14624 | BU100: =SUM(D$92:D100) -> 104179.9653 | BV100: =SUM(E$92:E100) -> 79611.03523 | BW100: =SUM(F$92:F100) -> 14575.11101 | BX100: 9 | BY100: 2013
B101: 2013-10-01 | C101: 10123.49809 | D101: 11211.68287 | E101: 8530.514054 | F101: 1592.984036 | G101: 228.5236596 | H101: 278.2470516 | I101: 38.8464 | J101: 39.0212088 | K101: 13.4602776 | L101: 186.8123376 | M101: 401.963124 | N101: 55.35612 | O101: 179.324694 | P101: 1901.83234 | Q101: 2403.669558 | R101: 48.849348 | S101: 107.7793368 | T101: 418.2883236 | U101: 808.0148316 | V101: 61.1927916 | W101: 116.393526 | X101: 22.3561032 | Y101: c | Z101: 982.231224 | AA101: 797.7399588 | AB101: 133.5247884 | AC101: 72.5747868 | AD101: 63.2516508 | AE101: 40.5556416 | AF101: 500.1474 | AG101: 223.5416088 | AH101: 1088.18478 | AM101: 2.0297244 | AN101: 14.0721084 | AO101: -0.1650972 | AP101: -4.7878188 | AQ101: 0.8157744 | AR101: -3.4379064 | AS101: 18.743388 | AT101: 3.690408 | AU101: 5.5744584 | AV101: 57.9102708 | AW101: 94.2802128 | AX101: -2.622132 | AY101: -1.3402008 | AZ101: 54.1227468 | BA101: 34.6801236 | BB101: 1.4470284 | BC101: -0.2816364 | BD101: 2.1559752 | BF101: 77.304336 | BG101: 26.7457464 | BH101: -1.9131852 | BI101: 5.0694552 | BJ101: -2.4376116 | BK101: -1.5927024 | BL101: 37.7101428 | BM101: 3.4281948 | BN101: 93.814056 | BO101: 515.0158596 | BP101: 397.4763648 | BQ101: 23.7254388 | BS101: 2013-10-01 | BT101: =SUM(C$92:C101) -> 104309.6443 | BU101: =SUM(D$92:D101) -> 115391.6482 | BV101: =SUM(E$92:E101) -> 88141.54929 | BW101: =SUM(F$92:F101) -> 16168.09505 | BX101: 10 | BY101: 2013
B102: 2013-11-01 | C102: 9691.574681 | D102: 10758.49106 | E102: 8199.581573 | F102: 1491.993108 | G102: 220.5601476 | H102: 267.6322728 | I102: 38.8464 | J102: 38.2539924 | K102: 12.7804656 | L102: 180.0821988 | M102: 389.046696 | N102: 53.802264 | O102: 176.3820792 | P102: 1898.569242 | Q102: 2318.712481 | R102: 49.04358 | S102: 108.0027036 | T102: 276.4115592 | U102: 789.1451928 | V102: 54.773424 | W102: 96.290514 | X102: 21.6762912 | Y102: c | Z102: 942.122316 | AA102: 745.9188612 | AB102: 132.8352648 | AC102: 63.4944408 | AD102: 60.988848 | AE102: 38.7589956 | AF102: 496.6318008 | AG102: 220.8126492 | AH102: 1066.916376 | AM102: 5.5744584 | AN102: 12.1395 | AO102: -0.1262508 | AP102: -4.1177184 | AQ102: 0.5924076 | AR102: -2.7775176 | AS102: 17.48088 | AT102: 3.981756 | AU102: 6.0503268 | AV102: 38.2831272 | AW102: 81.9464808 | AX102: -0.1845204 | AY102: 2.8066524 | AZ102: 48.752232 | BA102: 40.982952 | BB102: 4.0011792 | BC102: 3.0494424 | BD102: 1.8160692 | BF102: 53.705148 | BG102: 33.3690576 | BH102: 1.1848152 | BI102: 2.7483828 | BJ102: -2.6027088 | BK102: -0.8060628 | BL102: 49.6456992 | BM102: 4.3313736 | BN102: 93.328476 | BO102: 495.1556376 | BP102: 361.708542 | BQ102: 40.1186196 | BS102: 2013-11-01 | BT102: =SUM(C$92:C102) -> 114001.219 | BU102: =SUM(D$92:D102) -> 126150.1393 | BV102: =SUM(E$92:E102) -> 96341.13086 | BW102: =SUM(F$92:F102) -> 17660.08815 | BX102: 11 | BY102: 2013
B103: 2013-12-01 | C103: 10206.82362 | D103: 11350.55875 | E103: 8628.669196 | F103: 1578.154423 | G103: 238.322664 | H103: 290.9498244 | I103: 38.8464 | J103: 40.9052592 | K103: 13.0718136 | L103: 189.2499492 | M103: 411.868956 | N103: 57.29844 | O103: 187.870902 | P103: 2064.190868 | Q103: 2468.212852 | R103: 51.277248 | S103: 113.0041776 | T103: 164.7864288 | U103: 821.2905888 | V103: 57.832578 | W103: 99.7575552 | X103: 23.6574576 | Y103: c | Z103: 1006.801572 | AA103: 795.6519648 | AB103: 141.3620496 | AC103: 65.8640712 | AD103: 65.8640712 | AE103: 40.8081432 | AF103: 521.5032084 | AG103: 236.574576 | AH103: 1143.735132 | AM103: 7.5459132 | AN103: 20.87994 | AO103: -0.0194232 | AP103: -2.4279 | AQ103: 0.3204828 | AR103: -0.825486 | AS103: 21.656868 | AT103: 4.8558 | AU103: 7.575048 | AV103: 63.4847292 | AW103: 92.940012 | AX103: -1.359624 | AY103: 1.6898184 | AZ103: 34.670412 | BA103: 55.4241012 | BB103: 6.1571544 | BC103: 5.9532108 | BD103: 1.748088 | BF103: 51.762828 | BG103: 45.5571156 | BH103: 1.2333732 | BI103: 5.6424396 | BJ103: -0.776928 | BK103: -0.6506772 | BL103: 55.307562 | BM103: 8.0703396 | BN103: 104.496816 | BO103: 590.9120136 | BP103: 420.9395904 | BQ103: 65.4756072 | BS103: 2013-12-01 | BT103: =SUM(C$92:C103) -> 124208.0426 | BU103: =SUM(D$92:D103) -> 137500.698 | BV103: =SUM(E$92:E103) -> 104969.8001 | BW103: =SUM(F$92:F103) -> 19238.24258 | BX103: 12 | BY103: 2013
B104: 2014-01-01 | C104: 10624.61665 | D104: 11803.99335 | E104: 9006.120241 | F104: =SUM(I104:L104,N104,S104,V104:W104,Y104,AA104,AC104:AE104) -> 1618.49641 | G104: 253.7252616 | H104: 302.7979764 | I104: 38.8464 | J104: 43.6147956 | K104: 13.7322024 | L104: 194.5039248 | M104: 420.123816 | N104: 59.24076 | O104: 194.4165204 | P104: 2168.347778 | Q104: 2559.414487 | R104: 52.636872 | S104: 114.645438 | T104: 131.9903556 | U104: 917.794758 | V104: 57.978252 | W104: 98.0288904 | X104: 24.861696 | Y104: c | Z104: 1042.928724 | AA104: 818.3576856 | AB104: 147.713436 | AC104: 67.9812 | AD104: 68.3502408 | AE104: 43.21662 | AF104: 544.3157568 | AG104: 245.0528028 | AH104: 1179.376704 | AM104: 10.9643964 | AN104: 28.2996024 | AO104: -0.0097116 | AP104: -1.3790472 | AQ104: 0.8837556 | AR104: -2.0491476 | AS104: 16.9953 | AT104: 5.244264 | AU104: 6.6233112 | AV104: 120.229608 | AW104: 98.08716 | AX104: -0.582696 | AY104: 1.7869344 | AZ104: 6.4679256 | BA104: 46.3631784 | BB104: 6.5164836 | BC104: 5.9920572 | BD104: 1.4955864 | BF104: 50.50032 | BG104: 55.4435244 | BH104: 2.3599188 | BI104: 4.8655116 | BJ104: -0.7866396 | BK104: 0.339906 | BL104: 31.5918348 | BM104: 7.9926468 | BN104: 120.42384 | BO104: 624.6598236 | BP104: 427.3880928 | BQ104: 76.8478908 | BS104: 2014-01-01 | BT104: =SUM(C$104:C104) -> 10624.61665 | BU104: =SUM(D$104:D104) -> 11803.99335 | BV104: =SUM(E$104:E104) -> 9006.120241 | BW104: =SUM(F$104:F104) -> 1618.49641 | BX104: 1 | BY104: 2014
B105: 2014-02-01 | C105: 9898.946476 | D105: 10998.10536 | E105: 8398.756777 | F105: 1500.189698 | G105: 237.6525636 | H105: 275.5569384 | I105: 38.8658232 | J105: 40.3808328 | K105: 12.38229 | L105: 180.1210452 | M105: 380.306256 | N105: 54.482076 | O105: 180.3055656 | P105: 1996.258226 | Q105: 2359.365239 | R105: 48.266652 | S105: 109.6245408 | T105: 213.9659712 | U105: 863.3223936 | V105: 52.345524 | W105: 86.6371836 | X105: 22.8319716 | Y105: c | Z105: 951.931032 | AA105: 757.3494144 | AB105: 138.7204944 | AC105: 64.8831996 | AD105: 63.5235756 | AE105: 39.5941932 | AF105: 503.8183848 | AG105: 226.4550888 | AH105: 1099.158888 | AM105: 12.1686348 | AN105: 20.2389744 | AO105: -0.8546208 | AP105: 0.145674 | AQ105: 0.6118308 | AR105: -0.5729844 | AS105: 11.945268 | AT105: 4.467336 | AU105: 6.4387908 | AV105: 124.0559784 | AW105: 100.2431352 | AX105: -3.107712 | AY105: 2.0685708 | AZ105: -8.886114 | BA105: 48.0529968 | BB105: 5.3510916 | BC105: 5.1083016 | BD105: 0.825486 | BF105: 38.8464 | BG105: 47.7616488 | BH105: 2.5347276 | BI105: 6.8758128 | BJ105: -0.388464 | BK105: 0.1165392 | BL105: 27.2313264 | BM105: 7.3613928 | BN105: 121.103652 | BO105: 579.7436736 | BP105: 387.9492852 | BQ105: 70.6907364 | BS105: 2014-02-01 | BT105: =SUM(C$104:C105) -> 20523.56313 | BU105: =SUM(D$104:D105) -> 22802.09872 | BV105: =SUM(E$104:E105) -> 17404.87702 | BW105: =SUM(F$104:F105) -> 3118.686108 | BX105: 2 | BY105: 2014
B106: 2014-03-01 | C106: 11289.53106 | D106: 12546.40633 | E106: 9596.488405 | F106: 1693.042651 | G106: 269.9436336 | H106: 303.6428856 | I106: 40.8275664 | J106: 45.8775984 | K106: 13.7807604 | L106: 203.2734996 | M106: 424.8825 | N106: 61.377312 | O106: 201.5254116 | P106: 2249.060886 | Q106: 2654.316242 | R106: 54.190728 | S106: 122.9391444 | T106: 470.7018288 | U106: 914.9978172 | V106: 59.143644 | W106: 97.067442 | X106: 26.1630504 | Y106: c | Z106: 1052.931672 | AA106: 853.8827184 | AB106: 161.1931368 | AC106: 77.7219348 | AD106: 71.9338212 | AE106: 45.2172096 | AF106: 559.9028748 | AG106: 253.035738 | AH106: 1256.875272 | AM106: 14.8004784 | AN106: 18.5880024 | AO106: 1.0100064 | AP106: 2.8843452 | AQ106: 0.6215424 | AR106: 0.8643324 | AS106: 17.772228 | AT106: 5.82696 | AU106: 8.2742832 | AV106: 185.4818484 | AW106: 136.5742308 | AX106: -4.758684 | AY106: 4.2828156 | AZ106: 2.6027088 | BA106: 65.8058016 | BB106: 6.79812 | BC106: 6.6135996 | BD106: 0.9420252 | BF106: 43.022388 | BG106: 62.5038576 | BH106: 9.3425592 | BI106: 12.1783464 | BJ106: 0.5729844 | BK106: 0.7186584 | BL106: 32.582418 | BM106: 9.0900576 | BN106: 145.285536 | BO106: 790.28145 | BP106: 540.1203456 | BQ106: 104.8755684 | BS106: 2014-03-01 | BT106: =SUM(C$104:C106) -> 31813.09418 | BU106: =SUM(D$104:D106) -> 35348.50505 | BV106: =SUM(E$104:E106) -> 27001.36542 | BW106: =SUM(F$104:F106) -> 4811.728759 | BX106: 3 | BY106: 2014
B107: 2014-04-01 | C107: 11449.8113 | D107: 12728.92614 | E107: 9756.33163 | F107: 1693.479673 | G107: 269.4094956 | H107: 316.6370064 | I107: 44.2072032 | J107: 45.3725952 | K107: 13.7613372 | L107: 197.2523076 | M107: 422.4546 | N107: 60.017688 | O107: 194.280558 | P107: 2219.877528 | Q107: 2623.579028 | R107: 53.608032 | S107: 121.3755768 | T107: 696.952974 | U107: 921.5725704 | V107: 59.532108 | W107: 99.2622636 | X107: 25.5026616 | Y107: 3.593292 | Z107: 1050.503772 | AA107: 851.4548184 | AB107: 160.8046728 | AC107: 82.6068696 | AD107: 69.9915012 | AE107: 45.0521124 | AF107: 554.920824 | AG107: 246.2279064 | AH107: 1279.114836 | AM107: 18.0732876 | AN107: 30.7954836 | AO107: 4.0497372 | AP107: 3.5544456 | AQ107: 1.3207776 | AR107: 1.6898184 | AS107: 18.063576 | AT107: 4.758684 | AU107: 5.9143644 | AV107: 186.9483 | AW107: 146.1207336 | AX107: -4.37022 | AY107: 8.5267848 | AZ107: 128.2125432 | BA107: 44.3917236 | BB107: 6.4776372 | BC107: 6.895236 | BD107: 1.8063576 | BF107: 66.03888 | BG107: 55.8611232 | BH107: 9.0706344 | BI107: 12.576522 | BJ107: 1.019718 | BK107: 1.4470284 | BL107: 29.7077844 | BM107: 7.6430292 | BN107: 167.233752 | BO107: 967.421034 | BP107: 688.4164776 | BQ107: 111.7708044 | BS107: 2014-04-01 | BT107: =SUM(C$104:C107) -> 43262.90549 | BU107: =SUM(D$104:D107) -> 48077.43119 | BV107: =SUM(E$104:E107) -> 36757.69705 | BW107: =SUM(F$104:F107) -> 6505.208432 | BX107: 4 | BY107: 2014
B108: 2014-05-01 | C108: 11891.28122 | D108: 13224.6839 | E108: 10044.2223 | F108: 1847.058916 | G108: 277.1593524 | H108: 324.7267692 | I108: 46.275774 | J108: 46.37289 | K108: 14.5868232 | L108: 203.6619636 | M108: 443.917236 | N108: 62.931168 | O108: 200.4085776 | P108: 2219.052042 | Q108: 2714.916626 | R108: 55.161888 | S108: 123.8520348 | T108: 785.4644964 | U108: 946.0749372 | V108: 69.826404 | W108: 124.017132 | X108: 26.5903608 | Y108: 3.64185 | Z108: 1062.837504 | AA108: 935.0037132 | AB108: 168.641934 | AC108: 98.8737996 | AD108: 71.7104544 | AE108: 46.3049088 | AF108: 565.749258 | AG108: 253.521318 | AH108: 1333.40268 | AM108: 11.8869984 | AN108: 15.7522152 | AO108: 2.0782824 | AP108: 2.5153044 | AQ108: 1.9811664 | AR108: -1.796646 | AS108: 12.430848 | AT108: 4.8558 | AU108: 5.001474 | AV108: 110.4306036 | AW108: 82.4126376 | AX108: -3.787524 | AY108: 7.7401452 | AZ108: 52.2775428 | BA108: 42.925272 | BB108: 9.0512112 | BC108: 14.2177824 | BD108: 1.3013544 | BF108: 12.1395 | BG108: 67.6704288 | BH108: 7.6041828 | BI108: 14.7422088 | BJ108: -0.0582696 | BK108: 0.776928 | BL108: 34.5441612 | BM108: 6.7398504 | BN108: 99.349668 | BO108: 618.4249764 | BP108: 391.6591164 | BQ108: 127.416192 | BS108: 2014-05-01 | BT108: =SUM(C$104:C108) -> 55154.1867 | BU108: =SUM(D$104:D108) -> 61302.11508 | BV108: =SUM(E$104:E108) -> 46801.91935 | BW108: =SUM(F$104:F108) -> 8352.267348 | BX108: 5 | BY108: 2014
B109: 2014-06-01 | C109: 11295.36773 | D109: 12536.02463 | E109: 9474.510709 | F109: 1820.857019 | G109: 258.5325036 | H109: 308.8094568 | I109: 45.0326892 | J109: 43.4011404 | K109: 13.7613372 | L109: 197.242596 | M109: 428.28156 | N109: 62.15424 | O109: 192.7072788 | P109: 2023.275898 | Q109: 2607.02075 | R109: 52.92822 | S109: 118.869984 | T109: 732.3906024 | U109: 882.8524212 | V109: 75.2649 | W109: 135.2922996 | X109: 25.3569876 | Y109: 3.4379064 | Z109: 1015.444896 | AA109: 913.4925192 | AB109: 158.3185032 | AC109: 98.0968716 | AD109: 70.846122 | AE109: 43.9644132 | AF109: 549.5503092 | AG109: 239.0413224 | AH109: 1240.6569 | AM109: 20.0156076 | AN109: 22.7057208 | AO109: 3.6806964 | AP109: 3.9720444 | AQ109: 1.7286648 | AR109: 3.1174236 | AS109: 9.905832 | AT109: 5.244264 | AU109: 7.2254304 | AV109: 106.9635624 | AW109: 114.7134192 | AX109: -0.776928 | AY109: 13.013544 | AZ109: 31.4752956 | BA109: 28.9697028 | BB109: 8.5656312 | BC109: 12.5473872 | BD109: 1.7869344 | BF109: 27.095364 | BG109: 72.2737272 | BH109: 4.5741636 | BI109: 14.7713436 | BJ109: 3.496176 | BK109: 1.9131852 | BL109: 46.178658 | BM109: 5.8366716 | BN109: 63.222516 | BO109: 637.6539444 | BP109: 426.6694344 | BQ109: 147.761994 | BS109: 2014-06-01 | BT109: =SUM(C$104:C109) -> 66449.55443 | BU109: =SUM(D$104:D109) -> 73838.13971 | BV109: =SUM(E$104:E109) -> 56276.43006 | BW109: =SUM(F$104:F109) -> 10173.12437 | BX109: 6 | BY109: 2014
B110: 2014-07-01 | C110: 11302.2921 | D110: 12527.50755 | E110: 9444.841771 | F110: 1857.450328 | G110: 251.093418 | H110: 308.3724348 | I110: 45.693078 | J110: 43.6633536 | K110: 13.5573936 | L110: 203.6619636 | M110: 434.302752 | N110: 63.319632 | O110: 194.0086332 | P110: 1973.445678 | Q110: 2643.779156 | R110: 51.180132 | S110: 121.5115392 | T110: 687.9988788 | U110: 905.5290072 | V110: 76.527408 | W110: 142.5565764 | X110: 25.5123732 | Y110: 3.4767528 | Z110: 1021.271856 | AA110: 933.7314936 | AB110: 155.6089668 | AC110: 93.7072284 | AD110: 71.2151628 | AE110: 44.8287456 | AF110: 554.4158208 | AG110: 238.322664 | AH110: 1225.215456 | AM110: 14.1983592 | AN110: 16.0921212 | AO110: 3.6709848 | AP110: 3.2339628 | AQ110: 1.0391412 | AR110: 2.3404956 | AS110: 6.603888 | AT110: 4.564452 | AU110: 5.5259004 | AV110: 116.0730432 | AW110: 97.4947524 | AX110: -1.359624 | AY110: 12.0715188 | AZ110: 35.3308008 | BA110: 59.0173932 | BB110: 7.2060072 | BC110: 10.0709292 | BD110: 1.69953 | BF110: 1.748088 | BG110: 61.9502964 | BH110: 7.8081264 | BI110: 9.808716 | BJ110: 1.4470284 | BK110: 1.9034736 | BL110: 27.3575772 | BM110: 3.7195428 | BN110: 81.57744 | BO110: 595.6706976 | BP110: 391.3094988 | BQ110: 122.7837588 | BS110: 2014-07-01 | BT110: =SUM(C$104:C110) -> 77751.84653 | BU110: =SUM(D$104:D110) -> 86365.64726 | BV110: =SUM(E$104:E110) -> 65721.27183 | BW110: =SUM(F$104:F110) -> 12030.57469 | BX110: 7 | BY110: 2014
B111: 2014-08-01 | C111: 10961.42465 | D111: 12139.2475 | E111: 9151.162987 | F111: 1810.261663 | G111: 240.507774 | H111: 300.8847912 | I111: 39.1960176 | J111: 41.8472844 | K111: 12.9552744 | L111: 201.2146404 | M111: 427.3104 | N111: 61.474428 | O111: 191.6972724 | P111: 1915.525696 | Q111: 2586.762353 | R111: 48.169536 | S111: 118.8505608 | T111: 608.1792384 | U111: 881.4539508 | V111: 76.72164 | W111: 144.4309152 | X111: 24.7063104 | Y111: 3.3213672 | Z111: 1006.60734 | AA111: 910.1128824 | AB111: 148.538922 | AC111: 86.4429516 | AD111: 69.7875576 | AE111: 43.9061436 | AF111: 536.8766712 | AG111: 233.9427324 | AH111: 1177.822848 | AM111: 14.4508608 | AN111: 16.3349112 | AO111: 0.3496176 | AP111: 2.622132 | AQ111: 0.1553856 | AR111: 6.2736936 | AS111: 6.021192 | AT111: 3.301944 | AU111: 5.2151292 | AV111: 115.859388 | AW111: 98.0094672 | AX111: -1.359624 | AY111: 12.0132492 | AZ111: 15.441444 | BA111: 44.1489336 | BB111: 4.758684 | BC111: 6.846678 | BD111: 2.0297244 | BF111: -6.506772 | BG111: 59.8525908 | BH111: 9.1094808 | BI111: 12.7901772 | BJ111: 3.0688656 | BK111: 2.8454988 | BL111: 28.16364 | BM111: 2.9717496 | BN111: 62.15424 | BO111: 530.2436484 | BP111: 349.8895248 | BQ111: 118.1998836 | BS111: 2014-08-01 | BT111: =SUM(C$104:C111) -> 88713.27118 | BU111: =SUM(D$104:D111) -> 98504.89476 | BV111: =SUM(E$104:E111) -> 74872.43482 | BW111: =SUM(F$104:F111) -> 13840.83636 | BX111: 8 | BY111: 2014
B112: 2014-09-01 | C112: 10467.24017 | D112: 11614.5686 | E112: 8747.286678 | F112: 1719.953495 | G112: 225.3285432 | H112: 288.6384636 | I112: 39.1086132 | J112: 39.0989016 | K112: 12.5376756 | L112: 189.0071592 | M112: 398.1756 | N112: 57.29844 | O112: 183.1996224 | P112: 1855.64397 | Q112: 2433.901769 | R112: 48.752232 | S112: 113.577162 | T112: 519.2209824 | U112: 936.246798 | V112: 72.739884 | W112: 138.4485696 | X112: 23.3466864 | Y112: 3.15627 | Z112: 969.411912 | AA112: 865.837698 | AB112: 138.9827076 | AC112: 82.8205248 | AD112: 65.2522404 | AE112: 41.0703564 | AF112: 503.3813628 | AG112: 223.0560288 | AH112: 1147.328424 | AM112: 5.535612 | AN112: 23.5409184 | AO112: 0.2622132 | AP112: 0.9517368 | AQ112: -0.145674 | AR112: 2.7775176 | AS112: 2.4279 | AT112: 1.553856 | AU112: 5.050032 | AV112: 121.9388496 | AW112: 72.4679592 | AX112: 0.97116 | AY112: 7.6333176 | AZ112: 20.7731124 | BA112: 111.0132996 | BB112: 4.710126 | BC112: 9.031788 | BD112: 2.039436 | BF112: 11.751036 | BG112: 60.066246 | BH112: 8.4393804 | BI112: 12.722196 | BJ112: 1.4470284 | BK112: 1.165392 | BL112: 15.9658704 | BM112: 3.3699252 | BN112: 84.782268 | BO112: 595.3987728 | BP112: 405.2844912 | BQ112: 105.3320136 | BS112: 2014-09-01 | BT112: =SUM(C$104:C112) -> 99180.51135 | BU112: =SUM(D$104:D112) -> 110119.4634 | BV112: =SUM(E$104:E112) -> 83619.7215 | BW112: =SUM(F$104:F112) -> 15560.78985 | BX112: 9 | BY112: 2014
B113: 2014-10-01 | C113: 10346.01027 | D113: 11502.66183 | E113: 8666.787226 | F113: 1679.223044 | G113: 233.6416728 | H113: 290.0563572 | I113: 39.0503436 | J113: 39.2251524 | K113: 13.0232556 | L113: 191.4253476 | M113: 399.14676 | N113: 56.424396 | O113: 184.326168 | P113: 1947.438013 | Q113: 2462.881183 | R113: 45.64452 | S113: 118.3552692 | T113: 426.3003936 | U113: 778.9577244 | V113: 65.5533 | W113: 123.6869376 | X113: 23.7739968 | Y113: 3.3796368 | Z113: 986.69856 | AA113: 844.6081404 | AB113: 142.2943632 | AC113: 77.5665492 | AD113: 65.3979144 | AE113: 41.5268016 | AF113: 518.4343428 | AG113: 227.1931704 | AH113: 1156.65156 | AM113: 5.1180132 | AN113: 11.8093056 | AO113: 0.2039436 | AP113: 0.2039436 | AQ113: -0.437022 | AR113: 4.61301 | AS113: -2.816364 | AT113: 1.068276 | AU113: 5.001474 | AV113: 45.6056736 | AW113: 59.2116252 | AX113: -3.204828 | AY113: 10.5759324 | AZ113: 8.01207 | BA113: -29.0571072 | BB113: 4.3605084 | BC113: 7.2934116 | BD113: 1.4178936 | BF113: 4.467336 | BG113: 46.8681816 | BH113: 8.7695748 | BI113: 4.9917624 | BJ113: 2.1462636 | BK113: 0.97116 | BL113: 18.2869428 | BM113: 3.6515616 | BN113: 68.46678 | BO113: 290.9789592 | BP113: 136.2731712 | BQ113: 86.239008 | BS113: 2014-10-01 | BT113: =SUM(C$104:C113) -> 109526.5216 | BU113: =SUM(D$104:D113) -> 121622.1252 | BV113: =SUM(E$104:E113) -> 92286.50872 | BW113: =SUM(F$104:F113) -> 17240.0129 | BX113: 10 | BY113: 2014
B114: 2014-11-01 | C114: 9877.173068 | D114: 10997.50324 | E114: 8318.422422 | F114: 1558.750646 | G114: 224.3768064 | H114: 272.7794208 | I114: 38.9823624 | J114: 38.069472 | K114: 12.2171928 | L114: 186.7637796 | M114: 383.899548 | N114: 53.802264 | O114: 180.4026816 | P114: 1934.521585 | Q114: 2357.510323 | R114: 43.7022 | S114: 116.3352564 | T114: 237.7302564 | U114: 849.425094 | V114: 56.81286 | W114: 101.1171792 | X114: 23.1913008 | Y114: 3.3407904 | Z114: 948.920436 | AA114: 779.4724392 | AB114: 139.5265572 | AC114: 68.3987988 | AD114: 63.5915568 | AE114: 39.8466948 | AF114: 499.127682 | AG114: 223.3085304 | AH114: 1120.330176 | AM114: 3.8166588 | AN114: 5.147148 | AO114: 0.1359624 | AP114: -0.1845204 | AQ114: -0.5632728 | AR114: 6.6815808 | AS114: -5.147148 | AT114: 0 | AU114: 4.0206024 | AV114: 35.9523432 | AW114: 38.797842 | AX114: -5.34138 | AY114: 8.3325528 | AZ114: -38.6813028 | BA114: 60.2799012 | BB114: 2.039436 | BC114: 4.8266652 | BD114: 1.5150096 | BF114: 6.79812 | BG114: 33.553578 | BH114: 6.6912924 | BI114: 4.904358 | BJ114: 2.6027088 | BK114: 1.0876992 | BL114: 2.4958812 | BM114: 2.4958812 | BN114: 53.4138 | BO114: 239.0121876 | BP114: 118.8408492 | BQ114: 66.7575384 | BS114: 2014-11-01 | BT114: =SUM(C$104:C114) -> 119403.6947 | BU114: =SUM(D$104:D114) -> 132619.6284 | BV114: =SUM(E$104:E114) -> 100604.9311 | BW114: =SUM(F$104:F114) -> 18798.76354 | BX114: 11 | BY114: 2014
B115: 2014-12-01 | C115: 10322.3431 | D115: 11507.54676 | E115: 8693.387298 | F115: 1628.955803 | G115: 237.5554476 | H115: 290.13405 | I115: 38.8852464 | J115: 40.7013156 | K115: 12.6347916 | L115: 196.3879752 | M115: 402.351588 | N115: 56.424396 | O115: 191.8915044 | P115: 2076.165271 | Q115: 2466.969767 | R115: 46.907028 | S115: 127.8629256 | T115: 137.5939488 | U115: 907.9471956 | V115: 58.852296 | W115: 103.5547908 | X115: 24.9005424 | Y115: 3.5253108 | Z115: 1003.790976 | AA115: 812.9677476 | AB115: 149.3741196 | AC115: 67.5733128 | AD115: 67.7578332 | AE115: 41.8278612 | AF115: 520.250412 | AG115: 237.5554476 | AH115: 1185.203664 | AM115: -0.7672164 | AN115: -0.8157744 | AO115: 0.0388464 | AP115: -0.2039436 | AQ115: -0.437022 | AR115: 7.138026 | AS115: -9.517368 | AT115: -0.874044 | AU115: 4.0206024 | AV115: 11.9744028 | AW115: -1.2430848 | AX115: -4.37022 | AY115: 14.858748 | AZ115: -27.19248 | BA115: 86.6566068 | BB115: 1.019718 | BC115: 3.7972356 | BD115: 1.2430848 | BF115: -3.010596 | BG115: 17.3157828 | BH115: 8.01207 | BI115: 1.7092416 | BJ115: 1.893762 | BK115: 1.019718 | BL115: -1.2527964 | BM115: 0.9808716 | BN115: 41.468532 | BO115: 156.988014 | BP115: 64.7181024 | BQ115: 50.8013796 | BS115: 2014-12-01 | BT115: =SUM(C$104:C115) -> 129726.0378 | BU115: =SUM(D$104:D115) -> 144127.1752 | BV115: =SUM(E$104:E115) -> 109298.3184 | BW115: =SUM(F$104:F115) -> 20427.71935 | BX115: 12 | BY115: 2014
B116: 2015-01-01 | C116: 10525.73314 | D116: 11719.28878 | E116: 8881.55926 | F116: 1644.17388 | G116: =INDEX('x2 Index and Match (hide)'!$B$43:$AW$70,MATCH('Milk deliveries by EU country'!G$7,'x2 Index and Match (hide)'!$A$43:$A$70,0),MATCH('Milk deliveries by EU country'!$B116,'x2 Index and Match (hide)'!$B$42:$AW$42,0)) -> 247.2184896 | H116: =INDEX('x2 Index and Match (hide)'!$B$43:$AW$70,MATCH('Milk deliveries by EU country'!H$7,'x2 Index and Match (hide)'!$A$43:$A$70,0),MATCH('Milk deliveries by EU country'!$B116,'x2 Index and Match (hide)'!$B$42:$AW$42,0)) -> 292.9212792 | I116: =INDEX('x2 Index and Match (hide)'!$B$43:$AW$70,MATCH('Milk deliveries by EU country'!I$7,'x2 Index and Match (hide)'!$A$43:$A$70,0),MATCH('Milk deliveries by EU country'!$B116,'x2 Index and Match (hide)'!$B$42:$AW$42,0)) -> 38.8464 | J116: =INDEX('x2 Index and Match (hide)'!$B$43:$AW$70,MATCH('Milk deliveries by EU country'!J$7,'x2 Index and Match (hide)'!$A$43:$A$70,0),MATCH('Milk deliveries by EU country'!$B116,'x2 Index and Match (hide)'!$B$42:$AW$42,0)) -> 42.3037296 | K116: =INDEX('x2 Index and Match (hide)'!$B$43:$AW$70,MATCH('Milk deliveries by EU country'!K$7,'x2 Index and Match (hide)'!$A$43:$A$70,0),MATCH('Milk deliveries by EU country'!$B116,'x2 Index and Match (hide)'!$B$42:$AW$42,0)) -> 12.4502712 | L116: =INDEX('x2 Index and Match (hide)'!$B$43:$AW$70,MATCH('Milk deliveries by EU country'!L$7,'x2 Index and Match (hide)'!$A$43:$A$70,0),MATCH('Milk deliveries by EU country'!$B116,'x2 Index and Match (hide)'!$B$42:$AW$42,0)) -> 202.0692612 | M116: =INDEX('x2 Index and Match (hide)'!$B$43:$AW$70,MATCH('Milk deliveries by EU country'!M$7,'x2 Index and Match (hide)'!$A$43:$A$70,0),MATCH('Milk deliveries by EU country'!$B116,'x2 Index and Match (hide)'!$B$42:$AW$42,0)) -> 411.966072 | N116: =INDEX('x2 Index and Match (hide)'!$B$43:$AW$70,MATCH('Milk deliveries by EU country'!N$7,'x2 Index and Match (hide)'!$A$43:$A$70,0),MATCH('Milk deliveries by EU country'!$B116,'x2 Index and Match (hide)'!$B$42:$AW$42,0)) -> 57.78402 | O116: =INDEX('x2 Index and Match (hide)'!$B$43:$AW$70,MATCH('Milk deliveries by EU country'!O$7,'x2 Index and Match (hide)'!$A$43:$A$70,0),MATCH('Milk deliveries by EU country'!$B116,'x2 Index and Match (hide)'!$B$42:$AW$42,0)) -> 197.728176 | P116: =INDEX('x2 Index and Match (hide)'!$B$43:$AW$70,MATCH('Milk deliveries by EU country'!P$7,'x2 Index and Match (hide)'!$A$43:$A$70,0),MATCH('Milk deliveries by EU country'!$B116,'x2 Index and Match (hide)'!$B$42:$AW$42,0)) -> 2138.601148 | Q116: =INDEX('x2 Index and Match (hide)'!$B$43:$AW$70,MATCH('Milk deliveries by EU country'!Q$7,'x2 Index and Match (hide)'!$A$43:$A$70,0),MATCH('Milk deliveries by EU country'!$B116,'x2 Index and Match (hide)'!$B$42:$AW$42,0)) -> 2535.300584 | R116: =INDEX('x2 Index and Match (hide)'!$B$43:$AW$70,MATCH('Milk deliveries by EU country'!R$7,'x2 Index and Match (hide)'!$A$43:$A$70,0),MATCH('Milk deliveries by EU country'!$B116,'x2 Index and Match (hide)'!$B$42:$AW$42,0)) -> 48.460884 | S116: =INDEX('x2 Index and Match (hide)'!$B$43:$AW$70,MATCH('Milk deliveries by EU country'!S$7,'x2 Index and Match (hide)'!$A$43:$A$70,0),MATCH('Milk deliveries by EU country'!$B116,'x2 Index and Match (hide)'!$B$42:$AW$42,0)) -> 126.0274332 | T116: =INDEX('x2 Index and Match (hide)'!$B$43:$AW$70,MATCH('Milk deliveries by EU country'!T$7,'x2 Index and Match (hide)'!$A$43:$A$70,0),MATCH('Milk deliveries by EU country'!$B116,'x2 Index and Match (hide)'!$B$42:$AW$42,0)) -> 114.7619772 | U116: =INDEX('x2 Index and Match (hide)'!$B$43:$AW$70,MATCH('Milk deliveries by EU country'!U$7,'x2 Index and Match (hide)'!$A$43:$A$70,0),MATCH('Milk deliveries by EU country'!$B116,'x2 Index and Match (hide)'!$B$42:$AW$42,0)) -> 890.3012184 | V116: =INDEX('x2 Index and Match (hide)'!$B$43:$AW$70,MATCH('Milk deliveries by EU country'!V$7,'x2 Index and Match (hide)'!$A$43:$A$70,0),MATCH('Milk deliveries by EU country'!$B116,'x2 Index and Match (hide)'!$B$42:$AW$42,0)) -> 57.78402 | W116: =INDEX('x2 Index and Match (hide)'!$B$43:$AW$70,MATCH('Milk deliveries by EU country'!W$7,'x2 Index and Match (hide)'!$A$43:$A$70,0),MATCH('Milk deliveries by EU country'!$B116,'x2 Index and Match (hide)'!$B$42:$AW$42,0)) -> 101.291988 | X116: =INDEX('x2 Index and Match (hide)'!$B$43:$AW$70,MATCH('Milk deliveries by EU country'!X$7,'x2 Index and Match (hide)'!$A$43:$A$70,0),MATCH('Milk deliveries by EU country'!$B116,'x2 Index and Match (hide)'!$B$42:$AW$42,0)) -> 25.4735268 | Y116: =INDEX('x2 Index and Match (hide)'!$B$43:$AW$70,MATCH('Milk deliveries by EU country'!Y$7,'x2 Index and Match (hide)'!$A$43:$A$70,0),MATCH('Milk deliveries by EU country'!$B116,'x2 Index and Match (hide)'!$B$42:$AW$42,0)) -> 3.64185 | Z116: =INDEX('x2 Index and Match (hide)'!$B$43:$AW$70,MATCH('Milk deliveries by EU country'!Z$7,'x2 Index and Match (hide)'!$A$43:$A$70,0),MATCH('Milk deliveries by EU country'!$B116,'x2 Index and Match (hide)'!$B$42:$AW$42,0)) -> 1021.466088 | AA116: =INDEX('x2 Index and Match (hide)'!$B$43:$AW$70,MATCH('Milk deliveries by EU country'!AA$7,'x2 Index and Match (hide)'!$A$43:$A$70,0),MATCH('Milk deliveries by EU country'!$B116,'x2 Index and Match (hide)'!$B$42:$AW$42,0)) -> 825.4568652 | AB116: =INDEX('x2 Index and Match (hide)'!$B$43:$AW$70,MATCH('Milk deliveries by EU country'!AB$7,'x2 Index and Match (hide)'!$A$43:$A$70,0),MATCH('Milk deliveries by EU country'!$B116,'x2 Index and Match (hide)'!$B$42:$AW$42,0)) -> 155.2205028 | AC116: =INDEX('x2 Index and Match (hide)'!$B$43:$AW$70,MATCH('Milk deliveries by EU country'!AC$7,'x2 Index and Match (hide)'!$A$43:$A$70,0),MATCH('Milk deliveries by EU country'!$B116,'x2 Index and Match (hide)'!$B$42:$AW$42,0)) -> 62.2125096 | AD116: =INDEX('x2 Index and Match (hide)'!$B$43:$AW$70,MATCH('Milk deliveries by EU country'!AD$7,'x2 Index and Match (hide)'!$A$43:$A$70,0),MATCH('Milk deliveries by EU country'!$B116,'x2 Index and Match (hide)'!$B$42:$AW$42,0)) -> 70.6421784 | AE116: =INDEX('x2 Index and Match (hide)'!$B$43:$AW$70,MATCH('Milk deliveries by EU country'!AE$7,'x2 Index and Match (hide)'!$A$43:$A$70,0),MATCH('Milk deliveries by EU country'!$B116,'x2 Index and Match (hide)'!$B$42:$AW$42,0)) -> 43.6633536 | AF116: =INDEX('x2 Index and Match (hide)'!$B$43:$AW$70,MATCH('Milk deliveries by EU country'!AF$7,'x2 Index and Match (hide)'!$A$43:$A$70,0),MATCH('Milk deliveries by EU country'!$B116,'x2 Index and Match (hide)'!$B$42:$AW$42,0)) -> 557.0865108 | AG116: =INDEX('x2 Index and Match (hide)'!$B$43:$AW$70,MATCH('Milk deliveries by EU country'!AG$7,'x2 Index and Match (hide)'!$A$43:$A$70,0),MATCH('Milk deliveries by EU country'!$B116,'x2 Index and Match (hide)'!$B$42:$AW$42,0)) -> 245.0528028 | AH116: =INDEX('x2 Index and Match (hide)'!$B$43:$AW$70,MATCH('Milk deliveries by EU country'!AH$7,'x2 Index and Match (hide)'!$A$43:$A$70,0),MATCH('Milk deliveries by EU country'!$B116,'x2 Index and Match (hide)'!$B$42:$AW$42,0)) -> 1193.55564 | AM116: -6.506772 | AN116: -9.8766972 | AO116: 0 | AP116: -1.311066 | AQ116: -1.2819312 | AR116: 7.5653364 | AS116: -8.157744 | AT116: -1.45674 | AU116: 3.3116556 | AV116: -29.7466308 | AW116: -24.1139028 | AX116: -4.175988 | AY116: 11.3819952 | AZ116: -17.2283784 | BA116: -27.4935396 | BB116: -0.194232 | BC116: 3.2630976 | BD116: 0.6118308 | BF116: -21.462636 | BG116: 7.0991796 | BH116: 7.5070668 | BI116: -5.7686904 | BJ116: 2.2919376 | BK116: 0.4467336 | BL116: 12.770754 | BM116: 0 | BN116: 14.178936 | BO116: =D116-D104 -> -84.7045752 | BP116: =E116-E104 -> -124.5609816 | BQ116: =F116-F104 -> 25.6774704 | BS116: 2015-01-01 | BT116: =SUM(C$116:C116) -> 10525.73314 | BU116: =SUM(D$116:D116) -> 11719.28878 | BV116: =SUM(E$116:E116) -> 8881.55926 | BW116: =SUM(F$116:F116) -> 1644.17388 | BX116: 1 | BY116: 2015
B117: 2015-02-01 | C117: 9757.00173 | D117: 10858.10294 | E117: 8253.849994 | F117: 1503.151736 | G117: =INDEX('x2 Index and Match (hide)'!$B$43:$AW$70,MATCH('Milk deliveries by EU country'!G$7,'x2 Index and Match (hide)'!$A$43:$A$70,0),MATCH('Milk deliveries by EU country'!$B117,'x2 Index and Match (hide)'!$B$42:$AW$42,0)) -> 228.853854 | H117: =INDEX('x2 Index and Match (hide)'!$B$43:$AW$70,MATCH('Milk deliveries by EU country'!H$7,'x2 Index and Match (hide)'!$A$43:$A$70,0),MATCH('Milk deliveries by EU country'!$B117,'x2 Index and Match (hide)'!$B$42:$AW$42,0)) -> 266.0784168 | I117: =INDEX('x2 Index and Match (hide)'!$B$43:$AW$70,MATCH('Milk deliveries by EU country'!I$7,'x2 Index and Match (hide)'!$A$43:$A$70,0),MATCH('Milk deliveries by EU country'!$B117,'x2 Index and Match (hide)'!$B$42:$AW$42,0)) -> 35.1462804 | J117: =INDEX('x2 Index and Match (hide)'!$B$43:$AW$70,MATCH('Milk deliveries by EU country'!J$7,'x2 Index and Match (hide)'!$A$43:$A$70,0),MATCH('Milk deliveries by EU country'!$B117,'x2 Index and Match (hide)'!$B$42:$AW$42,0)) -> 38.8464 | K117: =INDEX('x2 Index and Match (hide)'!$B$43:$AW$70,MATCH('Milk deliveries by EU country'!K$7,'x2 Index and Match (hide)'!$A$43:$A$70,0),MATCH('Milk deliveries by EU country'!$B117,'x2 Index and Match (hide)'!$B$42:$AW$42,0)) -> 11.2460328 | L117: =INDEX('x2 Index and Match (hide)'!$B$43:$AW$70,MATCH('Milk deliveries by EU country'!L$7,'x2 Index and Match (hide)'!$A$43:$A$70,0),MATCH('Milk deliveries by EU country'!$B117,'x2 Index and Match (hide)'!$B$42:$AW$42,0)) -> 186.0839676 | M117: =INDEX('x2 Index and Match (hide)'!$B$43:$AW$70,MATCH('Milk deliveries by EU country'!M$7,'x2 Index and Match (hide)'!$A$43:$A$70,0),MATCH('Milk deliveries by EU country'!$B117,'x2 Index and Match (hide)'!$B$42:$AW$42,0)) -> 374.673528 | N117: =INDEX('x2 Index and Match (hide)'!$B$43:$AW$70,MATCH('Milk deliveries by EU country'!N$7,'x2 Index and Match (hide)'!$A$43:$A$70,0),MATCH('Milk deliveries by EU country'!$B117,'x2 Index and Match (hide)'!$B$42:$AW$42,0)) -> 52.44264 | O117: =INDEX('x2 Index and Match (hide)'!$B$43:$AW$70,MATCH('Milk deliveries by EU country'!O$7,'x2 Index and Match (hide)'!$A$43:$A$70,0),MATCH('Milk deliveries by EU country'!$B117,'x2 Index and Match (hide)'!$B$42:$AW$42,0)) -> 183.2676036 | P117: =INDEX('x2 Index and Match (hide)'!$B$43:$AW$70,MATCH('Milk deliveries by EU country'!P$7,'x2 Index and Match (hide)'!$A$43:$A$70,0),MATCH('Milk deliveries by EU country'!$B117,'x2 Index and Match (hide)'!$B$42:$AW$42,0)) -> 1948.14696 | Q117: =INDEX('x2 Index and Match (hide)'!$B$43:$AW$70,MATCH('Milk deliveries by EU country'!Q$7,'x2 Index and Match (hide)'!$A$43:$A$70,0),MATCH('Milk deliveries by EU country'!$B117,'x2 Index and Match (hide)'!$B$42:$AW$42,0)) -> 2314.264568 | R117: =INDEX('x2 Index and Match (hide)'!$B$43:$AW$70,MATCH('Milk deliveries by EU country'!R$7,'x2 Index and Match (hide)'!$A$43:$A$70,0),MATCH('Milk deliveries by EU country'!$B117,'x2 Index and Match (hide)'!$B$42:$AW$42,0)) -> 46.1301 | S117: =INDEX('x2 Index and Match (hide)'!$B$43:$AW$70,MATCH('Milk deliveries by EU country'!S$7,'x2 Index and Match (hide)'!$A$43:$A$70,0),MATCH('Milk deliveries by EU country'!$B117,'x2 Index and Match (hide)'!$B$42:$AW$42,0)) -> 119.0253696 | T117: =INDEX('x2 Index and Match (hide)'!$B$43:$AW$70,MATCH('Milk deliveries by EU country'!T$7,'x2 Index and Match (hide)'!$A$43:$A$70,0),MATCH('Milk deliveries by EU country'!$B117,'x2 Index and Match (hide)'!$B$42:$AW$42,0)) -> 215.11194 | U117: =INDEX('x2 Index and Match (hide)'!$B$43:$AW$70,MATCH('Milk deliveries by EU country'!U$7,'x2 Index and Match (hide)'!$A$43:$A$70,0),MATCH('Milk deliveries by EU country'!$B117,'x2 Index and Match (hide)'!$B$42:$AW$42,0)) -> 843.6175572 | V117: =INDEX('x2 Index and Match (hide)'!$B$43:$AW$70,MATCH('Milk deliveries by EU country'!V$7,'x2 Index and Match (hide)'!$A$43:$A$70,0),MATCH('Milk deliveries by EU country'!$B117,'x2 Index and Match (hide)'!$B$42:$AW$42,0)) -> 51.8016744 | W117: =INDEX('x2 Index and Match (hide)'!$B$43:$AW$70,MATCH('Milk deliveries by EU country'!W$7,'x2 Index and Match (hide)'!$A$43:$A$70,0),MATCH('Milk deliveries by EU country'!$B117,'x2 Index and Match (hide)'!$B$42:$AW$42,0)) -> 88.4046948 | X117: =INDEX('x2 Index and Match (hide)'!$B$43:$AW$70,MATCH('Milk deliveries by EU country'!X$7,'x2 Index and Match (hide)'!$A$43:$A$70,0),MATCH('Milk deliveries by EU country'!$B117,'x2 Index and Match (hide)'!$B$42:$AW$42,0)) -> 23.210724 | Y117: =INDEX('x2 Index and Match (hide)'!$B$43:$AW$70,MATCH('Milk deliveries by EU country'!Y$7,'x2 Index and Match (hide)'!$A$43:$A$70,0),MATCH('Milk deliveries by EU country'!$B117,'x2 Index and Match (hide)'!$B$42:$AW$42,0)) -> 3.2825208 | Z117: =INDEX('x2 Index and Match (hide)'!$B$43:$AW$70,MATCH('Milk deliveries by EU country'!Z$7,'x2 Index and Match (hide)'!$A$43:$A$70,0),MATCH('Milk deliveries by EU country'!$B117,'x2 Index and Match (hide)'!$B$42:$AW$42,0)) -> 926.777988 | AA117: =INDEX('x2 Index and Match (hide)'!$B$43:$AW$70,MATCH('Milk deliveries by EU country'!AA$7,'x2 Index and Match (hide)'!$A$43:$A$70,0),MATCH('Milk deliveries by EU country'!$B117,'x2 Index and Match (hide)'!$B$42:$AW$42,0)) -> 752.988906 | AB117: =INDEX('x2 Index and Match (hide)'!$B$43:$AW$70,MATCH('Milk deliveries by EU country'!AB$7,'x2 Index and Match (hide)'!$A$43:$A$70,0),MATCH('Milk deliveries by EU country'!$B117,'x2 Index and Match (hide)'!$B$42:$AW$42,0)) -> 146.9656428 | AC117: =INDEX('x2 Index and Match (hide)'!$B$43:$AW$70,MATCH('Milk deliveries by EU country'!AC$7,'x2 Index and Match (hide)'!$A$43:$A$70,0),MATCH('Milk deliveries by EU country'!$B117,'x2 Index and Match (hide)'!$B$42:$AW$42,0)) -> 58.658064 | AD117: =INDEX('x2 Index and Match (hide)'!$B$43:$AW$70,MATCH('Milk deliveries by EU country'!AD$7,'x2 Index and Match (hide)'!$A$43:$A$70,0),MATCH('Milk deliveries by EU country'!$B117,'x2 Index and Match (hide)'!$B$42:$AW$42,0)) -> 64.7957952 | AE117: =INDEX('x2 Index and Match (hide)'!$B$43:$AW$70,MATCH('Milk deliveries by EU country'!AE$7,'x2 Index and Match (hide)'!$A$43:$A$70,0),MATCH('Milk deliveries by EU country'!$B117,'x2 Index and Match (hide)'!$B$42:$AW$42,0)) -> 40.4293908 | AF117: =INDEX('x2 Index and Match (hide)'!$B$43:$AW$70,MATCH('Milk deliveries by EU country'!AF$7,'x2 Index and Match (hide)'!$A$43:$A$70,0),MATCH('Milk deliveries by EU country'!$B117,'x2 Index and Match (hide)'!$B$42:$AW$42,0)) -> 511.2089124 | AG117: =INDEX('x2 Index and Match (hide)'!$B$43:$AW$70,MATCH('Milk deliveries by EU country'!AG$7,'x2 Index and Match (hide)'!$A$43:$A$70,0),MATCH('Milk deliveries by EU country'!$B117,'x2 Index and Match (hide)'!$B$42:$AW$42,0)) -> 225.5421984 | AH117: =INDEX('x2 Index and Match (hide)'!$B$43:$AW$70,MATCH('Milk deliveries by EU country'!AH$7,'x2 Index and Match (hide)'!$A$43:$A$70,0),MATCH('Milk deliveries by EU country'!$B117,'x2 Index and Match (hide)'!$B$42:$AW$42,0)) -> 1101.101208 | AM117: -8.7987096 | AN117: -9.4785216 | AO117: -3.7195428 | AP117: -1.5344328 | AQ117: -1.1362572 | AR117: 5.9629224 | AS117: -5.632728 | AT117: -2.039436 | AU117: 2.962038 | AV117: -48.1112664 | AW117: -45.1006704 | AX117: -2.136552 | AY117: 9.4008288 | AZ117: 1.1459688 | BA117: -19.7048364 | BB117: -0.5438496 | BC117: 1.7675112 | BD117: 0.3787524 | BF117: -25.153044 | BG117: -4.3605084 | BH117: 8.2451484 | BI117: -6.2251356 | BJ117: 1.2722196 | BK117: 0.8351976 | BL117: 7.3905276 | BM117: -0.9128904 | BN117: 1.94232 | BO117: -140.0024256 | BP117: -144.9067836 | BQ117: 2.962038 | BS117: 2015-02-01 | BT117: =SUM(C$116:C117) -> 20282.73487 | BU117: =SUM(D$116:D117) -> 22577.39172 | BV117: =SUM(E$116:E117) -> 17135.40925 | BW117: =SUM(F$116:F117) -> 3147.325616 | BX117: 2 | BY117: 2015
B118: 2015-03-01 | C118: 11135.48566 | D118: 12397.79943 | E118: 9438.917695 | F118: 1696.567962 | G118: =INDEX('x2 Index and Match (hide)'!$B$43:$AW$70,MATCH('Milk deliveries by EU country'!G$7,'x2 Index and Match (hide)'!$A$43:$A$70,0),MATCH('Milk deliveries by EU country'!$B118,'x2 Index and Match (hide)'!$B$42:$AW$42,0)) -> 260.7467484 | H118: =INDEX('x2 Index and Match (hide)'!$B$43:$AW$70,MATCH('Milk deliveries by EU country'!H$7,'x2 Index and Match (hide)'!$A$43:$A$70,0),MATCH('Milk deliveries by EU country'!$B118,'x2 Index and Match (hide)'!$B$42:$AW$42,0)) -> 291.6102132 | I118: =INDEX('x2 Index and Match (hide)'!$B$43:$AW$70,MATCH('Milk deliveries by EU country'!I$7,'x2 Index and Match (hide)'!$A$43:$A$70,0),MATCH('Milk deliveries by EU country'!$B118,'x2 Index and Match (hide)'!$B$42:$AW$42,0)) -> 38.3802432 | J118: =INDEX('x2 Index and Match (hide)'!$B$43:$AW$70,MATCH('Milk deliveries by EU country'!J$7,'x2 Index and Match (hide)'!$A$43:$A$70,0),MATCH('Milk deliveries by EU country'!$B118,'x2 Index and Match (hide)'!$B$42:$AW$42,0)) -> 43.8575856 | K118: =INDEX('x2 Index and Match (hide)'!$B$43:$AW$70,MATCH('Milk deliveries by EU country'!K$7,'x2 Index and Match (hide)'!$A$43:$A$70,0),MATCH('Milk deliveries by EU country'!$B118,'x2 Index and Match (hide)'!$B$42:$AW$42,0)) -> 12.7319076 | L118: =INDEX('x2 Index and Match (hide)'!$B$43:$AW$70,MATCH('Milk deliveries by EU country'!L$7,'x2 Index and Match (hide)'!$A$43:$A$70,0),MATCH('Milk deliveries by EU country'!$B118,'x2 Index and Match (hide)'!$B$42:$AW$42,0)) -> 210.5086416 | M118: =INDEX('x2 Index and Match (hide)'!$B$43:$AW$70,MATCH('Milk deliveries by EU country'!M$7,'x2 Index and Match (hide)'!$A$43:$A$70,0),MATCH('Milk deliveries by EU country'!$B118,'x2 Index and Match (hide)'!$B$42:$AW$42,0)) -> 419.444004 | N118: =INDEX('x2 Index and Match (hide)'!$B$43:$AW$70,MATCH('Milk deliveries by EU country'!N$7,'x2 Index and Match (hide)'!$A$43:$A$70,0),MATCH('Milk deliveries by EU country'!$B118,'x2 Index and Match (hide)'!$B$42:$AW$42,0)) -> 57.686904 | O118: =INDEX('x2 Index and Match (hide)'!$B$43:$AW$70,MATCH('Milk deliveries by EU country'!O$7,'x2 Index and Match (hide)'!$A$43:$A$70,0),MATCH('Milk deliveries by EU country'!$B118,'x2 Index and Match (hide)'!$B$42:$AW$42,0)) -> 204.9827412 | P118: =INDEX('x2 Index and Match (hide)'!$B$43:$AW$70,MATCH('Milk deliveries by EU country'!P$7,'x2 Index and Match (hide)'!$A$43:$A$70,0),MATCH('Milk deliveries by EU country'!$B118,'x2 Index and Match (hide)'!$B$42:$AW$42,0)) -> 2179.215059 | Q118: =INDEX('x2 Index and Match (hide)'!$B$43:$AW$70,MATCH('Milk deliveries by EU country'!Q$7,'x2 Index and Match (hide)'!$A$43:$A$70,0),MATCH('Milk deliveries by EU country'!$B118,'x2 Index and Match (hide)'!$B$42:$AW$42,0)) -> 2603.971308 | R118: =INDEX('x2 Index and Match (hide)'!$B$43:$AW$70,MATCH('Milk deliveries by EU country'!R$7,'x2 Index and Match (hide)'!$A$43:$A$70,0),MATCH('Milk deliveries by EU country'!$B118,'x2 Index and Match (hide)'!$B$42:$AW$42,0)) -> 52.054176 | S118: =INDEX('x2 Index and Match (hide)'!$B$43:$AW$70,MATCH('Milk deliveries by EU country'!S$7,'x2 Index and Match (hide)'!$A$43:$A$70,0),MATCH('Milk deliveries by EU country'!$B118,'x2 Index and Match (hide)'!$B$42:$AW$42,0)) -> 133.825848 | T118: =INDEX('x2 Index and Match (hide)'!$B$43:$AW$70,MATCH('Milk deliveries by EU country'!T$7,'x2 Index and Match (hide)'!$A$43:$A$70,0),MATCH('Milk deliveries by EU country'!$B118,'x2 Index and Match (hide)'!$B$42:$AW$42,0)) -> 454.0270116 | U118: =INDEX('x2 Index and Match (hide)'!$B$43:$AW$70,MATCH('Milk deliveries by EU country'!U$7,'x2 Index and Match (hide)'!$A$43:$A$70,0),MATCH('Milk deliveries by EU country'!$B118,'x2 Index and Match (hide)'!$B$42:$AW$42,0)) -> 907.5393084 | V118: =INDEX('x2 Index and Match (hide)'!$B$43:$AW$70,MATCH('Milk deliveries by EU country'!V$7,'x2 Index and Match (hide)'!$A$43:$A$70,0),MATCH('Milk deliveries by EU country'!$B118,'x2 Index and Match (hide)'!$B$42:$AW$42,0)) -> 56.472954 | W118: =INDEX('x2 Index and Match (hide)'!$B$43:$AW$70,MATCH('Milk deliveries by EU country'!W$7,'x2 Index and Match (hide)'!$A$43:$A$70,0),MATCH('Milk deliveries by EU country'!$B118,'x2 Index and Match (hide)'!$B$42:$AW$42,0)) -> 99.4273608 | X118: =INDEX('x2 Index and Match (hide)'!$B$43:$AW$70,MATCH('Milk deliveries by EU country'!X$7,'x2 Index and Match (hide)'!$A$43:$A$70,0),MATCH('Milk deliveries by EU country'!$B118,'x2 Index and Match (hide)'!$B$42:$AW$42,0)) -> 26.2018968 | Y118: =INDEX('x2 Index and Match (hide)'!$B$43:$AW$70,MATCH('Milk deliveries by EU country'!Y$7,'x2 Index and Match (hide)'!$A$43:$A$70,0),MATCH('Milk deliveries by EU country'!$B118,'x2 Index and Match (hide)'!$B$42:$AW$42,0)) -> 3.64185 | Z118: =INDEX('x2 Index and Match (hide)'!$B$43:$AW$70,MATCH('Milk deliveries by EU country'!Z$7,'x2 Index and Match (hide)'!$A$43:$A$70,0),MATCH('Milk deliveries by EU country'!$B118,'x2 Index and Match (hide)'!$B$42:$AW$42,0)) -> 1031.177688 | AA118: =INDEX('x2 Index and Match (hide)'!$B$43:$AW$70,MATCH('Milk deliveries by EU country'!AA$7,'x2 Index and Match (hide)'!$A$43:$A$70,0),MATCH('Milk deliveries by EU country'!$B118,'x2 Index and Match (hide)'!$B$42:$AW$42,0)) -> 845.8026672 | AB118: =INDEX('x2 Index and Match (hide)'!$B$43:$AW$70,MATCH('Milk deliveries by EU country'!AB$7,'x2 Index and Match (hide)'!$A$43:$A$70,0),MATCH('Milk deliveries by EU country'!$B118,'x2 Index and Match (hide)'!$B$42:$AW$42,0)) -> 169.953 | AC118: =INDEX('x2 Index and Match (hide)'!$B$43:$AW$70,MATCH('Milk deliveries by EU country'!AC$7,'x2 Index and Match (hide)'!$A$43:$A$70,0),MATCH('Milk deliveries by EU country'!$B118,'x2 Index and Match (hide)'!$B$42:$AW$42,0)) -> 75.2260536 | AD118: =INDEX('x2 Index and Match (hide)'!$B$43:$AW$70,MATCH('Milk deliveries by EU country'!AD$7,'x2 Index and Match (hide)'!$A$43:$A$70,0),MATCH('Milk deliveries by EU country'!$B118,'x2 Index and Match (hide)'!$B$42:$AW$42,0)) -> 73.07979 | AE118: =INDEX('x2 Index and Match (hide)'!$B$43:$AW$70,MATCH('Milk deliveries by EU country'!AE$7,'x2 Index and Match (hide)'!$A$43:$A$70,0),MATCH('Milk deliveries by EU country'!$B118,'x2 Index and Match (hide)'!$B$42:$AW$42,0)) -> 45.9261564 | AF118: =INDEX('x2 Index and Match (hide)'!$B$43:$AW$70,MATCH('Milk deliveries by EU country'!AF$7,'x2 Index and Match (hide)'!$A$43:$A$70,0),MATCH('Milk deliveries by EU country'!$B118,'x2 Index and Match (hide)'!$B$42:$AW$42,0)) -> 585.2113044 | AG118: =INDEX('x2 Index and Match (hide)'!$B$43:$AW$70,MATCH('Milk deliveries by EU country'!AG$7,'x2 Index and Match (hide)'!$A$43:$A$70,0),MATCH('Milk deliveries by EU country'!$B118,'x2 Index and Match (hide)'!$B$42:$AW$42,0)) -> 252.7832364 | AH118: =INDEX('x2 Index and Match (hide)'!$B$43:$AW$70,MATCH('Milk deliveries by EU country'!AH$7,'x2 Index and Match (hide)'!$A$43:$A$70,0),MATCH('Milk deliveries by EU country'!$B118,'x2 Index and Match (hide)'!$B$42:$AW$42,0)) -> 1262.313768 | AM118: -9.1968852 | AN118: -12.0326724 | AO118: -2.4473232 | AP118: -2.0200128 | AQ118: -1.0488528 | AR118: 7.235142 | AS118: -5.438496 | AT118: -3.690408 | AU118: 3.4573296 | AV118: -69.8458272 | AW118: -50.3449344 | AX118: -2.136552 | AY118: 10.8867036 | AZ118: -16.6748172 | BA118: -7.4585088 | BB118: -2.67069 | BC118: 2.3599188 | BD118: 0.0388464 | BF118: -21.753984 | BG118: -8.0800512 | BH118: 8.7598632 | BI118: -2.4958812 | BJ118: 1.1459688 | BK118: 0.7089468 | BL118: 25.3084296 | BM118: -0.2525016 | BN118: 5.438496 | BO118: -148.6069032 | BP118: -157.57071 | BQ118: 3.5253108 | BS118: 2015-03-01 | BT118: =SUM(C$116:C118) -> 31418.22053 | BU118: =SUM(D$116:D118) -> 34975.19114 | BV118: =SUM(E$116:E118) -> 26574.32695 | BW118: =SUM(F$116:F118) -> 4843.893578 | BX118: 3 | BY118: 2015
B119: 2015-04-01 | C119: 11635.97296 | D119: 12928.78116 | E119: 9897.052714 | F119: 1738.92025 | G119: =INDEX('x2 Index and Match (hide)'!$B$43:$AW$70,MATCH('Milk deliveries by EU country'!G$7,'x2 Index and Match (hide)'!$A$43:$A$70,0),MATCH('Milk deliveries by EU country'!$B119,'x2 Index and Match (hide)'!$B$42:$AW$42,0)) -> 263.475708 | H119: =INDEX('x2 Index and Match (hide)'!$B$43:$AW$70,MATCH('Milk deliveries by EU country'!H$7,'x2 Index and Match (hide)'!$A$43:$A$70,0),MATCH('Milk deliveries by EU country'!$B119,'x2 Index and Match (hide)'!$B$42:$AW$42,0)) -> 319.6476024 | I119: =INDEX('x2 Index and Match (hide)'!$B$43:$AW$70,MATCH('Milk deliveries by EU country'!I$7,'x2 Index and Match (hide)'!$A$43:$A$70,0),MATCH('Milk deliveries by EU country'!$B119,'x2 Index and Match (hide)'!$B$42:$AW$42,0)) -> 43.21662 | J119: =INDEX('x2 Index and Match (hide)'!$B$43:$AW$70,MATCH('Milk deliveries by EU country'!J$7,'x2 Index and Match (hide)'!$A$43:$A$70,0),MATCH('Milk deliveries by EU country'!$B119,'x2 Index and Match (hide)'!$B$42:$AW$42,0)) -> 43.2846012 | K119: =INDEX('x2 Index and Match (hide)'!$B$43:$AW$70,MATCH('Milk deliveries by EU country'!K$7,'x2 Index and Match (hide)'!$A$43:$A$70,0),MATCH('Milk deliveries by EU country'!$B119,'x2 Index and Match (hide)'!$B$42:$AW$42,0)) -> 13.3243152 | L119: =INDEX('x2 Index and Match (hide)'!$B$43:$AW$70,MATCH('Milk deliveries by EU country'!L$7,'x2 Index and Match (hide)'!$A$43:$A$70,0),MATCH('Milk deliveries by EU country'!$B119,'x2 Index and Match (hide)'!$B$42:$AW$42,0)) -> 205.0410108 | M119: =INDEX('x2 Index and Match (hide)'!$B$43:$AW$70,MATCH('Milk deliveries by EU country'!M$7,'x2 Index and Match (hide)'!$A$43:$A$70,0),MATCH('Milk deliveries by EU country'!$B119,'x2 Index and Match (hide)'!$B$42:$AW$42,0)) -> 421.580556 | N119: =INDEX('x2 Index and Match (hide)'!$B$43:$AW$70,MATCH('Milk deliveries by EU country'!N$7,'x2 Index and Match (hide)'!$A$43:$A$70,0),MATCH('Milk deliveries by EU country'!$B119,'x2 Index and Match (hide)'!$B$42:$AW$42,0)) -> 58.560948 | O119: =INDEX('x2 Index and Match (hide)'!$B$43:$AW$70,MATCH('Milk deliveries by EU country'!O$7,'x2 Index and Match (hide)'!$A$43:$A$70,0),MATCH('Milk deliveries by EU country'!$B119,'x2 Index and Match (hide)'!$B$42:$AW$42,0)) -> 198.5925084 | P119: =INDEX('x2 Index and Match (hide)'!$B$43:$AW$70,MATCH('Milk deliveries by EU country'!P$7,'x2 Index and Match (hide)'!$A$43:$A$70,0),MATCH('Milk deliveries by EU country'!$B119,'x2 Index and Match (hide)'!$B$42:$AW$42,0)) -> 2198.123544 | Q119: =INDEX('x2 Index and Match (hide)'!$B$43:$AW$70,MATCH('Milk deliveries by EU country'!Q$7,'x2 Index and Match (hide)'!$A$43:$A$70,0),MATCH('Milk deliveries by EU country'!$B119,'x2 Index and Match (hide)'!$B$42:$AW$42,0)) -> 2636.437187 | R119: =INDEX('x2 Index and Match (hide)'!$B$43:$AW$70,MATCH('Milk deliveries by EU country'!R$7,'x2 Index and Match (hide)'!$A$43:$A$70,0),MATCH('Milk deliveries by EU country'!$B119,'x2 Index and Match (hide)'!$B$42:$AW$42,0)) -> 51.95706 | S119: =INDEX('x2 Index and Match (hide)'!$B$43:$AW$70,MATCH('Milk deliveries by EU country'!S$7,'x2 Index and Match (hide)'!$A$43:$A$70,0),MATCH('Milk deliveries by EU country'!$B119,'x2 Index and Match (hide)'!$B$42:$AW$42,0)) -> 130.1742864 | T119: =INDEX('x2 Index and Match (hide)'!$B$43:$AW$70,MATCH('Milk deliveries by EU country'!T$7,'x2 Index and Match (hide)'!$A$43:$A$70,0),MATCH('Milk deliveries by EU country'!$B119,'x2 Index and Match (hide)'!$B$42:$AW$42,0)) -> 784.308816 | U119: =INDEX('x2 Index and Match (hide)'!$B$43:$AW$70,MATCH('Milk deliveries by EU country'!U$7,'x2 Index and Match (hide)'!$A$43:$A$70,0),MATCH('Milk deliveries by EU country'!$B119,'x2 Index and Match (hide)'!$B$42:$AW$42,0)) -> 929.4778128 | V119: =INDEX('x2 Index and Match (hide)'!$B$43:$AW$70,MATCH('Milk deliveries by EU country'!V$7,'x2 Index and Match (hide)'!$A$43:$A$70,0),MATCH('Milk deliveries by EU country'!$B119,'x2 Index and Match (hide)'!$B$42:$AW$42,0)) -> 59.8914372 | W119: =INDEX('x2 Index and Match (hide)'!$B$43:$AW$70,MATCH('Milk deliveries by EU country'!W$7,'x2 Index and Match (hide)'!$A$43:$A$70,0),MATCH('Milk deliveries by EU country'!$B119,'x2 Index and Match (hide)'!$B$42:$AW$42,0)) -> 101.1074676 | X119: =INDEX('x2 Index and Match (hide)'!$B$43:$AW$70,MATCH('Milk deliveries by EU country'!X$7,'x2 Index and Match (hide)'!$A$43:$A$70,0),MATCH('Milk deliveries by EU country'!$B119,'x2 Index and Match (hide)'!$B$42:$AW$42,0)) -> 27.3672888 | Y119: =INDEX('x2 Index and Match (hide)'!$B$43:$AW$70,MATCH('Milk deliveries by EU country'!Y$7,'x2 Index and Match (hide)'!$A$43:$A$70,0),MATCH('Milk deliveries by EU country'!$B119,'x2 Index and Match (hide)'!$B$42:$AW$42,0)) -> 3.5544456 | Z119: =INDEX('x2 Index and Match (hide)'!$B$43:$AW$70,MATCH('Milk deliveries by EU country'!Z$7,'x2 Index and Match (hide)'!$A$43:$A$70,0),MATCH('Milk deliveries by EU country'!$B119,'x2 Index and Match (hide)'!$B$42:$AW$42,0)) -> 1068.664464 | AA119: =INDEX('x2 Index and Match (hide)'!$B$43:$AW$70,MATCH('Milk deliveries by EU country'!AA$7,'x2 Index and Match (hide)'!$A$43:$A$70,0),MATCH('Milk deliveries by EU country'!$B119,'x2 Index and Match (hide)'!$B$42:$AW$42,0)) -> 886.8050424 | AB119: =INDEX('x2 Index and Match (hide)'!$B$43:$AW$70,MATCH('Milk deliveries by EU country'!AB$7,'x2 Index and Match (hide)'!$A$43:$A$70,0),MATCH('Milk deliveries by EU country'!$B119,'x2 Index and Match (hide)'!$B$42:$AW$42,0)) -> 170.5939656 | AC119: =INDEX('x2 Index and Match (hide)'!$B$43:$AW$70,MATCH('Milk deliveries by EU country'!AC$7,'x2 Index and Match (hide)'!$A$43:$A$70,0),MATCH('Milk deliveries by EU country'!$B119,'x2 Index and Match (hide)'!$B$42:$AW$42,0)) -> 75.2551884 | AD119: =INDEX('x2 Index and Match (hide)'!$B$43:$AW$70,MATCH('Milk deliveries by EU country'!AD$7,'x2 Index and Match (hide)'!$A$43:$A$70,0),MATCH('Milk deliveries by EU country'!$B119,'x2 Index and Match (hide)'!$B$42:$AW$42,0)) -> 72.8272884 | AE119: =INDEX('x2 Index and Match (hide)'!$B$43:$AW$70,MATCH('Milk deliveries by EU country'!AE$7,'x2 Index and Match (hide)'!$A$43:$A$70,0),MATCH('Milk deliveries by EU country'!$B119,'x2 Index and Match (hide)'!$B$42:$AW$42,0)) -> 45.8775984 | AF119: =INDEX('x2 Index and Match (hide)'!$B$43:$AW$70,MATCH('Milk deliveries by EU country'!AF$7,'x2 Index and Match (hide)'!$A$43:$A$70,0),MATCH('Milk deliveries by EU country'!$B119,'x2 Index and Match (hide)'!$B$42:$AW$42,0)) -> 579.7048272 | AG119: =INDEX('x2 Index and Match (hide)'!$B$43:$AW$70,MATCH('Milk deliveries by EU country'!AG$7,'x2 Index and Match (hide)'!$A$43:$A$70,0),MATCH('Milk deliveries by EU country'!$B119,'x2 Index and Match (hide)'!$B$42:$AW$42,0)) -> 247.1213736 | AH119: =INDEX('x2 Index and Match (hide)'!$B$43:$AW$70,MATCH('Milk deliveries by EU country'!AH$7,'x2 Index and Match (hide)'!$A$43:$A$70,0),MATCH('Milk deliveries by EU country'!$B119,'x2 Index and Match (hide)'!$B$42:$AW$42,0)) -> 1292.808192 | AM119: -5.9337876 | AN119: 3.010596 | AO119: -0.9905832 | AP119: -2.087994 | AQ119: -0.437022 | AR119: 7.7887032 | AS119: -0.874044 | AT119: -1.45674 | AU119: 4.3119504 | AV119: -21.753984 | AW119: 12.8581584 | AX119: -1.650972 | AY119: 8.7987096 | AZ119: 87.355842 | BA119: 7.9052424 | BB119: 0.3593292 | BC119: 1.845204 | BD119: 1.8646272 | BE119: =Y119-Y107 -> -0.0388464 | BF119: 18.160692 | BG119: 35.350224 | BH119: 9.7892928 | BI119: -7.3516812 | BJ119: 2.8357872 | BK119: 0.825486 | BL119: 24.7840032 | BM119: 0.8934672 | BN119: 13.693356 | BO119: 199.8550164 | BP119: 140.721084 | BQ119: 45.4405764 | BS119: 2015-04-01 | BT119: =SUM(C$116:C119) -> 43054.19349 | BU119: =SUM(D$116:D119) -> 47903.9723 | BV119: =SUM(E$116:E119) -> 36471.37966 | BW119: =SUM(F$116:F119) -> 6582.813828 | BX119: 4 | BY119: 2015
B120: 2015-05-01 | C120: 12240.40352 | D120: 13619.9363 | E120: 10348.34105 | F120: 1892.06247 | G120: =INDEX('x2 Index and Match (hide)'!$B$43:$AW$70,MATCH('Milk deliveries by EU country'!G$7,'x2 Index and Match (hide)'!$A$43:$A$70,0),MATCH('Milk deliveries by EU country'!$B120,'x2 Index and Match (hide)'!$B$42:$AW$42,0)) -> 278.96571 | H120: =INDEX('x2 Index and Match (hide)'!$B$43:$AW$70,MATCH('Milk deliveries by EU country'!H$7,'x2 Index and Match (hide)'!$A$43:$A$70,0),MATCH('Milk deliveries by EU country'!$B120,'x2 Index and Match (hide)'!$B$42:$AW$42,0)) -> 358.4648676 | I120: =INDEX('x2 Index and Match (hide)'!$B$43:$AW$70,MATCH('Milk deliveries by EU country'!I$7,'x2 Index and Match (hide)'!$A$43:$A$70,0),MATCH('Milk deliveries by EU country'!$B120,'x2 Index and Match (hide)'!$B$42:$AW$42,0)) -> 49.1989656 | J120: =INDEX('x2 Index and Match (hide)'!$B$43:$AW$70,MATCH('Milk deliveries by EU country'!J$7,'x2 Index and Match (hide)'!$A$43:$A$70,0),MATCH('Milk deliveries by EU country'!$B120,'x2 Index and Match (hide)'!$B$42:$AW$42,0)) -> 45.64452 | K120: =INDEX('x2 Index and Match (hide)'!$B$43:$AW$70,MATCH('Milk deliveries by EU country'!K$7,'x2 Index and Match (hide)'!$A$43:$A$70,0),MATCH('Milk deliveries by EU country'!$B120,'x2 Index and Match (hide)'!$B$42:$AW$42,0)) -> 13.7516256 | L120: =INDEX('x2 Index and Match (hide)'!$B$43:$AW$70,MATCH('Milk deliveries by EU country'!L$7,'x2 Index and Match (hide)'!$A$43:$A$70,0),MATCH('Milk deliveries by EU country'!$B120,'x2 Index and Match (hide)'!$B$42:$AW$42,0)) -> 214.1019336 | M120: =INDEX('x2 Index and Match (hide)'!$B$43:$AW$70,MATCH('Milk deliveries by EU country'!M$7,'x2 Index and Match (hide)'!$A$43:$A$70,0),MATCH('Milk deliveries by EU country'!$B120,'x2 Index and Match (hide)'!$B$42:$AW$42,0)) -> 447.316296 | N120: =INDEX('x2 Index and Match (hide)'!$B$43:$AW$70,MATCH('Milk deliveries by EU country'!N$7,'x2 Index and Match (hide)'!$A$43:$A$70,0),MATCH('Milk deliveries by EU country'!$B120,'x2 Index and Match (hide)'!$B$42:$AW$42,0)) -> 60.406152 | O120: =INDEX('x2 Index and Match (hide)'!$B$43:$AW$70,MATCH('Milk deliveries by EU country'!O$7,'x2 Index and Match (hide)'!$A$43:$A$70,0),MATCH('Milk deliveries by EU country'!$B120,'x2 Index and Match (hide)'!$B$42:$AW$42,0)) -> 202.5548412 | P120: =INDEX('x2 Index and Match (hide)'!$B$43:$AW$70,MATCH('Milk deliveries by EU country'!P$7,'x2 Index and Match (hide)'!$A$43:$A$70,0),MATCH('Milk deliveries by EU country'!$B120,'x2 Index and Match (hide)'!$B$42:$AW$42,0)) -> 2234.09531 | Q120: =INDEX('x2 Index and Match (hide)'!$B$43:$AW$70,MATCH('Milk deliveries by EU country'!Q$7,'x2 Index and Match (hide)'!$A$43:$A$70,0),MATCH('Milk deliveries by EU country'!$B120,'x2 Index and Match (hide)'!$B$42:$AW$42,0)) -> 2772.60353 | R120: =INDEX('x2 Index and Match (hide)'!$B$43:$AW$70,MATCH('Milk deliveries by EU country'!R$7,'x2 Index and Match (hide)'!$A$43:$A$70,0),MATCH('Milk deliveries by EU country'!$B120,'x2 Index and Match (hide)'!$B$42:$AW$42,0)) -> 54.676308 | S120: =INDEX('x2 Index and Match (hide)'!$B$43:$AW$70,MATCH('Milk deliveries by EU country'!S$7,'x2 Index and Match (hide)'!$A$43:$A$70,0),MATCH('Milk deliveries by EU country'!$B120,'x2 Index and Match (hide)'!$B$42:$AW$42,0)) -> 133.6898856 | T120: =INDEX('x2 Index and Match (hide)'!$B$43:$AW$70,MATCH('Milk deliveries by EU country'!T$7,'x2 Index and Match (hide)'!$A$43:$A$70,0),MATCH('Milk deliveries by EU country'!$B120,'x2 Index and Match (hide)'!$B$42:$AW$42,0)) -> 875.1316992 | U120: =INDEX('x2 Index and Match (hide)'!$B$43:$AW$70,MATCH('Milk deliveries by EU country'!U$7,'x2 Index and Match (hide)'!$A$43:$A$70,0),MATCH('Milk deliveries by EU country'!$B120,'x2 Index and Match (hide)'!$B$42:$AW$42,0)) -> 939.6361464 | V120: =INDEX('x2 Index and Match (hide)'!$B$43:$AW$70,MATCH('Milk deliveries by EU country'!V$7,'x2 Index and Match (hide)'!$A$43:$A$70,0),MATCH('Milk deliveries by EU country'!$B120,'x2 Index and Match (hide)'!$B$42:$AW$42,0)) -> 69.43794 | W120: =INDEX('x2 Index and Match (hide)'!$B$43:$AW$70,MATCH('Milk deliveries by EU country'!W$7,'x2 Index and Match (hide)'!$A$43:$A$70,0),MATCH('Milk deliveries by EU country'!$B120,'x2 Index and Match (hide)'!$B$42:$AW$42,0)) -> 123.3664548 | X120: =INDEX('x2 Index and Match (hide)'!$B$43:$AW$70,MATCH('Milk deliveries by EU country'!X$7,'x2 Index and Match (hide)'!$A$43:$A$70,0),MATCH('Milk deliveries by EU country'!$B120,'x2 Index and Match (hide)'!$B$42:$AW$42,0)) -> 29.280474 | Y120: =INDEX('x2 Index and Match (hide)'!$B$43:$AW$70,MATCH('Milk deliveries by EU country'!Y$7,'x2 Index and Match (hide)'!$A$43:$A$70,0),MATCH('Milk deliveries by EU country'!$B120,'x2 Index and Match (hide)'!$B$42:$AW$42,0)) -> 3.6321384 | Z120: =INDEX('x2 Index and Match (hide)'!$B$43:$AW$70,MATCH('Milk deliveries by EU country'!Z$7,'x2 Index and Match (hide)'!$A$43:$A$70,0),MATCH('Milk deliveries by EU country'!$B120,'x2 Index and Match (hide)'!$B$42:$AW$42,0)) -> 1132.85814 | AA120: =INDEX('x2 Index and Match (hide)'!$B$43:$AW$70,MATCH('Milk deliveries by EU country'!AA$7,'x2 Index and Match (hide)'!$A$43:$A$70,0),MATCH('Milk deliveries by EU country'!$B120,'x2 Index and Match (hide)'!$B$42:$AW$42,0)) -> 963.4684128 | AB120: =INDEX('x2 Index and Match (hide)'!$B$43:$AW$70,MATCH('Milk deliveries by EU country'!AB$7,'x2 Index and Match (hide)'!$A$43:$A$70,0),MATCH('Milk deliveries by EU country'!$B120,'x2 Index and Match (hide)'!$B$42:$AW$42,0)) -> 175.7605368 | AC120: =INDEX('x2 Index and Match (hide)'!$B$43:$AW$70,MATCH('Milk deliveries by EU country'!AC$7,'x2 Index and Match (hide)'!$A$43:$A$70,0),MATCH('Milk deliveries by EU country'!$B120,'x2 Index and Match (hide)'!$B$42:$AW$42,0)) -> 90.4732656 | AD120: =INDEX('x2 Index and Match (hide)'!$B$43:$AW$70,MATCH('Milk deliveries by EU country'!AD$7,'x2 Index and Match (hide)'!$A$43:$A$70,0),MATCH('Milk deliveries by EU country'!$B120,'x2 Index and Match (hide)'!$B$42:$AW$42,0)) -> 76.5371196 | AE120: =INDEX('x2 Index and Match (hide)'!$B$43:$AW$70,MATCH('Milk deliveries by EU country'!AE$7,'x2 Index and Match (hide)'!$A$43:$A$70,0),MATCH('Milk deliveries by EU country'!$B120,'x2 Index and Match (hide)'!$B$42:$AW$42,0)) -> 48.3540564 | AF120: =INDEX('x2 Index and Match (hide)'!$B$43:$AW$70,MATCH('Milk deliveries by EU country'!AF$7,'x2 Index and Match (hide)'!$A$43:$A$70,0),MATCH('Milk deliveries by EU country'!$B120,'x2 Index and Match (hide)'!$B$42:$AW$42,0)) -> 595.0103088 | AG120: =INDEX('x2 Index and Match (hide)'!$B$43:$AW$70,MATCH('Milk deliveries by EU country'!AG$7,'x2 Index and Match (hide)'!$A$43:$A$70,0),MATCH('Milk deliveries by EU country'!$B120,'x2 Index and Match (hide)'!$B$42:$AW$42,0)) -> 251.9868852 | AH120: =INDEX('x2 Index and Match (hide)'!$B$43:$AW$70,MATCH('Milk deliveries by EU country'!AH$7,'x2 Index and Match (hide)'!$A$43:$A$70,0),MATCH('Milk deliveries by EU country'!$B120,'x2 Index and Match (hide)'!$B$42:$AW$42,0)) -> 1379.53278 | AM120: 1.8063576 | AN120: 33.7380984 | AO120: 2.9231916 | AP120: -0.72837 | AQ120: -0.8351976 | AR120: 10.43997 | AS120: 3.39906 | AT120: -2.525016 | AU120: 2.1462636 | AV120: 15.0432684 | AW120: 57.686904 | AX120: -0.48558 | AY120: 9.8378508 | AZ120: 89.6672028 | BA120: -6.4387908 | BB120: -0.388464 | BC120: -0.6506772 | BD120: 2.6901132 | BE120: -0.0097116 | BF120: 70.020636 | BG120: 28.4646996 | BH120: 7.1186028 | BI120: -8.400534 | BJ120: 4.8266652 | BK120: 2.0491476 | BL120: 29.2610508 | BM120: -1.5344328 | BN120: 46.1301 | BO120: 395.2524084 | BP120: 304.118754 | BQ120: 45.0035544 | BS120: 2015-05-01 | BT120: =SUM(C$116:C120) -> 55294.59701 | BU120: =SUM(D$116:D120) -> 61523.9086 | BV120: =SUM(E$116:E120) -> 46819.72072 | BW120: =SUM(F$116:F120) -> 8474.876298 | BX120: 5 | BY120: 2015
B121: 2015-06-01 | C121: 11716.41415 | D121: 13018.64259 | E121: 9854.681003 | F121: 1861.733143 | G121: =INDEX('x2 Index and Match (hide)'!$B$43:$AW$70,MATCH('Milk deliveries by EU country'!G$7,'x2 Index and Match (hide)'!$A$43:$A$70,0),MATCH('Milk deliveries by EU country'!$B121,'x2 Index and Match (hide)'!$B$42:$AW$42,0)) -> 256.7941272 | H121: =INDEX('x2 Index and Match (hide)'!$B$43:$AW$70,MATCH('Milk deliveries by EU country'!H$7,'x2 Index and Match (hide)'!$A$43:$A$70,0),MATCH('Milk deliveries by EU country'!$B121,'x2 Index and Match (hide)'!$B$42:$AW$42,0)) -> 348.88923 | I121: =INDEX('x2 Index and Match (hide)'!$B$43:$AW$70,MATCH('Milk deliveries by EU country'!I$7,'x2 Index and Match (hide)'!$A$43:$A$70,0),MATCH('Milk deliveries by EU country'!$B121,'x2 Index and Match (hide)'!$B$42:$AW$42,0)) -> 45.9164448 | J121: =INDEX('x2 Index and Match (hide)'!$B$43:$AW$70,MATCH('Milk deliveries by EU country'!J$7,'x2 Index and Match (hide)'!$A$43:$A$70,0),MATCH('Milk deliveries by EU country'!$B121,'x2 Index and Match (hide)'!$B$42:$AW$42,0)) -> 43.0612344 | K121: =INDEX('x2 Index and Match (hide)'!$B$43:$AW$70,MATCH('Milk deliveries by EU country'!K$7,'x2 Index and Match (hide)'!$A$43:$A$70,0),MATCH('Milk deliveries by EU country'!$B121,'x2 Index and Match (hide)'!$B$42:$AW$42,0)) -> 13.1009484 | L121: =INDEX('x2 Index and Match (hide)'!$B$43:$AW$70,MATCH('Milk deliveries by EU country'!L$7,'x2 Index and Match (hide)'!$A$43:$A$70,0),MATCH('Milk deliveries by EU country'!$B121,'x2 Index and Match (hide)'!$B$42:$AW$42,0)) -> 207.1678512 | M121: =INDEX('x2 Index and Match (hide)'!$B$43:$AW$70,MATCH('Milk deliveries by EU country'!M$7,'x2 Index and Match (hide)'!$A$43:$A$70,0),MATCH('Milk deliveries by EU country'!$B121,'x2 Index and Match (hide)'!$B$42:$AW$42,0)) -> 440.323944 | N121: =INDEX('x2 Index and Match (hide)'!$B$43:$AW$70,MATCH('Milk deliveries by EU country'!N$7,'x2 Index and Match (hide)'!$A$43:$A$70,0),MATCH('Milk deliveries by EU country'!$B121,'x2 Index and Match (hide)'!$B$42:$AW$42,0)) -> 59.24076 | O121: =INDEX('x2 Index and Match (hide)'!$B$43:$AW$70,MATCH('Milk deliveries by EU country'!O$7,'x2 Index and Match (hide)'!$A$43:$A$70,0),MATCH('Milk deliveries by EU country'!$B121,'x2 Index and Match (hide)'!$B$42:$AW$42,0)) -> 193.50363 | P121: =INDEX('x2 Index and Match (hide)'!$B$43:$AW$70,MATCH('Milk deliveries by EU country'!P$7,'x2 Index and Match (hide)'!$A$43:$A$70,0),MATCH('Milk deliveries by EU country'!$B121,'x2 Index and Match (hide)'!$B$42:$AW$42,0)) -> 2064.598756 | Q121: =INDEX('x2 Index and Match (hide)'!$B$43:$AW$70,MATCH('Milk deliveries by EU country'!Q$7,'x2 Index and Match (hide)'!$A$43:$A$70,0),MATCH('Milk deliveries by EU country'!$B121,'x2 Index and Match (hide)'!$B$42:$AW$42,0)) -> 2672.059336 | R121: =INDEX('x2 Index and Match (hide)'!$B$43:$AW$70,MATCH('Milk deliveries by EU country'!R$7,'x2 Index and Match (hide)'!$A$43:$A$70,0),MATCH('Milk deliveries by EU country'!$B121,'x2 Index and Match (hide)'!$B$42:$AW$42,0)) -> 52.92822 | S121: =INDEX('x2 Index and Match (hide)'!$B$43:$AW$70,MATCH('Milk deliveries by EU country'!S$7,'x2 Index and Match (hide)'!$A$43:$A$70,0),MATCH('Milk deliveries by EU country'!$B121,'x2 Index and Match (hide)'!$B$42:$AW$42,0)) -> 125.959452 | T121: =INDEX('x2 Index and Match (hide)'!$B$43:$AW$70,MATCH('Milk deliveries by EU country'!T$7,'x2 Index and Match (hide)'!$A$43:$A$70,0),MATCH('Milk deliveries by EU country'!$B121,'x2 Index and Match (hide)'!$B$42:$AW$42,0)) -> 819.2123064 | U121: =INDEX('x2 Index and Match (hide)'!$B$43:$AW$70,MATCH('Milk deliveries by EU country'!U$7,'x2 Index and Match (hide)'!$A$43:$A$70,0),MATCH('Milk deliveries by EU country'!$B121,'x2 Index and Match (hide)'!$B$42:$AW$42,0)) -> 890.747952 | V121: =INDEX('x2 Index and Match (hide)'!$B$43:$AW$70,MATCH('Milk deliveries by EU country'!V$7,'x2 Index and Match (hide)'!$A$43:$A$70,0),MATCH('Milk deliveries by EU country'!$B121,'x2 Index and Match (hide)'!$B$42:$AW$42,0)) -> 75.2940348 | W121: =INDEX('x2 Index and Match (hide)'!$B$43:$AW$70,MATCH('Milk deliveries by EU country'!W$7,'x2 Index and Match (hide)'!$A$43:$A$70,0),MATCH('Milk deliveries by EU country'!$B121,'x2 Index and Match (hide)'!$B$42:$AW$42,0)) -> 134.6416224 | X121: =INDEX('x2 Index and Match (hide)'!$B$43:$AW$70,MATCH('Milk deliveries by EU country'!X$7,'x2 Index and Match (hide)'!$A$43:$A$70,0),MATCH('Milk deliveries by EU country'!$B121,'x2 Index and Match (hide)'!$B$42:$AW$42,0)) -> 28.066524 | Y121: =INDEX('x2 Index and Match (hide)'!$B$43:$AW$70,MATCH('Milk deliveries by EU country'!Y$7,'x2 Index and Match (hide)'!$A$43:$A$70,0),MATCH('Milk deliveries by EU country'!$B121,'x2 Index and Match (hide)'!$B$42:$AW$42,0)) -> 3.39906 | Z121: =INDEX('x2 Index and Match (hide)'!$B$43:$AW$70,MATCH('Milk deliveries by EU country'!Z$7,'x2 Index and Match (hide)'!$A$43:$A$70,0),MATCH('Milk deliveries by EU country'!$B121,'x2 Index and Match (hide)'!$B$42:$AW$42,0)) -> 1112.560896 | AA121: =INDEX('x2 Index and Match (hide)'!$B$43:$AW$70,MATCH('Milk deliveries by EU country'!AA$7,'x2 Index and Match (hide)'!$A$43:$A$70,0),MATCH('Milk deliveries by EU country'!$B121,'x2 Index and Match (hide)'!$B$42:$AW$42,0)) -> 944.793006 | AB121: =INDEX('x2 Index and Match (hide)'!$B$43:$AW$70,MATCH('Milk deliveries by EU country'!AB$7,'x2 Index and Match (hide)'!$A$43:$A$70,0),MATCH('Milk deliveries by EU country'!$B121,'x2 Index and Match (hide)'!$B$42:$AW$42,0)) -> 166.4956704 | AC121: =INDEX('x2 Index and Match (hide)'!$B$43:$AW$70,MATCH('Milk deliveries by EU country'!AC$7,'x2 Index and Match (hide)'!$A$43:$A$70,0),MATCH('Milk deliveries by EU country'!$B121,'x2 Index and Match (hide)'!$B$42:$AW$42,0)) -> 89.9585508 | AD121: =INDEX('x2 Index and Match (hide)'!$B$43:$AW$70,MATCH('Milk deliveries by EU country'!AD$7,'x2 Index and Match (hide)'!$A$43:$A$70,0),MATCH('Milk deliveries by EU country'!$B121,'x2 Index and Match (hide)'!$B$42:$AW$42,0)) -> 73.3128684 | AE121: =INDEX('x2 Index and Match (hide)'!$B$43:$AW$70,MATCH('Milk deliveries by EU country'!AE$7,'x2 Index and Match (hide)'!$A$43:$A$70,0),MATCH('Milk deliveries by EU country'!$B121,'x2 Index and Match (hide)'!$B$42:$AW$42,0)) -> 45.88731 | AF121: =INDEX('x2 Index and Match (hide)'!$B$43:$AW$70,MATCH('Milk deliveries by EU country'!AF$7,'x2 Index and Match (hide)'!$A$43:$A$70,0),MATCH('Milk deliveries by EU country'!$B121,'x2 Index and Match (hide)'!$B$42:$AW$42,0)) -> 570.6924624 | AG121: =INDEX('x2 Index and Match (hide)'!$B$43:$AW$70,MATCH('Milk deliveries by EU country'!AG$7,'x2 Index and Match (hide)'!$A$43:$A$70,0),MATCH('Milk deliveries by EU country'!$B121,'x2 Index and Match (hide)'!$B$42:$AW$42,0)) -> 237.8079492 | AH121: =INDEX('x2 Index and Match (hide)'!$B$43:$AW$70,MATCH('Milk deliveries by EU country'!AH$7,'x2 Index and Match (hide)'!$A$43:$A$70,0),MATCH('Milk deliveries by EU country'!$B121,'x2 Index and Match (hide)'!$B$42:$AW$42,0)) -> 1302.228444 | AM121: -1.7383764 | AN121: 40.0797732 | AO121: 0.8837556 | AP121: -0.339906 | AQ121: -0.6603888 | AR121: 9.9252552 | AS121: 12.042384 | AT121: -2.91348 | AU121: 0.7963512 | AV121: 41.322858 | AW121: 65.0385852 | AX121: 0 | AY121: 7.089468 | AZ121: 86.821704 | BA121: 7.8955308 | BB121: 0.0291348 | BC121: -0.6506772 | BD121: 2.7095364 | BE121: -0.0388464 | BF121: 97.116 | BG121: 31.3004868 | BH121: 8.1771672 | BI121: -8.1383208 | BJ121: 2.4667464 | BK121: 1.9228968 | BL121: 21.1421532 | BM121: -1.2333732 | BN121: 61.571544 | BO121: 482.617962 | BP121: 380.1702936 | BQ121: 40.8761244 | BS121: 2015-06-01 | BT121: =SUM(C$116:C121) -> 67011.01116 | BU121: =SUM(D$116:D121) -> 74542.55119 | BV121: =SUM(E$116:E121) -> 56674.40172 | BW121: =SUM(F$116:F121) -> 10336.60944 | BX121: 6 | BY121: 2015
B122: 2015-07-01 | C122: 11604.15776 | D122: 12871.61868 | E122: 9718.291292 | F122: 1885.866469 | G122: =INDEX('x2 Index and Match (hide)'!$B$43:$AW$70,MATCH('Milk deliveries by EU country'!G$7,'x2 Index and Match (hide)'!$A$43:$A$70,0),MATCH('Milk deliveries by EU country'!$B122,'x2 Index and Match (hide)'!$B$42:$AW$42,0)) -> 254.2691112 | H122: =INDEX('x2 Index and Match (hide)'!$B$43:$AW$70,MATCH('Milk deliveries by EU country'!H$7,'x2 Index and Match (hide)'!$A$43:$A$70,0),MATCH('Milk deliveries by EU country'!$B122,'x2 Index and Match (hide)'!$B$42:$AW$42,0)) -> 345.6552672 | I122: =INDEX('x2 Index and Match (hide)'!$B$43:$AW$70,MATCH('Milk deliveries by EU country'!I$7,'x2 Index and Match (hide)'!$A$43:$A$70,0),MATCH('Milk deliveries by EU country'!$B122,'x2 Index and Match (hide)'!$B$42:$AW$42,0)) -> 43.7216232 | J122: =INDEX('x2 Index and Match (hide)'!$B$43:$AW$70,MATCH('Milk deliveries by EU country'!J$7,'x2 Index and Match (hide)'!$A$43:$A$70,0),MATCH('Milk deliveries by EU country'!$B122,'x2 Index and Match (hide)'!$B$42:$AW$42,0)) -> 42.48825 | K122: =INDEX('x2 Index and Match (hide)'!$B$43:$AW$70,MATCH('Milk deliveries by EU country'!K$7,'x2 Index and Match (hide)'!$A$43:$A$70,0),MATCH('Milk deliveries by EU country'!$B122,'x2 Index and Match (hide)'!$B$42:$AW$42,0)) -> 13.3243152 | L122: =INDEX('x2 Index and Match (hide)'!$B$43:$AW$70,MATCH('Milk deliveries by EU country'!L$7,'x2 Index and Match (hide)'!$A$43:$A$70,0),MATCH('Milk deliveries by EU country'!$B122,'x2 Index and Match (hide)'!$B$42:$AW$42,0)) -> 210.2658516 | M122: =INDEX('x2 Index and Match (hide)'!$B$43:$AW$70,MATCH('Milk deliveries by EU country'!M$7,'x2 Index and Match (hide)'!$A$43:$A$70,0),MATCH('Milk deliveries by EU country'!$B122,'x2 Index and Match (hide)'!$B$42:$AW$42,0)) -> 455.765388 | N122: =INDEX('x2 Index and Match (hide)'!$B$43:$AW$70,MATCH('Milk deliveries by EU country'!N$7,'x2 Index and Match (hide)'!$A$43:$A$70,0),MATCH('Milk deliveries by EU country'!$B122,'x2 Index and Match (hide)'!$B$42:$AW$42,0)) -> 61.377312 | O122: =INDEX('x2 Index and Match (hide)'!$B$43:$AW$70,MATCH('Milk deliveries by EU country'!O$7,'x2 Index and Match (hide)'!$A$43:$A$70,0),MATCH('Milk deliveries by EU country'!$B122,'x2 Index and Match (hide)'!$B$42:$AW$42,0)) -> 196.7181696 | P122: =INDEX('x2 Index and Match (hide)'!$B$43:$AW$70,MATCH('Milk deliveries by EU country'!P$7,'x2 Index and Match (hide)'!$A$43:$A$70,0),MATCH('Milk deliveries by EU country'!$B122,'x2 Index and Match (hide)'!$B$42:$AW$42,0)) -> 1972.319132 | Q122: =INDEX('x2 Index and Match (hide)'!$B$43:$AW$70,MATCH('Milk deliveries by EU country'!Q$7,'x2 Index and Match (hide)'!$A$43:$A$70,0),MATCH('Milk deliveries by EU country'!$B122,'x2 Index and Match (hide)'!$B$42:$AW$42,0)) -> 2695.45458 | R122: =INDEX('x2 Index and Match (hide)'!$B$43:$AW$70,MATCH('Milk deliveries by EU country'!R$7,'x2 Index and Match (hide)'!$A$43:$A$70,0),MATCH('Milk deliveries by EU country'!$B122,'x2 Index and Match (hide)'!$B$42:$AW$42,0)) -> 49.723392 | S122: =INDEX('x2 Index and Match (hide)'!$B$43:$AW$70,MATCH('Milk deliveries by EU country'!S$7,'x2 Index and Match (hide)'!$A$43:$A$70,0),MATCH('Milk deliveries by EU country'!$B122,'x2 Index and Match (hide)'!$B$42:$AW$42,0)) -> 123.871458 | T122: =INDEX('x2 Index and Match (hide)'!$B$43:$AW$70,MATCH('Milk deliveries by EU country'!T$7,'x2 Index and Match (hide)'!$A$43:$A$70,0),MATCH('Milk deliveries by EU country'!$B122,'x2 Index and Match (hide)'!$B$42:$AW$42,0)) -> 768.8479488 | U122: =INDEX('x2 Index and Match (hide)'!$B$43:$AW$70,MATCH('Milk deliveries by EU country'!U$7,'x2 Index and Match (hide)'!$A$43:$A$70,0),MATCH('Milk deliveries by EU country'!$B122,'x2 Index and Match (hide)'!$B$42:$AW$42,0)) -> 858.4763052 | V122: =INDEX('x2 Index and Match (hide)'!$B$43:$AW$70,MATCH('Milk deliveries by EU country'!V$7,'x2 Index and Match (hide)'!$A$43:$A$70,0),MATCH('Milk deliveries by EU country'!$B122,'x2 Index and Match (hide)'!$B$42:$AW$42,0)) -> 78.1880916 | W122: =INDEX('x2 Index and Match (hide)'!$B$43:$AW$70,MATCH('Milk deliveries by EU country'!W$7,'x2 Index and Match (hide)'!$A$43:$A$70,0),MATCH('Milk deliveries by EU country'!$B122,'x2 Index and Match (hide)'!$B$42:$AW$42,0)) -> 143.00331 | X122: =INDEX('x2 Index and Match (hide)'!$B$43:$AW$70,MATCH('Milk deliveries by EU country'!X$7,'x2 Index and Match (hide)'!$A$43:$A$70,0),MATCH('Milk deliveries by EU country'!$B122,'x2 Index and Match (hide)'!$B$42:$AW$42,0)) -> 27.6683484 | Y122: =INDEX('x2 Index and Match (hide)'!$B$43:$AW$70,MATCH('Milk deliveries by EU country'!Y$7,'x2 Index and Match (hide)'!$A$43:$A$70,0),MATCH('Milk deliveries by EU country'!$B122,'x2 Index and Match (hide)'!$B$42:$AW$42,0)) -> 3.3116556 | Z122: =INDEX('x2 Index and Match (hide)'!$B$43:$AW$70,MATCH('Milk deliveries by EU country'!Z$7,'x2 Index and Match (hide)'!$A$43:$A$70,0),MATCH('Milk deliveries by EU country'!$B122,'x2 Index and Match (hide)'!$B$42:$AW$42,0)) -> 1128.682152 | AA122: =INDEX('x2 Index and Match (hide)'!$B$43:$AW$70,MATCH('Milk deliveries by EU country'!AA$7,'x2 Index and Match (hide)'!$A$43:$A$70,0),MATCH('Milk deliveries by EU country'!$B122,'x2 Index and Match (hide)'!$B$42:$AW$42,0)) -> 963.779184 | AB122: =INDEX('x2 Index and Match (hide)'!$B$43:$AW$70,MATCH('Milk deliveries by EU country'!AB$7,'x2 Index and Match (hide)'!$A$43:$A$70,0),MATCH('Milk deliveries by EU country'!$B122,'x2 Index and Match (hide)'!$B$42:$AW$42,0)) -> 161.503908 | AC122: =INDEX('x2 Index and Match (hide)'!$B$43:$AW$70,MATCH('Milk deliveries by EU country'!AC$7,'x2 Index and Match (hide)'!$A$43:$A$70,0),MATCH('Milk deliveries by EU country'!$B122,'x2 Index and Match (hide)'!$B$42:$AW$42,0)) -> 84.2578416 | AD122: =INDEX('x2 Index and Match (hide)'!$B$43:$AW$70,MATCH('Milk deliveries by EU country'!AD$7,'x2 Index and Match (hide)'!$A$43:$A$70,0),MATCH('Milk deliveries by EU country'!$B122,'x2 Index and Match (hide)'!$B$42:$AW$42,0)) -> 72.642768 | AE122: =INDEX('x2 Index and Match (hide)'!$B$43:$AW$70,MATCH('Milk deliveries by EU country'!AE$7,'x2 Index and Match (hide)'!$A$43:$A$70,0),MATCH('Milk deliveries by EU country'!$B122,'x2 Index and Match (hide)'!$B$42:$AW$42,0)) -> 45.6348084 | AF122: =INDEX('x2 Index and Match (hide)'!$B$43:$AW$70,MATCH('Milk deliveries by EU country'!AF$7,'x2 Index and Match (hide)'!$A$43:$A$70,0),MATCH('Milk deliveries by EU country'!$B122,'x2 Index and Match (hide)'!$B$42:$AW$42,0)) -> 562.9620288 | AG122: =INDEX('x2 Index and Match (hide)'!$B$43:$AW$70,MATCH('Milk deliveries by EU country'!AG$7,'x2 Index and Match (hide)'!$A$43:$A$70,0),MATCH('Milk deliveries by EU country'!$B122,'x2 Index and Match (hide)'!$B$42:$AW$42,0)) -> 240.2455608 | AH122: =INDEX('x2 Index and Match (hide)'!$B$43:$AW$70,MATCH('Milk deliveries by EU country'!AH$7,'x2 Index and Match (hide)'!$A$43:$A$70,0),MATCH('Milk deliveries by EU country'!$B122,'x2 Index and Match (hide)'!$B$42:$AW$42,0)) -> 1267.460916 | AM122: 3.1756932 | AN122: 37.2828324 | AO122: -1.9714548 | AP122: -1.1751036 | AQ122: -0.2330784 | AR122: 6.603888 | AS122: 21.462636 | AT122: -1.94232 | AU122: 2.7095364 | AV122: -1.1265456 | AW122: 51.6754236 | AX122: -1.45674 | AY122: 2.3599188 | AZ122: 80.84907 | BA122: -47.052702 | BB122: 1.6606836 | BC122: 0.4467336 | BD122: 2.1559752 | BE122: -0.1650972 | BF122: 107.410296 | BG122: 30.0476904 | BH122: 5.8949412 | BI122: -9.4493868 | BJ122: 1.4276052 | BK122: 0.8060628 | BL122: 8.546208 | BM122: 1.9228968 | BN122: 42.24546 | BO122: 344.1111228 | BP122: 273.4495212 | BQ122: 28.4161416 | BS122: 2015-07-01 | BT122: =SUM(C$116:C122) -> 78615.16892 | BU122: =SUM(D$116:D122) -> 87414.16987 | BV122: =SUM(E$116:E122) -> 66392.69301 | BW122: =SUM(F$116:F122) -> 12222.47591 | BX122: 7 | BY122: 2015
B123: 2015-08-01 | C123: 11271.5646 | D123: 12482.60112 | E123: 9431.332936 | F123: 1840.231661 | G123: =INDEX('x2 Index and Match (hide)'!$B$43:$AW$70,MATCH('Milk deliveries by EU country'!G$7,'x2 Index and Match (hide)'!$A$43:$A$70,0),MATCH('Milk deliveries by EU country'!$B123,'x2 Index and Match (hide)'!$B$42:$AW$42,0)) -> 246.8591604 | H123: =INDEX('x2 Index and Match (hide)'!$B$43:$AW$70,MATCH('Milk deliveries by EU country'!H$7,'x2 Index and Match (hide)'!$A$43:$A$70,0),MATCH('Milk deliveries by EU country'!$B123,'x2 Index and Match (hide)'!$B$42:$AW$42,0)) -> 335.487222 | I123: =INDEX('x2 Index and Match (hide)'!$B$43:$AW$70,MATCH('Milk deliveries by EU country'!I$7,'x2 Index and Match (hide)'!$A$43:$A$70,0),MATCH('Milk deliveries by EU country'!$B123,'x2 Index and Match (hide)'!$B$42:$AW$42,0)) -> 44.4014352 | J123: =INDEX('x2 Index and Match (hide)'!$B$43:$AW$70,MATCH('Milk deliveries by EU country'!J$7,'x2 Index and Match (hide)'!$A$43:$A$70,0),MATCH('Milk deliveries by EU country'!$B123,'x2 Index and Match (hide)'!$B$42:$AW$42,0)) -> 41.7890148 | K123: =INDEX('x2 Index and Match (hide)'!$B$43:$AW$70,MATCH('Milk deliveries by EU country'!K$7,'x2 Index and Match (hide)'!$A$43:$A$70,0),MATCH('Milk deliveries by EU country'!$B123,'x2 Index and Match (hide)'!$B$42:$AW$42,0)) -> 12.4988292 | L123: =INDEX('x2 Index and Match (hide)'!$B$43:$AW$70,MATCH('Milk deliveries by EU country'!L$7,'x2 Index and Match (hide)'!$A$43:$A$70,0),MATCH('Milk deliveries by EU country'!$B123,'x2 Index and Match (hide)'!$B$42:$AW$42,0)) -> 205.1963964 | M123: =INDEX('x2 Index and Match (hide)'!$B$43:$AW$70,MATCH('Milk deliveries by EU country'!M$7,'x2 Index and Match (hide)'!$A$43:$A$70,0),MATCH('Milk deliveries by EU country'!$B123,'x2 Index and Match (hide)'!$B$42:$AW$42,0)) -> 448.967268 | N123: =INDEX('x2 Index and Match (hide)'!$B$43:$AW$70,MATCH('Milk deliveries by EU country'!N$7,'x2 Index and Match (hide)'!$A$43:$A$70,0),MATCH('Milk deliveries by EU country'!$B123,'x2 Index and Match (hide)'!$B$42:$AW$42,0)) -> 61.280196 | O123: =INDEX('x2 Index and Match (hide)'!$B$43:$AW$70,MATCH('Milk deliveries by EU country'!O$7,'x2 Index and Match (hide)'!$A$43:$A$70,0),MATCH('Milk deliveries by EU country'!$B123,'x2 Index and Match (hide)'!$B$42:$AW$42,0)) -> 196.2131664 | P123: =INDEX('x2 Index and Match (hide)'!$B$43:$AW$70,MATCH('Milk deliveries by EU country'!P$7,'x2 Index and Match (hide)'!$A$43:$A$70,0),MATCH('Milk deliveries by EU country'!$B123,'x2 Index and Match (hide)'!$B$42:$AW$42,0)) -> 1915.273194 | Q123: =INDEX('x2 Index and Match (hide)'!$B$43:$AW$70,MATCH('Milk deliveries by EU country'!Q$7,'x2 Index and Match (hide)'!$A$43:$A$70,0),MATCH('Milk deliveries by EU country'!$B123,'x2 Index and Match (hide)'!$B$42:$AW$42,0)) -> 2640.477212 | R123: =INDEX('x2 Index and Match (hide)'!$B$43:$AW$70,MATCH('Milk deliveries by EU country'!R$7,'x2 Index and Match (hide)'!$A$43:$A$70,0),MATCH('Milk deliveries by EU country'!$B123,'x2 Index and Match (hide)'!$B$42:$AW$42,0)) -> 48.558 | S123: =INDEX('x2 Index and Match (hide)'!$B$43:$AW$70,MATCH('Milk deliveries by EU country'!S$7,'x2 Index and Match (hide)'!$A$43:$A$70,0),MATCH('Milk deliveries by EU country'!$B123,'x2 Index and Match (hide)'!$B$42:$AW$42,0)) -> 122.1427932 | T123: =INDEX('x2 Index and Match (hide)'!$B$43:$AW$70,MATCH('Milk deliveries by EU country'!T$7,'x2 Index and Match (hide)'!$A$43:$A$70,0),MATCH('Milk deliveries by EU country'!$B123,'x2 Index and Match (hide)'!$B$42:$AW$42,0)) -> 693.845262 | U123: =INDEX('x2 Index and Match (hide)'!$B$43:$AW$70,MATCH('Milk deliveries by EU country'!U$7,'x2 Index and Match (hide)'!$A$43:$A$70,0),MATCH('Milk deliveries by EU country'!$B123,'x2 Index and Match (hide)'!$B$42:$AW$42,0)) -> 828.350922 | V123: =INDEX('x2 Index and Match (hide)'!$B$43:$AW$70,MATCH('Milk deliveries by EU country'!V$7,'x2 Index and Match (hide)'!$A$43:$A$70,0),MATCH('Milk deliveries by EU country'!$B123,'x2 Index and Match (hide)'!$B$42:$AW$42,0)) -> 77.7025116 | W123: =INDEX('x2 Index and Match (hide)'!$B$43:$AW$70,MATCH('Milk deliveries by EU country'!W$7,'x2 Index and Match (hide)'!$A$43:$A$70,0),MATCH('Milk deliveries by EU country'!$B123,'x2 Index and Match (hide)'!$B$42:$AW$42,0)) -> 145.5963072 | X123: =INDEX('x2 Index and Match (hide)'!$B$43:$AW$70,MATCH('Milk deliveries by EU country'!X$7,'x2 Index and Match (hide)'!$A$43:$A$70,0),MATCH('Milk deliveries by EU country'!$B123,'x2 Index and Match (hide)'!$B$42:$AW$42,0)) -> 26.8622856 | Y123: =INDEX('x2 Index and Match (hide)'!$B$43:$AW$70,MATCH('Milk deliveries by EU country'!Y$7,'x2 Index and Match (hide)'!$A$43:$A$70,0),MATCH('Milk deliveries by EU country'!$B123,'x2 Index and Match (hide)'!$B$42:$AW$42,0)) -> 3.0980004 | Z123: =INDEX('x2 Index and Match (hide)'!$B$43:$AW$70,MATCH('Milk deliveries by EU country'!Z$7,'x2 Index and Match (hide)'!$A$43:$A$70,0),MATCH('Milk deliveries by EU country'!$B123,'x2 Index and Match (hide)'!$B$42:$AW$42,0)) -> 1114.017636 | AA123: =INDEX('x2 Index and Match (hide)'!$B$43:$AW$70,MATCH('Milk deliveries by EU country'!AA$7,'x2 Index and Match (hide)'!$A$43:$A$70,0),MATCH('Milk deliveries by EU country'!$B123,'x2 Index and Match (hide)'!$B$42:$AW$42,0)) -> 933.7897632 | AB123: =INDEX('x2 Index and Match (hide)'!$B$43:$AW$70,MATCH('Milk deliveries by EU country'!AB$7,'x2 Index and Match (hide)'!$A$43:$A$70,0),MATCH('Milk deliveries by EU country'!$B123,'x2 Index and Match (hide)'!$B$42:$AW$42,0)) -> 151.4135556 | AC123: =INDEX('x2 Index and Match (hide)'!$B$43:$AW$70,MATCH('Milk deliveries by EU country'!AC$7,'x2 Index and Match (hide)'!$A$43:$A$70,0),MATCH('Milk deliveries by EU country'!$B123,'x2 Index and Match (hide)'!$B$42:$AW$42,0)) -> 76.8381792 | AD123: =INDEX('x2 Index and Match (hide)'!$B$43:$AW$70,MATCH('Milk deliveries by EU country'!AD$7,'x2 Index and Match (hide)'!$A$43:$A$70,0),MATCH('Milk deliveries by EU country'!$B123,'x2 Index and Match (hide)'!$B$42:$AW$42,0)) -> 70.4673696 | AE123: =INDEX('x2 Index and Match (hide)'!$B$43:$AW$70,MATCH('Milk deliveries by EU country'!AE$7,'x2 Index and Match (hide)'!$A$43:$A$70,0),MATCH('Milk deliveries by EU country'!$B123,'x2 Index and Match (hide)'!$B$42:$AW$42,0)) -> 45.4308648 | AF123: =INDEX('x2 Index and Match (hide)'!$B$43:$AW$70,MATCH('Milk deliveries by EU country'!AF$7,'x2 Index and Match (hide)'!$A$43:$A$70,0),MATCH('Milk deliveries by EU country'!$B123,'x2 Index and Match (hide)'!$B$42:$AW$42,0)) -> 548.1421272 | AG123: =INDEX('x2 Index and Match (hide)'!$B$43:$AW$70,MATCH('Milk deliveries by EU country'!AG$7,'x2 Index and Match (hide)'!$A$43:$A$70,0),MATCH('Milk deliveries by EU country'!$B123,'x2 Index and Match (hide)'!$B$42:$AW$42,0)) -> 236.865924 | AH123: =INDEX('x2 Index and Match (hide)'!$B$43:$AW$70,MATCH('Milk deliveries by EU country'!AH$7,'x2 Index and Match (hide)'!$A$43:$A$70,0),MATCH('Milk deliveries by EU country'!$B123,'x2 Index and Match (hide)'!$B$42:$AW$42,0)) -> 1211.03652 | AM123: 6.3513864 | AN123: 34.6024308 | AO123: 5.2054176 | AP123: -0.0582696 | AQ123: -0.4564452 | AR123: 3.981756 | AS123: 21.656868 | AT123: -0.194232 | AU123: 4.515894 | AV123: -0.2525016 | AW123: 53.7148596 | AX123: 0.388464 | AY123: 3.2922324 | AZ123: 85.6660236 | BA123: -53.1030288 | BB123: 0.9808716 | BC123: 1.165392 | BD123: 2.1559752 | BE123: -0.2233668 | BF123: 107.410296 | BG123: 23.6768808 | BH123: 2.8746336 | BI123: -9.6047724 | BJ123: 0.679812 | BK123: 1.5247212 | BL123: 11.265456 | BM123: 2.9231916 | BN123: 33.213672 | BO123: 343.353618 | BP123: 280.1699484 | BQ123: 29.9699976 | BS123: 2015-08-01 | BT123: =SUM(C$116:C123) -> 89886.73352 | BU123: =SUM(D$116:D123) -> 99896.77099 | BV123: =SUM(E$116:E123) -> 75824.02595 | BW123: =SUM(F$116:F123) -> 14062.70757 | BX123: 8 | BY123: 2015
B124: 2015-09-01 | C124: 10684.70232 | D124: 11850.5799 | E124: 8961.068129 | F124: 1723.634191 | G124: =INDEX('x2 Index and Match (hide)'!$B$43:$AW$70,MATCH('Milk deliveries by EU country'!G$7,'x2 Index and Match (hide)'!$A$43:$A$70,0),MATCH('Milk deliveries by EU country'!$B124,'x2 Index and Match (hide)'!$B$42:$AW$42,0)) -> 236.1472656 | H124: =INDEX('x2 Index and Match (hide)'!$B$43:$AW$70,MATCH('Milk deliveries by EU country'!H$7,'x2 Index and Match (hide)'!$A$43:$A$70,0),MATCH('Milk deliveries by EU country'!$B124,'x2 Index and Match (hide)'!$B$42:$AW$42,0)) -> 319.9680852 | I124: =INDEX('x2 Index and Match (hide)'!$B$43:$AW$70,MATCH('Milk deliveries by EU country'!I$7,'x2 Index and Match (hide)'!$A$43:$A$70,0),MATCH('Milk deliveries by EU country'!$B124,'x2 Index and Match (hide)'!$B$42:$AW$42,0)) -> 38.8464 | J124: =INDEX('x2 Index and Match (hide)'!$B$43:$AW$70,MATCH('Milk deliveries by EU country'!J$7,'x2 Index and Match (hide)'!$A$43:$A$70,0),MATCH('Milk deliveries by EU country'!$B124,'x2 Index and Match (hide)'!$B$42:$AW$42,0)) -> 39.5067888 | K124: =INDEX('x2 Index and Match (hide)'!$B$43:$AW$70,MATCH('Milk deliveries by EU country'!K$7,'x2 Index and Match (hide)'!$A$43:$A$70,0),MATCH('Milk deliveries by EU country'!$B124,'x2 Index and Match (hide)'!$B$42:$AW$42,0)) -> 13.2174876 | L124: =INDEX('x2 Index and Match (hide)'!$B$43:$AW$70,MATCH('Milk deliveries by EU country'!L$7,'x2 Index and Match (hide)'!$A$43:$A$70,0),MATCH('Milk deliveries by EU country'!$B124,'x2 Index and Match (hide)'!$B$42:$AW$42,0)) -> 195.348834 | M124: =INDEX('x2 Index and Match (hide)'!$B$43:$AW$70,MATCH('Milk deliveries by EU country'!M$7,'x2 Index and Match (hide)'!$A$43:$A$70,0),MATCH('Milk deliveries by EU country'!$B124,'x2 Index and Match (hide)'!$B$42:$AW$42,0)) -> 423.134412 | N124: =INDEX('x2 Index and Match (hide)'!$B$43:$AW$70,MATCH('Milk deliveries by EU country'!N$7,'x2 Index and Match (hide)'!$A$43:$A$70,0),MATCH('Milk deliveries by EU country'!$B124,'x2 Index and Match (hide)'!$B$42:$AW$42,0)) -> 58.2696 | O124: =INDEX('x2 Index and Match (hide)'!$B$43:$AW$70,MATCH('Milk deliveries by EU country'!O$7,'x2 Index and Match (hide)'!$A$43:$A$70,0),MATCH('Milk deliveries by EU country'!$B124,'x2 Index and Match (hide)'!$B$42:$AW$42,0)) -> 186.656952 | P124: =INDEX('x2 Index and Match (hide)'!$B$43:$AW$70,MATCH('Milk deliveries by EU country'!P$7,'x2 Index and Match (hide)'!$A$43:$A$70,0),MATCH('Milk deliveries by EU country'!$B124,'x2 Index and Match (hide)'!$B$42:$AW$42,0)) -> 1882.2926 | Q124: =INDEX('x2 Index and Match (hide)'!$B$43:$AW$70,MATCH('Milk deliveries by EU country'!Q$7,'x2 Index and Match (hide)'!$A$43:$A$70,0),MATCH('Milk deliveries by EU country'!$B124,'x2 Index and Match (hide)'!$B$42:$AW$42,0)) -> 2492.802623 | R124: =INDEX('x2 Index and Match (hide)'!$B$43:$AW$70,MATCH('Milk deliveries by EU country'!R$7,'x2 Index and Match (hide)'!$A$43:$A$70,0),MATCH('Milk deliveries by EU country'!$B124,'x2 Index and Match (hide)'!$B$42:$AW$42,0)) -> 46.1301 | S124: =INDEX('x2 Index and Match (hide)'!$B$43:$AW$70,MATCH('Milk deliveries by EU country'!S$7,'x2 Index and Match (hide)'!$A$43:$A$70,0),MATCH('Milk deliveries by EU country'!$B124,'x2 Index and Match (hide)'!$B$42:$AW$42,0)) -> 116.490642 | T124: =INDEX('x2 Index and Match (hide)'!$B$43:$AW$70,MATCH('Milk deliveries by EU country'!T$7,'x2 Index and Match (hide)'!$A$43:$A$70,0),MATCH('Milk deliveries by EU country'!$B124,'x2 Index and Match (hide)'!$B$42:$AW$42,0)) -> 604.207194 | U124: =INDEX('x2 Index and Match (hide)'!$B$43:$AW$70,MATCH('Milk deliveries by EU country'!U$7,'x2 Index and Match (hide)'!$A$43:$A$70,0),MATCH('Milk deliveries by EU country'!$B124,'x2 Index and Match (hide)'!$B$42:$AW$42,0)) -> 799.26468 | V124: =INDEX('x2 Index and Match (hide)'!$B$43:$AW$70,MATCH('Milk deliveries by EU country'!V$7,'x2 Index and Match (hide)'!$A$43:$A$70,0),MATCH('Milk deliveries by EU country'!$B124,'x2 Index and Match (hide)'!$B$42:$AW$42,0)) -> 71.2637208 | W124: =INDEX('x2 Index and Match (hide)'!$B$43:$AW$70,MATCH('Milk deliveries by EU country'!W$7,'x2 Index and Match (hide)'!$A$43:$A$70,0),MATCH('Milk deliveries by EU country'!$B124,'x2 Index and Match (hide)'!$B$42:$AW$42,0)) -> 131.6601612 | X124: =INDEX('x2 Index and Match (hide)'!$B$43:$AW$70,MATCH('Milk deliveries by EU country'!X$7,'x2 Index and Match (hide)'!$A$43:$A$70,0),MATCH('Milk deliveries by EU country'!$B124,'x2 Index and Match (hide)'!$B$42:$AW$42,0)) -> 25.8037212 | Y124: =INDEX('x2 Index and Match (hide)'!$B$43:$AW$70,MATCH('Milk deliveries by EU country'!Y$7,'x2 Index and Match (hide)'!$A$43:$A$70,0),MATCH('Milk deliveries by EU country'!$B124,'x2 Index and Match (hide)'!$B$42:$AW$42,0)) -> 2.9814612 | Z124: =INDEX('x2 Index and Match (hide)'!$B$43:$AW$70,MATCH('Milk deliveries by EU country'!Z$7,'x2 Index and Match (hide)'!$A$43:$A$70,0),MATCH('Milk deliveries by EU country'!$B124,'x2 Index and Match (hide)'!$B$42:$AW$42,0)) -> 1059.729792 | AA124: =INDEX('x2 Index and Match (hide)'!$B$43:$AW$70,MATCH('Milk deliveries by EU country'!AA$7,'x2 Index and Match (hide)'!$A$43:$A$70,0),MATCH('Milk deliveries by EU country'!$B124,'x2 Index and Match (hide)'!$B$42:$AW$42,0)) -> 873.3350532 | AB124: =INDEX('x2 Index and Match (hide)'!$B$43:$AW$70,MATCH('Milk deliveries by EU country'!AB$7,'x2 Index and Match (hide)'!$A$43:$A$70,0),MATCH('Milk deliveries by EU country'!$B124,'x2 Index and Match (hide)'!$B$42:$AW$42,0)) -> 140.33262 | AC124: =INDEX('x2 Index and Match (hide)'!$B$43:$AW$70,MATCH('Milk deliveries by EU country'!AC$7,'x2 Index and Match (hide)'!$A$43:$A$70,0),MATCH('Milk deliveries by EU country'!$B124,'x2 Index and Match (hide)'!$B$42:$AW$42,0)) -> 72.5844984 | AD124: =INDEX('x2 Index and Match (hide)'!$B$43:$AW$70,MATCH('Milk deliveries by EU country'!AD$7,'x2 Index and Match (hide)'!$A$43:$A$70,0),MATCH('Milk deliveries by EU country'!$B124,'x2 Index and Match (hide)'!$B$42:$AW$42,0)) -> 66.4467672 | AE124: =INDEX('x2 Index and Match (hide)'!$B$43:$AW$70,MATCH('Milk deliveries by EU country'!AE$7,'x2 Index and Match (hide)'!$A$43:$A$70,0),MATCH('Milk deliveries by EU country'!$B124,'x2 Index and Match (hide)'!$B$42:$AW$42,0)) -> 43.6827768 | AF124: =INDEX('x2 Index and Match (hide)'!$B$43:$AW$70,MATCH('Milk deliveries by EU country'!AF$7,'x2 Index and Match (hide)'!$A$43:$A$70,0),MATCH('Milk deliveries by EU country'!$B124,'x2 Index and Match (hide)'!$B$42:$AW$42,0)) -> 521.0079168 | AG124: =INDEX('x2 Index and Match (hide)'!$B$43:$AW$70,MATCH('Milk deliveries by EU country'!AG$7,'x2 Index and Match (hide)'!$A$43:$A$70,0),MATCH('Milk deliveries by EU country'!$B124,'x2 Index and Match (hide)'!$B$42:$AW$42,0)) -> 223.5901668 | AH124: =INDEX('x2 Index and Match (hide)'!$B$43:$AW$70,MATCH('Milk deliveries by EU country'!AH$7,'x2 Index and Match (hide)'!$A$43:$A$70,0),MATCH('Milk deliveries by EU country'!$B124,'x2 Index and Match (hide)'!$B$42:$AW$42,0)) -> 1165.87758 | AM124: 10.8187224 | AN124: 31.3296216 | AO124: -0.2622132 | AP124: 0.4078872 | AQ124: 0.679812 | AR124: 6.3416748 | AS124: 24.958812 | AT124: 0.97116 | AU124: 3.4573296 | AV124: 26.6486304 | AW124: 58.900854 | AX124: -2.622132 | AY124: 2.91348 | AZ124: 84.9862116 | BA124: -136.982118 | BB124: -1.4761632 | BC124: -6.7884084 | BD124: 2.4570348 | BE124: -0.1748088 | BF124: 90.31788 | BG124: 7.4973552 | BH124: 1.3499124 | BI124: -10.2360264 | BJ124: 1.1945268 | BK124: 2.6124204 | BL124: 17.626554 | BM124: 0.534138 | BN124: 18.549156 | BO124: 236.0113032 | BP124: 213.7814508 | BQ124: 3.6806964 | BS124: 2015-09-01 | BT124: =SUM(C$116:C124) -> 100571.4358 | BU124: =SUM(D$116:D124) -> 111747.3509 | BV124: =SUM(E$116:E124) -> 84785.09408 | BW124: =SUM(F$116:F124) -> 15786.34176 | BX124: 9 | BY124: 2015
B125: 2015-10-01 | C125: 10892.10325 | D125: 12095.66184 | E125: 9178.287486 | F125: 1713.815764 | G125: =INDEX('x2 Index and Match (hide)'!$B$43:$AW$70,MATCH('Milk deliveries by EU country'!G$7,'x2 Index and Match (hide)'!$A$43:$A$70,0),MATCH('Milk deliveries by EU country'!$B125,'x2 Index and Match (hide)'!$B$42:$AW$42,0)) -> 245.654922 | H125: =INDEX('x2 Index and Match (hide)'!$B$43:$AW$70,MATCH('Milk deliveries by EU country'!H$7,'x2 Index and Match (hide)'!$A$43:$A$70,0),MATCH('Milk deliveries by EU country'!$B125,'x2 Index and Match (hide)'!$B$42:$AW$42,0)) -> 331.2335412 | I125: =INDEX('x2 Index and Match (hide)'!$B$43:$AW$70,MATCH('Milk deliveries by EU country'!I$7,'x2 Index and Match (hide)'!$A$43:$A$70,0),MATCH('Milk deliveries by EU country'!$B125,'x2 Index and Match (hide)'!$B$42:$AW$42,0)) -> 38.8464 | J125: =INDEX('x2 Index and Match (hide)'!$B$43:$AW$70,MATCH('Milk deliveries by EU country'!J$7,'x2 Index and Match (hide)'!$A$43:$A$70,0),MATCH('Milk deliveries by EU country'!$B125,'x2 Index and Match (hide)'!$B$42:$AW$42,0)) -> 39.7107324 | K125: =INDEX('x2 Index and Match (hide)'!$B$43:$AW$70,MATCH('Milk deliveries by EU country'!K$7,'x2 Index and Match (hide)'!$A$43:$A$70,0),MATCH('Milk deliveries by EU country'!$B125,'x2 Index and Match (hide)'!$B$42:$AW$42,0)) -> 13.8487416 | L125: =INDEX('x2 Index and Match (hide)'!$B$43:$AW$70,MATCH('Milk deliveries by EU country'!L$7,'x2 Index and Match (hide)'!$A$43:$A$70,0),MATCH('Milk deliveries by EU country'!$B125,'x2 Index and Match (hide)'!$B$42:$AW$42,0)) -> 197.776734 | M125: =INDEX('x2 Index and Match (hide)'!$B$43:$AW$70,MATCH('Milk deliveries by EU country'!M$7,'x2 Index and Match (hide)'!$A$43:$A$70,0),MATCH('Milk deliveries by EU country'!$B125,'x2 Index and Match (hide)'!$B$42:$AW$42,0)) -> 428.087328 | N125: =INDEX('x2 Index and Match (hide)'!$B$43:$AW$70,MATCH('Milk deliveries by EU country'!N$7,'x2 Index and Match (hide)'!$A$43:$A$70,0),MATCH('Milk deliveries by EU country'!$B125,'x2 Index and Match (hide)'!$B$42:$AW$42,0)) -> 57.78402 | O125: =INDEX('x2 Index and Match (hide)'!$B$43:$AW$70,MATCH('Milk deliveries by EU country'!O$7,'x2 Index and Match (hide)'!$A$43:$A$70,0),MATCH('Milk deliveries by EU country'!$B125,'x2 Index and Match (hide)'!$B$42:$AW$42,0)) -> 187.5892656 | P125: =INDEX('x2 Index and Match (hide)'!$B$43:$AW$70,MATCH('Milk deliveries by EU country'!P$7,'x2 Index and Match (hide)'!$A$43:$A$70,0),MATCH('Milk deliveries by EU country'!$B125,'x2 Index and Match (hide)'!$B$42:$AW$42,0)) -> 2007.416855 | Q125: =INDEX('x2 Index and Match (hide)'!$B$43:$AW$70,MATCH('Milk deliveries by EU country'!Q$7,'x2 Index and Match (hide)'!$A$43:$A$70,0),MATCH('Milk deliveries by EU country'!$B125,'x2 Index and Match (hide)'!$B$42:$AW$42,0)) -> 2526.026006 | R125: =INDEX('x2 Index and Match (hide)'!$B$43:$AW$70,MATCH('Milk deliveries by EU country'!R$7,'x2 Index and Match (hide)'!$A$43:$A$70,0),MATCH('Milk deliveries by EU country'!$B125,'x2 Index and Match (hide)'!$B$42:$AW$42,0)) -> 47.975304 | S125: =INDEX('x2 Index and Match (hide)'!$B$43:$AW$70,MATCH('Milk deliveries by EU country'!S$7,'x2 Index and Match (hide)'!$A$43:$A$70,0),MATCH('Milk deliveries by EU country'!$B125,'x2 Index and Match (hide)'!$B$42:$AW$42,0)) -> 120.229608 | T125: =INDEX('x2 Index and Match (hide)'!$B$43:$AW$70,MATCH('Milk deliveries by EU country'!T$7,'x2 Index and Match (hide)'!$A$43:$A$70,0),MATCH('Milk deliveries by EU country'!$B125,'x2 Index and Match (hide)'!$B$42:$AW$42,0)) -> 536.3036868 | U125: =INDEX('x2 Index and Match (hide)'!$B$43:$AW$70,MATCH('Milk deliveries by EU country'!U$7,'x2 Index and Match (hide)'!$A$43:$A$70,0),MATCH('Milk deliveries by EU country'!$B125,'x2 Index and Match (hide)'!$B$42:$AW$42,0)) -> 819.8338488 | V125: =INDEX('x2 Index and Match (hide)'!$B$43:$AW$70,MATCH('Milk deliveries by EU country'!V$7,'x2 Index and Match (hide)'!$A$43:$A$70,0),MATCH('Milk deliveries by EU country'!$B125,'x2 Index and Match (hide)'!$B$42:$AW$42,0)) -> 66.2719584 | W125: =INDEX('x2 Index and Match (hide)'!$B$43:$AW$70,MATCH('Milk deliveries by EU country'!W$7,'x2 Index and Match (hide)'!$A$43:$A$70,0),MATCH('Milk deliveries by EU country'!$B125,'x2 Index and Match (hide)'!$B$42:$AW$42,0)) -> 120.3461472 | X125: =INDEX('x2 Index and Match (hide)'!$B$43:$AW$70,MATCH('Milk deliveries by EU country'!X$7,'x2 Index and Match (hide)'!$A$43:$A$70,0),MATCH('Milk deliveries by EU country'!$B125,'x2 Index and Match (hide)'!$B$42:$AW$42,0)) -> 27.0176712 | Y125: =INDEX('x2 Index and Match (hide)'!$B$43:$AW$70,MATCH('Milk deliveries by EU country'!Y$7,'x2 Index and Match (hide)'!$A$43:$A$70,0),MATCH('Milk deliveries by EU country'!$B125,'x2 Index and Match (hide)'!$B$42:$AW$42,0)) -> 3.204828 | Z125: =INDEX('x2 Index and Match (hide)'!$B$43:$AW$70,MATCH('Milk deliveries by EU country'!Z$7,'x2 Index and Match (hide)'!$A$43:$A$70,0),MATCH('Milk deliveries by EU country'!$B125,'x2 Index and Match (hide)'!$B$42:$AW$42,0)) -> 1099.450236 | AA125: =INDEX('x2 Index and Match (hide)'!$B$43:$AW$70,MATCH('Milk deliveries by EU country'!AA$7,'x2 Index and Match (hide)'!$A$43:$A$70,0),MATCH('Milk deliveries by EU country'!$B125,'x2 Index and Match (hide)'!$B$42:$AW$42,0)) -> 872.2862004 | AB125: =INDEX('x2 Index and Match (hide)'!$B$43:$AW$70,MATCH('Milk deliveries by EU country'!AB$7,'x2 Index and Match (hide)'!$A$43:$A$70,0),MATCH('Milk deliveries by EU country'!$B125,'x2 Index and Match (hide)'!$B$42:$AW$42,0)) -> 144.1007208 | AC125: =INDEX('x2 Index and Match (hide)'!$B$43:$AW$70,MATCH('Milk deliveries by EU country'!AC$7,'x2 Index and Match (hide)'!$A$43:$A$70,0),MATCH('Milk deliveries by EU country'!$B125,'x2 Index and Match (hide)'!$B$42:$AW$42,0)) -> 72.3805548 | AD125: =INDEX('x2 Index and Match (hide)'!$B$43:$AW$70,MATCH('Milk deliveries by EU country'!AD$7,'x2 Index and Match (hide)'!$A$43:$A$70,0),MATCH('Milk deliveries by EU country'!$B125,'x2 Index and Match (hide)'!$B$42:$AW$42,0)) -> 66.8352312 | AE125: =INDEX('x2 Index and Match (hide)'!$B$43:$AW$70,MATCH('Milk deliveries by EU country'!AE$7,'x2 Index and Match (hide)'!$A$43:$A$70,0),MATCH('Milk deliveries by EU country'!$B125,'x2 Index and Match (hide)'!$B$42:$AW$42,0)) -> 44.2946076 | AF125: =INDEX('x2 Index and Match (hide)'!$B$43:$AW$70,MATCH('Milk deliveries by EU country'!AF$7,'x2 Index and Match (hide)'!$A$43:$A$70,0),MATCH('Milk deliveries by EU country'!$B125,'x2 Index and Match (hide)'!$B$42:$AW$42,0)) -> 549.9387732 | AG125: =INDEX('x2 Index and Match (hide)'!$B$43:$AW$70,MATCH('Milk deliveries by EU country'!AG$7,'x2 Index and Match (hide)'!$A$43:$A$70,0),MATCH('Milk deliveries by EU country'!$B125,'x2 Index and Match (hide)'!$B$42:$AW$42,0)) -> 227.6593272 | AH125: =INDEX('x2 Index and Match (hide)'!$B$43:$AW$70,MATCH('Milk deliveries by EU country'!AH$7,'x2 Index and Match (hide)'!$A$43:$A$70,0),MATCH('Milk deliveries by EU country'!$B125,'x2 Index and Match (hide)'!$B$42:$AW$42,0)) -> 1203.558588 | AM125: 12.0132492 | AN125: 41.177184 | AO125: -0.2039436 | AP125: 0.48558 | AQ125: 0.825486 | AR125: 6.3513864 | AS125: 28.940568 | AT125: 1.359624 | AU125: 3.2630976 | AV125: 59.9788416 | AW125: 63.1448232 | AX125: 2.330784 | AY125: 1.8743388 | AZ125: 110.0032932 | BA125: 40.8761244 | BB125: 0.7186584 | BC125: -3.3407904 | BD125: 3.2436744 | BE125: -0.1748088 | BF125: 112.751676 | BG125: 27.67806 | BH125: 1.8063576 | BI125: -5.1859944 | BJ125: 1.4373168 | BK125: 2.767806 | BL125: 31.5044304 | BM125: 0.4661568 | BN125: 46.907028 | BO125: 593.0000076 | BP125: 511.5002604 | BQ125: 34.5927192 | BS125: 2015-10-01 | BT125: =SUM(C$116:C125) -> 111463.5391 | BU125: =SUM(D$116:D125) -> 123843.0127 | BV125: =SUM(E$116:E125) -> 93963.38156 | BW125: =SUM(F$116:F125) -> 17500.15753 | BX125: 10 | BY125: 2015
B126: 2015-11-01 | C126: 10370.36696 | D126: 11534.30222 | E126: 8763.971207 | F126: 1606.395756 | G126: =INDEX('x2 Index and Match (hide)'!$B$43:$AW$70,MATCH('Milk deliveries by EU country'!G$7,'x2 Index and Match (hide)'!$A$43:$A$70,0),MATCH('Milk deliveries by EU country'!$B126,'x2 Index and Match (hide)'!$B$42:$AW$42,0)) -> 237.3320808 | H126: =INDEX('x2 Index and Match (hide)'!$B$43:$AW$70,MATCH('Milk deliveries by EU country'!H$7,'x2 Index and Match (hide)'!$A$43:$A$70,0),MATCH('Milk deliveries by EU country'!$B126,'x2 Index and Match (hide)'!$B$42:$AW$42,0)) -> 318.831828 | I126: =INDEX('x2 Index and Match (hide)'!$B$43:$AW$70,MATCH('Milk deliveries by EU country'!I$7,'x2 Index and Match (hide)'!$A$43:$A$70,0),MATCH('Milk deliveries by EU country'!$B126,'x2 Index and Match (hide)'!$B$42:$AW$42,0)) -> 36.1951332 | J126: =INDEX('x2 Index and Match (hide)'!$B$43:$AW$70,MATCH('Milk deliveries by EU country'!J$7,'x2 Index and Match (hide)'!$A$43:$A$70,0),MATCH('Milk deliveries by EU country'!$B126,'x2 Index and Match (hide)'!$B$42:$AW$42,0)) -> 38.1860112 | K126: =INDEX('x2 Index and Match (hide)'!$B$43:$AW$70,MATCH('Milk deliveries by EU country'!K$7,'x2 Index and Match (hide)'!$A$43:$A$70,0),MATCH('Milk deliveries by EU country'!$B126,'x2 Index and Match (hide)'!$B$42:$AW$42,0)) -> 13.5671052 | L126: =INDEX('x2 Index and Match (hide)'!$B$43:$AW$70,MATCH('Milk deliveries by EU country'!L$7,'x2 Index and Match (hide)'!$A$43:$A$70,0),MATCH('Milk deliveries by EU country'!$B126,'x2 Index and Match (hide)'!$B$42:$AW$42,0)) -> 190.9883256 | M126: =INDEX('x2 Index and Match (hide)'!$B$43:$AW$70,MATCH('Milk deliveries by EU country'!M$7,'x2 Index and Match (hide)'!$A$43:$A$70,0),MATCH('Milk deliveries by EU country'!$B126,'x2 Index and Match (hide)'!$B$42:$AW$42,0)) -> 415.462248 | N126: =INDEX('x2 Index and Match (hide)'!$B$43:$AW$70,MATCH('Milk deliveries by EU country'!N$7,'x2 Index and Match (hide)'!$A$43:$A$70,0),MATCH('Milk deliveries by EU country'!$B126,'x2 Index and Match (hide)'!$B$42:$AW$42,0)) -> 55.8417 | O126: =INDEX('x2 Index and Match (hide)'!$B$43:$AW$70,MATCH('Milk deliveries by EU country'!O$7,'x2 Index and Match (hide)'!$A$43:$A$70,0),MATCH('Milk deliveries by EU country'!$B126,'x2 Index and Match (hide)'!$B$42:$AW$42,0)) -> 183.4327008 | P126: =INDEX('x2 Index and Match (hide)'!$B$43:$AW$70,MATCH('Milk deliveries by EU country'!P$7,'x2 Index and Match (hide)'!$A$43:$A$70,0),MATCH('Milk deliveries by EU country'!$B126,'x2 Index and Match (hide)'!$B$42:$AW$42,0)) -> 1975.358863 | Q126: =INDEX('x2 Index and Match (hide)'!$B$43:$AW$70,MATCH('Milk deliveries by EU country'!Q$7,'x2 Index and Match (hide)'!$A$43:$A$70,0),MATCH('Milk deliveries by EU country'!$B126,'x2 Index and Match (hide)'!$B$42:$AW$42,0)) -> 2449.955044 | R126: =INDEX('x2 Index and Match (hide)'!$B$43:$AW$70,MATCH('Milk deliveries by EU country'!R$7,'x2 Index and Match (hide)'!$A$43:$A$70,0),MATCH('Milk deliveries by EU country'!$B126,'x2 Index and Match (hide)'!$B$42:$AW$42,0)) -> 46.61568 | S126: =INDEX('x2 Index and Match (hide)'!$B$43:$AW$70,MATCH('Milk deliveries by EU country'!S$7,'x2 Index and Match (hide)'!$A$43:$A$70,0),MATCH('Milk deliveries by EU country'!$B126,'x2 Index and Match (hide)'!$B$42:$AW$42,0)) -> 116.1216012 | T126: =INDEX('x2 Index and Match (hide)'!$B$43:$AW$70,MATCH('Milk deliveries by EU country'!T$7,'x2 Index and Match (hide)'!$A$43:$A$70,0),MATCH('Milk deliveries by EU country'!$B126,'x2 Index and Match (hide)'!$B$42:$AW$42,0)) -> 347.8889352 | U126: =INDEX('x2 Index and Match (hide)'!$B$43:$AW$70,MATCH('Milk deliveries by EU country'!U$7,'x2 Index and Match (hide)'!$A$43:$A$70,0),MATCH('Milk deliveries by EU country'!$B126,'x2 Index and Match (hide)'!$B$42:$AW$42,0)) -> 787.4747976 | V126: =INDEX('x2 Index and Match (hide)'!$B$43:$AW$70,MATCH('Milk deliveries by EU country'!V$7,'x2 Index and Match (hide)'!$A$43:$A$70,0),MATCH('Milk deliveries by EU country'!$B126,'x2 Index and Match (hide)'!$B$42:$AW$42,0)) -> 58.7454684 | W126: =INDEX('x2 Index and Match (hide)'!$B$43:$AW$70,MATCH('Milk deliveries by EU country'!W$7,'x2 Index and Match (hide)'!$A$43:$A$70,0),MATCH('Milk deliveries by EU country'!$B126,'x2 Index and Match (hide)'!$B$42:$AW$42,0)) -> 102.1757436 | X126: =INDEX('x2 Index and Match (hide)'!$B$43:$AW$70,MATCH('Milk deliveries by EU country'!X$7,'x2 Index and Match (hide)'!$A$43:$A$70,0),MATCH('Milk deliveries by EU country'!$B126,'x2 Index and Match (hide)'!$B$42:$AW$42,0)) -> 26.755458 | Y126: =INDEX('x2 Index and Match (hide)'!$B$43:$AW$70,MATCH('Milk deliveries by EU country'!Y$7,'x2 Index and Match (hide)'!$A$43:$A$70,0),MATCH('Milk deliveries by EU country'!$B126,'x2 Index and Match (hide)'!$B$42:$AW$42,0)) -> 3.1854048 | Z126: =INDEX('x2 Index and Match (hide)'!$B$43:$AW$70,MATCH('Milk deliveries by EU country'!Z$7,'x2 Index and Match (hide)'!$A$43:$A$70,0),MATCH('Milk deliveries by EU country'!$B126,'x2 Index and Match (hide)'!$B$42:$AW$42,0)) -> 1080.512616 | AA126: =INDEX('x2 Index and Match (hide)'!$B$43:$AW$70,MATCH('Milk deliveries by EU country'!AA$7,'x2 Index and Match (hide)'!$A$43:$A$70,0),MATCH('Milk deliveries by EU country'!$B126,'x2 Index and Match (hide)'!$B$42:$AW$42,0)) -> 819.3385572 | AB126: =INDEX('x2 Index and Match (hide)'!$B$43:$AW$70,MATCH('Milk deliveries by EU country'!AB$7,'x2 Index and Match (hide)'!$A$43:$A$70,0),MATCH('Milk deliveries by EU country'!$B126,'x2 Index and Match (hide)'!$B$42:$AW$42,0)) -> 140.3520432 | AC126: =INDEX('x2 Index and Match (hide)'!$B$43:$AW$70,MATCH('Milk deliveries by EU country'!AC$7,'x2 Index and Match (hide)'!$A$43:$A$70,0),MATCH('Milk deliveries by EU country'!$B126,'x2 Index and Match (hide)'!$B$42:$AW$42,0)) -> 65.359068 | AD126: =INDEX('x2 Index and Match (hide)'!$B$43:$AW$70,MATCH('Milk deliveries by EU country'!AD$7,'x2 Index and Match (hide)'!$A$43:$A$70,0),MATCH('Milk deliveries by EU country'!$B126,'x2 Index and Match (hide)'!$B$42:$AW$42,0)) -> 63.8246352 | AE126: =INDEX('x2 Index and Match (hide)'!$B$43:$AW$70,MATCH('Milk deliveries by EU country'!AE$7,'x2 Index and Match (hide)'!$A$43:$A$70,0),MATCH('Milk deliveries by EU country'!$B126,'x2 Index and Match (hide)'!$B$42:$AW$42,0)) -> 42.8670024 | AF126: =INDEX('x2 Index and Match (hide)'!$B$43:$AW$70,MATCH('Milk deliveries by EU country'!AF$7,'x2 Index and Match (hide)'!$A$43:$A$70,0),MATCH('Milk deliveries by EU country'!$B126,'x2 Index and Match (hide)'!$B$42:$AW$42,0)) -> 531.0982692 | AG126: =INDEX('x2 Index and Match (hide)'!$B$43:$AW$70,MATCH('Milk deliveries by EU country'!AG$7,'x2 Index and Match (hide)'!$A$43:$A$70,0),MATCH('Milk deliveries by EU country'!$B126,'x2 Index and Match (hide)'!$B$42:$AW$42,0)) -> 222.9006432 | AH126: =INDEX('x2 Index and Match (hide)'!$B$43:$AW$70,MATCH('Milk deliveries by EU country'!AH$7,'x2 Index and Match (hide)'!$A$43:$A$70,0),MATCH('Milk deliveries by EU country'!$B126,'x2 Index and Match (hide)'!$B$42:$AW$42,0)) -> 1163.93526 | AM126: 12.9552744 | AN126: 46.0524072 | AO126: -2.7872292 | AP126: 0.1165392 | AQ126: 1.3499124 | AR126: 4.224546 | AS126: 31.5627 | AT126: 2.039436 | AU126: 3.0300192 | AV126: 40.837278 | AW126: 92.4447204 | AX126: 2.91348 | AY126: -0.2136552 | AZ126: 110.1586788 | BA126: -61.9502964 | BB126: 1.9326084 | BC126: 1.0585644 | BD126: 3.5641572 | BE126: -0.1553856 | BF126: 131.59218 | BG126: 39.866118 | BH126: 0.825486 | BI126: -3.0397308 | BJ126: 0.2330784 | BK126: 3.0203076 | BL126: 31.9705872 | BM126: -0.4078872 | BN126: 43.605084 | BO126: 536.7989784 | BP126: 445.5487848 | BQ126: 47.6451096 | BS126: 2015-11-01 | BT126: =SUM(C$116:C126) -> 121833.9061 | BU126: =SUM(D$116:D126) -> 135377.3149 | BV126: =SUM(E$116:E126) -> 102727.3528 | BW126: =SUM(F$116:F126) -> 19106.55328 | BX126: 11 | BY126: 2015
B127: 2015-12-01 | C127: 10904.48554 | D127: 12114.25955 | E127: 9200.28426 | F127: 1704.20128 | G127: =INDEX('x2 Index and Match (hide)'!$B$43:$AW$70,MATCH('Milk deliveries by EU country'!G$7,'x2 Index and Match (hide)'!$A$43:$A$70,0),MATCH('Milk deliveries by EU country'!$B127,'x2 Index and Match (hide)'!$B$42:$AW$42,0)) -> 256.7649924 | H127: =INDEX('x2 Index and Match (hide)'!$B$43:$AW$70,MATCH('Milk deliveries by EU country'!H$7,'x2 Index and Match (hide)'!$A$43:$A$70,0),MATCH('Milk deliveries by EU country'!$B127,'x2 Index and Match (hide)'!$B$42:$AW$42,0)) -> 344.3053548 | I127: =INDEX('x2 Index and Match (hide)'!$B$43:$AW$70,MATCH('Milk deliveries by EU country'!I$7,'x2 Index and Match (hide)'!$A$43:$A$70,0),MATCH('Milk deliveries by EU country'!$B127,'x2 Index and Match (hide)'!$B$42:$AW$42,0)) -> 38.0986068 | J127: =INDEX('x2 Index and Match (hide)'!$B$43:$AW$70,MATCH('Milk deliveries by EU country'!J$7,'x2 Index and Match (hide)'!$A$43:$A$70,0),MATCH('Milk deliveries by EU country'!$B127,'x2 Index and Match (hide)'!$B$42:$AW$42,0)) -> 39.9438108 | K127: =INDEX('x2 Index and Match (hide)'!$B$43:$AW$70,MATCH('Milk deliveries by EU country'!K$7,'x2 Index and Match (hide)'!$A$43:$A$70,0),MATCH('Milk deliveries by EU country'!$B127,'x2 Index and Match (hide)'!$B$42:$AW$42,0)) -> 14.5674 | L127: =INDEX('x2 Index and Match (hide)'!$B$43:$AW$70,MATCH('Milk deliveries by EU country'!L$7,'x2 Index and Match (hide)'!$A$43:$A$70,0),MATCH('Milk deliveries by EU country'!$B127,'x2 Index and Match (hide)'!$B$42:$AW$42,0)) -> 203.749368 | M127: =INDEX('x2 Index and Match (hide)'!$B$43:$AW$70,MATCH('Milk deliveries by EU country'!M$7,'x2 Index and Match (hide)'!$A$43:$A$70,0),MATCH('Milk deliveries by EU country'!$B127,'x2 Index and Match (hide)'!$B$42:$AW$42,0)) -> 438.672972 | N127: =INDEX('x2 Index and Match (hide)'!$B$43:$AW$70,MATCH('Milk deliveries by EU country'!N$7,'x2 Index and Match (hide)'!$A$43:$A$70,0),MATCH('Milk deliveries by EU country'!$B127,'x2 Index and Match (hide)'!$B$42:$AW$42,0)) -> 58.949412 | O127: =INDEX('x2 Index and Match (hide)'!$B$43:$AW$70,MATCH('Milk deliveries by EU country'!O$7,'x2 Index and Match (hide)'!$A$43:$A$70,0),MATCH('Milk deliveries by EU country'!$B127,'x2 Index and Match (hide)'!$B$42:$AW$42,0)) -> 194.0280564 | P127: =INDEX('x2 Index and Match (hide)'!$B$43:$AW$70,MATCH('Milk deliveries by EU country'!P$7,'x2 Index and Match (hide)'!$A$43:$A$70,0),MATCH('Milk deliveries by EU country'!$B127,'x2 Index and Match (hide)'!$B$42:$AW$42,0)) -> 2127.656174 | Q127: =INDEX('x2 Index and Match (hide)'!$B$43:$AW$70,MATCH('Milk deliveries by EU country'!Q$7,'x2 Index and Match (hide)'!$A$43:$A$70,0),MATCH('Milk deliveries by EU country'!$B127,'x2 Index and Match (hide)'!$B$42:$AW$42,0)) -> 2620.364489 | R127: =INDEX('x2 Index and Match (hide)'!$B$43:$AW$70,MATCH('Milk deliveries by EU country'!R$7,'x2 Index and Match (hide)'!$A$43:$A$70,0),MATCH('Milk deliveries by EU country'!$B127,'x2 Index and Match (hide)'!$B$42:$AW$42,0)) -> 49.52916 | S127: =INDEX('x2 Index and Match (hide)'!$B$43:$AW$70,MATCH('Milk deliveries by EU country'!S$7,'x2 Index and Match (hide)'!$A$43:$A$70,0),MATCH('Milk deliveries by EU country'!$B127,'x2 Index and Match (hide)'!$B$42:$AW$42,0)) -> 124.2210756 | T127: =INDEX('x2 Index and Match (hide)'!$B$43:$AW$70,MATCH('Milk deliveries by EU country'!T$7,'x2 Index and Match (hide)'!$A$43:$A$70,0),MATCH('Milk deliveries by EU country'!$B127,'x2 Index and Match (hide)'!$B$42:$AW$42,0)) -> 181.5680736 | U127: =INDEX('x2 Index and Match (hide)'!$B$43:$AW$70,MATCH('Milk deliveries by EU country'!U$7,'x2 Index and Match (hide)'!$A$43:$A$70,0),MATCH('Milk deliveries by EU country'!$B127,'x2 Index and Match (hide)'!$B$42:$AW$42,0)) -> 839.373588 | V127: =INDEX('x2 Index and Match (hide)'!$B$43:$AW$70,MATCH('Milk deliveries by EU country'!V$7,'x2 Index and Match (hide)'!$A$43:$A$70,0),MATCH('Milk deliveries by EU country'!$B127,'x2 Index and Match (hide)'!$B$42:$AW$42,0)) -> 61.5132744 | W127: =INDEX('x2 Index and Match (hide)'!$B$43:$AW$70,MATCH('Milk deliveries by EU country'!W$7,'x2 Index and Match (hide)'!$A$43:$A$70,0),MATCH('Milk deliveries by EU country'!$B127,'x2 Index and Match (hide)'!$B$42:$AW$42,0)) -> 105.5359572 | X127: =INDEX('x2 Index and Match (hide)'!$B$43:$AW$70,MATCH('Milk deliveries by EU country'!X$7,'x2 Index and Match (hide)'!$A$43:$A$70,0),MATCH('Milk deliveries by EU country'!$B127,'x2 Index and Match (hide)'!$B$42:$AW$42,0)) -> 29.2222044 | Y127: =INDEX('x2 Index and Match (hide)'!$B$43:$AW$70,MATCH('Milk deliveries by EU country'!Y$7,'x2 Index and Match (hide)'!$A$43:$A$70,0),MATCH('Milk deliveries by EU country'!$B127,'x2 Index and Match (hide)'!$B$42:$AW$42,0)) -> 3.447618 | Z127: =INDEX('x2 Index and Match (hide)'!$B$43:$AW$70,MATCH('Milk deliveries by EU country'!Z$7,'x2 Index and Match (hide)'!$A$43:$A$70,0),MATCH('Milk deliveries by EU country'!$B127,'x2 Index and Match (hide)'!$B$42:$AW$42,0)) -> 1170.539148 | AA127: =INDEX('x2 Index and Match (hide)'!$B$43:$AW$70,MATCH('Milk deliveries by EU country'!AA$7,'x2 Index and Match (hide)'!$A$43:$A$70,0),MATCH('Milk deliveries by EU country'!$B127,'x2 Index and Match (hide)'!$B$42:$AW$42,0)) -> 873.8886144 | AB127: =INDEX('x2 Index and Match (hide)'!$B$43:$AW$70,MATCH('Milk deliveries by EU country'!AB$7,'x2 Index and Match (hide)'!$A$43:$A$70,0),MATCH('Milk deliveries by EU country'!$B127,'x2 Index and Match (hide)'!$B$42:$AW$42,0)) -> 149.6946024 | AC127: =INDEX('x2 Index and Match (hide)'!$B$43:$AW$70,MATCH('Milk deliveries by EU country'!AC$7,'x2 Index and Match (hide)'!$A$43:$A$70,0),MATCH('Milk deliveries by EU country'!$B127,'x2 Index and Match (hide)'!$B$42:$AW$42,0)) -> 66.3399396 | AD127: =INDEX('x2 Index and Match (hide)'!$B$43:$AW$70,MATCH('Milk deliveries by EU country'!AD$7,'x2 Index and Match (hide)'!$A$43:$A$70,0),MATCH('Milk deliveries by EU country'!$B127,'x2 Index and Match (hide)'!$B$42:$AW$42,0)) -> 68.2822596 | AE127: =INDEX('x2 Index and Match (hide)'!$B$43:$AW$70,MATCH('Milk deliveries by EU country'!AE$7,'x2 Index and Match (hide)'!$A$43:$A$70,0),MATCH('Milk deliveries by EU country'!$B127,'x2 Index and Match (hide)'!$B$42:$AW$42,0)) -> 45.6639432 | AF127: =INDEX('x2 Index and Match (hide)'!$B$43:$AW$70,MATCH('Milk deliveries by EU country'!AF$7,'x2 Index and Match (hide)'!$A$43:$A$70,0),MATCH('Milk deliveries by EU country'!$B127,'x2 Index and Match (hide)'!$B$42:$AW$42,0)) -> 561.5538468 | AG127: =INDEX('x2 Index and Match (hide)'!$B$43:$AW$70,MATCH('Milk deliveries by EU country'!AG$7,'x2 Index and Match (hide)'!$A$43:$A$70,0),MATCH('Milk deliveries by EU country'!$B127,'x2 Index and Match (hide)'!$B$42:$AW$42,0)) -> 237.011598 | AH127: =INDEX('x2 Index and Match (hide)'!$B$43:$AW$70,MATCH('Milk deliveries by EU country'!AH$7,'x2 Index and Match (hide)'!$A$43:$A$70,0),MATCH('Milk deliveries by EU country'!$B127,'x2 Index and Match (hide)'!$B$42:$AW$42,0)) -> 1209.774012 | AM127: 19.2095448 | AN127: 54.1713048 | AO127: -0.7866396 | AP127: -0.7575048 | AQ127: 1.9326084 | AR127: 7.3613928 | AS127: 36.321384 | AT127: 2.525016 | AU127: 2.136552 | AV127: 51.4909032 | AW127: 153.394722 | AX127: 2.622132 | AY127: -3.64185 | AZ127: 43.9741248 | BA127: -68.5736076 | BB127: 2.6609784 | BC127: 1.9811664 | BD127: 4.321662 | BE127: -0.0776928 | BF127: 166.748172 | BG127: 60.9208668 | BH127: 0.3204828 | BI127: -1.2333732 | BJ127: 0.5244264 | BK127: 3.836082 | BL127: 41.3034348 | BM127: -0.5438496 | BN127: 24.570348 | BO127: 606.7127868 | BP127: 506.896962 | BQ127: 75.2454768 | BS127: 2015-12-01 | BT127: =SUM(C$116:C127) -> 132738.3916 | BU127: =SUM(D$116:D127) -> 147491.5745 | BV127: =SUM(E$116:E127) -> 111927.637 | BW127: =SUM(F$116:F127) -> 20810.75456 | BX127: 12 | BY127: 2015
B128: 2016-01-01 | C128: 11069.9712 | D128: 12295.18666 | E128: 9317.901448 | F128: 1752.069756 | G128: =INDEX('x2 Index and Match (hide)'!$B$43:$AW$70,MATCH('Milk deliveries by EU country'!G$7,'x2 Index and Match (hide)'!$A$43:$A$70,0),MATCH('Milk deliveries by EU country'!$B128,'x2 Index and Match (hide)'!$B$42:$AW$42,0)) -> 260.367996 | H128: =INDEX('x2 Index and Match (hide)'!$B$43:$AW$70,MATCH('Milk deliveries by EU country'!H$7,'x2 Index and Match (hide)'!$A$43:$A$70,0),MATCH('Milk deliveries by EU country'!$B128,'x2 Index and Match (hide)'!$B$42:$AW$42,0)) -> 323.5516656 | I128: =INDEX('x2 Index and Match (hide)'!$B$43:$AW$70,MATCH('Milk deliveries by EU country'!I$7,'x2 Index and Match (hide)'!$A$43:$A$70,0),MATCH('Milk deliveries by EU country'!$B128,'x2 Index and Match (hide)'!$B$42:$AW$42,0)) -> 36.3893652 | J128: =INDEX('x2 Index and Match (hide)'!$B$43:$AW$70,MATCH('Milk deliveries by EU country'!J$7,'x2 Index and Match (hide)'!$A$43:$A$70,0),MATCH('Milk deliveries by EU country'!$B128,'x2 Index and Match (hide)'!$B$42:$AW$42,0)) -> 41.4393972 | K128: =INDEX('x2 Index and Match (hide)'!$B$43:$AW$70,MATCH('Milk deliveries by EU country'!K$7,'x2 Index and Match (hide)'!$A$43:$A$70,0),MATCH('Milk deliveries by EU country'!$B128,'x2 Index and Match (hide)'!$B$42:$AW$42,0)) -> 14.9849988 | L128: =INDEX('x2 Index and Match (hide)'!$B$43:$AW$70,MATCH('Milk deliveries by EU country'!L$7,'x2 Index and Match (hide)'!$A$43:$A$70,0),MATCH('Milk deliveries by EU country'!$B128,'x2 Index and Match (hide)'!$B$42:$AW$42,0)) -> 229.8832836 | M128: =INDEX('x2 Index and Match (hide)'!$B$43:$AW$70,MATCH('Milk deliveries by EU country'!M$7,'x2 Index and Match (hide)'!$A$43:$A$70,0),MATCH('Milk deliveries by EU country'!$B128,'x2 Index and Match (hide)'!$B$42:$AW$42,0)) -> 441.8778 | N128: =INDEX('x2 Index and Match (hide)'!$B$43:$AW$70,MATCH('Milk deliveries by EU country'!N$7,'x2 Index and Match (hide)'!$A$43:$A$70,0),MATCH('Milk deliveries by EU country'!$B128,'x2 Index and Match (hide)'!$B$42:$AW$42,0)) -> 58.949412 | O128: =INDEX('x2 Index and Match (hide)'!$B$43:$AW$70,MATCH('Milk deliveries by EU country'!O$7,'x2 Index and Match (hide)'!$A$43:$A$70,0),MATCH('Milk deliveries by EU country'!$B128,'x2 Index and Match (hide)'!$B$42:$AW$42,0)) -> 196.6210536 | P128: =INDEX('x2 Index and Match (hide)'!$B$43:$AW$70,MATCH('Milk deliveries by EU country'!P$7,'x2 Index and Match (hide)'!$A$43:$A$70,0),MATCH('Milk deliveries by EU country'!$B128,'x2 Index and Match (hide)'!$B$42:$AW$42,0)) -> 2143.330697 | Q128: =INDEX('x2 Index and Match (hide)'!$B$43:$AW$70,MATCH('Milk deliveries by EU country'!Q$7,'x2 Index and Match (hide)'!$A$43:$A$70,0),MATCH('Milk deliveries by EU country'!$B128,'x2 Index and Match (hide)'!$B$42:$AW$42,0)) -> 2681.91661 | R128: =INDEX('x2 Index and Match (hide)'!$B$43:$AW$70,MATCH('Milk deliveries by EU country'!R$7,'x2 Index and Match (hide)'!$A$43:$A$70,0),MATCH('Milk deliveries by EU country'!$B128,'x2 Index and Match (hide)'!$B$42:$AW$42,0)) -> 50.694552 | S128: =INDEX('x2 Index and Match (hide)'!$B$43:$AW$70,MATCH('Milk deliveries by EU country'!S$7,'x2 Index and Match (hide)'!$A$43:$A$70,0),MATCH('Milk deliveries by EU country'!$B128,'x2 Index and Match (hide)'!$B$42:$AW$42,0)) -> 127.4841732 | T128: =INDEX('x2 Index and Match (hide)'!$B$43:$AW$70,MATCH('Milk deliveries by EU country'!T$7,'x2 Index and Match (hide)'!$A$43:$A$70,0),MATCH('Milk deliveries by EU country'!$B128,'x2 Index and Match (hide)'!$B$42:$AW$42,0)) -> 147.5871852 | U128: =INDEX('x2 Index and Match (hide)'!$B$43:$AW$70,MATCH('Milk deliveries by EU country'!U$7,'x2 Index and Match (hide)'!$A$43:$A$70,0),MATCH('Milk deliveries by EU country'!$B128,'x2 Index and Match (hide)'!$B$42:$AW$42,0)) -> 897.9539592 | V128: =INDEX('x2 Index and Match (hide)'!$B$43:$AW$70,MATCH('Milk deliveries by EU country'!V$7,'x2 Index and Match (hide)'!$A$43:$A$70,0),MATCH('Milk deliveries by EU country'!$B128,'x2 Index and Match (hide)'!$B$42:$AW$42,0)) -> 60.4838448 | W128: =INDEX('x2 Index and Match (hide)'!$B$43:$AW$70,MATCH('Milk deliveries by EU country'!W$7,'x2 Index and Match (hide)'!$A$43:$A$70,0),MATCH('Milk deliveries by EU country'!$B128,'x2 Index and Match (hide)'!$B$42:$AW$42,0)) -> 102.0106464 | X128: =INDEX('x2 Index and Match (hide)'!$B$43:$AW$70,MATCH('Milk deliveries by EU country'!X$7,'x2 Index and Match (hide)'!$A$43:$A$70,0),MATCH('Milk deliveries by EU country'!$B128,'x2 Index and Match (hide)'!$B$42:$AW$42,0)) -> 30.4847124 | Y128: =INDEX('x2 Index and Match (hide)'!$B$43:$AW$70,MATCH('Milk deliveries by EU country'!Y$7,'x2 Index and Match (hide)'!$A$43:$A$70,0),MATCH('Milk deliveries by EU country'!$B128,'x2 Index and Match (hide)'!$B$42:$AW$42,0)) -> 3.593292 | Z128: =INDEX('x2 Index and Match (hide)'!$B$43:$AW$70,MATCH('Milk deliveries by EU country'!Z$7,'x2 Index and Match (hide)'!$A$43:$A$70,0),MATCH('Milk deliveries by EU country'!$B128,'x2 Index and Match (hide)'!$B$42:$AW$42,0)) -> 1179.668052 | AA128: =INDEX('x2 Index and Match (hide)'!$B$43:$AW$70,MATCH('Milk deliveries by EU country'!AA$7,'x2 Index and Match (hide)'!$A$43:$A$70,0),MATCH('Milk deliveries by EU country'!$B128,'x2 Index and Match (hide)'!$B$42:$AW$42,0)) -> 890.79651 | AB128: =INDEX('x2 Index and Match (hide)'!$B$43:$AW$70,MATCH('Milk deliveries by EU country'!AB$7,'x2 Index and Match (hide)'!$A$43:$A$70,0),MATCH('Milk deliveries by EU country'!$B128,'x2 Index and Match (hide)'!$B$42:$AW$42,0)) -> 154.2784776 | AC128: =INDEX('x2 Index and Match (hide)'!$B$43:$AW$70,MATCH('Milk deliveries by EU country'!AC$7,'x2 Index and Match (hide)'!$A$43:$A$70,0),MATCH('Milk deliveries by EU country'!$B128,'x2 Index and Match (hide)'!$B$42:$AW$42,0)) -> 69.8361156 | AD128: =INDEX('x2 Index and Match (hide)'!$B$43:$AW$70,MATCH('Milk deliveries by EU country'!AD$7,'x2 Index and Match (hide)'!$A$43:$A$70,0),MATCH('Milk deliveries by EU country'!$B128,'x2 Index and Match (hide)'!$B$42:$AW$42,0)) -> 69.3019776 | AE128: =INDEX('x2 Index and Match (hide)'!$B$43:$AW$70,MATCH('Milk deliveries by EU country'!AE$7,'x2 Index and Match (hide)'!$A$43:$A$70,0),MATCH('Milk deliveries by EU country'!$B128,'x2 Index and Match (hide)'!$B$42:$AW$42,0)) -> 46.9167396 | AF128: =INDEX('x2 Index and Match (hide)'!$B$43:$AW$70,MATCH('Milk deliveries by EU country'!AF$7,'x2 Index and Match (hide)'!$A$43:$A$70,0),MATCH('Milk deliveries by EU country'!$B128,'x2 Index and Match (hide)'!$B$42:$AW$42,0)) -> 567.594462 | AG128: =INDEX('x2 Index and Match (hide)'!$B$43:$AW$70,MATCH('Milk deliveries by EU country'!AG$7,'x2 Index and Match (hide)'!$A$43:$A$70,0),MATCH('Milk deliveries by EU country'!$B128,'x2 Index and Match (hide)'!$B$42:$AW$42,0)) -> 241.9742256 | AH128: =INDEX('x2 Index and Match (hide)'!$B$43:$AW$70,MATCH('Milk deliveries by EU country'!AH$7,'x2 Index and Match (hide)'!$A$43:$A$70,0),MATCH('Milk deliveries by EU country'!$B128,'x2 Index and Match (hide)'!$B$42:$AW$42,0)) -> 1225.215456 | AM128: 13.1495064 | AN128: 30.6303864 | AO128: -2.4570348 | AP128: -0.8643324 | AQ128: 2.5347276 | AR128: 27.8140224 | AS128: 29.911728 | AT128: 1.165392 | AU128: -1.1071224 | AV128: 4.7295492 | AW128: 146.6160252 | AX128: 2.233668 | AY128: 1.45674 | AZ128: 32.825208 | BA128: 7.6527408 | BB128: 2.6998248 | BC128: 0.7186584 | BD128: 5.0111856 | BE128: -0.048558 | BF128: 158.201964 | BG128: 65.3396448 | BH128: -0.9420252 | BI128: 7.623606 | BJ128: -1.3402008 | BK128: 3.253386 | BL128: 10.5079512 | BM128: -3.0785772 | BN128: 31.659816 | BO128: 575.89788 | BP128: 436.342188 | BQ128: 107.895876 | BS128: 2016-01-01 | BT128: =SUM(C$128:C128) -> 11069.9712 | BU128: =SUM(D$128:D128) -> 12295.18666 | BV128: =SUM(E$128:E128) -> 9317.901448 | BW128: =SUM(F$128:F128) -> 1752.069756 | BX128: 1 | BY128: 2016
B129: 2016-02-01 | C129: 10733.5808 | D129: 11881.29769 | E129: 9045.86982 | F129: 1687.710983 | G129: =INDEX('x2 Index and Match (hide)'!$B$43:$AW$70,MATCH('Milk deliveries by EU country'!G$7,'x2 Index and Match (hide)'!$A$43:$A$70,0),MATCH('Milk deliveries by EU country'!$B129,'x2 Index and Match (hide)'!$B$42:$AW$42,0)) -> 252.890064 | H129: =INDEX('x2 Index and Match (hide)'!$B$43:$AW$70,MATCH('Milk deliveries by EU country'!H$7,'x2 Index and Match (hide)'!$A$43:$A$70,0),MATCH('Milk deliveries by EU country'!$B129,'x2 Index and Match (hide)'!$B$42:$AW$42,0)) -> 310.3924476 | I129: =INDEX('x2 Index and Match (hide)'!$B$43:$AW$70,MATCH('Milk deliveries by EU country'!I$7,'x2 Index and Match (hide)'!$A$43:$A$70,0),MATCH('Milk deliveries by EU country'!$B129,'x2 Index and Match (hide)'!$B$42:$AW$42,0)) -> 37.63245 | J129: =INDEX('x2 Index and Match (hide)'!$B$43:$AW$70,MATCH('Milk deliveries by EU country'!J$7,'x2 Index and Match (hide)'!$A$43:$A$70,0),MATCH('Milk deliveries by EU country'!$B129,'x2 Index and Match (hide)'!$B$42:$AW$42,0)) -> 40.3905444 | K129: =INDEX('x2 Index and Match (hide)'!$B$43:$AW$70,MATCH('Milk deliveries by EU country'!K$7,'x2 Index and Match (hide)'!$A$43:$A$70,0),MATCH('Milk deliveries by EU country'!$B129,'x2 Index and Match (hide)'!$B$42:$AW$42,0)) -> 14.5479768 | L129: =INDEX('x2 Index and Match (hide)'!$B$43:$AW$70,MATCH('Milk deliveries by EU country'!L$7,'x2 Index and Match (hide)'!$A$43:$A$70,0),MATCH('Milk deliveries by EU country'!$B129,'x2 Index and Match (hide)'!$B$42:$AW$42,0)) -> 229.19376 | M129: =INDEX('x2 Index and Match (hide)'!$B$43:$AW$70,MATCH('Milk deliveries by EU country'!M$7,'x2 Index and Match (hide)'!$A$43:$A$70,0),MATCH('Milk deliveries by EU country'!$B129,'x2 Index and Match (hide)'!$B$42:$AW$42,0)) -> 419.54112 | N129: =INDEX('x2 Index and Match (hide)'!$B$43:$AW$70,MATCH('Milk deliveries by EU country'!N$7,'x2 Index and Match (hide)'!$A$43:$A$70,0),MATCH('Milk deliveries by EU country'!$B129,'x2 Index and Match (hide)'!$B$42:$AW$42,0)) -> 55.938816 | O129: =INDEX('x2 Index and Match (hide)'!$B$43:$AW$70,MATCH('Milk deliveries by EU country'!O$7,'x2 Index and Match (hide)'!$A$43:$A$70,0),MATCH('Milk deliveries by EU country'!$B129,'x2 Index and Match (hide)'!$B$42:$AW$42,0)) -> 189.5607204 | P129: =INDEX('x2 Index and Match (hide)'!$B$43:$AW$70,MATCH('Milk deliveries by EU country'!P$7,'x2 Index and Match (hide)'!$A$43:$A$70,0),MATCH('Milk deliveries by EU country'!$B129,'x2 Index and Match (hide)'!$B$42:$AW$42,0)) -> 2010.087545 | Q129: =INDEX('x2 Index and Match (hide)'!$B$43:$AW$70,MATCH('Milk deliveries by EU country'!Q$7,'x2 Index and Match (hide)'!$A$43:$A$70,0),MATCH('Milk deliveries by EU country'!$B129,'x2 Index and Match (hide)'!$B$42:$AW$42,0)) -> 2556.734086 | R129: =INDEX('x2 Index and Match (hide)'!$B$43:$AW$70,MATCH('Milk deliveries by EU country'!R$7,'x2 Index and Match (hide)'!$A$43:$A$70,0),MATCH('Milk deliveries by EU country'!$B129,'x2 Index and Match (hide)'!$B$42:$AW$42,0)) -> 49.820508 | S129: =INDEX('x2 Index and Match (hide)'!$B$43:$AW$70,MATCH('Milk deliveries by EU country'!S$7,'x2 Index and Match (hide)'!$A$43:$A$70,0),MATCH('Milk deliveries by EU country'!$B129,'x2 Index and Match (hide)'!$B$42:$AW$42,0)) -> 124.8523296 | T129: =INDEX('x2 Index and Match (hide)'!$B$43:$AW$70,MATCH('Milk deliveries by EU country'!T$7,'x2 Index and Match (hide)'!$A$43:$A$70,0),MATCH('Milk deliveries by EU country'!$B129,'x2 Index and Match (hide)'!$B$42:$AW$42,0)) -> 287.1040308 | U129: =INDEX('x2 Index and Match (hide)'!$B$43:$AW$70,MATCH('Milk deliveries by EU country'!U$7,'x2 Index and Match (hide)'!$A$43:$A$70,0),MATCH('Milk deliveries by EU country'!$B129,'x2 Index and Match (hide)'!$B$42:$AW$42,0)) -> 883.9401204 | V129: =INDEX('x2 Index and Match (hide)'!$B$43:$AW$70,MATCH('Milk deliveries by EU country'!V$7,'x2 Index and Match (hide)'!$A$43:$A$70,0),MATCH('Milk deliveries by EU country'!$B129,'x2 Index and Match (hide)'!$B$42:$AW$42,0)) -> 57.2304588 | W129: =INDEX('x2 Index and Match (hide)'!$B$43:$AW$70,MATCH('Milk deliveries by EU country'!W$7,'x2 Index and Match (hide)'!$A$43:$A$70,0),MATCH('Milk deliveries by EU country'!$B129,'x2 Index and Match (hide)'!$B$42:$AW$42,0)) -> 93.0662628 | X129: =INDEX('x2 Index and Match (hide)'!$B$43:$AW$70,MATCH('Milk deliveries by EU country'!X$7,'x2 Index and Match (hide)'!$A$43:$A$70,0),MATCH('Milk deliveries by EU country'!$B129,'x2 Index and Match (hide)'!$B$42:$AW$42,0)) -> 29.4941292 | Y129: =INDEX('x2 Index and Match (hide)'!$B$43:$AW$70,MATCH('Milk deliveries by EU country'!Y$7,'x2 Index and Match (hide)'!$A$43:$A$70,0),MATCH('Milk deliveries by EU country'!$B129,'x2 Index and Match (hide)'!$B$42:$AW$42,0)) -> 3.4670412 | Z129: =INDEX('x2 Index and Match (hide)'!$B$43:$AW$70,MATCH('Milk deliveries by EU country'!Z$7,'x2 Index and Match (hide)'!$A$43:$A$70,0),MATCH('Milk deliveries by EU country'!$B129,'x2 Index and Match (hide)'!$B$42:$AW$42,0)) -> 1127.808108 | AA129: =INDEX('x2 Index and Match (hide)'!$B$43:$AW$70,MATCH('Milk deliveries by EU country'!AA$7,'x2 Index and Match (hide)'!$A$43:$A$70,0),MATCH('Milk deliveries by EU country'!$B129,'x2 Index and Match (hide)'!$B$42:$AW$42,0)) -> 849.6581724 | AB129: =INDEX('x2 Index and Match (hide)'!$B$43:$AW$70,MATCH('Milk deliveries by EU country'!AB$7,'x2 Index and Match (hide)'!$A$43:$A$70,0),MATCH('Milk deliveries by EU country'!$B129,'x2 Index and Match (hide)'!$B$42:$AW$42,0)) -> 149.6266212 | AC129: =INDEX('x2 Index and Match (hide)'!$B$43:$AW$70,MATCH('Milk deliveries by EU country'!AC$7,'x2 Index and Match (hide)'!$A$43:$A$70,0),MATCH('Milk deliveries by EU country'!$B129,'x2 Index and Match (hide)'!$B$42:$AW$42,0)) -> 69.5253444 | AD129: =INDEX('x2 Index and Match (hide)'!$B$43:$AW$70,MATCH('Milk deliveries by EU country'!AD$7,'x2 Index and Match (hide)'!$A$43:$A$70,0),MATCH('Milk deliveries by EU country'!$B129,'x2 Index and Match (hide)'!$B$42:$AW$42,0)) -> 66.8255196 | AE129: =INDEX('x2 Index and Match (hide)'!$B$43:$AW$70,MATCH('Milk deliveries by EU country'!AE$7,'x2 Index and Match (hide)'!$A$43:$A$70,0),MATCH('Milk deliveries by EU country'!$B129,'x2 Index and Match (hide)'!$B$42:$AW$42,0)) -> 45.3823068 | AF129: =INDEX('x2 Index and Match (hide)'!$B$43:$AW$70,MATCH('Milk deliveries by EU country'!AF$7,'x2 Index and Match (hide)'!$A$43:$A$70,0),MATCH('Milk deliveries by EU country'!$B129,'x2 Index and Match (hide)'!$B$42:$AW$42,0)) -> 547.0350048 | AG129: =INDEX('x2 Index and Match (hide)'!$B$43:$AW$70,MATCH('Milk deliveries by EU country'!AG$7,'x2 Index and Match (hide)'!$A$43:$A$70,0),MATCH('Milk deliveries by EU country'!$B129,'x2 Index and Match (hide)'!$B$42:$AW$42,0)) -> 231.8353152 | AH129: =INDEX('x2 Index and Match (hide)'!$B$43:$AW$70,MATCH('Milk deliveries by EU country'!AH$7,'x2 Index and Match (hide)'!$A$43:$A$70,0),MATCH('Milk deliveries by EU country'!$B129,'x2 Index and Match (hide)'!$B$42:$AW$42,0)) -> 1147.716888 | AM129: 24.03621 | AN129: 44.3140308 | AO129: 2.4861696 | AP129: 1.5441444 | AQ129: 3.301944 | AR129: 43.1097924 | AS129: 44.867592 | AT129: 3.496176 | AU129: 6.2931168 | AV129: 61.9405848 | AW129: 242.4695172 | AX129: 3.690408 | AY129: 5.82696 | AZ129: 71.9920908 | BA129: 40.3225632 | BB129: 5.4287844 | BC129: 4.661568 | BD129: 6.2834052 | BE129: 0.1845204 | BF129: 201.03012 | BG129: 96.6692664 | BH129: 2.6609784 | BI129: 10.8672804 | BJ129: 2.0297244 | BK129: 4.952916 | BL129: 35.8260924 | BM129: 6.2931168 | BN129: 46.61568 | BO129: 1023.194753 | BP129: 792.0198264 | BQ129: 184.5592464 | BS129: 2016-02-01 | BT129: =SUM(C$128:C129) -> 21803.55201 | BU129: =SUM(D$128:D129) -> 24176.48435 | BV129: =SUM(E$128:E129) -> 18363.77127 | BW129: =SUM(F$128:F129) -> 3439.780739 | BX129: 2 | BY129: 2016
B130: 2016-03-01 | C130: 11798.80736 | D130: 13058.88746 | E130: 9964.946509 | F130: 1833.860851 | G130: =INDEX('x2 Index and Match (hide)'!$B$43:$AW$70,MATCH('Milk deliveries by EU country'!G$7,'x2 Index and Match (hide)'!$A$43:$A$70,0),MATCH('Milk deliveries by EU country'!$B130,'x2 Index and Match (hide)'!$B$42:$AW$42,0)) -> 273.2455776 | H130: =INDEX('x2 Index and Match (hide)'!$B$43:$AW$70,MATCH('Milk deliveries by EU country'!H$7,'x2 Index and Match (hide)'!$A$43:$A$70,0),MATCH('Milk deliveries by EU country'!$B130,'x2 Index and Match (hide)'!$B$42:$AW$42,0)) -> 333.0010524 | I130: =INDEX('x2 Index and Match (hide)'!$B$43:$AW$70,MATCH('Milk deliveries by EU country'!I$7,'x2 Index and Match (hide)'!$A$43:$A$70,0),MATCH('Milk deliveries by EU country'!$B130,'x2 Index and Match (hide)'!$B$42:$AW$42,0)) -> 46.1495232 | J130: =INDEX('x2 Index and Match (hide)'!$B$43:$AW$70,MATCH('Milk deliveries by EU country'!J$7,'x2 Index and Match (hide)'!$A$43:$A$70,0),MATCH('Milk deliveries by EU country'!$B130,'x2 Index and Match (hide)'!$B$42:$AW$42,0)) -> 43.1000808 | K130: =INDEX('x2 Index and Match (hide)'!$B$43:$AW$70,MATCH('Milk deliveries by EU country'!K$7,'x2 Index and Match (hide)'!$A$43:$A$70,0),MATCH('Milk deliveries by EU country'!$B130,'x2 Index and Match (hide)'!$B$42:$AW$42,0)) -> 16.3251996 | L130: =INDEX('x2 Index and Match (hide)'!$B$43:$AW$70,MATCH('Milk deliveries by EU country'!L$7,'x2 Index and Match (hide)'!$A$43:$A$70,0),MATCH('Milk deliveries by EU country'!$B130,'x2 Index and Match (hide)'!$B$42:$AW$42,0)) -> 248.4421512 | M130: =INDEX('x2 Index and Match (hide)'!$B$43:$AW$70,MATCH('Milk deliveries by EU country'!M$7,'x2 Index and Match (hide)'!$A$43:$A$70,0),MATCH('Milk deliveries by EU country'!$B130,'x2 Index and Match (hide)'!$B$42:$AW$42,0)) -> 451.4145912 | N130: =INDEX('x2 Index and Match (hide)'!$B$43:$AW$70,MATCH('Milk deliveries by EU country'!N$7,'x2 Index and Match (hide)'!$A$43:$A$70,0),MATCH('Milk deliveries by EU country'!$B130,'x2 Index and Match (hide)'!$B$42:$AW$42,0)) -> 58.560948 | O130: =INDEX('x2 Index and Match (hide)'!$B$43:$AW$70,MATCH('Milk deliveries by EU country'!O$7,'x2 Index and Match (hide)'!$A$43:$A$70,0),MATCH('Milk deliveries by EU country'!$B130,'x2 Index and Match (hide)'!$B$42:$AW$42,0)) -> 204.6525468 | P130: =INDEX('x2 Index and Match (hide)'!$B$43:$AW$70,MATCH('Milk deliveries by EU country'!P$7,'x2 Index and Match (hide)'!$A$43:$A$70,0),MATCH('Milk deliveries by EU country'!$B130,'x2 Index and Match (hide)'!$B$42:$AW$42,0)) -> 2133.755059 | Q130: =INDEX('x2 Index and Match (hide)'!$B$43:$AW$70,MATCH('Milk deliveries by EU country'!Q$7,'x2 Index and Match (hide)'!$A$43:$A$70,0),MATCH('Milk deliveries by EU country'!$B130,'x2 Index and Match (hide)'!$B$42:$AW$42,0)) -> 2742.944304 | R130: =INDEX('x2 Index and Match (hide)'!$B$43:$AW$70,MATCH('Milk deliveries by EU country'!R$7,'x2 Index and Match (hide)'!$A$43:$A$70,0),MATCH('Milk deliveries by EU country'!$B130,'x2 Index and Match (hide)'!$B$42:$AW$42,0)) -> 53.316684 | S130: =INDEX('x2 Index and Match (hide)'!$B$43:$AW$70,MATCH('Milk deliveries by EU country'!S$7,'x2 Index and Match (hide)'!$A$43:$A$70,0),MATCH('Milk deliveries by EU country'!$B130,'x2 Index and Match (hide)'!$B$42:$AW$42,0)) -> 134.9329704 | T130: =INDEX('x2 Index and Match (hide)'!$B$43:$AW$70,MATCH('Milk deliveries by EU country'!T$7,'x2 Index and Match (hide)'!$A$43:$A$70,0),MATCH('Milk deliveries by EU country'!$B130,'x2 Index and Match (hide)'!$B$42:$AW$42,0)) -> 594.5829984 | U130: =INDEX('x2 Index and Match (hide)'!$B$43:$AW$70,MATCH('Milk deliveries by EU country'!U$7,'x2 Index and Match (hide)'!$A$43:$A$70,0),MATCH('Milk deliveries by EU country'!$B130,'x2 Index and Match (hide)'!$B$42:$AW$42,0)) -> 946.4634012 | V130: =INDEX('x2 Index and Match (hide)'!$B$43:$AW$70,MATCH('Milk deliveries by EU country'!V$7,'x2 Index and Match (hide)'!$A$43:$A$70,0),MATCH('Milk deliveries by EU country'!$B130,'x2 Index and Match (hide)'!$B$42:$AW$42,0)) -> 61.2413496 | W130: =INDEX('x2 Index and Match (hide)'!$B$43:$AW$70,MATCH('Milk deliveries by EU country'!W$7,'x2 Index and Match (hide)'!$A$43:$A$70,0),MATCH('Milk deliveries by EU country'!$B130,'x2 Index and Match (hide)'!$B$42:$AW$42,0)) -> 99.7575552 | X130: =INDEX('x2 Index and Match (hide)'!$B$43:$AW$70,MATCH('Milk deliveries by EU country'!X$7,'x2 Index and Match (hide)'!$A$43:$A$70,0),MATCH('Milk deliveries by EU country'!$B130,'x2 Index and Match (hide)'!$B$42:$AW$42,0)) -> 31.902606 | Y130: =INDEX('x2 Index and Match (hide)'!$B$43:$AW$70,MATCH('Milk deliveries by EU country'!Y$7,'x2 Index and Match (hide)'!$A$43:$A$70,0),MATCH('Milk deliveries by EU country'!$B130,'x2 Index and Match (hide)'!$B$42:$AW$42,0)) -> 3.7778124 | Z130: =INDEX('x2 Index and Match (hide)'!$B$43:$AW$70,MATCH('Milk deliveries by EU country'!Z$7,'x2 Index and Match (hide)'!$A$43:$A$70,0),MATCH('Milk deliveries by EU country'!$B130,'x2 Index and Match (hide)'!$B$42:$AW$42,0)) -> 1204.141284 | AA130: =INDEX('x2 Index and Match (hide)'!$B$43:$AW$70,MATCH('Milk deliveries by EU country'!AA$7,'x2 Index and Match (hide)'!$A$43:$A$70,0),MATCH('Milk deliveries by EU country'!$B130,'x2 Index and Match (hide)'!$B$42:$AW$42,0)) -> 921.8542068 | AB130: =INDEX('x2 Index and Match (hide)'!$B$43:$AW$70,MATCH('Milk deliveries by EU country'!AB$7,'x2 Index and Match (hide)'!$A$43:$A$70,0),MATCH('Milk deliveries by EU country'!$B130,'x2 Index and Match (hide)'!$B$42:$AW$42,0)) -> 162.9703596 | AC130: =INDEX('x2 Index and Match (hide)'!$B$43:$AW$70,MATCH('Milk deliveries by EU country'!AC$7,'x2 Index and Match (hide)'!$A$43:$A$70,0),MATCH('Milk deliveries by EU country'!$B130,'x2 Index and Match (hide)'!$B$42:$AW$42,0)) -> 78.1686684 | AD130: =INDEX('x2 Index and Match (hide)'!$B$43:$AW$70,MATCH('Milk deliveries by EU country'!AD$7,'x2 Index and Match (hide)'!$A$43:$A$70,0),MATCH('Milk deliveries by EU country'!$B130,'x2 Index and Match (hide)'!$B$42:$AW$42,0)) -> 72.254304 | AE130: =INDEX('x2 Index and Match (hide)'!$B$43:$AW$70,MATCH('Milk deliveries by EU country'!AE$7,'x2 Index and Match (hide)'!$A$43:$A$70,0),MATCH('Milk deliveries by EU country'!$B130,'x2 Index and Match (hide)'!$B$42:$AW$42,0)) -> 49.2960816 | AF130: =INDEX('x2 Index and Match (hide)'!$B$43:$AW$70,MATCH('Milk deliveries by EU country'!AF$7,'x2 Index and Match (hide)'!$A$43:$A$70,0),MATCH('Milk deliveries by EU country'!$B130,'x2 Index and Match (hide)'!$B$42:$AW$42,0)) -> 582.647442 | AG130: =INDEX('x2 Index and Match (hide)'!$B$43:$AW$70,MATCH('Milk deliveries by EU country'!AG$7,'x2 Index and Match (hide)'!$A$43:$A$70,0),MATCH('Milk deliveries by EU country'!$B130,'x2 Index and Match (hide)'!$B$42:$AW$42,0)) -> 249.9086028 | AH130: =INDEX('x2 Index and Match (hide)'!$B$43:$AW$70,MATCH('Milk deliveries by EU country'!AH$7,'x2 Index and Match (hide)'!$A$43:$A$70,0),MATCH('Milk deliveries by EU country'!$B130,'x2 Index and Match (hide)'!$B$42:$AW$42,0)) -> 1260.0801 | AM130: 12.4988292 | AN130: 41.3908392 | AO130: 7.76928 | AP130: -0.7575048 | AQ130: 3.593292 | AR130: 37.9335096 | AS130: 31.9705872 | AT130: 0.874044 | AU130: -0.3301944 | AV130: -45.4599996 | AW130: 138.972996 | AX130: 1.262508 | AY130: 1.1071224 | AZ130: 140.5559868 | BA130: 38.9240928 | BB130: 4.7683956 | BC130: 0.3301944 | BD130: 5.7007092 | BE130: 0.1359624 | BF130: 172.963596 | BG130: 76.0515396 | BH130: -6.9826404 | BI130: 2.9426148 | BJ130: -0.825486 | BK130: 3.3699252 | BL130: -2.5638624 | BM130: -2.8746336 | BN130: -2.233668 | BO130: 661.0880352 | BP130: 526.028814 | BQ130: 137.2928892 | BS130: 2016-03-01 | BT130: =SUM(C$128:C130) -> 33602.35937 | BU130: =SUM(D$128:D130) -> 37235.37181 | BV130: =SUM(E$128:E130) -> 28328.71778 | BW130: =SUM(F$128:F130) -> 5273.64159 | BX130: 3 | BY130: 2016
